Workbook

Sheet Intro
G2: Electricity Distribution Network Service Provider
H3: Post-Tax Revenue Model
K4: Version: | L4: 3
K5: Date: | L5: January 2015
B8: Introduction | J8: Electricity Distribution Module
C13: This model illustrates the basic elements of the AER's building block calculation and associated price and revenue constraints for distribution businesses.
C14: The model is intended to produce X factors that are applicable to revenue caps, price caps and revenue yield forms of control.
C15: Building block revenues and cash flows are modelled in nominal terms unless specified otherwise.
C17: INSTRUCTIONS FOR USE
C18: The full PTRM handbook is available on the AER website at http://www.aer.gov.au/node/27616
C20: 1. Prior to the commencement of the regulatory control period
C22: 1a. Fill out input cells on the 'DMS Input' sheet. These input cells are highlighted blue.
C23: This provides information on the service provider submitting the PTRM and the context for the PTRM preparation.
C24: This information also controls the automatic import of the PTRM into the AER's Data Management System (DMS).
C26: 1b. Fill out input cells on the 'PTRM Input' sheet. These input cells are highlighted blue.
C27: This provides the data for the PTRM calculations.
C28: In general, input expenditure data should be valued in real dollar terms of the year indicated, as at the end of that year.
C29: Units and basis for entry are specified where required for each data table.
C30: Review any cautions (which are generated based on data entered) before continuing.
C32: 1c. Determine the expected revenue (smoothed revenue) using the 'X factors' sheet
C33: Clause 6.2.6 requires that the form of control applicable to standard control services be of a CPI–X form.
C34: This sheet provides for the calculation of X factors under three basic forms of control, namely a weighted average price cap, revenue cap and revenue yield.
C35: The X factor values may differ for each year of the regulatory control period but must be set such that the NPV of annual expected revenues (smoothed) is equal to the NPV of the annual revenue requirements (unsmoothed) for that period.
C36: This sheet provides input cells for each X factor and contains macro buttons which should be used to goal seek an X factor value for a specific year to equate the NPVs of smoothed and unsmoothed revenues.
C38: 2. Within the regulatory control period when updating the annual return on debt
C40: 2a. Update input cells on the 'DMS Input' sheet. These input cells are highlighted blue.
C41: Check that the contact details are still current and describe the new amendment.
C43: 2b. Update input cells on the 'PTRM Input' sheet. These input cells are highlighted blue.
C44: In general, the only row that should be changed is the Trailing Average Portfolio Return on Debt (row 222).
C45: The basis for updating the annual return on debt will be in accordance with the relevant regulatory decision prior to the commencement of the period.
C47: 2c. Determine the expected revenue (smoothed revenue) using the 'X factors' sheet
C48: Indicate the year of the annual debt update (cell F21) to ensure the correct content-sensitive cautions are displayed.
C49: Enter new X factors for this year (and potentially later years within the regulatory control period) in order to equate the NPVs of smoothed and unsmoothed revenues.
C50: The macro buttons should be used to goal seek the X factor for these specific years.
C51: Note that X factors for earlier years within the regulatory control period should not be changed.
C54: VERSION RECORD
C56: Version | D56: Date | F56: Description
C57: 1 | D57: June 2008 | F57: Initial model, based on transmission PTRM
C59: 2 | D59: June 2009 | F59: Various non-consequential errors corrected
C61: 3 | D61: January 2015 | F61: Allowed time-varying return on debt, and revenue revisions for annual return on debt update
F62: Explicitly recognised revenue adjustments in building block calculations
F63: Incorporated equity raising cost calculations into automatic smoothing process
F64: Revised and expanded summary tables and reporting
F65: Standardised many elements with transmission PTRM
F66: Enabled automatic import into AER DMS

Sheet DMS input
B2: =C16&" - DMS Input"&" - DNSP PTRM - version "&Intro!$L$4 -> TasNetworks - DMS Input - DNSP PTRM - version 3 | G2: Input cells are in blue
B6: This sheet requests information that allows the AER to automatically import the PTRM into our data management system (DMS).
B7: This sheet's metadata relates to the business and context for the PTRM (rather than the PTRM itself).
B8: Some of this data is automatically populated based on data entered on the PTRM input sheet. Only change blue input cells.
B9: Some rows are hidden. To facilitate the automatic import, please do not delete or add rows on this sheet.
B10: Throughout the rest of the workbook, defined name ranges are used to identify data that is imported into the DMS.
B12: Entity details
B14: Trading name | C14: Tasmanian Networks Pty Ltd
B15: ACN / ABN | C15: 24167357299
B16: Business short name | C16: TasNetworks
B18: Business address | C18: Address 1 | E18: 1-7 Maria Street
D19: Address 2
C20: Suburb | E20: Lenah Valley
D21: State | E21: Tas | F21: Postcode | G21: 7008
B23: Postal address | C23: Address 1 | E23: PO Box 606
D24: Address 2
C25: Suburb | E25: Moonah
D26: State | E26: Tas | F26: Postcode | G26: 7009
B29: Contact name/s | C29: Chantal Hopwood | F29: John Sayers
B30: Contact phone/s | C30: (03) 6271 6511 | F30: (03) 6271 6469
B31: Contact email address/s | C31: chantal.hopwood@tasnetworks.com.au | F31: john.sayers@tasnetworks.com.au
B33: Regulatory process details
B35: Forthcoming regulatory control period | C35: ='PTRM input'!G55 -> 2017-18 | D35: =IF(COUNTA($C35:C35)>='PTRM input'!$R$7,"",'PTRM input'!H55) -> 2018-19 | E35: =IF(COUNTA($C35:D35)>='PTRM input'!$R$7,"",'PTRM input'!I55) ->  | F35: =IF(COUNTA($C35:E35)>='PTRM input'!$R$7,"",'PTRM input'!J55) ->  | G35: =IF(COUNTA($C35:F35)>='PTRM input'!$R$7,"",'PTRM input'!K55) ->  | H35: =IF(COUNTA($C35:G35)>='PTRM input'!$R$7,"",'PTRM input'!L55) ->  | I35: =IF(COUNTA($C35:H35)>='PTRM input'!$R$7,"",'PTRM input'!M55) ->  | J35: =IF(COUNTA($C35:I35)>='PTRM input'!$R$7,"",'PTRM input'!N55) ->  | K35: =IF(COUNTA($C35:J35)>='PTRM input'!$R$7,"",'PTRM input'!O55) ->  | L35: =IF(COUNTA($C35:K35)>='PTRM input'!$R$7,"",'PTRM input'!P55) -> 
B36: Year prior to the FRCP | C36: ='PTRM input'!F316 -> 2016-17
B38: Current regulatory control period
B41: Previous regulatory control period
B44: Sector | C44: Electricity
B45: Segment | C45: Distribution
B46: Source | C46: Final decision
B47: Regulatory Year Ending | C47: =LEFT('X factors'!$F$21,2)&RIGHT('X factors'!$F$21,2) -> 2019
B48: Reporting Period Type | C48: =IF(LEN(C35)=4,"Calendar",IF(LEN(C35)=7,"Financial","Other")) -> Financial
B49: RIN or Model Type | C49: PTRM
B50: Security Classification | C50: Public
B51: Data quality (Actual, estimate, consolidated) | C51: Consolidated
B52: Model response - version no.
B53: Amended model submission - reason
B54: Model template - version no. | C54: 3
B55: $ real | C55: ='PTRM input'!F316 -> 2016-17
B56: Form of control | C56: Revenue Cap

Sheet PTRM input
E2: ='DMS input'!$C$16&" - PTRM input"&" - DNSP PTRM - version "&Intro!$L$4 -> TasNetworks - PTRM input - DNSP PTRM - version 3 | G2: AER amendments | I2: Input cells are in blue
E5: ="Opening Regulatory Asset Base and Opening Tax Asset Base for "&Q7&" ($m Nominal)" -> Opening Regulatory Asset Base and Opening Tax Asset Base for 2017-18 ($m Nominal)
G6: Asset Class Name | J6: Opening Asset Value | K6: Assets Under Construction | L6: Remaining Life | M6: Standard Life | N6: Opening Tax Value | O6: Tax Remaining Life | P6: Tax Standard Life | Q6: Base Regulatory Year | R6: Length of Regulatory Control Period (Year) | T6: ERC standard life calculation (excluding non-depreciating assets)
E7: Asset Class 1 | G7: Overhead Subtransmission Lines (Urban) | J7: 12.15380917 | L7: n/a | M7: 50 | N7: 6.079125222 | O7: n/a | P7: 44.54902923 | Q7: 2017-18 | R7: 2 | T7: =+A1value/SUM($J$7:$J$35,$J$43:$J$45,$J$47:$J$48) -> 0.007612232825 | U7: =+A1stdlife*T7 -> 0.3806116413
E8: Asset Class 2 | G8: Underground Subtransmission Lines (Urban) | J8: 9.877080973 | L8: n/a | M8: 60 | N8: 2.00060237 | O8: n/a | P8: 50 | T8: =+A2value/SUM($J$7:$J$35,$J$43:$J$45,$J$47:$J$48) -> 0.006186261356 | U8: =+A2stdlife*T8 -> 0.3711756813
E9: Asset Class 3 | G9: Urban Zone Substations | J9: 43.90869168 | L9: n/a | M9: 40 | N9: 34.87665991 | O9: n/a | P9: 32.77302044 | T9: =+A3value/SUM($J$7:$J$35,$J$43:$J$45,$J$47:$J$48) -> 0.02750110516 | U9: =+A3stdlife*T9 -> 1.100044207
E10: Asset Class 4 | G10: Rural Zone Substations | J10: 2.640703874 | L10: n/a | M10: 40 | N10: 2.432850998 | O10: n/a | P10: 32.77 | T10: =+A4value/SUM($J$7:$J$35,$J$43:$J$45,$J$47:$J$48) -> 0.001653938484 | U10: =+A4stdlife*T10 -> 0.06615753936
E11: Asset Class 5 | G11: SCADA | J11: 38.8494124 | L11: n/a | M11: 10 | N11: 43.3048558 | O11: n/a | P11: 32.77302044 | T11: =+A5value/SUM($J$7:$J$35,$J$43:$J$45,$J$47:$J$48) -> 0.02433235277 | U11: =+A5stdlife*T11 -> 0.2433235277
E12: Asset Class 6 | G12: Distribution Switching Stations (Ground) | J12: 13.41244455 | L12: n/a | M12: 40 | N12: 21.14465178 | O12: n/a | P12: 36.27603974 | T12: =+A6value/SUM($J$7:$J$35,$J$43:$J$45,$J$47:$J$48) -> 0.00840054745 | U12: =+A6stdlife*T12 -> 0.336021898
E13: Asset Class 7 | G13: Overhead High Voltage Lines Urban | J13: 102.2145669 | L13: n/a | M13: 35 | N13: 105.2674504 | O13: n/a | P13: 34.89077975 | T13: =+A7value/SUM($J$7:$J$35,$J$43:$J$45,$J$47:$J$48) -> 0.06401952426 | U13: =+A7stdlife*T13 -> 2.240683349
E14: Asset Class 8 | G14: Overhead High Voltage Lines Rural | J14: 348.1521079 | L14: n/a | M14: 35 | N14: 285.4184638 | O14: n/a | P14: 33.39579155 | T14: =+A8value/SUM($J$7:$J$35,$J$43:$J$45,$J$47:$J$48) -> 0.2180563202 | U14: =+A8stdlife*T14 -> 7.631971207
E15: Asset Class 9 | G15: Voltage Regulators on Distribution Feeders | J15: 12.98500761 | L15: n/a | M15: 40 | N15: 5.408285243 | O15: n/a | P15: 45.45454545 | T15: =+A9value/SUM($J$7:$J$35,$J$43:$J$45,$J$47:$J$48) -> 0.008132833071 | U15: =+A9stdlife*T15 -> 0.3253133228
E16: Asset Class 10 | G16: Underground High Voltage Lines | J16: 233.4859536 | L16: n/a | M16: 60 | N16: 122.1625362 | O16: n/a | P16: 31.36816174 | T16: =+A10value/SUM($J$7:$J$35,$J$43:$J$45,$J$47:$J$48) -> 0.1462380571 | U16: =+A10stdlife*T16 -> 8.774283428
E17: Asset Class 11 | G17: Underground High Voltage Lines SWER | J17: 0.584131384 | L17: n/a | M17: 60 | N17: 0.1933032385 | O17: n/a | P17: 31.37 | T17: =+A11value/SUM($J$7:$J$35,$J$43:$J$45,$J$47:$J$48) -> 0.0003658560072 | U17: =+A11stdlife*T17 -> 0.02195136043
E18: Asset Class 12 | G18: Distribution Substations HV (Pole) | J18: 1.701908685 | L18: n/a | M18: 40 | N18: 1.714365191 | O18: n/a | P18: 37.60772006 | T18: =+A12value/SUM($J$7:$J$35,$J$43:$J$45,$J$47:$J$48) -> 0.001065947718 | U18: =+A12stdlife*T18 -> 0.04263790874
E19: Asset Class 13 | G19: Distribution Substations HV (Ground) | J19: 27.33000823 | L19: n/a | M19: 40 | N19: 19.23226282 | O19: n/a | P19: 33.24966682 | T19: =+A13value/SUM($J$7:$J$35,$J$43:$J$45,$J$47:$J$48) -> 0.01711746357 | U19: =+A13stdlife*T19 -> 0.684698543
E20: Asset Class 14 | G20: Distribution Substations LV (Pole) | J20: 150.0328464 | L20: n/a | M20: 40 | N20: 93.17633264 | O20: n/a | P20: 36.60668588 | T20: =+A14value/SUM($J$7:$J$35,$J$43:$J$45,$J$47:$J$48) -> 0.09396930149 | U20: =+A14stdlife*T20 -> 3.75877206
E21: Asset Class 15 | G21: Distribution Substations LV (Ground) | J21: 66.57658649 | L21: n/a | M21: 40 | N21: 52.82617783 | O21: n/a | P21: 34.14917279 | T21: =+A15value/SUM($J$7:$J$35,$J$43:$J$45,$J$47:$J$48) -> 0.0416985712 | U21: =+A15stdlife*T21 -> 1.667942848
E22: Asset Class 16 | G22: Overhead Low Voltage Lines Underbuilt Urban | J22: 42.90212372 | L22: n/a | M22: 35 | N22: 50.38216614 | O22: n/a | P22: 37.40751673 | T22: =+A16value/SUM($J$7:$J$35,$J$43:$J$45,$J$47:$J$48) -> 0.02687066662 | U22: =+A16stdlife*T22 -> 0.9404733318
E23: Asset Class 17 | G23: Overhead Low Voltage Lines Underbuilt Rural | J23: 43.86413658 | L23: n/a | M23: 35 | N23: 28.20563707 | O23: n/a | P23: 38.68883157 | T23: =+A17value/SUM($J$7:$J$35,$J$43:$J$45,$J$47:$J$48) -> 0.0274731992 | U23: =+A17stdlife*T23 -> 0.9615619718
E24: Asset Class 18 | G24: Overhead Low Voltage Lines Urban | J24: 66.00073452 | L24: n/a | M24: 35 | N24: 57.6537674 | O24: n/a | P24: 35.27529741 | T24: =+A18value/SUM($J$7:$J$35,$J$43:$J$45,$J$47:$J$48) -> 0.0413379008 | U24: =+A18stdlife*T24 -> 1.446826528
E25: Asset Class 19 | G25: Overhead Low Voltage Lines Rural | J25: 81.98341517 | L25: n/a | M25: 35 | N25: 65.59164255 | O25: n/a | P25: 36.7118578 | T25: =+A19value/SUM($J$7:$J$35,$J$43:$J$45,$J$47:$J$48) -> 0.05134825101 | U25: =+A19stdlife*T25 -> 1.797188785
E26: Asset Class 20 | G26: Underground Low Voltage Lines | J26: 104.3145034 | L26: n/a | M26: 60 | N26: 46.13863437 | O26: n/a | P26: 42.48439204 | T26: =+A20value/SUM($J$7:$J$35,$J$43:$J$45,$J$47:$J$48) -> 0.06533476674 | U26: =+A20stdlife*T26 -> 3.920086004
E27: Asset Class 21 | G27: Underground Low Voltage Common Trench | J27: 44.32538475 | L27: n/a | M27: 60 | N27: 25.20042647 | O27: n/a | P27: 43.06548311 | T27: =+A21value/SUM($J$7:$J$35,$J$43:$J$45,$J$47:$J$48) -> 0.02776209039 | U27: =+A21stdlife*T27 -> 1.665725423
E28: Asset Class 22 | G28: HVST Service Connections | J28: -1.3059859e-05 | L28: n/a | M28: 40 | N28: 0 | O28: n/a | P28: 36.4 | T28: =+A22value/SUM($J$7:$J$35,$J$43:$J$45,$J$47:$J$48) -> -8.179714355e-09 | U28: =+A22stdlife*T28 -> -3.271885742e-07
E29: Asset Class 23 | G29: HV Service Connections | J29: 2.539781754 | L29: n/a | M29: 40 | N29: 1.310228723 | O29: n/a | P29: 36.39646802 | T29: =+A23value/SUM($J$7:$J$35,$J$43:$J$45,$J$47:$J$48) -> 0.001590728451 | U29: =+A23stdlife*T29 -> 0.06362913804
E30: Asset Class 24 | G30: HV Metering CA Service Connections | J30: 1.315029762 | L30: n/a | M30: 40 | N30: 0.5635694634 | O30: n/a | P30: 36.4 | T30: =+A24value/SUM($J$7:$J$35,$J$43:$J$45,$J$47:$J$48) -> 0.0008236358313 | U30: =+A24stdlife*T30 -> 0.03294543325
E31: Asset Class 25 | G31: HV/LV Service Connections | J31: 4.32790165 | L31: n/a | M31: 40 | N31: 2.342281144 | O31: n/a | P31: 36.41241774 | T31: =+A25value/SUM($J$7:$J$35,$J$43:$J$45,$J$47:$J$48) -> 0.002710672394 | U31: =+A25stdlife*T31 -> 0.1084268958
E32: Asset Class 26 | G32: Business LV Service Connections | J32: 8.179297383 | L32: n/a | M32: 35 | N32: 6.615939232 | O32: n/a | P32: 36.34318994 | T32: =+A26value/SUM($J$7:$J$35,$J$43:$J$45,$J$47:$J$48) -> 0.005122897287 | U32: =+A26stdlife*T32 -> 0.179301405
E33: Asset Class 27 | G33: Business LV Metering CA Service Connections | J33: 3.472015741 | L33: n/a | M33: 25 | N33: 4.721784006 | O33: n/a | P33: 36.4 | T33: =+A27value/SUM($J$7:$J$35,$J$43:$J$45,$J$47:$J$48) -> 0.002174609772 | U33: =+A27stdlife*T33 -> 0.0543652443
E34: Asset Class 28 | G34: Domestic LV Service Connections | J34: 65.21448342 | L34: n/a | M34: 35 | N34: 57.39336435 | O34: n/a | P34: 36.41241774 | T34: =+A28value/SUM($J$7:$J$35,$J$43:$J$45,$J$47:$J$48) -> 0.04084545219 | U34: =+A28stdlife*T34 -> 1.429590827
E35: Asset Class 29 | G35: Domestic LV Metering CA Service Connections | J35: 2.427262944 | L35: n/a | M35: 20 | N35: 4.834138412 | O35: n/a | P35: 36.4 | T35: =+A29value/SUM($J$7:$J$35,$J$43:$J$45,$J$47:$J$48) -> 0.001520255123 | U35: =+A29stdlife*T35 -> 0.03040510247
E36: Asset Class 30 | G36: Wholesale Metering | J36: 0 | L36: n/a | M36: n/a | N36: 0 | O36: n/a | P36: n/a
E37: Asset Class 31 | G37: HV Metering | J37: 0 | L37: n/a | M37: n/a | N37: 0 | O37: n/a | P37: n/a
E38: Asset Class 32 | G38: HV/LV Metering | J38: 0 | L38: n/a | M38: n/a | N38: 0 | O38: n/a | P38: n/a
E39: Asset Class 33 | G39: Business LV Metering | J39: 0 | L39: n/a | M39: n/a | N39: 0 | O39: n/a | P39: n/a
E40: Asset Class 34 | G40: Domestic LV Metering | J40: 0 | L40: n/a | M40: n/a | N40: 0 | O40: n/a | P40: n/a
E41: Asset Class 35 | G41: Off Peak Metering | J41: 0 | L41: n/a | M41: n/a | N41: 0 | O41: n/a | P41: n/a
E42: Asset Class 36 | G42: Emergency Network Spares | J42: 2.544435154 | L42: n/a | M42: n/a | N42: 0 | O42: n/a | P42: n/a
E43: Asset Class 37 | G43: Motor Vehicles | J43: -2.910421502 | L43: n/a | M43: 6 | N43: 7.7126917 | O43: n/a | P43: 9.233642409 | T43: =+A37value/SUM($J$7:$J$35,$J$43:$J$45,$J$47:$J$48) -> -0.001822869339 | U43: =+A37stdlife*T43 -> -0.01093721603
E44: Asset Class 38 | G44: Minor Assets | J44: 25.08467153 | L44: n/a | M44: 5 | N44: 32.75812512 | O44: n/a | P44: 5.218420866 | T44: =+A38value/SUM($J$7:$J$35,$J$43:$J$45,$J$47:$J$48) -> 0.01571115338 | U44: =+A38stdlife*T44 -> 0.07855576688
E45: Asset Class 39 | G45: Non-System Property | J45: 28.22250113 | L45: n/a | M45: 40 | N45: 25.76381361 | O45: n/a | P45: 34.54468091 | T45: =+A39value/SUM($J$7:$J$35,$J$43:$J$45,$J$47:$J$48) -> 0.01767645407 | U45: =+A39stdlife*T45 -> 0.7070581626
E46: Asset Class 40 | G46: Spare Parts | J46: 13.25820304 | L46: n/a | M46: n/a | N46: 0.815515677 | O46: n/a | P46: n/a
E47: Asset Class 41 | G47: NEM Assets | J47: 11.44746448 | L47: n/a | M47: 5 | N47: 0.1112174612 | O47: n/a | P47: 3.024058996 | T47: =+A41value/SUM($J$7:$J$35,$J$43:$J$45,$J$47:$J$48) -> 0.007169831589 | U47: =+A41stdlife*T47 -> 0.03584915794
E48: Asset Class 42 | G48: Business Management Systems | J48: 0 | L48: n/a | M48: 10 | O48: n/a | P48: 5 | T48: =+A42value/SUM($J$7:$J$35,$J$43:$J$45,$J$47:$J$48) -> 0 | U48: =+A42stdlife*T48 -> 0
E49: Asset Class 43 | G49: Land | J49: 1.344218129 | L49: n/a | M49: n/a | N49: 1.214822186 | O49: n/a | P49: n/a | U49: =+SUM(U7:U48) -> 41.08664015
E50: Asset Class 44 | G50: Easements | J50: 1.391756325 | L50: n/a | M50: n/a | N50: 1.775501405 | O50: n/a | P50: n/a
E51: Asset Class 45 | G51: Equity raising costs | L51: n/a | M51: =+U49 -> 41.08664015 | O51: n/a | P51: 5
E52: Total | J52: =SUM(J7:J51)+K52 -> 1615.154146 | K52: =SUM(K7:K51) -> 0 | N52: =SUM(N7:N51) -> 1216.34319
J53: 0
E54: ="Forecast Capital Expenditure – As Incurred ($m Real "&$F$316&")" -> Forecast Capital Expenditure – As Incurred ($m Real 2016-17)
E55: Year | G55: =Q7 -> 2017-18 | H55: =(LEFT(G55,4)+1&IF(MID(G55,5,1)="","","-"&TEXT(MOD(MID(G55,6,2)+1,100),"00"))) -> 2018-19 | I55: =(LEFT(H55,4)+1&IF(MID(H55,5,1)="","","-"&TEXT(MOD(MID(H55,6,2)+1,100),"00"))) -> 2019-20 | J55: 2020-21 | K55: 2021-22 | L55: 2022-23 | M55: 2023-24 | N55: 2024-25 | O55: 2025-26 | P55: 2026-27
E56: =Asset1 -> Overhead Subtransmission Lines (Urban) | G56: 0.2031325527 | H56: 0.2083572718
E57: =Asset2 -> Underground Subtransmission Lines (Urban) | G57: 0 | H57: 0
E58: =Asset3 -> Urban Zone Substations | G58: 0.8137634234 | H58: 4.243138754
E59: =Asset4 -> Rural Zone Substations | G59: 1.122173135 | H59: 2.067243329
E60: =Asset5 -> SCADA | G60: 3.330049612 | H60: 2.052616565
E61: =Asset6 -> Distribution Switching Stations (Ground) | G61: 0.2858655314 | H61: 0.2351719752
E62: =Asset7 -> Overhead High Voltage Lines Urban | G62: 6.400738639 | H62: 6.462083638
E63: =Asset8 -> Overhead High Voltage Lines Rural | G63: 21.08511676 | H63: 20.48454587
E64: =Asset9 -> Voltage Regulators on Distribution Feeders | G64: 1.569097018 | H64: 0.7843795576
E65: =Asset10 -> Underground High Voltage Lines | G65: 8.975214882 | H65: 8.331630537
E66: =Asset11 -> Underground High Voltage Lines SWER | G66: 0 | H66: 0
E67: =Asset12 -> Distribution Substations HV (Pole) | G67: 0.2168691127 | H67: 0.2189572584
E68: =Asset13 -> Distribution Substations HV (Ground) | G68: 3.733859201 | H68: 3.599951729
E69: =Asset14 -> Distribution Substations LV (Pole) | G69: 7.135926728 | H69: 7.196076722
E70: =Asset15 -> Distribution Substations LV (Ground) | G70: 7.248241832 | H70: 7.07504956
E71: =Asset16 -> Overhead Low Voltage Lines Underbuilt Urban | G71: 3.489219482 | H71: 3.514265059
E72: =Asset17 -> Overhead Low Voltage Lines Underbuilt Rural | G72: 3.224082608 | H72: 3.214192861
E73: =Asset18 -> Overhead Low Voltage Lines Urban | G73: 4.208792105 | H73: 4.245958848
E74: =Asset19 -> Overhead Low Voltage Lines Rural | G74: 6.857638265 | H74: 6.871509661
E75: =Asset20 -> Underground Low Voltage Lines | G75: 5.728041573 | H75: 5.685075818
E76: =Asset21 -> Underground Low Voltage Common Trench | G76: 2.218581717 | H76: 2.189843428
E77: =Asset22 -> HVST Service Connections | G77: 0 | H77: 0
E78: =Asset23 -> HV Service Connections | G78: 0.07897499699 | H78: 0.07585485235
E79: =Asset24 -> HV Metering CA Service Connections | G79: 0.02389388627 | H79: 0.02375975014
E80: =Asset25 -> HV/LV Service Connections | G80: 0.1428444588 | H80: 0.1372009591
E81: =Asset26 -> Business LV Service Connections | G81: 0.3840917678 | H81: 0.3692494553
E82: =Asset27 -> Business LV Metering CA Service Connections | G82: 0.694304008 | H82: 0.6908608732
E83: =Asset28 -> Domestic LV Service Connections | G83: 3.030594525 | H83: 2.911858941
E84: =Asset29 -> Domestic LV Metering CA Service Connections | G84: 0.5200243859 | H84: 0.519061076
E85: =Asset30 -> Wholesale Metering
E86: =Asset31 -> HV Metering
E87: =Asset32 -> HV/LV Metering
E88: =Asset33 -> Business LV Metering
E89: =Asset34 -> Domestic LV Metering
E90: =Asset35 -> Off Peak Metering
E91: =Asset36 -> Emergency Network Spares
E92: =Asset37 -> Motor Vehicles | G92: 2.456175012 | H92: 2.460316674
E93: =Asset38 -> Minor Assets | G93: 15.31545442 | H93: 14.51467294
E94: =Asset39 -> Non-System Property | G94: 1.310369369 | H94: 1.22031707
E95: =Asset40 -> Spare Parts
E96: =Asset41 -> NEM Assets
E97: =Asset42 -> Business Management Systems | G97: 11.33780104 | H97: 0
E98: =Asset43 -> Land | G98: 0 | H98: 0.8747869345
E99: =Asset44 -> Easements
E100: =Asset45 -> Equity raising costs | G100: 0.2042622421
E101: Total | G101: =SUM(G56:G100) -> 123.3451943 | H101: =SUM(H56:H100) -> 112.477988 | I101: 0 | J101: 0 | K101: 0 | L101: 0 | M101: 0 | N101: 0 | O101: 0 | P101: 0
H102: 0 | Q102: =SUM(OFFSET(G101,0,0,1,$R$7)) -> 235.8231823
E103: ="Forecast Asset Disposal – as incurred ($m Real "&$F$316&")" -> Forecast Asset Disposal – as incurred ($m Real 2016-17)
E104: =E55 -> Year | G104: =G55 -> 2017-18 | H104: =H55 -> 2018-19 | I104: 2019-20 | J104: 2020-21 | K104: 2021-22 | L104: 2022-23 | M104: 2023-24 | N104: 2024-25 | O104: 2025-26 | P104: 2026-27
E105: =Asset1 -> Overhead Subtransmission Lines (Urban)
E106: =Asset2 -> Underground Subtransmission Lines (Urban)
E107: =Asset3 -> Urban Zone Substations
E108: =Asset4 -> Rural Zone Substations
E109: =Asset5 -> SCADA
E110: =Asset6 -> Distribution Switching Stations (Ground)
E111: =Asset7 -> Overhead High Voltage Lines Urban
E112: =Asset8 -> Overhead High Voltage Lines Rural
E113: =Asset9 -> Voltage Regulators on Distribution Feeders
E114: =Asset10 -> Underground High Voltage Lines
E115: =Asset11 -> Underground High Voltage Lines SWER
E116: =Asset12 -> Distribution Substations HV (Pole)
E117: =Asset13 -> Distribution Substations HV (Ground)
E118: =Asset14 -> Distribution Substations LV (Pole)
E119: =Asset15 -> Distribution Substations LV (Ground)
E120: =Asset16 -> Overhead Low Voltage Lines Underbuilt Urban
E121: =Asset17 -> Overhead Low Voltage Lines Underbuilt Rural
E122: =Asset18 -> Overhead Low Voltage Lines Urban
E123: =Asset19 -> Overhead Low Voltage Lines Rural
E124: =Asset20 -> Underground Low Voltage Lines
E125: =Asset21 -> Underground Low Voltage Common Trench
E126: =Asset22 -> HVST Service Connections
E127: =Asset23 -> HV Service Connections
E128: =Asset24 -> HV Metering CA Service Connections
E129: =Asset25 -> HV/LV Service Connections
E130: =Asset26 -> Business LV Service Connections
E131: =Asset27 -> Business LV Metering CA Service Connections
E132: =Asset28 -> Domestic LV Service Connections
E133: =Asset29 -> Domestic LV Metering CA Service Connections
E134: =Asset30 -> Wholesale Metering
E135: =Asset31 -> HV Metering
E136: =Asset32 -> HV/LV Metering
E137: =Asset33 -> Business LV Metering
E138: =Asset34 -> Domestic LV Metering
E139: =Asset35 -> Off Peak Metering
E140: =Asset36 -> Emergency Network Spares
E141: =Asset37 -> Motor Vehicles | G141: 0.7545902267 | H141: 0.7545902267
E142: =Asset38 -> Minor Assets
E143: =Asset39 -> Non-System Property
E144: =Asset40 -> Spare Parts
E145: =Asset41 -> NEM Assets
E146: =Asset42 -> Business Management Systems
E147: =Asset43 -> Land
E148: =Asset44 -> Easements
E149: =Asset45 -> Equity raising costs
E150: Total | G150: =SUM(G105:G149) -> 0.7545902267 | H150: =SUM(H105:H149) -> 0.7545902267 | I150: 0 | J150: 0 | K150: 0 | L150: 0 | M150: 0 | N150: 0 | O150: 0 | P150: 0
Q151: =SUM(OFFSET(G150,0,0,1,$R$7)) -> 1.509180453
E152: ="Forecast Customer Contributions – As Incurred ($m Real "&$F$316&")" -> Forecast Customer Contributions – As Incurred ($m Real 2016-17)
E153: =E55 -> Year | G153: =G104 -> 2017-18 | H153: =H104 -> 2018-19 | I153: 2019-20 | J153: 2020-21 | K153: 2021-22 | L153: 2022-23 | M153: 2023-24 | N153: 2024-25 | O153: 2025-26 | P153: 2026-27
E154: =Asset1 -> Overhead Subtransmission Lines (Urban) | G154: 0.03092219108 | H154: 0.03150823164
E155: =Asset2 -> Underground Subtransmission Lines (Urban) | G155: 0 | H155: 0
E156: =Asset3 -> Urban Zone Substations | G156: 0.003546565215 | H156: 0.00358086779
E157: =Asset4 -> Rural Zone Substations | G157: 0 | H157: 0
E158: =Asset5 -> SCADA | G158: 0.00709313043 | H158: 0.00716173558
E159: =Asset6 -> Distribution Switching Stations (Ground) | G159: 0.02482595651 | H159: 0.02506607453
E160: =Asset7 -> Overhead High Voltage Lines Urban | G160: 0.4032296027 | H160: 0.4060425754
E161: =Asset8 -> Overhead High Voltage Lines Rural | G161: 1.863733642 | H161: 1.850440908
E162: =Asset9 -> Voltage Regulators on Distribution Feeders | G162: 0 | H162: 0
E163: =Asset10 -> Underground High Voltage Lines | G163: 2.677983383 | H163: 2.660975918
E164: =Asset11 -> Underground High Voltage Lines SWER | G164: 0 | H164: 0
E165: =Asset12 -> Distribution Substations HV (Pole) | G165: 0.0588390111 | H165: 0.05940810526
E166: =Asset13 -> Distribution Substations HV (Ground) | G166: 0.2581646461 | H166: 0.2591220784
E167: =Asset14 -> Distribution Substations LV (Pole) | G167: 0.543905881 | H167: 0.5415484977
E168: =Asset15 -> Distribution Substations LV (Ground) | G168: 1.3640315 | H168: 1.341823704
E169: =Asset16 -> Overhead Low Voltage Lines Underbuilt Urban | G169: 0.01279219339 | H169: 0.01309690583
E170: =Asset17 -> Overhead Low Voltage Lines Underbuilt Rural | G170: 0.2468502055 | H170: 0.2421668734
E171: =Asset18 -> Overhead Low Voltage Lines Urban | G171: 0.2936761001 | H171: 0.296728115
E172: =Asset19 -> Overhead Low Voltage Lines Rural | G172: 0.6940265562 | H172: 0.6902374966
E173: =Asset20 -> Underground Low Voltage Lines | G173: 1.34161941 | H173: 1.309936467
E174: =Asset21 -> Underground Low Voltage Common Trench | G174: 1.34161941 | H174: 1.309936467
E175: =Asset22 -> HVST Service Connections
E176: =Asset23 -> HV Service Connections
E177: =Asset24 -> HV Metering CA Service Connections
E178: =Asset25 -> HV/LV Service Connections
E179: =Asset26 -> Business LV Service Connections
E180: =Asset27 -> Business LV Metering CA Service Connections
E181: =Asset28 -> Domestic LV Service Connections
E182: =Asset29 -> Domestic LV Metering CA Service Connections
E183: =Asset30 -> Wholesale Metering
E184: =Asset31 -> HV Metering
E185: =Asset32 -> HV/LV Metering
E186: =Asset33 -> Business LV Metering
E187: =Asset34 -> Domestic LV Metering
E188: =Asset35 -> Off Peak Metering
E189: =Asset36 -> Emergency Network Spares
E190: =Asset37 -> Motor Vehicles
E191: =Asset38 -> Minor Assets
E192: =Asset39 -> Non-System Property
E193: =Asset40 -> Spare Parts
E194: =Asset41 -> NEM Assets
E195: =Asset42 -> Business Management Systems
E196: =Asset43 -> Land
E197: =Asset44 -> Easements
E198: =Asset45 -> Equity raising costs
E199: Total | G199: =SUM(G154:G198) -> 11.16685938 | H199: =SUM(H154:H198) -> 11.04878102 | I199: 0 | J199: 0 | K199: 0 | L199: 0 | M199: 0 | N199: 0 | O199: 0 | P199: 0
G200: 0 | H200: 0 | Q200: =SUM(OFFSET(G199,0,0,1,$R$7)) -> 22.21564041
E201: ="Forecast Net Capital Expenditure – As Incurred ($m Real "&$F$316&")" -> Forecast Net Capital Expenditure – As Incurred ($m Real 2016-17)
E202: =E55 -> Year | G202: =G55 -> 2017-18 | H202: =H55 -> 2018-19 | I202: 2019-20 | J202: 2020-21 | K202: 2021-22 | L202: 2022-23 | M202: 2023-24 | N202: 2024-25 | O202: 2025-26 | P202: 2026-27
E203: =Asset1 -> Overhead Subtransmission Lines (Urban) | G203: =G56-G105-G154 -> 0.1722103616 | H203: =H56-H105-H154 -> 0.1768490402 | I203: 0 | J203: 0 | K203: 0 | L203: 0 | M203: 0 | N203: 0 | O203: 0 | P203: 0
... 173 more rows

Sheet WACC
B2: ='DMS input'!$C$16&" - Cost of Capital Parameters"&" - DNSP PTRM - version "&Intro!$L$4 -> TasNetworks - Cost of Capital Parameters - DNSP PTRM - version 3
B4: Year | G4: ='PTRM input'!G55 -> 2017-18 | H4: ='PTRM input'!H55 -> 2018-19 | I4: ='PTRM input'!I55 -> 2019-20 | J4: ='PTRM input'!J55 -> 2020-21 | K4: ='PTRM input'!K55 -> 2021-22 | L4: ='PTRM input'!L55 -> 2022-23 | M4: ='PTRM input'!M55 -> 2023-24 | N4: ='PTRM input'!N55 -> 2024-25 | O4: ='PTRM input'!O55 -> 2025-26 | P4: ='PTRM input'!P55 -> 2026-27 | R4: Final decision checks
R5: This column contains calculations that presume a constant WACC. They are therefore to be used at the start of the regulatory period (prior to any annual debt updates).
B6: Inflation Rate | D6: f | F6: Constant | G6: =f -> 0.02449889904 | H6: 0.02449889904 | I6: 0.02449889904 | J6: 0.02449889904 | K6: 0.02449889904 | L6: 0.02449889904 | M6: 0.02449889904 | N6: 0.02449889904 | O6: 0.02449889904 | P6: 0.02449889904
B7: Value of Imputation Credits (gamma) | D7: γ | F7: Constant | G7: =g -> 0.4 | H7: 0.4 | I7: 0.4 | J7: 0.4 | K7: 0.4 | L7: 0.4 | M7: 0.4 | N7: 0.4 | O7: 0.4 | P7: 0.4
B8: Proportion of Equity Funding | D8: E/V | F8: Constant | G8: =1-G9 -> 0.4 | H8: =1-H9 -> 0.4 | I8: =1-I9 -> 0.4 | J8: 0.4 | K8: 0.4 | L8: 0.4 | M8: 0.4 | N8: 0.4 | O8: 0.4 | P8: =1-P9 -> 0.4
B9: Proportion of Debt Funding | D9: D/V | F9: Constant | G9: =Dv -> 0.6 | H9: 0.6 | I9: 0.6 | J9: 0.6 | K9: 0.6 | L9: 0.6 | M9: 0.6 | N9: 0.6 | O9: 0.6 | P9: 0.6
B10: Post-tax Nominal Return on Equity | D10: Re | F10: Constant | G10: ='PTRM input'!$G$292 -> 0.074 | H10: ='PTRM input'!$G$292 -> 0.074 | I10: ='PTRM input'!$G$292 -> 0.074 | J10: ='PTRM input'!$G$292 -> 0.074 | K10: ='PTRM input'!$G$292 -> 0.074 | L10: ='PTRM input'!$G$292 -> 0.074 | M10: ='PTRM input'!$G$292 -> 0.074 | N10: ='PTRM input'!$G$292 -> 0.074 | O10: ='PTRM input'!$G$292 -> 0.074 | P10: ='PTRM input'!$G$292 -> 0.074 | R10: =Analysis!$E$111 -> 0.074
B11: Post-tax Real Return on Equity | D11: Rre | F11: Constant | G11: =(1+G10)/(1+G6)-1 -> 0.04831737839 | H11: 0.04831737839 | I11: 0.04831737839 | J11: 0.04831737839 | K11: 0.04831737839 | L11: 0.04831737839 | M11: 0.04831737839 | N11: 0.04831737839 | O11: 0.04831737839 | P11: 0.04831737839 | R11: =Analysis!$E$115 -> 0.04831737839
B13: Corporate Tax Rate | D13: T | F13: Varying | G13: ='PTRM input'!G284 -> 0.3 | H13: =IF(OR(ISBLANK('PTRM input'!H284),'PTRM input'!H284=0),G13,'PTRM input'!H284) -> 0.3 | I13: =IF(OR(ISBLANK('PTRM input'!I284),'PTRM input'!I284=0),H13,'PTRM input'!I284) -> 0.3 | J13: =IF(OR(ISBLANK('PTRM input'!J284),'PTRM input'!J284=0),I13,'PTRM input'!J284) -> 0.3 | K13: =IF(OR(ISBLANK('PTRM input'!K284),'PTRM input'!K284=0),J13,'PTRM input'!K284) -> 0.3 | L13: =IF(OR(ISBLANK('PTRM input'!L284),'PTRM input'!L284=0),K13,'PTRM input'!L284) -> 0.3 | M13: =IF(OR(ISBLANK('PTRM input'!M284),'PTRM input'!M284=0),L13,'PTRM input'!M284) -> 0.3 | N13: =IF(OR(ISBLANK('PTRM input'!N284),'PTRM input'!N284=0),M13,'PTRM input'!N284) -> 0.3 | O13: =IF(OR(ISBLANK('PTRM input'!O284),'PTRM input'!O284=0),N13,'PTRM input'!O284) -> 0.3 | P13: =IF(OR(ISBLANK('PTRM input'!P284),'PTRM input'!P284=0),O13,'PTRM input'!P284) -> 0.3
B14: Nominal Pre-tax Return on Debt | D14: Rd | F14: Varying | G14: ='PTRM input'!G297 -> 0.05096194216 | H14: =IF(OR(ISBLANK('PTRM input'!H297),'PTRM input'!H297=0),G14,'PTRM input'!H297) -> 0.05041673781 | I14: =IF(OR(ISBLANK('PTRM input'!I297),'PTRM input'!I297=0),H14,'PTRM input'!I297) -> 0.05041673781 | J14: =IF(OR(ISBLANK('PTRM input'!J297),'PTRM input'!J297=0),I14,'PTRM input'!J297) -> 0.05041673781 | K14: =IF(OR(ISBLANK('PTRM input'!K297),'PTRM input'!K297=0),J14,'PTRM input'!K297) -> 0.05041673781 | L14: =IF(OR(ISBLANK('PTRM input'!L297),'PTRM input'!L297=0),K14,'PTRM input'!L297) -> 0.05041673781 | M14: =IF(OR(ISBLANK('PTRM input'!M297),'PTRM input'!M297=0),L14,'PTRM input'!M297) -> 0.05041673781 | N14: =IF(OR(ISBLANK('PTRM input'!N297),'PTRM input'!N297=0),M14,'PTRM input'!N297) -> 0.05041673781 | O14: =IF(OR(ISBLANK('PTRM input'!O297),'PTRM input'!O297=0),N14,'PTRM input'!O297) -> 0.05041673781 | P14: =IF(OR(ISBLANK('PTRM input'!P297),'PTRM input'!P297=0),O14,'PTRM input'!P297) -> 0.05041673781
B15: Real Pre-tax Return on Debt | D15: Rrd | F15: Varying | G15: =(1+G14)/(1+G6)-1 -> 0.0258302309 | H15: 0.02529806406 | I15: 0.02529806406 | J15: 0.02529806406 | K15: 0.02529806406 | L15: 0.02529806406 | M15: 0.02529806406 | N15: 0.02529806406 | O15: 0.02529806406 | P15: 0.02529806406
G17: Formula approximations of WACC | R17: Cashflow derivations of WACC
B18: Nominal Vanilla WACC | F18: Varying | G18: =G8*G10+G9*G14 -> 0.0601771653 | H18: 0.05985004269 | I18: 0.05985004269 | J18: 0.05985004269 | K18: 0.05985004269 | L18: 0.05985004269 | M18: 0.05985004269 | N18: 0.05985004269 | O18: 0.05985004269 | P18: 0.05985004269 | R18: =Analysis!$E$126 -> 0.05987866323
B19: Real Vanilla WACC | F19: Varying | G19: =G8*G11+G9*G15 -> 0.0348250899 | H19: 0.03450578979 | I19: 0.03450578979 | J19: 0.03450578979 | K19: 0.03450578979 | L19: 0.03450578979 | M19: 0.03450578979 | N19: 0.03450578979 | O19: 0.03450578979 | P19: 0.03450578979 | R19: =Analysis!$E$127 -> 0.03453372592
B20: Post-tax Nominal WACC | F20: Varying | G20: =G10*G8+G14*G9*(1-G28*(1-G7)) -> 0.05467327554 | H20: 0.05440503501 | I20: 0.05440503501 | J20: 0.05440503501 | K20: 0.05440503501 | L20: 0.05440503501 | M20: 0.05440503501 | N20: 0.05440503501 | O20: 0.05440503501 | P20: 0.05440503501 | R20: =Analysis!$E$123 -> 0.05492350404
B21: Post-tax Real WACC | F21: Varying | G21: =(1+G20)/(1+G6)-1 -> 0.02945281497 | H21: 0.02919098888 | I21: 0.02919098888 | J21: 0.02919098888 | K21: 0.02919098888 | L21: 0.02919098888 | M21: 0.02919098888 | N21: 0.02919098888 | O21: 0.02919098888 | P21: 0.02919098888 | R21: =Analysis!$E$125 -> 0.02969705974
B22: Pre-tax Nominal WACC | F22: Varying | G22: =G10*(1/(1-G27*(1-G7)))*G8+G14*G9 -> 0.06738205692 | H22: 0.06705493431 | I22: 0.06705493431 | J22: 0.06705493431 | K22: 0.06705493431 | L22: 0.06705493431 | M22: 0.06705493431 | N22: 0.06705493431 | O22: 0.06705493431 | P22: 0.06705493431 | R22: =Analysis!$E$122 -> 0.06716772916
B23: Pre-tax Real WACC | F23: Varying | G23: =(1+G22)/(1+G6)-1 -> 0.04185769055 | H23: 0.04153839044 | I23: 0.04153839044 | J23: 0.04153839044 | K23: 0.04153839044 | L23: 0.04153839044 | M23: 0.04153839044 | N23: 0.04153839044 | O23: 0.04153839044 | P23: 0.04153839044 | R23: =Analysis!$E$124 -> 0.04164848802
B24: Nominal Tax Allowance | F24: Varying | G24: =G22-G20 -> 0.01270878137 | H24: =H22-H20 -> 0.0126498993 | I24: 0.0126498993 | J24: 0.0126498993 | K24: 0.0126498993 | L24: 0.0126498993 | M24: 0.0126498993 | N24: 0.0126498993 | O24: 0.0126498993 | P24: 0.0126498993 | R24: =$R$22-$R$20 -> 0.01224422512
B25: Real Tax Allowance | F25: Varying | G25: =G23-G21 -> 0.01240487558 | H25: =H23-H21 -> 0.01234740156 | I25: 0.01234740156 | J25: 0.01234740156 | K25: 0.01234740156 | L25: 0.01234740156 | M25: 0.01234740156 | N25: 0.01234740156 | O25: 0.01234740156 | P25: 0.01234740156 | R25: =$R$23-$R$21 -> 0.01195142828
B27: Effective Tax Rate for Equity (from relevant cashflows) | D27: Te | G27: 0.3262651287 | H27: =G27 -> 0.3262651287 | I27: =H27 -> 0.3262651287 | J27: 0.3262651287 | K27: 0.3262651287 | L27: 0.3262651287 | M27: 0.3262651287 | N27: 0.3262651287 | O27: 0.3262651287 | P27: 0.3262651287 | R27: =Analysis!$D$109 -> 0.3262632304
B28: Effective Tax Rate for Debt (effective debt shield) | D28: Td | G28: 0.3 | H28: =G28 -> 0.3 | I28: =H28 -> 0.3 | J28: 0.3 | K28: 0.3 | L28: 0.3 | M28: 0.3 | N28: 0.3 | O28: 0.3 | P28: 0.3 | R28: =Analysis!$D$120 -> 0.3000786898
H30: At the start of the regulatory control period, use this button to copy across the cashflow-calculated Te and Td.
H31: However, these calculations presume a constant WACC so Te/Td should not be updated during a regulatory control period
H32: when annually updating the return on debt - just use the same Te/Td from the final decision.
G34: Numbers in White cells are calculated on this sheet from input parameters.
G35: Numbers in Orange cells are transferred from relevant sheets

Sheet Assets
B2: ='DMS input'!$C$16&" - Asset Roll Forward"&" - DNSP PTRM - version "&Intro!$L$4 -> TasNetworks - Asset Roll Forward - DNSP PTRM - version 3
F3: 0 | G3: =F3+1 -> 1 | H3: 2 | I3: 3 | J3: 4 | K3: 5 | L3: 6 | M3: 7 | N3: 8 | O3: 9 | P3: 10 | Q3: 11 | R3: 12 | S3: 13 | T3: 14 | U3: 15 | V3: 16 | W3: 17 | X3: 18 | Y3: 19 | Z3: 20 | AA3: 21 | AB3: 22 | AC3: 23 | AD3: 24 | AE3: 25 | AF3: 26 | AG3: 27 | AH3: 28 | AI3: 29 | AJ3: 30 | AK3: 31 | AL3: 32 | AM3: =AL3+1 -> 33 | AN3: 34 | AO3: 35 | AP3: 36 | AQ3: 37 | AR3: 38 | AS3: 39 | AT3: 40 | AU3: 41 | AV3: 42 | AW3: 43 | AX3: 44 | AY3: 45 | AZ3: 46 | BA3: 47 | BB3: 48 | BC3: 49 | BD3: 50 | BE3: 51 | BF3: 52 | BG3: 53 | BH3: 54 | BI3: 55 | BJ3: =BI3+1 -> 56 | BK3: =BJ3+1 -> 57 | BL3: =BK3+1 -> 58 | BM3: =BL3+1 -> 59 | BN3: =BM3+1 -> 60 | BO3: =BN3+1 -> 61
B4: Year | F4: ='PTRM input'!F316 -> 2016-17 | G4: ='PTRM input'!G55 -> 2017-18 | H4: ='PTRM input'!H55 -> 2018-19 | I4: ='PTRM input'!I55 -> 2019-20 | J4: ='PTRM input'!J55 -> 2020-21 | K4: ='PTRM input'!K55 -> 2021-22 | L4: ='PTRM input'!L55 -> 2022-23 | M4: ='PTRM input'!M55 -> 2023-24 | N4: ='PTRM input'!N55 -> 2024-25 | O4: ='PTRM input'!O55 -> 2025-26 | P4: ='PTRM input'!P55 -> 2026-27 | Q4: =(LEFT(P4,4)+1&IF(MID(P4,5,1)="","","-"&TEXT(MID(P4,6,2)+1,"00"))) -> 2027-28 | R4: =(LEFT(Q4,4)+1&IF(MID(Q4,5,1)="","","-"&TEXT(MID(Q4,6,2)+1,"00"))) -> 2028-29 | S4: 2029-30 | T4: 2030-31 | U4: 2031-32 | V4: 2032-33 | W4: 2033-34 | X4: 2034-35 | Y4: 2035-36 | Z4: 2036-37 | AA4: 2037-38 | AB4: 2038-39 | AC4: 2039-40 | AD4: 2040-41 | AE4: 2041-42 | AF4: 2042-43 | AG4: 2043-44 | AH4: 2044-45 | AI4: 2045-46 | AJ4: 2046-47 | AK4: 2047-48 | AL4: 2048-49 | AM4: 2049-50 | AN4: 2050-51 | AO4: 2051-52 | AP4: 2052-53 | AQ4: 2053-54 | AR4: 2054-55 | AS4: 2055-56 | AT4: 2056-57 | AU4: 2057-58 | AV4: 2058-59 | AW4: 2059-60 | AX4: 2060-61 | AY4: 2061-62 | AZ4: 2062-63 | BA4: 2063-64 | BB4: 2064-65 | BC4: 2065-66 | BD4: 2066-67 | BE4: 2067-68 | BF4: 2068-69 | BG4: 2069-70 | BH4: 2070-71 | BI4: 2071-72 | BJ4: =(LEFT(BI4,4)+1&IF(MID(BI4,5,1)="","","-"&TEXT(MID(BI4,6,2)+1,"00"))) -> 2072-73 | BK4: =(LEFT(BJ4,4)+1&IF(MID(BJ4,5,1)="","","-"&TEXT(MID(BJ4,6,2)+1,"00"))) -> 2073-74 | BL4: =(LEFT(BK4,4)+1&IF(MID(BK4,5,1)="","","-"&TEXT(MID(BK4,6,2)+1,"00"))) -> 2074-75 | BM4: =(LEFT(BL4,4)+1&IF(MID(BL4,5,1)="","","-"&TEXT(MID(BL4,6,2)+1,"00"))) -> 2075-76 | BN4: =(LEFT(BM4,4)+1&IF(MID(BM4,5,1)="","","-"&TEXT(MID(BM4,6,2)+1,"00"))) -> 2076-77 | BO4: 2077-78
B6: Inflation Assumption (CPI % increase) | D6: =f -> 0.02449889904 | G6: =$D$6 -> 0.02449889904 | H6: =$D$6 -> 0.02449889904 | I6: 0.02449889904 | J6: 0.02449889904 | K6: 0.02449889904 | L6: 0.02449889904 | M6: 0.02449889904 | N6: 0.02449889904 | O6: 0.02449889904 | P6: 0.02449889904 | Q6: 0.02449889904 | R6: 0.02449889904 | S6: 0.02449889904 | T6: 0.02449889904 | U6: 0.02449889904 | V6: 0.02449889904 | W6: 0.02449889904 | X6: 0.02449889904 | Y6: 0.02449889904 | Z6: 0.02449889904 | AA6: 0.02449889904 | AB6: 0.02449889904 | AC6: 0.02449889904 | AD6: 0.02449889904 | AE6: 0.02449889904 | AF6: 0.02449889904 | AG6: 0.02449889904 | AH6: 0.02449889904 | AI6: 0.02449889904 | AJ6: 0.02449889904 | AK6: 0.02449889904 | AL6: 0.02449889904 | AM6: 0.02449889904 | AN6: 0.02449889904 | AO6: 0.02449889904 | AP6: 0.02449889904 | AQ6: 0.02449889904 | AR6: 0.02449889904 | AS6: 0.02449889904 | AT6: 0.02449889904 | AU6: 0.02449889904 | AV6: 0.02449889904 | AW6: 0.02449889904 | AX6: 0.02449889904 | AY6: 0.02449889904 | AZ6: 0.02449889904 | BA6: 0.02449889904 | BB6: 0.02449889904 | BC6: 0.02449889904 | BD6: 0.02449889904 | BE6: 0.02449889904 | BF6: 0.02449889904 | BG6: 0.02449889904 | BH6: 0.02449889904 | BI6: 0.02449889904 | BJ6: 0.02449889904 | BK6: 0.02449889904 | BL6: 0.02449889904 | BM6: 0.02449889904 | BN6: 0.02449889904 | BO6: 0.02449889904
B7: Cumulative Inflation Index (CPI end period) | F7: 1 | G7: =F7*(1+G6) -> 1.024498899 | H7: =G7*(1+H6) -> 1.049597994 | I7: =H7*(1+I6) -> 1.075311989 | J7: =I7*(1+J6) -> 1.101655949 | K7: 1.128645307 | L7: 1.156295875 | M7: 1.18462385 | N7: 1.213645831 | O7: 1.243378817 | P7: =O7*(1+P6) -> 1.273840229 | Q7: 1.305047913 | R7: 1.33702015 | S7: 1.369775671 | T7: 1.403333667 | U7: 1.437713797 | V7: 1.472936202 | W7: 1.509021517 | X7: 1.545990883 | Y7: 1.583865958 | Z7: 1.62266893 | AA7: 1.662422532 | AB7: 1.703150054 | AC7: 1.744875355 | AD7: 1.78762288 | AE7: 1.831417673 | AF7: 1.876285389 | AG7: 1.922252316 | AH7: 1.969345381 | AI7: 2.017592175 | AJ7: 2.067020962 | AK7: 2.1176607 | AL7: 2.169541055 | AM7: 2.222692423 | AN7: 2.27714594 | AO7: 2.332933508 | AP7: 2.390087811 | AQ7: 2.448642331 | AR7: 2.508631372 | AS7: 2.570090079 | AT7: 2.633054456 | AU7: 2.697561391 | AV7: 2.763648676 | AW7: 2.831355025 | AX7: 2.900720106 | AY7: 2.971784555 | AZ7: 3.044590005 | BA7: 3.119179108 | BB7: 3.195595562 | BC7: 3.273884135 | BD7: 3.354090692 | BE7: 3.436262221 | BF7: 3.520446863 | BG7: 3.606693935 | BH7: 3.695053965 | BI7: 3.78557872 | BJ7: =BI7*(1+BJ6) -> 3.87832123 | BK7: =BJ7*(1+BK6) -> 3.973335831 | BL7: =BK7*(1+BL6) -> 4.070678184 | BM7: =BL7*(1+BM6) -> 4.170405318 | BN7: =BM7*(1+BN6) -> 4.272575657 | BO7: =BN7*(1+BO6) -> 4.377249056
B9: Opening Regulatory Asset Base (RAB) | F9: =RAB -> 1615.154146
B10: Real Net Capital Expenditure (capex) | G10: =SUM(G11:G55) -> 113.3473119 | H10: =SUM(H11:H55) -> 102.3968148 | I10: 0 | J10: 0 | K10: 0 | L10: 0 | M10: 0 | N10: 0 | O10: 0 | P10: 0
C11: =Asset1 -> Overhead Subtransmission Lines (Urban) | G11: ='PTRM input'!G203*(1+rvanilla01)^0.5 -> 0.1751833204 | H11: ='PTRM input'!H203*(1+rvanilla02)^0.5 -> 0.179874322 | I11: ='PTRM input'!I203*(1+rvanilla03)^0.5 -> 0 | J11: ='PTRM input'!J203*(1+rvanilla04)^0.5 -> 0 | K11: ='PTRM input'!K203*(1+rvanilla05)^0.5 -> 0 | L11: ='PTRM input'!L203*(1+rvanilla06)^0.5 -> 0 | M11: ='PTRM input'!M203*(1+rvanilla07)^0.5 -> 0 | N11: ='PTRM input'!N203*(1+rvanilla08)^0.5 -> 0 | O11: ='PTRM input'!O203*(1+rvanilla09)^0.5 -> 0 | P11: ='PTRM input'!P203*(1+rvanilla10)^0.5 -> 0
C12: =Asset2 -> Underground Subtransmission Lines (Urban) | G12: ='PTRM input'!G204*(1+rvanilla01)^0.5 -> 0 | H12: ='PTRM input'!H204*(1+rvanilla02)^0.5 -> 0 | I12: ='PTRM input'!I204*(1+rvanilla03)^0.5 -> 0 | J12: ='PTRM input'!J204*(1+rvanilla04)^0.5 -> 0 | K12: ='PTRM input'!K204*(1+rvanilla05)^0.5 -> 0 | L12: ='PTRM input'!L204*(1+rvanilla06)^0.5 -> 0 | M12: ='PTRM input'!M204*(1+rvanilla07)^0.5 -> 0 | N12: ='PTRM input'!N204*(1+rvanilla08)^0.5 -> 0 | O12: ='PTRM input'!O204*(1+rvanilla09)^0.5 -> 0 | P12: ='PTRM input'!P204*(1+rvanilla10)^0.5 -> 0
C13: =Asset3 -> Urban Zone Substations | G13: ='PTRM input'!G205*(1+rvanilla01)^0.5 -> 0.8242040614 | H13: ='PTRM input'!H205*(1+rvanilla02)^0.5 -> 4.312082211 | I13: ='PTRM input'!I205*(1+rvanilla03)^0.5 -> 0 | J13: ='PTRM input'!J205*(1+rvanilla04)^0.5 -> 0 | K13: ='PTRM input'!K205*(1+rvanilla05)^0.5 -> 0 | L13: ='PTRM input'!L205*(1+rvanilla06)^0.5 -> 0 | M13: ='PTRM input'!M205*(1+rvanilla07)^0.5 -> 0 | N13: ='PTRM input'!N205*(1+rvanilla08)^0.5 -> 0 | O13: ='PTRM input'!O205*(1+rvanilla09)^0.5 -> 0 | P13: ='PTRM input'!P205*(1+rvanilla10)^0.5 -> 0
C14: =Asset4 -> Rural Zone Substations | G14: ='PTRM input'!G206*(1+rvanilla01)^0.5 -> 1.141545805 | H14: ='PTRM input'!H206*(1+rvanilla02)^0.5 -> 2.102606787 | I14: ='PTRM input'!I206*(1+rvanilla03)^0.5 -> 0 | J14: ='PTRM input'!J206*(1+rvanilla04)^0.5 -> 0 | K14: ='PTRM input'!K206*(1+rvanilla05)^0.5 -> 0 | L14: ='PTRM input'!L206*(1+rvanilla06)^0.5 -> 0 | M14: ='PTRM input'!M206*(1+rvanilla07)^0.5 -> 0 | N14: ='PTRM input'!N206*(1+rvanilla08)^0.5 -> 0 | O14: ='PTRM input'!O206*(1+rvanilla09)^0.5 -> 0 | P14: ='PTRM input'!P206*(1+rvanilla10)^0.5 -> 0
C15: =Asset5 -> SCADA | G15: ='PTRM input'!G207*(1+rvanilla01)^0.5 -> 3.380322442 | H15: ='PTRM input'!H207*(1+rvanilla02)^0.5 -> 2.08044556 | I15: ='PTRM input'!I207*(1+rvanilla03)^0.5 -> 0 | J15: ='PTRM input'!J207*(1+rvanilla04)^0.5 -> 0 | K15: ='PTRM input'!K207*(1+rvanilla05)^0.5 -> 0 | L15: ='PTRM input'!L207*(1+rvanilla06)^0.5 -> 0 | M15: ='PTRM input'!M207*(1+rvanilla07)^0.5 -> 0 | N15: ='PTRM input'!N207*(1+rvanilla08)^0.5 -> 0 | O15: ='PTRM input'!O207*(1+rvanilla09)^0.5 -> 0 | P15: ='PTRM input'!P207*(1+rvanilla10)^0.5 -> 0
C16: =Asset6 -> Distribution Switching Stations (Ground) | G16: ='PTRM input'!G208*(1+rvanilla01)^0.5 -> 0.2655460395 | H16: ='PTRM input'!H208*(1+rvanilla02)^0.5 -> 0.2137000935 | I16: ='PTRM input'!I208*(1+rvanilla03)^0.5 -> 0 | J16: ='PTRM input'!J208*(1+rvanilla04)^0.5 -> 0 | K16: ='PTRM input'!K208*(1+rvanilla05)^0.5 -> 0 | L16: ='PTRM input'!L208*(1+rvanilla06)^0.5 -> 0 | M16: ='PTRM input'!M208*(1+rvanilla07)^0.5 -> 0 | N16: ='PTRM input'!N208*(1+rvanilla08)^0.5 -> 0 | O16: ='PTRM input'!O208*(1+rvanilla09)^0.5 -> 0 | P16: ='PTRM input'!P208*(1+rvanilla10)^0.5 -> 0
C17: =Asset7 -> Overhead High Voltage Lines Urban | G17: ='PTRM input'!G209*(1+rvanilla01)^0.5 -> 6.101047215 | H17: ='PTRM input'!H209*(1+rvanilla02)^0.5 -> 6.159639198 | I17: ='PTRM input'!I209*(1+rvanilla03)^0.5 -> 0 | J17: ='PTRM input'!J209*(1+rvanilla04)^0.5 -> 0 | K17: ='PTRM input'!K209*(1+rvanilla05)^0.5 -> 0 | L17: ='PTRM input'!L209*(1+rvanilla06)^0.5 -> 0 | M17: ='PTRM input'!M209*(1+rvanilla07)^0.5 -> 0 | N17: ='PTRM input'!N209*(1+rvanilla08)^0.5 -> 0 | O17: ='PTRM input'!O209*(1+rvanilla09)^0.5 -> 0 | P17: ='PTRM input'!P209*(1+rvanilla10)^0.5 -> 0
C18: =Asset8 -> Overhead High Voltage Lines Rural | G18: ='PTRM input'!G210*(1+rvanilla01)^0.5 -> 19.55321205 | H18: ='PTRM input'!H210*(1+rvanilla02)^0.5 -> 18.95287072 | I18: ='PTRM input'!I210*(1+rvanilla03)^0.5 -> 0 | J18: ='PTRM input'!J210*(1+rvanilla04)^0.5 -> 0 | K18: ='PTRM input'!K210*(1+rvanilla05)^0.5 -> 0 | L18: ='PTRM input'!L210*(1+rvanilla06)^0.5 -> 0 | M18: ='PTRM input'!M210*(1+rvanilla07)^0.5 -> 0 | N18: ='PTRM input'!N210*(1+rvanilla08)^0.5 -> 0 | O18: ='PTRM input'!O210*(1+rvanilla09)^0.5 -> 0 | P18: ='PTRM input'!P210*(1+rvanilla10)^0.5 -> 0
C19: =Asset9 -> Voltage Regulators on Distribution Feeders | G19: ='PTRM input'!G211*(1+rvanilla01)^0.5 -> 1.596185172 | H19: ='PTRM input'!H211*(1+rvanilla02)^0.5 -> 0.7977976072 | I19: ='PTRM input'!I211*(1+rvanilla03)^0.5 -> 0 | J19: ='PTRM input'!J211*(1+rvanilla04)^0.5 -> 0 | K19: ='PTRM input'!K211*(1+rvanilla05)^0.5 -> 0 | L19: ='PTRM input'!L211*(1+rvanilla06)^0.5 -> 0 | M19: ='PTRM input'!M211*(1+rvanilla07)^0.5 -> 0 | N19: ='PTRM input'!N211*(1+rvanilla08)^0.5 -> 0 | O19: ='PTRM input'!O211*(1+rvanilla09)^0.5 -> 0 | P19: ='PTRM input'!P211*(1+rvanilla10)^0.5 -> 0
C20: =Asset10 -> Underground High Voltage Lines | G20: ='PTRM input'!G212*(1+rvanilla01)^0.5 -> 6.405943945 | H20: ='PTRM input'!H212*(1+rvanilla02)^0.5 -> 5.76766011 | I20: ='PTRM input'!I212*(1+rvanilla03)^0.5 -> 0 | J20: ='PTRM input'!J212*(1+rvanilla04)^0.5 -> 0 | K20: ='PTRM input'!K212*(1+rvanilla05)^0.5 -> 0 | L20: ='PTRM input'!L212*(1+rvanilla06)^0.5 -> 0 | M20: ='PTRM input'!M212*(1+rvanilla07)^0.5 -> 0 | N20: ='PTRM input'!N212*(1+rvanilla08)^0.5 -> 0 | O20: ='PTRM input'!O212*(1+rvanilla09)^0.5 -> 0 | P20: ='PTRM input'!P212*(1+rvanilla10)^0.5 -> 0
C21: =Asset11 -> Underground High Voltage Lines SWER | G21: ='PTRM input'!G213*(1+rvanilla01)^0.5 -> 0 | H21: ='PTRM input'!H213*(1+rvanilla02)^0.5 -> 0 | I21: ='PTRM input'!I213*(1+rvanilla03)^0.5 -> 0 | J21: ='PTRM input'!J213*(1+rvanilla04)^0.5 -> 0 | K21: ='PTRM input'!K213*(1+rvanilla05)^0.5 -> 0 | L21: ='PTRM input'!L213*(1+rvanilla06)^0.5 -> 0 | M21: ='PTRM input'!M213*(1+rvanilla07)^0.5 -> 0 | N21: ='PTRM input'!N213*(1+rvanilla08)^0.5 -> 0 | O21: ='PTRM input'!O213*(1+rvanilla09)^0.5 -> 0 | P21: ='PTRM input'!P213*(1+rvanilla10)^0.5 -> 0
C22: =Asset12 -> Distribution Substations HV (Pole) | G22: ='PTRM input'!G214*(1+rvanilla01)^0.5 -> 0.160758259 | H22: ='PTRM input'!H214*(1+rvanilla02)^0.5 -> 0.1622784931 | I22: ='PTRM input'!I214*(1+rvanilla03)^0.5 -> 0 | J22: ='PTRM input'!J214*(1+rvanilla04)^0.5 -> 0 | K22: ='PTRM input'!K214*(1+rvanilla05)^0.5 -> 0 | L22: ='PTRM input'!L214*(1+rvanilla06)^0.5 -> 0 | M22: ='PTRM input'!M214*(1+rvanilla07)^0.5 -> 0 | N22: ='PTRM input'!N214*(1+rvanilla08)^0.5 -> 0 | O22: ='PTRM input'!O214*(1+rvanilla09)^0.5 -> 0 | P22: ='PTRM input'!P214*(1+rvanilla10)^0.5 -> 0
C23: =Asset13 -> Distribution Substations HV (Ground) | G23: ='PTRM input'!G215*(1+rvanilla01)^0.5 -> 3.535697313 | H23: ='PTRM input'!H215*(1+rvanilla02)^0.5 -> 3.397979812 | I23: ='PTRM input'!I215*(1+rvanilla03)^0.5 -> 0 | J23: ='PTRM input'!J215*(1+rvanilla04)^0.5 -> 0 | K23: ='PTRM input'!K215*(1+rvanilla05)^0.5 -> 0 | L23: ='PTRM input'!L215*(1+rvanilla06)^0.5 -> 0 | M23: ='PTRM input'!M215*(1+rvanilla07)^0.5 -> 0 | N23: ='PTRM input'!N215*(1+rvanilla08)^0.5 -> 0 | O23: ='PTRM input'!O215*(1+rvanilla09)^0.5 -> 0 | P23: ='PTRM input'!P215*(1+rvanilla10)^0.5 -> 0
C24: =Asset14 -> Distribution Substations LV (Pole) | G24: ='PTRM input'!G216*(1+rvanilla01)^0.5 -> 6.705822398 | H24: ='PTRM input'!H216*(1+rvanilla02)^0.5 -> 6.768364427 | I24: ='PTRM input'!I216*(1+rvanilla03)^0.5 -> 0 | J24: ='PTRM input'!J216*(1+rvanilla04)^0.5 -> 0 | K24: ='PTRM input'!K216*(1+rvanilla05)^0.5 -> 0 | L24: ='PTRM input'!L216*(1+rvanilla06)^0.5 -> 0 | M24: ='PTRM input'!M216*(1+rvanilla07)^0.5 -> 0 | N24: ='PTRM input'!N216*(1+rvanilla08)^0.5 -> 0 | O24: ='PTRM input'!O216*(1+rvanilla09)^0.5 -> 0 | P24: ='PTRM input'!P216*(1+rvanilla10)^0.5 -> 0
C25: =Asset15 -> Distribution Substations LV (Ground) | G25: ='PTRM input'!G217*(1+rvanilla01)^0.5 -> 5.985792575 | H25: ='PTRM input'!H217*(1+rvanilla02)^0.5 -> 5.831301728 | I25: ='PTRM input'!I217*(1+rvanilla03)^0.5 -> 0 | J25: ='PTRM input'!J217*(1+rvanilla04)^0.5 -> 0 | K25: ='PTRM input'!K217*(1+rvanilla05)^0.5 -> 0 | L25: ='PTRM input'!L217*(1+rvanilla06)^0.5 -> 0 | M25: ='PTRM input'!M217*(1+rvanilla07)^0.5 -> 0 | N25: ='PTRM input'!N217*(1+rvanilla08)^0.5 -> 0 | O25: ='PTRM input'!O217*(1+rvanilla09)^0.5 -> 0 | P25: ='PTRM input'!P217*(1+rvanilla10)^0.5 -> 0
C26: =Asset16 -> Overhead Low Voltage Lines Underbuilt Urban | G26: ='PTRM input'!G218*(1+rvanilla01)^0.5 -> 3.536442697 | H26: ='PTRM input'!H218*(1+rvanilla02)^0.5 -> 3.561061157 | I26: ='PTRM input'!I218*(1+rvanilla03)^0.5 -> 0 | J26: ='PTRM input'!J218*(1+rvanilla04)^0.5 -> 0 | K26: ='PTRM input'!K218*(1+rvanilla05)^0.5 -> 0 | L26: ='PTRM input'!L218*(1+rvanilla06)^0.5 -> 0 | M26: ='PTRM input'!M218*(1+rvanilla07)^0.5 -> 0 | N26: ='PTRM input'!N218*(1+rvanilla08)^0.5 -> 0 | O26: ='PTRM input'!O218*(1+rvanilla09)^0.5 -> 0 | P26: ='PTRM input'!P218*(1+rvanilla10)^0.5 -> 0
C27: =Asset17 -> Overhead Low Voltage Lines Underbuilt Rural | G27: ='PTRM input'!G219*(1+rvanilla01)^0.5 -> 3.028629944 | H27: ='PTRM input'!H219*(1+rvanilla02)^0.5 -> 3.02286718 | I27: ='PTRM input'!I219*(1+rvanilla03)^0.5 -> 0 | J27: ='PTRM input'!J219*(1+rvanilla04)^0.5 -> 0 | K27: ='PTRM input'!K219*(1+rvanilla05)^0.5 -> 0 | L27: ='PTRM input'!L219*(1+rvanilla06)^0.5 -> 0 | M27: ='PTRM input'!M219*(1+rvanilla07)^0.5 -> 0 | N27: ='PTRM input'!N219*(1+rvanilla08)^0.5 -> 0 | O27: ='PTRM input'!O219*(1+rvanilla09)^0.5 -> 0 | P27: ='PTRM input'!P219*(1+rvanilla10)^0.5 -> 0
C28: =Asset18 -> Overhead Low Voltage Lines Urban | G28: ='PTRM input'!G220*(1+rvanilla01)^0.5 -> 3.982704728 | H28: ='PTRM input'!H220*(1+rvanilla02)^0.5 -> 4.016788554 | I28: ='PTRM input'!I220*(1+rvanilla03)^0.5 -> 0 | J28: ='PTRM input'!J220*(1+rvanilla04)^0.5 -> 0 | K28: ='PTRM input'!K220*(1+rvanilla05)^0.5 -> 0 | L28: ='PTRM input'!L220*(1+rvanilla06)^0.5 -> 0 | M28: ='PTRM input'!M220*(1+rvanilla07)^0.5 -> 0 | N28: ='PTRM input'!N220*(1+rvanilla08)^0.5 -> 0 | O28: ='PTRM input'!O220*(1+rvanilla09)^0.5 -> 0 | P28: ='PTRM input'!P220*(1+rvanilla10)^0.5 -> 0
C29: =Asset19 -> Overhead Low Voltage Lines Rural | G29: ='PTRM input'!G221*(1+rvanilla01)^0.5 -> 6.270017406 | H29: ='PTRM input'!H221*(1+rvanilla02)^0.5 -> 6.287012576 | I29: ='PTRM input'!I221*(1+rvanilla03)^0.5 -> 0 | J29: ='PTRM input'!J221*(1+rvanilla04)^0.5 -> 0 | K29: ='PTRM input'!K221*(1+rvanilla05)^0.5 -> 0 | L29: ='PTRM input'!L221*(1+rvanilla06)^0.5 -> 0 | M29: ='PTRM input'!M221*(1+rvanilla07)^0.5 -> 0 | N29: ='PTRM input'!N221*(1+rvanilla08)^0.5 -> 0 | O29: ='PTRM input'!O221*(1+rvanilla09)^0.5 -> 0 | P29: ='PTRM input'!P221*(1+rvanilla10)^0.5 -> 0
C30: =Asset20 -> Underground Low Voltage Lines | G30: ='PTRM input'!G222*(1+rvanilla01)^0.5 -> 4.462147295 | H30: ='PTRM input'!H222*(1+rvanilla02)^0.5 -> 4.449983011 | I30: ='PTRM input'!I222*(1+rvanilla03)^0.5 -> 0 | J30: ='PTRM input'!J222*(1+rvanilla04)^0.5 -> 0 | K30: ='PTRM input'!K222*(1+rvanilla05)^0.5 -> 0 | L30: ='PTRM input'!L222*(1+rvanilla06)^0.5 -> 0 | M30: ='PTRM input'!M222*(1+rvanilla07)^0.5 -> 0 | N30: ='PTRM input'!N222*(1+rvanilla08)^0.5 -> 0 | O30: ='PTRM input'!O222*(1+rvanilla09)^0.5 -> 0 | P30: ='PTRM input'!P222*(1+rvanilla10)^0.5 -> 0
C31: =Asset21 -> Underground Low Voltage Common Trench | G31: ='PTRM input'!G223*(1+rvanilla01)^0.5 -> 0.8921017721 | H31: ='PTRM input'!H223*(1+rvanilla02)^0.5 -> 0.8949591576 | I31: ='PTRM input'!I223*(1+rvanilla03)^0.5 -> 0 | J31: ='PTRM input'!J223*(1+rvanilla04)^0.5 -> 0 | K31: ='PTRM input'!K223*(1+rvanilla05)^0.5 -> 0 | L31: ='PTRM input'!L223*(1+rvanilla06)^0.5 -> 0 | M31: ='PTRM input'!M223*(1+rvanilla07)^0.5 -> 0 | N31: ='PTRM input'!N223*(1+rvanilla08)^0.5 -> 0 | O31: ='PTRM input'!O223*(1+rvanilla09)^0.5 -> 0 | P31: ='PTRM input'!P223*(1+rvanilla10)^0.5 -> 0
C32: =Asset22 -> HVST Service Connections | G32: ='PTRM input'!G224*(1+rvanilla01)^0.5 -> 0 | H32: ='PTRM input'!H224*(1+rvanilla02)^0.5 -> 0 | I32: ='PTRM input'!I224*(1+rvanilla03)^0.5 -> 0 | J32: ='PTRM input'!J224*(1+rvanilla04)^0.5 -> 0 | K32: ='PTRM input'!K224*(1+rvanilla05)^0.5 -> 0 | L32: ='PTRM input'!L224*(1+rvanilla06)^0.5 -> 0 | M32: ='PTRM input'!M224*(1+rvanilla07)^0.5 -> 0 | N32: ='PTRM input'!N224*(1+rvanilla08)^0.5 -> 0 | O32: ='PTRM input'!O224*(1+rvanilla09)^0.5 -> 0 | P32: ='PTRM input'!P224*(1+rvanilla10)^0.5 -> 0
C33: =Asset23 -> HV Service Connections | G33: ='PTRM input'!G225*(1+rvanilla01)^0.5 -> 0.08033838423 | H33: ='PTRM input'!H225*(1+rvanilla02)^0.5 -> 0.07715246925 | I33: ='PTRM input'!I225*(1+rvanilla03)^0.5 -> 0 | J33: ='PTRM input'!J225*(1+rvanilla04)^0.5 -> 0 | K33: ='PTRM input'!K225*(1+rvanilla05)^0.5 -> 0 | L33: ='PTRM input'!L225*(1+rvanilla06)^0.5 -> 0 | M33: ='PTRM input'!M225*(1+rvanilla07)^0.5 -> 0 | N33: ='PTRM input'!N225*(1+rvanilla08)^0.5 -> 0 | O33: ='PTRM input'!O225*(1+rvanilla09)^0.5 -> 0 | P33: ='PTRM input'!P225*(1+rvanilla10)^0.5 -> 0
C34: =Asset24 -> HV Metering CA Service Connections | G34: ='PTRM input'!G226*(1+rvanilla01)^0.5 -> 0.0243063791 | H34: ='PTRM input'!H226*(1+rvanilla02)^0.5 -> 0.02416619815 | I34: ='PTRM input'!I226*(1+rvanilla03)^0.5 -> 0 | J34: ='PTRM input'!J226*(1+rvanilla04)^0.5 -> 0 | K34: ='PTRM input'!K226*(1+rvanilla05)^0.5 -> 0 | L34: ='PTRM input'!L226*(1+rvanilla06)^0.5 -> 0 | M34: ='PTRM input'!M226*(1+rvanilla07)^0.5 -> 0 | N34: ='PTRM input'!N226*(1+rvanilla08)^0.5 -> 0 | O34: ='PTRM input'!O226*(1+rvanilla09)^0.5 -> 0 | P34: ='PTRM input'!P226*(1+rvanilla10)^0.5 -> 0
C35: =Asset25 -> HV/LV Service Connections | G35: ='PTRM input'!G227*(1+rvanilla01)^0.5 -> 0.1453104585 | H35: ='PTRM input'!H227*(1+rvanilla02)^0.5 -> 0.139547998 | I35: ='PTRM input'!I227*(1+rvanilla03)^0.5 -> 0 | J35: ='PTRM input'!J227*(1+rvanilla04)^0.5 -> 0 | K35: ='PTRM input'!K227*(1+rvanilla05)^0.5 -> 0 | L35: ='PTRM input'!L227*(1+rvanilla06)^0.5 -> 0 | M35: ='PTRM input'!M227*(1+rvanilla07)^0.5 -> 0 | N35: ='PTRM input'!N227*(1+rvanilla08)^0.5 -> 0 | O35: ='PTRM input'!O227*(1+rvanilla09)^0.5 -> 0 | P35: ='PTRM input'!P227*(1+rvanilla10)^0.5 -> 0
C36: =Asset26 -> Business LV Service Connections | G36: ='PTRM input'!G228*(1+rvanilla01)^0.5 -> 0.3907225477 | H36: ='PTRM input'!H228*(1+rvanilla02)^0.5 -> 0.3755660497 | I36: ='PTRM input'!I228*(1+rvanilla03)^0.5 -> 0 | J36: ='PTRM input'!J228*(1+rvanilla04)^0.5 -> 0 | K36: ='PTRM input'!K228*(1+rvanilla05)^0.5 -> 0 | L36: ='PTRM input'!L228*(1+rvanilla06)^0.5 -> 0 | M36: ='PTRM input'!M228*(1+rvanilla07)^0.5 -> 0 | N36: ='PTRM input'!N228*(1+rvanilla08)^0.5 -> 0 | O36: ='PTRM input'!O228*(1+rvanilla09)^0.5 -> 0 | P36: ='PTRM input'!P228*(1+rvanilla10)^0.5 -> 0
C37: =Asset27 -> Business LV Metering CA Service Connections | G37: ='PTRM input'!G229*(1+rvanilla01)^0.5 -> 0.7062901462 | H37: ='PTRM input'!H229*(1+rvanilla02)^0.5 -> 0.7026791382 | I37: ='PTRM input'!I229*(1+rvanilla03)^0.5 -> 0 | J37: ='PTRM input'!J229*(1+rvanilla04)^0.5 -> 0 | K37: ='PTRM input'!K229*(1+rvanilla05)^0.5 -> 0 | L37: ='PTRM input'!L229*(1+rvanilla06)^0.5 -> 0 | M37: ='PTRM input'!M229*(1+rvanilla07)^0.5 -> 0 | N37: ='PTRM input'!N229*(1+rvanilla08)^0.5 -> 0 | O37: ='PTRM input'!O229*(1+rvanilla09)^0.5 -> 0 | P37: ='PTRM input'!P229*(1+rvanilla10)^0.5 -> 0
C38: =Asset28 -> Domestic LV Service Connections | G38: ='PTRM input'!G230*(1+rvanilla01)^0.5 -> 3.082913285 | H38: ='PTRM input'!H230*(1+rvanilla02)^0.5 -> 2.961670881 | I38: ='PTRM input'!I230*(1+rvanilla03)^0.5 -> 0 | J38: ='PTRM input'!J230*(1+rvanilla04)^0.5 -> 0 | K38: ='PTRM input'!K230*(1+rvanilla05)^0.5 -> 0 | L38: ='PTRM input'!L230*(1+rvanilla06)^0.5 -> 0 | M38: ='PTRM input'!M230*(1+rvanilla07)^0.5 -> 0 | N38: ='PTRM input'!N230*(1+rvanilla08)^0.5 -> 0 | O38: ='PTRM input'!O230*(1+rvanilla09)^0.5 -> 0 | P38: ='PTRM input'!P230*(1+rvanilla10)^0.5 -> 0
C39: =Asset29 -> Domestic LV Metering CA Service Connections | G39: ='PTRM input'!G231*(1+rvanilla01)^0.5 -> 0.5290018426 | H39: ='PTRM input'!H231*(1+rvanilla02)^0.5 -> 0.5279404345 | I39: ='PTRM input'!I231*(1+rvanilla03)^0.5 -> 0 | J39: ='PTRM input'!J231*(1+rvanilla04)^0.5 -> 0 | K39: ='PTRM input'!K231*(1+rvanilla05)^0.5 -> 0 | L39: ='PTRM input'!L231*(1+rvanilla06)^0.5 -> 0 | M39: ='PTRM input'!M231*(1+rvanilla07)^0.5 -> 0 | N39: ='PTRM input'!N231*(1+rvanilla08)^0.5 -> 0 | O39: ='PTRM input'!O231*(1+rvanilla09)^0.5 -> 0 | P39: ='PTRM input'!P231*(1+rvanilla10)^0.5 -> 0
C40: =Asset30 -> Wholesale Metering | G40: ='PTRM input'!G232*(1+rvanilla01)^0.5 -> 0 | H40: ='PTRM input'!H232*(1+rvanilla02)^0.5 -> 0 | I40: ='PTRM input'!I232*(1+rvanilla03)^0.5 -> 0 | J40: ='PTRM input'!J232*(1+rvanilla04)^0.5 -> 0 | K40: ='PTRM input'!K232*(1+rvanilla05)^0.5 -> 0 | L40: ='PTRM input'!L232*(1+rvanilla06)^0.5 -> 0 | M40: ='PTRM input'!M232*(1+rvanilla07)^0.5 -> 0 | N40: ='PTRM input'!N232*(1+rvanilla08)^0.5 -> 0 | O40: ='PTRM input'!O232*(1+rvanilla09)^0.5 -> 0 | P40: ='PTRM input'!P232*(1+rvanilla10)^0.5 -> 0
C41: =Asset31 -> HV Metering | G41: ='PTRM input'!G233*(1+rvanilla01)^0.5 -> 0 | H41: ='PTRM input'!H233*(1+rvanilla02)^0.5 -> 0 | I41: ='PTRM input'!I233*(1+rvanilla03)^0.5 -> 0 | J41: ='PTRM input'!J233*(1+rvanilla04)^0.5 -> 0 | K41: ='PTRM input'!K233*(1+rvanilla05)^0.5 -> 0 | L41: ='PTRM input'!L233*(1+rvanilla06)^0.5 -> 0 | M41: ='PTRM input'!M233*(1+rvanilla07)^0.5 -> 0 | N41: ='PTRM input'!N233*(1+rvanilla08)^0.5 -> 0 | O41: ='PTRM input'!O233*(1+rvanilla09)^0.5 -> 0 | P41: ='PTRM input'!P233*(1+rvanilla10)^0.5 -> 0
C42: =Asset32 -> HV/LV Metering | G42: ='PTRM input'!G234*(1+rvanilla01)^0.5 -> 0 | H42: ='PTRM input'!H234*(1+rvanilla02)^0.5 -> 0 | I42: ='PTRM input'!I234*(1+rvanilla03)^0.5 -> 0 | J42: ='PTRM input'!J234*(1+rvanilla04)^0.5 -> 0 | K42: ='PTRM input'!K234*(1+rvanilla05)^0.5 -> 0 | L42: ='PTRM input'!L234*(1+rvanilla06)^0.5 -> 0 | M42: ='PTRM input'!M234*(1+rvanilla07)^0.5 -> 0 | N42: ='PTRM input'!N234*(1+rvanilla08)^0.5 -> 0 | O42: ='PTRM input'!O234*(1+rvanilla09)^0.5 -> 0 | P42: ='PTRM input'!P234*(1+rvanilla10)^0.5 -> 0
C43: =Asset33 -> Business LV Metering | G43: ='PTRM input'!G235*(1+rvanilla01)^0.5 -> 0 | H43: ='PTRM input'!H235*(1+rvanilla02)^0.5 -> 0 | I43: ='PTRM input'!I235*(1+rvanilla03)^0.5 -> 0 | J43: ='PTRM input'!J235*(1+rvanilla04)^0.5 -> 0 | K43: ='PTRM input'!K235*(1+rvanilla05)^0.5 -> 0 | L43: ='PTRM input'!L235*(1+rvanilla06)^0.5 -> 0 | M43: ='PTRM input'!M235*(1+rvanilla07)^0.5 -> 0 | N43: ='PTRM input'!N235*(1+rvanilla08)^0.5 -> 0 | O43: ='PTRM input'!O235*(1+rvanilla09)^0.5 -> 0 | P43: ='PTRM input'!P235*(1+rvanilla10)^0.5 -> 0
C44: =Asset34 -> Domestic LV Metering | G44: ='PTRM input'!G236*(1+rvanilla01)^0.5 -> 0 | H44: ='PTRM input'!H236*(1+rvanilla02)^0.5 -> 0 | I44: ='PTRM input'!I236*(1+rvanilla03)^0.5 -> 0 | J44: ='PTRM input'!J236*(1+rvanilla04)^0.5 -> 0 | K44: ='PTRM input'!K236*(1+rvanilla05)^0.5 -> 0 | L44: ='PTRM input'!L236*(1+rvanilla06)^0.5 -> 0 | M44: ='PTRM input'!M236*(1+rvanilla07)^0.5 -> 0 | N44: ='PTRM input'!N236*(1+rvanilla08)^0.5 -> 0 | O44: ='PTRM input'!O236*(1+rvanilla09)^0.5 -> 0 | P44: ='PTRM input'!P236*(1+rvanilla10)^0.5 -> 0
C45: =Asset35 -> Off Peak Metering | G45: ='PTRM input'!G237*(1+rvanilla01)^0.5 -> 0 | H45: ='PTRM input'!H237*(1+rvanilla02)^0.5 -> 0 | I45: ='PTRM input'!I237*(1+rvanilla03)^0.5 -> 0 | J45: ='PTRM input'!J237*(1+rvanilla04)^0.5 -> 0 | K45: ='PTRM input'!K237*(1+rvanilla05)^0.5 -> 0 | L45: ='PTRM input'!L237*(1+rvanilla06)^0.5 -> 0 | M45: ='PTRM input'!M237*(1+rvanilla07)^0.5 -> 0 | N45: ='PTRM input'!N237*(1+rvanilla08)^0.5 -> 0 | O45: ='PTRM input'!O237*(1+rvanilla09)^0.5 -> 0 | P45: ='PTRM input'!P237*(1+rvanilla10)^0.5 -> 0
C46: =Asset36 -> Emergency Network Spares | G46: ='PTRM input'!G238*(1+rvanilla01)^0.5 -> 0 | H46: ='PTRM input'!H238*(1+rvanilla02)^0.5 -> 0 | I46: ='PTRM input'!I238*(1+rvanilla03)^0.5 -> 0 | J46: ='PTRM input'!J238*(1+rvanilla04)^0.5 -> 0 | K46: ='PTRM input'!K238*(1+rvanilla05)^0.5 -> 0 | L46: ='PTRM input'!L238*(1+rvanilla06)^0.5 -> 0 | M46: ='PTRM input'!M238*(1+rvanilla07)^0.5 -> 0 | N46: ='PTRM input'!N238*(1+rvanilla08)^0.5 -> 0 | O46: ='PTRM input'!O238*(1+rvanilla09)^0.5 -> 0 | P46: ='PTRM input'!P238*(1+rvanilla10)^0.5 -> 0
C47: =Asset37 -> Motor Vehicles | G47: ='PTRM input'!G239*(1+rvanilla01)^0.5 -> 1.730960146 | H47: ='PTRM input'!H239*(1+rvanilla02)^0.5 -> 1.734905589 | I47: ='PTRM input'!I239*(1+rvanilla03)^0.5 -> 0 | J47: ='PTRM input'!J239*(1+rvanilla04)^0.5 -> 0 | K47: ='PTRM input'!K239*(1+rvanilla05)^0.5 -> 0 | L47: ='PTRM input'!L239*(1+rvanilla06)^0.5 -> 0 | M47: ='PTRM input'!M239*(1+rvanilla07)^0.5 -> 0 | N47: ='PTRM input'!N239*(1+rvanilla08)^0.5 -> 0 | O47: ='PTRM input'!O239*(1+rvanilla09)^0.5 -> 0 | P47: ='PTRM input'!P239*(1+rvanilla10)^0.5 -> 0
C48: =Asset38 -> Minor Assets | G48: ='PTRM input'!G240*(1+rvanilla01)^0.5 -> 15.57985323 | H48: ='PTRM input'!H240*(1+rvanilla02)^0.5 -> 14.76296931 | I48: ='PTRM input'!I240*(1+rvanilla03)^0.5 -> 0 | J48: ='PTRM input'!J240*(1+rvanilla04)^0.5 -> 0 | K48: ='PTRM input'!K240*(1+rvanilla05)^0.5 -> 0 | L48: ='PTRM input'!L240*(1+rvanilla06)^0.5 -> 0 | M48: ='PTRM input'!M240*(1+rvanilla07)^0.5 -> 0 | N48: ='PTRM input'!N240*(1+rvanilla08)^0.5 -> 0 | O48: ='PTRM input'!O240*(1+rvanilla09)^0.5 -> 0 | P48: ='PTRM input'!P240*(1+rvanilla10)^0.5 -> 0
C49: =Asset39 -> Non-System Property | G49: ='PTRM input'!G241*(1+rvanilla01)^0.5 -> 1.33299097 | H49: ='PTRM input'!H241*(1+rvanilla02)^0.5 -> 1.241192519 | I49: ='PTRM input'!I241*(1+rvanilla03)^0.5 -> 0 | J49: ='PTRM input'!J241*(1+rvanilla04)^0.5 -> 0 | K49: ='PTRM input'!K241*(1+rvanilla05)^0.5 -> 0 | L49: ='PTRM input'!L241*(1+rvanilla06)^0.5 -> 0 | M49: ='PTRM input'!M241*(1+rvanilla07)^0.5 -> 0 | N49: ='PTRM input'!N241*(1+rvanilla08)^0.5 -> 0 | O49: ='PTRM input'!O241*(1+rvanilla09)^0.5 -> 0 | P49: ='PTRM input'!P241*(1+rvanilla10)^0.5 -> 0
C50: =Asset40 -> Spare Parts | G50: ='PTRM input'!G242*(1+rvanilla01)^0.5 -> 0 | H50: ='PTRM input'!H242*(1+rvanilla02)^0.5 -> 0 | I50: ='PTRM input'!I242*(1+rvanilla03)^0.5 -> 0 | J50: ='PTRM input'!J242*(1+rvanilla04)^0.5 -> 0 | K50: ='PTRM input'!K242*(1+rvanilla05)^0.5 -> 0 | L50: ='PTRM input'!L242*(1+rvanilla06)^0.5 -> 0 | M50: ='PTRM input'!M242*(1+rvanilla07)^0.5 -> 0 | N50: ='PTRM input'!N242*(1+rvanilla08)^0.5 -> 0 | O50: ='PTRM input'!O242*(1+rvanilla09)^0.5 -> 0 | P50: ='PTRM input'!P242*(1+rvanilla10)^0.5 -> 0
C51: =Asset41 -> NEM Assets | G51: ='PTRM input'!G243*(1+rvanilla01)^0.5 -> 0 | H51: ='PTRM input'!H243*(1+rvanilla02)^0.5 -> 0 | I51: ='PTRM input'!I243*(1+rvanilla03)^0.5 -> 0 | J51: ='PTRM input'!J243*(1+rvanilla04)^0.5 -> 0 | K51: ='PTRM input'!K243*(1+rvanilla05)^0.5 -> 0 | L51: ='PTRM input'!L243*(1+rvanilla06)^0.5 -> 0 | M51: ='PTRM input'!M243*(1+rvanilla07)^0.5 -> 0 | N51: ='PTRM input'!N243*(1+rvanilla08)^0.5 -> 0 | O51: ='PTRM input'!O243*(1+rvanilla09)^0.5 -> 0 | P51: ='PTRM input'!P243*(1+rvanilla10)^0.5 -> 0
C52: =Asset42 -> Business Management Systems | G52: ='PTRM input'!G244*(1+rvanilla01)^0.5 -> 11.53353151 | H52: ='PTRM input'!H244*(1+rvanilla02)^0.5 -> 0 | I52: ='PTRM input'!I244*(1+rvanilla03)^0.5 -> 0 | J52: ='PTRM input'!J244*(1+rvanilla04)^0.5 -> 0 | K52: ='PTRM input'!K244*(1+rvanilla05)^0.5 -> 0 | L52: ='PTRM input'!L244*(1+rvanilla06)^0.5 -> 0 | M52: ='PTRM input'!M244*(1+rvanilla07)^0.5 -> 0 | N52: ='PTRM input'!N244*(1+rvanilla08)^0.5 -> 0 | O52: ='PTRM input'!O244*(1+rvanilla09)^0.5 -> 0 | P52: ='PTRM input'!P244*(1+rvanilla10)^0.5 -> 0
C53: =Asset43 -> Land | G53: ='PTRM input'!G245*(1+rvanilla01)^0.5 -> 0 | H53: ='PTRM input'!H245*(1+rvanilla02)^0.5 -> 0.8897515449 | I53: ='PTRM input'!I245*(1+rvanilla03)^0.5 -> 0 | J53: ='PTRM input'!J245*(1+rvanilla04)^0.5 -> 0 | K53: ='PTRM input'!K245*(1+rvanilla05)^0.5 -> 0 | L53: ='PTRM input'!L245*(1+rvanilla06)^0.5 -> 0 | M53: ='PTRM input'!M245*(1+rvanilla07)^0.5 -> 0 | N53: ='PTRM input'!N245*(1+rvanilla08)^0.5 -> 0 | O53: ='PTRM input'!O245*(1+rvanilla09)^0.5 -> 0 | P53: ='PTRM input'!P245*(1+rvanilla10)^0.5 -> 0
C54: =Asset44 -> Easements | G54: ='PTRM input'!G246*(1+rvanilla01)^0.5 -> 0 | H54: ='PTRM input'!H246*(1+rvanilla02)^0.5 -> 0 | I54: ='PTRM input'!I246*(1+rvanilla03)^0.5 -> 0 | J54: ='PTRM input'!J246*(1+rvanilla04)^0.5 -> 0 | K54: ='PTRM input'!K246*(1+rvanilla05)^0.5 -> 0 | L54: ='PTRM input'!L246*(1+rvanilla06)^0.5 -> 0 | M54: ='PTRM input'!M246*(1+rvanilla07)^0.5 -> 0 | N54: ='PTRM input'!N246*(1+rvanilla08)^0.5 -> 0 | O54: ='PTRM input'!O246*(1+rvanilla09)^0.5 -> 0 | P54: ='PTRM input'!P246*(1+rvanilla10)^0.5 -> 0
C55: =Asset45 -> Equity raising costs | G55: ='PTRM input'!G247*(1+rvanilla01)^0.5 -> 0.2077885295 | H55: ='PTRM input'!H247*(1+rvanilla02)^0.5 -> 0 | I55: ='PTRM input'!I247*(1+rvanilla03)^0.5 -> 0 | J55: ='PTRM input'!J247*(1+rvanilla04)^0.5 -> 0 | K55: ='PTRM input'!K247*(1+rvanilla05)^0.5 -> 0 | L55: ='PTRM input'!L247*(1+rvanilla06)^0.5 -> 0 | M55: ='PTRM input'!M247*(1+rvanilla07)^0.5 -> 0 | N55: ='PTRM input'!N247*(1+rvanilla08)^0.5 -> 0 | O55: ='PTRM input'!O247*(1+rvanilla09)^0.5 -> 0 | P55: ='PTRM input'!P247*(1+rvanilla10)^0.5 -> 0
B56: Nominal Net Capex | G56: =SUM(G57:G101) -> 116.1241962 | H56: =SUM(H57:H101) -> 107.4754915 | I56: 0 | J56: 0 | K56: 0 | L56: 0 | M56: 0 | N56: 0 | O56: 0 | P56: 0
C57: =Asset1 -> Overhead Subtransmission Lines (Urban) | G57: =G11*G$7 -> 0.1794751189 | H57: =H11*H$7 -> 0.1887957275 | I57: 0 | J57: 0 | K57: 0 | L57: 0 | M57: 0 | N57: 0 | O57: 0 | P57: 0
C58: =Asset2 -> Underground Subtransmission Lines (Urban) | G58: 0 | H58: =H12*H$7 -> 0 | I58: 0 | J58: 0 | K58: 0 | L58: 0 | M58: 0 | N58: 0 | O58: 0 | P58: 0
C59: =Asset3 -> Urban Zone Substations | G59: 0.8443961535 | H59: =H13*H$7 -> 4.525952839 | I59: 0 | J59: =J13*J$7 -> 0 | K59: 0 | L59: 0 | M59: 0 | N59: 0 | O59: 0 | P59: 0
C60: =Asset4 -> Rural Zone Substations | G60: 1.169512421 | H60: =H14*H$7 -> 2.206891866 | I60: =I14*I$7 -> 0 | J60: 0 | K60: 0 | L60: 0 | M60: 0 | N60: 0 | O60: 0 | P60: 0
C61: =Asset5 -> SCADA | G61: 3.46313662 | H61: =H15*H$7 -> 2.183631487 | I61: 0 | J61: 0 | K61: 0 | L61: 0 | M61: 0 | N61: 0 | O61: 0 | P61: 0
C62: =Asset6 -> Distribution Switching Stations (Ground) | G62: 0.2720516251 | H62: =H16*H$7 -> 0.2242991895 | I62: 0 | J62: 0 | K62: 0 | L62: 0 | M62: 0 | N62: 0 | O62: 0 | P62: 0
C63: =Asset7 -> Overhead High Voltage Lines Urban | G63: 6.250516154 | H63: =H17*H$7 -> 6.465144947 | I63: 0 | J63: 0 | K63: 0 | L63: 0 | M63: 0 | N63: 0 | O63: 0 | P63: 0
C64: =Asset8 -> Overhead High Voltage Lines Rural | G64: 20.03224421 | H64: =H18*H$7 -> 19.89289509 | I64: 0 | J64: 0 | K64: 0 | L64: 0 | M64: 0 | N64: 0 | O64: 0 | P64: 0
C65: =Asset9 -> Voltage Regulators on Distribution Feeders | G65: 1.635289951 | H65: =H19*H$7 -> 0.8373667683 | I65: 0 | J65: 0 | K65: 0 | L65: 0 | M65: 0 | N65: 0 | O65: 0 | P65: 0
C66: =Asset10 -> Underground High Voltage Lines | G66: 6.562882519 | H66: =H20*H$7 -> 6.053724482 | I66: 0 | J66: 0 | K66: 0 | L66: 0 | M66: 0 | N66: 0 | O66: 0 | P66: 0
C67: =Asset11 -> Underground High Voltage Lines SWER | G67: 0 | H67: =H21*H$7 -> 0 | I67: 0 | J67: 0 | K67: 0 | L67: 0 | M67: 0 | N67: 0 | O67: 0 | P67: 0
C68: =Asset12 -> Distribution Substations HV (Pole) | G68: 0.1646966594 | H68: =H22*H$7 -> 0.1703271808 | I68: 0 | J68: 0 | K68: 0 | L68: 0 | M68: 0 | N68: 0 | O68: 0 | P68: 0
C69: =Asset13 -> Distribution Substations HV (Ground) | G69: 3.622318004 | H69: =H23*H$7 -> 3.566512794 | I69: 0 | J69: 0 | K69: 0 | L69: 0 | M69: 0 | N69: 0 | O69: 0 | P69: 0
C70: =Asset14 -> Distribution Substations LV (Pole) | G70: 6.870107664 | H70: =H24*H$7 -> 7.104061726 | I70: 0 | J70: 0 | K70: 0 | L70: 0 | M70: 0 | N70: 0 | O70: 0 | P70: 0
C71: =Asset15 -> Distribution Substations LV (Ground) | G71: 6.132437903 | H71: =H25*H$7 -> 6.120522597 | I71: 0 | J71: 0 | K71: 0 | L71: 0 | M71: 0 | N71: 0 | O71: 0 | P71: 0
C72: =Asset16 -> Overhead Low Voltage Lines Underbuilt Urban | G72: 3.623081649 | H72: =H26*H$7 -> 3.737682647 | I72: 0 | J72: 0 | K72: =K26*K$7 -> 0 | L72: 0 | M72: 0 | N72: 0 | O72: 0 | P72: 0
C73: =Asset17 -> Overhead Low Voltage Lines Underbuilt Rural | G73: 3.102828043 | H73: =H27*H$7 -> 3.172795328 | I73: 0 | J73: 0 | K73: 0 | L73: 0 | M73: 0 | N73: 0 | O73: 0 | P73: 0
C74: =Asset18 -> Overhead Low Voltage Lines Urban | G74: 4.080276609 | H74: =H28*H$7 -> 4.216013209 | I74: 0 | J74: 0 | K74: 0 | L74: 0 | M74: 0 | N74: 0 | O74: 0 | P74: 0
C75: =Asset19 -> Overhead Low Voltage Lines Rural | G75: 6.423625929 | H75: =H29*H$7 -> 6.598835788 | I75: 0 | J75: 0 | K75: 0 | L75: 0 | M75: 0 | N75: 0 | O75: 0 | P75: 0
C76: =Asset20 -> Underground Low Voltage Lines | G76: 4.571464991 | H76: =H30*H$7 -> 4.670693242 | I76: 0 | J76: 0 | K76: 0 | L76: 0 | M76: 0 | N76: 0 | O76: 0 | P76: 0
C77: =Asset21 -> Underground Low Voltage Common Trench | G77: 0.9139572834 | H77: =H31*H$7 -> 0.9393473367 | I77: 0 | J77: 0 | K77: 0 | L77: 0 | M77: 0 | N77: 0 | O77: 0 | P77: 0
C78: =Asset22 -> HVST Service Connections | G78: 0 | H78: =H32*H$7 -> 0 | I78: 0 | J78: 0 | K78: 0 | L78: 0 | M78: 0 | N78: 0 | O78: 0 | P78: 0
C79: =Asset23 -> HV Service Connections | G79: 0.0823065862 | H79: =H33*H$7 -> 0.08097907697 | I79: 0 | J79: 0 | K79: 0 | L79: 0 | M79: 0 | N79: 0 | O79: 0 | P79: 0
C80: =Asset24 -> HV Metering CA Service Connections | G80: 0.02490185862 | H80: =H34*H$7 -> 0.0253647931 | I80: 0 | J80: 0 | K80: 0 | L80: 0 | M80: 0 | N80: 0 | O80: 0 | P80: 0
C81: =Asset25 -> HV/LV Service Connections | G81: 0.1488704047 | H81: =H35*H$7 -> 0.1464692987 | I81: 0 | J81: 0 | K81: 0 | L81: 0 | M81: 0 | N81: 0 | O81: 0 | P81: 0
C82: =Asset26 -> Business LV Service Connections | G82: 0.4002948199 | H82: =H36*H$7 -> 0.3941933724 | I82: 0 | J82: 0 | K82: 0 | L82: 0 | M82: 0 | N82: 0 | O82: 0 | P82: 0
C83: =Asset27 -> Business LV Metering CA Service Connections | G83: 0.7235934772 | H83: =H37*H$7 -> 0.737530614 | I83: 0 | J83: 0 | K83: 0 | L83: 0 | M83: 0 | N83: 0 | O83: 0 | P83: 0
C84: =Asset28 -> Domestic LV Service Connections | G84: 3.158441266 | H84: =H38*H$7 -> 3.108563816 | I84: 0 | J84: 0 | K84: 0 | L84: 0 | M84: 0 | N84: 0 | O84: 0 | P84: 0
C85: =Asset29 -> Domestic LV Metering CA Service Connections | G85: =G39*G$7 -> 0.5419618053 | H85: 0.5541252211 | I85: 0 | J85: 0 | K85: 0 | L85: 0 | M85: 0 | N85: 0 | O85: 0 | P85: 0
C86: =Asset30 -> Wholesale Metering | G86: =G40*G$7 -> 0 | H86: 0 | I86: 0 | J86: 0 | K86: 0 | L86: 0 | M86: 0 | N86: 0 | O86: 0 | P86: 0
C87: =Asset31 -> HV Metering | G87: =G41*G$7 -> 0 | H87: 0 | I87: 0 | J87: 0 | K87: 0 | L87: 0 | M87: 0 | N87: 0 | O87: 0 | P87: 0
C88: =Asset32 -> HV/LV Metering | G88: =G42*G$7 -> 0 | H88: 0 | I88: 0 | J88: 0 | K88: 0 | L88: 0 | M88: 0 | N88: 0 | O88: 0 | P88: 0
C89: =Asset33 -> Business LV Metering | G89: =G43*G$7 -> 0 | H89: 0 | I89: 0 | J89: 0 | K89: 0 | L89: 0 | M89: 0 | N89: 0 | O89: 0 | P89: 0
C90: =Asset34 -> Domestic LV Metering | G90: =G44*G$7 -> 0 | H90: 0 | I90: 0 | J90: 0 | K90: 0 | L90: 0 | M90: 0 | N90: 0 | O90: 0 | P90: 0
C91: =Asset35 -> Off Peak Metering | G91: =G45*G$7 -> 0 | H91: 0 | I91: 0 | J91: 0 | K91: 0 | L91: 0 | M91: 0 | N91: 0 | O91: 0 | P91: 0
C92: =Asset36 -> Emergency Network Spares | G92: =G46*G$7 -> 0 | H92: 0 | I92: 0 | J92: 0 | K92: 0 | L92: 0 | M92: 0 | N92: 0 | O92: 0 | P92: 0
C93: =Asset37 -> Motor Vehicles | G93: =G47*G$7 -> 1.773366764 | H93: 1.820953426 | I93: 0 | J93: 0 | K93: 0 | L93: 0 | M93: 0 | N93: 0 | O93: 0 | P93: 0
C94: =Asset38 -> Minor Assets | G94: =G48*G$7 -> 15.96154248 | H94: 15.49518298 | I94: 0 | J94: 0 | K94: 0 | L94: 0 | M94: 0 | N94: 0 | O94: 0 | P94: 0
C95: =Asset39 -> Non-System Property | G95: =G49*G$7 -> 1.365647781 | H95: 1.302753178 | I95: 0 | J95: 0 | K95: 0 | L95: 0 | M95: 0 | N95: 0 | O95: 0 | P95: 0
C96: =Asset40 -> Spare Parts | G96: =G50*G$7 -> 0 | H96: 0 | I96: 0 | J96: 0 | K96: 0 | L96: 0 | M96: 0 | N96: 0 | O96: 0 | P96: 0
C97: =Asset41 -> NEM Assets | G97: =G51*G$7 -> 0 | H97: 0 | I97: 0 | J97: 0 | K97: 0 | L97: 0 | M97: 0 | N97: 0 | O97: 0 | P97: 0
C98: =Asset42 -> Business Management Systems | G98: =G52*G$7 -> 11.81609033 | H98: 0 | I98: 0 | J98: 0 | K98: 0 | L98: 0 | M98: 0 | N98: 0 | O98: 0 | P98: 0
C99: =Asset43 -> Land | G99: =G53*G$7 -> 0 | H99: 0.9338814368 | I99: 0 | J99: 0 | K99: 0 | L99: 0 | M99: 0 | N99: 0 | O99: 0 | P99: 0
C100: =Asset44 -> Easements | G100: =G54*G$7 -> 0 | H100: 0 | I100: 0 | J100: 0 | K100: 0 | L100: 0 | M100: 0 | N100: 0 | O100: 0 | P100: 0
C101: =Asset45 -> Equity raising costs | G101: =G55*G$7 -> 0.2128791197 | H101: 0 | I101: 0 | J101: 0 | K101: 0 | L101: 0 | M101: 0 | N101: 0 | O101: 0 | P101: 0
B103: ="Asset Values ($m Real "&F4&")" -> Asset Values ($m Real 2016-17)
F104: Checking | G104: ok | H104: ok | I104: ok | J104: ok | K104: ok | L104: ok | M104: ok | N104: ok | O104: ok | P104: ok | Q104: ok | R104: ok | S104: ok | T104: ok | U104: ok | V104: ok | W104: ok | X104: ok | Y104: ok | Z104: ok | AA104: ok | AB104: ok | AC104: ok | AD104: ok | AE104: ok | AF104: ok | AG104: ok | AH104: ok | AI104: ok | AJ104: ok | AK104: ok | AL104: ok | AM104: ok | AN104: ok | AO104: ok | AP104: ok | AQ104: ok | AR104: ok | AS104: ok | AT104: ok | AU104: ok | AV104: ok | AW104: ok | AX104: ok | AY104: ok | AZ104: ok | BA104: ok | BB104: ok | BC104: ok | BD104: ok | BE104: ok | BF104: ok | BG104: ok | BH104: ok | BI104: ok | BJ104: ok | BK104: ok | BL104: ok | BM104: ok | BN104: ok | BO104: ok
B105: Real Straight-line Depreciation | G105: =G118+G131+G144+G157+G170+G183+G196+G209+G222+G235+G248+G261+G274+G287+G300+G313+G326+G339+G352+G365+G378+G391+G404+G417+G430+G443+G456+G469+G482+G495+G508+G521+G534+G547+G560+G573+G586+G599+G612+G625+G638+G651+G664+G677+G690 -> 75.88235159 | H105: =H118+H131+H144+H157+H170+H183+H196+H209+H222+H235+H248+H261+H274+H287+H300+H313+H326+H339+H352+H365+H378+H391+H404+H417+H430+H443+H456+H469+H482+H495+H508+H521+H534+H547+H560+H573+H586+H599+H612+H625+H638+H651+H664+H677+H690 -> 94.43695678 | I105: 94.28491232 | J105: 91.40861457 | K105: 89.67525638 | L105: 86.22110369 | M105: 82.56220081 | N105: 79.04386639 | O105: 77.79635149 | P105: 76.02640321 | Q105: 74.1372956 | R105: 72.51109771 | S105: 67.22608243 | T105: 63.83729428 | U105: 63.83729428 | V105: 59.05378158 | W105: 46.20671042 | X105: 42.93740586 | Y105: 35.77670604 | Z105: 29.98235803 | AA105: 28.12562165 | AB105: 26.03952515 | AC105: 25.84621222 | AD105: 25.75195472 | AE105: 25.32940975 | AF105: 24.9742138 | AG105: 23.7144943 | AH105: 23.31681202 | AI105: 23.1438482 | AJ105: 23.13019268 | AK105: 23.82811566 | AL105: 22.50581246 | AM105: 20.6974535 | AN105: 16.73165736 | AO105: 15.30600996 | AP105: 13.88232435 | AQ105: 11.72256463 | AR105: 4.510231997 | AS105: 4.133987682 | AT105: 3.616203477 | AU105: 3.117353974 | AV105: 2.499054821 | AW105: 0.9396916264 | AX105: 0.9346798728 | AY105: 0.9346798728 | AZ105: 0.9549359689 | BA105: 0.9234850376 | BB105: 0.9066939154 | BC105: 0.8997792974 | BD105: 0.8926451711 | BE105: 0.8878612239 | BF105: 0.8843575575 | BG105: 0.880760071 | BH105: 0.880760071 | BI105: 0.880760071
B106: =C118 -> Overhead Subtransmission Lines (Urban) | D106: Initial Asset Base | G106: 0.4572538022 | H106: 0.4572538022 | I106: 0.4572538022 | J106: 0.4572538022 | K106: 0.4572538022 | L106: 0.4572538022 | M106: 0.4572538022 | N106: 0.4572538022 | O106: 0.4572538022 | P106: 0.4572538022 | Q106: 0.4572538022 | R106: 0.4572538022 | S106: 0.4572538022 | T106: 0.4572538022 | U106: 0.4572538022 | V106: 0.4572538022 | W106: 0.4572538022 | X106: 0.4572538022 | Y106: 0.4572538022 | Z106: 0.4572538022 | AA106: 0.4572538022 | AB106: 0.4572538022 | AC106: 0.4572538022 | AD106: 0.4572538022 | AE106: 0.1051116691 | AF106: 0.04681864894 | AG106: 0.04681864894 | AH106: 0.04681864894 | AI106: 0.04681864894 | AJ106: 0.04681864894 | AK106: 0.04681864894 | AL106: 0.04681864894 | AM106: 0.04681864894 | AN106: 0.04681864894 | AO106: 0.04681864894 | AP106: 0.04681864894 | AQ106: 0.04681864894 | AR106: 0.04681864894 | AS106: 0.04681864894 | AT106: 0.04681864894 | AU106: 0.04681864894 | AV106: 0.04681864894 | AW106: 0.04681864894 | AX106: 0.04681864894 | AY106: 0.04681864894 | AZ106: 0.06707474506 | BA106: 0.03562381376 | BB106: 0.01883269156 | BC106: 0.01191807356 | BD106: 0.004783947188 | BE106: 0 | BF106: 0 | BG106: 0 | BH106: 0 | BI106: 0 | BJ106: 0 | BK106: 0 | BL106: 0 | BM106: 0 | BN106: 0 | BO106: 0
D107: Capex in year | E107: 0
E108: 1 | H108: =IF(A1stdlife="n/a","n/a",IF(H$3>(A1stdlife+$E108),('PTRM input'!$G$203*(1+rvanilla01)^0.5)-SUM($G108:G108),('PTRM input'!$G$203*(1+rvanilla01)^0.5)/A1stdlife)) -> 0.003503666408 | I108: =IF(A1stdlife="n/a","n/a",IF(I$3>(A1stdlife+$E108),('PTRM input'!$G$203*(1+rvanilla01)^0.5)-SUM($G108:H108),('PTRM input'!$G$203*(1+rvanilla01)^0.5)/A1stdlife)) -> 0.003503666408 | J108: =IF(A1stdlife="n/a","n/a",IF(J$3>(A1stdlife+$E108),('PTRM input'!$G$203*(1+rvanilla01)^0.5)-SUM($G108:I108),('PTRM input'!$G$203*(1+rvanilla01)^0.5)/A1stdlife)) -> 0.003503666408 | K108: =IF(A1stdlife="n/a","n/a",IF(K$3>(A1stdlife+$E108),('PTRM input'!$G$203*(1+rvanilla01)^0.5)-SUM($G108:J108),('PTRM input'!$G$203*(1+rvanilla01)^0.5)/A1stdlife)) -> 0.003503666408 | L108: =IF(A1stdlife="n/a","n/a",IF(L$3>(A1stdlife+$E108),('PTRM input'!$G$203*(1+rvanilla01)^0.5)-SUM($G108:K108),('PTRM input'!$G$203*(1+rvanilla01)^0.5)/A1stdlife)) -> 0.003503666408 | M108: =IF(A1stdlife="n/a","n/a",IF(M$3>(A1stdlife+$E108),('PTRM input'!$G$203*(1+rvanilla01)^0.5)-SUM($G108:L108),('PTRM input'!$G$203*(1+rvanilla01)^0.5)/A1stdlife)) -> 0.003503666408 | N108: =IF(A1stdlife="n/a","n/a",IF(N$3>(A1stdlife+$E108),('PTRM input'!$G$203*(1+rvanilla01)^0.5)-SUM($G108:M108),('PTRM input'!$G$203*(1+rvanilla01)^0.5)/A1stdlife)) -> 0.003503666408 | O108: =IF(A1stdlife="n/a","n/a",IF(O$3>(A1stdlife+$E108),('PTRM input'!$G$203*(1+rvanilla01)^0.5)-SUM($G108:N108),('PTRM input'!$G$203*(1+rvanilla01)^0.5)/A1stdlife)) -> 0.003503666408 | P108: =IF(A1stdlife="n/a","n/a",IF(P$3>(A1stdlife+$E108),('PTRM input'!$G$203*(1+rvanilla01)^0.5)-SUM($G108:O108),('PTRM input'!$G$203*(1+rvanilla01)^0.5)/A1stdlife)) -> 0.003503666408 | Q108: =IF(A1stdlife="n/a","n/a",IF(Q$3>(A1stdlife+$E108),('PTRM input'!$G$203*(1+rvanilla01)^0.5)-SUM($G108:P108),('PTRM input'!$G$203*(1+rvanilla01)^0.5)/A1stdlife)) -> 0.003503666408 | R108: =IF(A1stdlife="n/a","n/a",IF(R$3>(A1stdlife+$E108),('PTRM input'!$G$203*(1+rvanilla01)^0.5)-SUM($G108:Q108),('PTRM input'!$G$203*(1+rvanilla01)^0.5)/A1stdlife)) -> 0.003503666408 | S108: =IF(A1stdlife="n/a","n/a",IF(S$3>(A1stdlife+$E108),('PTRM input'!$G$203*(1+rvanilla01)^0.5)-SUM($G108:R108),('PTRM input'!$G$203*(1+rvanilla01)^0.5)/A1stdlife)) -> 0.003503666408 | T108: =IF(A1stdlife="n/a","n/a",IF(T$3>(A1stdlife+$E108),('PTRM input'!$G$203*(1+rvanilla01)^0.5)-SUM($G108:S108),('PTRM input'!$G$203*(1+rvanilla01)^0.5)/A1stdlife)) -> 0.003503666408 | U108: =IF(A1stdlife="n/a","n/a",IF(U$3>(A1stdlife+$E108),('PTRM input'!$G$203*(1+rvanilla01)^0.5)-SUM($G108:T108),('PTRM input'!$G$203*(1+rvanilla01)^0.5)/A1stdlife)) -> 0.003503666408 | V108: =IF(A1stdlife="n/a","n/a",IF(V$3>(A1stdlife+$E108),('PTRM input'!$G$203*(1+rvanilla01)^0.5)-SUM($G108:U108),('PTRM input'!$G$203*(1+rvanilla01)^0.5)/A1stdlife)) -> 0.003503666408 | W108: =IF(A1stdlife="n/a","n/a",IF(W$3>(A1stdlife+$E108),('PTRM input'!$G$203*(1+rvanilla01)^0.5)-SUM($G108:V108),('PTRM input'!$G$203*(1+rvanilla01)^0.5)/A1stdlife)) -> 0.003503666408 | X108: =IF(A1stdlife="n/a","n/a",IF(X$3>(A1stdlife+$E108),('PTRM input'!$G$203*(1+rvanilla01)^0.5)-SUM($G108:W108),('PTRM input'!$G$203*(1+rvanilla01)^0.5)/A1stdlife)) -> 0.003503666408 | Y108: =IF(A1stdlife="n/a","n/a",IF(Y$3>(A1stdlife+$E108),('PTRM input'!$G$203*(1+rvanilla01)^0.5)-SUM($G108:X108),('PTRM input'!$G$203*(1+rvanilla01)^0.5)/A1stdlife)) -> 0.003503666408 | Z108: =IF(A1stdlife="n/a","n/a",IF(Z$3>(A1stdlife+$E108),('PTRM input'!$G$203*(1+rvanilla01)^0.5)-SUM($G108:Y108),('PTRM input'!$G$203*(1+rvanilla01)^0.5)/A1stdlife)) -> 0.003503666408 | AA108: =IF(A1stdlife="n/a","n/a",IF(AA$3>(A1stdlife+$E108),('PTRM input'!$G$203*(1+rvanilla01)^0.5)-SUM($G108:Z108),('PTRM input'!$G$203*(1+rvanilla01)^0.5)/A1stdlife)) -> 0.003503666408 | AB108: =IF(A1stdlife="n/a","n/a",IF(AB$3>(A1stdlife+$E108),('PTRM input'!$G$203*(1+rvanilla01)^0.5)-SUM($G108:AA108),('PTRM input'!$G$203*(1+rvanilla01)^0.5)/A1stdlife)) -> 0.003503666408 | AC108: =IF(A1stdlife="n/a","n/a",IF(AC$3>(A1stdlife+$E108),('PTRM input'!$G$203*(1+rvanilla01)^0.5)-SUM($G108:AB108),('PTRM input'!$G$203*(1+rvanilla01)^0.5)/A1stdlife)) -> 0.003503666408 | AD108: =IF(A1stdlife="n/a","n/a",IF(AD$3>(A1stdlife+$E108),('PTRM input'!$G$203*(1+rvanilla01)^0.5)-SUM($G108:AC108),('PTRM input'!$G$203*(1+rvanilla01)^0.5)/A1stdlife)) -> 0.003503666408 | AE108: =IF(A1stdlife="n/a","n/a",IF(AE$3>(A1stdlife+$E108),('PTRM input'!$G$203*(1+rvanilla01)^0.5)-SUM($G108:AD108),('PTRM input'!$G$203*(1+rvanilla01)^0.5)/A1stdlife)) -> 0.003503666408 | AF108: =IF(A1stdlife="n/a","n/a",IF(AF$3>(A1stdlife+$E108),('PTRM input'!$G$203*(1+rvanilla01)^0.5)-SUM($G108:AE108),('PTRM input'!$G$203*(1+rvanilla01)^0.5)/A1stdlife)) -> 0.003503666408 | AG108: =IF(A1stdlife="n/a","n/a",IF(AG$3>(A1stdlife+$E108),('PTRM input'!$G$203*(1+rvanilla01)^0.5)-SUM($G108:AF108),('PTRM input'!$G$203*(1+rvanilla01)^0.5)/A1stdlife)) -> 0.003503666408 | AH108: =IF(A1stdlife="n/a","n/a",IF(AH$3>(A1stdlife+$E108),('PTRM input'!$G$203*(1+rvanilla01)^0.5)-SUM($G108:AG108),('PTRM input'!$G$203*(1+rvanilla01)^0.5)/A1stdlife)) -> 0.003503666408 | AI108: =IF(A1stdlife="n/a","n/a",IF(AI$3>(A1stdlife+$E108),('PTRM input'!$G$203*(1+rvanilla01)^0.5)-SUM($G108:AH108),('PTRM input'!$G$203*(1+rvanilla01)^0.5)/A1stdlife)) -> 0.003503666408 | AJ108: =IF(A1stdlife="n/a","n/a",IF(AJ$3>(A1stdlife+$E108),('PTRM input'!$G$203*(1+rvanilla01)^0.5)-SUM($G108:AI108),('PTRM input'!$G$203*(1+rvanilla01)^0.5)/A1stdlife)) -> 0.003503666408 | AK108: =IF(A1stdlife="n/a","n/a",IF(AK$3>(A1stdlife+$E108),('PTRM input'!$G$203*(1+rvanilla01)^0.5)-SUM($G108:AJ108),('PTRM input'!$G$203*(1+rvanilla01)^0.5)/A1stdlife)) -> 0.003503666408 | AL108: =IF(A1stdlife="n/a","n/a",IF(AL$3>(A1stdlife+$E108),('PTRM input'!$G$203*(1+rvanilla01)^0.5)-SUM($G108:AK108),('PTRM input'!$G$203*(1+rvanilla01)^0.5)/A1stdlife)) -> 0.003503666408 | AM108: =IF(A1stdlife="n/a","n/a",IF(AM$3>(A1stdlife+$E108),('PTRM input'!$G$203*(1+rvanilla01)^0.5)-SUM($G108:AL108),('PTRM input'!$G$203*(1+rvanilla01)^0.5)/A1stdlife)) -> 0.003503666408 | AN108: =IF(A1stdlife="n/a","n/a",IF(AN$3>(A1stdlife+$E108),('PTRM input'!$G$203*(1+rvanilla01)^0.5)-SUM($G108:AM108),('PTRM input'!$G$203*(1+rvanilla01)^0.5)/A1stdlife)) -> 0.003503666408 | AO108: =IF(A1stdlife="n/a","n/a",IF(AO$3>(A1stdlife+$E108),('PTRM input'!$G$203*(1+rvanilla01)^0.5)-SUM($G108:AN108),('PTRM input'!$G$203*(1+rvanilla01)^0.5)/A1stdlife)) -> 0.003503666408 | AP108: =IF(A1stdlife="n/a","n/a",IF(AP$3>(A1stdlife+$E108),('PTRM input'!$G$203*(1+rvanilla01)^0.5)-SUM($G108:AO108),('PTRM input'!$G$203*(1+rvanilla01)^0.5)/A1stdlife)) -> 0.003503666408 | AQ108: =IF(A1stdlife="n/a","n/a",IF(AQ$3>(A1stdlife+$E108),('PTRM input'!$G$203*(1+rvanilla01)^0.5)-SUM($G108:AP108),('PTRM input'!$G$203*(1+rvanilla01)^0.5)/A1stdlife)) -> 0.003503666408 | AR108: =IF(A1stdlife="n/a","n/a",IF(AR$3>(A1stdlife+$E108),('PTRM input'!$G$203*(1+rvanilla01)^0.5)-SUM($G108:AQ108),('PTRM input'!$G$203*(1+rvanilla01)^0.5)/A1stdlife)) -> 0.003503666408 | AS108: =IF(A1stdlife="n/a","n/a",IF(AS$3>(A1stdlife+$E108),('PTRM input'!$G$203*(1+rvanilla01)^0.5)-SUM($G108:AR108),('PTRM input'!$G$203*(1+rvanilla01)^0.5)/A1stdlife)) -> 0.003503666408 | AT108: =IF(A1stdlife="n/a","n/a",IF(AT$3>(A1stdlife+$E108),('PTRM input'!$G$203*(1+rvanilla01)^0.5)-SUM($G108:AS108),('PTRM input'!$G$203*(1+rvanilla01)^0.5)/A1stdlife)) -> 0.003503666408 | AU108: =IF(A1stdlife="n/a","n/a",IF(AU$3>(A1stdlife+$E108),('PTRM input'!$G$203*(1+rvanilla01)^0.5)-SUM($G108:AT108),('PTRM input'!$G$203*(1+rvanilla01)^0.5)/A1stdlife)) -> 0.003503666408 | AV108: =IF(A1stdlife="n/a","n/a",IF(AV$3>(A1stdlife+$E108),('PTRM input'!$G$203*(1+rvanilla01)^0.5)-SUM($G108:AU108),('PTRM input'!$G$203*(1+rvanilla01)^0.5)/A1stdlife)) -> 0.003503666408 | AW108: =IF(A1stdlife="n/a","n/a",IF(AW$3>(A1stdlife+$E108),('PTRM input'!$G$203*(1+rvanilla01)^0.5)-SUM($G108:AV108),('PTRM input'!$G$203*(1+rvanilla01)^0.5)/A1stdlife)) -> 0.003503666408 | AX108: =IF(A1stdlife="n/a","n/a",IF(AX$3>(A1stdlife+$E108),('PTRM input'!$G$203*(1+rvanilla01)^0.5)-SUM($G108:AW108),('PTRM input'!$G$203*(1+rvanilla01)^0.5)/A1stdlife)) -> 0.003503666408 | AY108: =IF(A1stdlife="n/a","n/a",IF(AY$3>(A1stdlife+$E108),('PTRM input'!$G$203*(1+rvanilla01)^0.5)-SUM($G108:AX108),('PTRM input'!$G$203*(1+rvanilla01)^0.5)/A1stdlife)) -> 0.003503666408 | AZ108: =IF(A1stdlife="n/a","n/a",IF(AZ$3>(A1stdlife+$E108),('PTRM input'!$G$203*(1+rvanilla01)^0.5)-SUM($G108:AY108),('PTRM input'!$G$203*(1+rvanilla01)^0.5)/A1stdlife)) -> 0.003503666408 | BA108: =IF(A1stdlife="n/a","n/a",IF(BA$3>(A1stdlife+$E108),('PTRM input'!$G$203*(1+rvanilla01)^0.5)-SUM($G108:AZ108),('PTRM input'!$G$203*(1+rvanilla01)^0.5)/A1stdlife)) -> 0.003503666408 | BB108: =IF(A1stdlife="n/a","n/a",IF(BB$3>(A1stdlife+$E108),('PTRM input'!$G$203*(1+rvanilla01)^0.5)-SUM($G108:BA108),('PTRM input'!$G$203*(1+rvanilla01)^0.5)/A1stdlife)) -> 0.003503666408 | BC108: =IF(A1stdlife="n/a","n/a",IF(BC$3>(A1stdlife+$E108),('PTRM input'!$G$203*(1+rvanilla01)^0.5)-SUM($G108:BB108),('PTRM input'!$G$203*(1+rvanilla01)^0.5)/A1stdlife)) -> 0.003503666408 | BD108: =IF(A1stdlife="n/a","n/a",IF(BD$3>(A1stdlife+$E108),('PTRM input'!$G$203*(1+rvanilla01)^0.5)-SUM($G108:BC108),('PTRM input'!$G$203*(1+rvanilla01)^0.5)/A1stdlife)) -> 0.003503666408 | BE108: =IF(A1stdlife="n/a","n/a",IF(BE$3>(A1stdlife+$E108),('PTRM input'!$G$203*(1+rvanilla01)^0.5)-SUM($G108:BD108),('PTRM input'!$G$203*(1+rvanilla01)^0.5)/A1stdlife)) -> 0.003503666408 | BF108: =IF(A1stdlife="n/a","n/a",IF(BF$3>(A1stdlife+$E108),('PTRM input'!$G$203*(1+rvanilla01)^0.5)-SUM($G108:BE108),('PTRM input'!$G$203*(1+rvanilla01)^0.5)/A1stdlife)) -> -2.775557562e-17 | BG108: =IF(A1stdlife="n/a","n/a",IF(BG$3>(A1stdlife+$E108),('PTRM input'!$G$203*(1+rvanilla01)^0.5)-SUM($G108:BF108),('PTRM input'!$G$203*(1+rvanilla01)^0.5)/A1stdlife)) -> 0 | BH108: =IF(A1stdlife="n/a","n/a",IF(BH$3>(A1stdlife+$E108),('PTRM input'!$G$203*(1+rvanilla01)^0.5)-SUM($G108:BG108),('PTRM input'!$G$203*(1+rvanilla01)^0.5)/A1stdlife)) -> 0 | BI108: =IF(A1stdlife="n/a","n/a",IF(BI$3>(A1stdlife+$E108),('PTRM input'!$G$203*(1+rvanilla01)^0.5)-SUM($G108:BH108),('PTRM input'!$G$203*(1+rvanilla01)^0.5)/A1stdlife)) -> 0
E109: 2 | I109: =IF(A1stdlife="n/a","n/a",IF(I$3>(A1stdlife+$E109),('PTRM input'!$H$203*(1+rvanilla02)^0.5)-SUM($H109:H109),('PTRM input'!$H$203*(1+rvanilla02)^0.5)/A1stdlife)) -> 0.003597486439 | J109: =IF(A1stdlife="n/a","n/a",IF(J$3>(A1stdlife+$E109),('PTRM input'!$H$203*(1+rvanilla02)^0.5)-SUM($H109:I109),('PTRM input'!$H$203*(1+rvanilla02)^0.5)/A1stdlife)) -> 0.003597486439 | K109: =IF(A1stdlife="n/a","n/a",IF(K$3>(A1stdlife+$E109),('PTRM input'!$H$203*(1+rvanilla02)^0.5)-SUM($H109:J109),('PTRM input'!$H$203*(1+rvanilla02)^0.5)/A1stdlife)) -> 0.003597486439 | L109: =IF(A1stdlife="n/a","n/a",IF(L$3>(A1stdlife+$E109),('PTRM input'!$H$203*(1+rvanilla02)^0.5)-SUM($H109:K109),('PTRM input'!$H$203*(1+rvanilla02)^0.5)/A1stdlife)) -> 0.003597486439 | M109: =IF(A1stdlife="n/a","n/a",IF(M$3>(A1stdlife+$E109),('PTRM input'!$H$203*(1+rvanilla02)^0.5)-SUM($H109:L109),('PTRM input'!$H$203*(1+rvanilla02)^0.5)/A1stdlife)) -> 0.003597486439 | N109: =IF(A1stdlife="n/a","n/a",IF(N$3>(A1stdlife+$E109),('PTRM input'!$H$203*(1+rvanilla02)^0.5)-SUM($H109:M109),('PTRM input'!$H$203*(1+rvanilla02)^0.5)/A1stdlife)) -> 0.003597486439 | O109: =IF(A1stdlife="n/a","n/a",IF(O$3>(A1stdlife+$E109),('PTRM input'!$H$203*(1+rvanilla02)^0.5)-SUM($H109:N109),('PTRM input'!$H$203*(1+rvanilla02)^0.5)/A1stdlife)) -> 0.003597486439 | P109: =IF(A1stdlife="n/a","n/a",IF(P$3>(A1stdlife+$E109),('PTRM input'!$H$203*(1+rvanilla02)^0.5)-SUM($H109:O109),('PTRM input'!$H$203*(1+rvanilla02)^0.5)/A1stdlife)) -> 0.003597486439 | Q109: =IF(A1stdlife="n/a","n/a",IF(Q$3>(A1stdlife+$E109),('PTRM input'!$H$203*(1+rvanilla02)^0.5)-SUM($H109:P109),('PTRM input'!$H$203*(1+rvanilla02)^0.5)/A1stdlife)) -> 0.003597486439 | R109: =IF(A1stdlife="n/a","n/a",IF(R$3>(A1stdlife+$E109),('PTRM input'!$H$203*(1+rvanilla02)^0.5)-SUM($H109:Q109),('PTRM input'!$H$203*(1+rvanilla02)^0.5)/A1stdlife)) -> 0.003597486439 | S109: =IF(A1stdlife="n/a","n/a",IF(S$3>(A1stdlife+$E109),('PTRM input'!$H$203*(1+rvanilla02)^0.5)-SUM($H109:R109),('PTRM input'!$H$203*(1+rvanilla02)^0.5)/A1stdlife)) -> 0.003597486439 | T109: =IF(A1stdlife="n/a","n/a",IF(T$3>(A1stdlife+$E109),('PTRM input'!$H$203*(1+rvanilla02)^0.5)-SUM($H109:S109),('PTRM input'!$H$203*(1+rvanilla02)^0.5)/A1stdlife)) -> 0.003597486439 | U109: =IF(A1stdlife="n/a","n/a",IF(U$3>(A1stdlife+$E109),('PTRM input'!$H$203*(1+rvanilla02)^0.5)-SUM($H109:T109),('PTRM input'!$H$203*(1+rvanilla02)^0.5)/A1stdlife)) -> 0.003597486439 | V109: =IF(A1stdlife="n/a","n/a",IF(V$3>(A1stdlife+$E109),('PTRM input'!$H$203*(1+rvanilla02)^0.5)-SUM($H109:U109),('PTRM input'!$H$203*(1+rvanilla02)^0.5)/A1stdlife)) -> 0.003597486439 | W109: =IF(A1stdlife="n/a","n/a",IF(W$3>(A1stdlife+$E109),('PTRM input'!$H$203*(1+rvanilla02)^0.5)-SUM($H109:V109),('PTRM input'!$H$203*(1+rvanilla02)^0.5)/A1stdlife)) -> 0.003597486439 | X109: =IF(A1stdlife="n/a","n/a",IF(X$3>(A1stdlife+$E109),('PTRM input'!$H$203*(1+rvanilla02)^0.5)-SUM($H109:W109),('PTRM input'!$H$203*(1+rvanilla02)^0.5)/A1stdlife)) -> 0.003597486439 | Y109: =IF(A1stdlife="n/a","n/a",IF(Y$3>(A1stdlife+$E109),('PTRM input'!$H$203*(1+rvanilla02)^0.5)-SUM($H109:X109),('PTRM input'!$H$203*(1+rvanilla02)^0.5)/A1stdlife)) -> 0.003597486439 | Z109: =IF(A1stdlife="n/a","n/a",IF(Z$3>(A1stdlife+$E109),('PTRM input'!$H$203*(1+rvanilla02)^0.5)-SUM($H109:Y109),('PTRM input'!$H$203*(1+rvanilla02)^0.5)/A1stdlife)) -> 0.003597486439 | AA109: =IF(A1stdlife="n/a","n/a",IF(AA$3>(A1stdlife+$E109),('PTRM input'!$H$203*(1+rvanilla02)^0.5)-SUM($H109:Z109),('PTRM input'!$H$203*(1+rvanilla02)^0.5)/A1stdlife)) -> 0.003597486439 | AB109: =IF(A1stdlife="n/a","n/a",IF(AB$3>(A1stdlife+$E109),('PTRM input'!$H$203*(1+rvanilla02)^0.5)-SUM($H109:AA109),('PTRM input'!$H$203*(1+rvanilla02)^0.5)/A1stdlife)) -> 0.003597486439 | AC109: =IF(A1stdlife="n/a","n/a",IF(AC$3>(A1stdlife+$E109),('PTRM input'!$H$203*(1+rvanilla02)^0.5)-SUM($H109:AB109),('PTRM input'!$H$203*(1+rvanilla02)^0.5)/A1stdlife)) -> 0.003597486439 | AD109: =IF(A1stdlife="n/a","n/a",IF(AD$3>(A1stdlife+$E109),('PTRM input'!$H$203*(1+rvanilla02)^0.5)-SUM($H109:AC109),('PTRM input'!$H$203*(1+rvanilla02)^0.5)/A1stdlife)) -> 0.003597486439 | AE109: =IF(A1stdlife="n/a","n/a",IF(AE$3>(A1stdlife+$E109),('PTRM input'!$H$203*(1+rvanilla02)^0.5)-SUM($H109:AD109),('PTRM input'!$H$203*(1+rvanilla02)^0.5)/A1stdlife)) -> 0.003597486439 | AF109: =IF(A1stdlife="n/a","n/a",IF(AF$3>(A1stdlife+$E109),('PTRM input'!$H$203*(1+rvanilla02)^0.5)-SUM($H109:AE109),('PTRM input'!$H$203*(1+rvanilla02)^0.5)/A1stdlife)) -> 0.003597486439 | AG109: =IF(A1stdlife="n/a","n/a",IF(AG$3>(A1stdlife+$E109),('PTRM input'!$H$203*(1+rvanilla02)^0.5)-SUM($H109:AF109),('PTRM input'!$H$203*(1+rvanilla02)^0.5)/A1stdlife)) -> 0.003597486439 | AH109: =IF(A1stdlife="n/a","n/a",IF(AH$3>(A1stdlife+$E109),('PTRM input'!$H$203*(1+rvanilla02)^0.5)-SUM($H109:AG109),('PTRM input'!$H$203*(1+rvanilla02)^0.5)/A1stdlife)) -> 0.003597486439 | AI109: =IF(A1stdlife="n/a","n/a",IF(AI$3>(A1stdlife+$E109),('PTRM input'!$H$203*(1+rvanilla02)^0.5)-SUM($H109:AH109),('PTRM input'!$H$203*(1+rvanilla02)^0.5)/A1stdlife)) -> 0.003597486439 | AJ109: =IF(A1stdlife="n/a","n/a",IF(AJ$3>(A1stdlife+$E109),('PTRM input'!$H$203*(1+rvanilla02)^0.5)-SUM($H109:AI109),('PTRM input'!$H$203*(1+rvanilla02)^0.5)/A1stdlife)) -> 0.003597486439 | AK109: =IF(A1stdlife="n/a","n/a",IF(AK$3>(A1stdlife+$E109),('PTRM input'!$H$203*(1+rvanilla02)^0.5)-SUM($H109:AJ109),('PTRM input'!$H$203*(1+rvanilla02)^0.5)/A1stdlife)) -> 0.003597486439 | AL109: =IF(A1stdlife="n/a","n/a",IF(AL$3>(A1stdlife+$E109),('PTRM input'!$H$203*(1+rvanilla02)^0.5)-SUM($H109:AK109),('PTRM input'!$H$203*(1+rvanilla02)^0.5)/A1stdlife)) -> 0.003597486439 | AM109: =IF(A1stdlife="n/a","n/a",IF(AM$3>(A1stdlife+$E109),('PTRM input'!$H$203*(1+rvanilla02)^0.5)-SUM($H109:AL109),('PTRM input'!$H$203*(1+rvanilla02)^0.5)/A1stdlife)) -> 0.003597486439 | AN109: =IF(A1stdlife="n/a","n/a",IF(AN$3>(A1stdlife+$E109),('PTRM input'!$H$203*(1+rvanilla02)^0.5)-SUM($H109:AM109),('PTRM input'!$H$203*(1+rvanilla02)^0.5)/A1stdlife)) -> 0.003597486439 | AO109: =IF(A1stdlife="n/a","n/a",IF(AO$3>(A1stdlife+$E109),('PTRM input'!$H$203*(1+rvanilla02)^0.5)-SUM($H109:AN109),('PTRM input'!$H$203*(1+rvanilla02)^0.5)/A1stdlife)) -> 0.003597486439 | AP109: =IF(A1stdlife="n/a","n/a",IF(AP$3>(A1stdlife+$E109),('PTRM input'!$H$203*(1+rvanilla02)^0.5)-SUM($H109:AO109),('PTRM input'!$H$203*(1+rvanilla02)^0.5)/A1stdlife)) -> 0.003597486439 | AQ109: =IF(A1stdlife="n/a","n/a",IF(AQ$3>(A1stdlife+$E109),('PTRM input'!$H$203*(1+rvanilla02)^0.5)-SUM($H109:AP109),('PTRM input'!$H$203*(1+rvanilla02)^0.5)/A1stdlife)) -> 0.003597486439 | AR109: =IF(A1stdlife="n/a","n/a",IF(AR$3>(A1stdlife+$E109),('PTRM input'!$H$203*(1+rvanilla02)^0.5)-SUM($H109:AQ109),('PTRM input'!$H$203*(1+rvanilla02)^0.5)/A1stdlife)) -> 0.003597486439 | AS109: =IF(A1stdlife="n/a","n/a",IF(AS$3>(A1stdlife+$E109),('PTRM input'!$H$203*(1+rvanilla02)^0.5)-SUM($H109:AR109),('PTRM input'!$H$203*(1+rvanilla02)^0.5)/A1stdlife)) -> 0.003597486439 | AT109: =IF(A1stdlife="n/a","n/a",IF(AT$3>(A1stdlife+$E109),('PTRM input'!$H$203*(1+rvanilla02)^0.5)-SUM($H109:AS109),('PTRM input'!$H$203*(1+rvanilla02)^0.5)/A1stdlife)) -> 0.003597486439 | AU109: =IF(A1stdlife="n/a","n/a",IF(AU$3>(A1stdlife+$E109),('PTRM input'!$H$203*(1+rvanilla02)^0.5)-SUM($H109:AT109),('PTRM input'!$H$203*(1+rvanilla02)^0.5)/A1stdlife)) -> 0.003597486439 | AV109: =IF(A1stdlife="n/a","n/a",IF(AV$3>(A1stdlife+$E109),('PTRM input'!$H$203*(1+rvanilla02)^0.5)-SUM($H109:AU109),('PTRM input'!$H$203*(1+rvanilla02)^0.5)/A1stdlife)) -> 0.003597486439 | AW109: =IF(A1stdlife="n/a","n/a",IF(AW$3>(A1stdlife+$E109),('PTRM input'!$H$203*(1+rvanilla02)^0.5)-SUM($H109:AV109),('PTRM input'!$H$203*(1+rvanilla02)^0.5)/A1stdlife)) -> 0.003597486439 | AX109: =IF(A1stdlife="n/a","n/a",IF(AX$3>(A1stdlife+$E109),('PTRM input'!$H$203*(1+rvanilla02)^0.5)-SUM($H109:AW109),('PTRM input'!$H$203*(1+rvanilla02)^0.5)/A1stdlife)) -> 0.003597486439 | AY109: =IF(A1stdlife="n/a","n/a",IF(AY$3>(A1stdlife+$E109),('PTRM input'!$H$203*(1+rvanilla02)^0.5)-SUM($H109:AX109),('PTRM input'!$H$203*(1+rvanilla02)^0.5)/A1stdlife)) -> 0.003597486439 | AZ109: =IF(A1stdlife="n/a","n/a",IF(AZ$3>(A1stdlife+$E109),('PTRM input'!$H$203*(1+rvanilla02)^0.5)-SUM($H109:AY109),('PTRM input'!$H$203*(1+rvanilla02)^0.5)/A1stdlife)) -> 0.003597486439 | BA109: =IF(A1stdlife="n/a","n/a",IF(BA$3>(A1stdlife+$E109),('PTRM input'!$H$203*(1+rvanilla02)^0.5)-SUM($H109:AZ109),('PTRM input'!$H$203*(1+rvanilla02)^0.5)/A1stdlife)) -> 0.003597486439 | BB109: =IF(A1stdlife="n/a","n/a",IF(BB$3>(A1stdlife+$E109),('PTRM input'!$H$203*(1+rvanilla02)^0.5)-SUM($H109:BA109),('PTRM input'!$H$203*(1+rvanilla02)^0.5)/A1stdlife)) -> 0.003597486439 | BC109: =IF(A1stdlife="n/a","n/a",IF(BC$3>(A1stdlife+$E109),('PTRM input'!$H$203*(1+rvanilla02)^0.5)-SUM($H109:BB109),('PTRM input'!$H$203*(1+rvanilla02)^0.5)/A1stdlife)) -> 0.003597486439 | BD109: =IF(A1stdlife="n/a","n/a",IF(BD$3>(A1stdlife+$E109),('PTRM input'!$H$203*(1+rvanilla02)^0.5)-SUM($H109:BC109),('PTRM input'!$H$203*(1+rvanilla02)^0.5)/A1stdlife)) -> 0.003597486439 | BE109: =IF(A1stdlife="n/a","n/a",IF(BE$3>(A1stdlife+$E109),('PTRM input'!$H$203*(1+rvanilla02)^0.5)-SUM($H109:BD109),('PTRM input'!$H$203*(1+rvanilla02)^0.5)/A1stdlife)) -> 0.003597486439 | BF109: =IF(A1stdlife="n/a","n/a",IF(BF$3>(A1stdlife+$E109),('PTRM input'!$H$203*(1+rvanilla02)^0.5)-SUM($H109:BE109),('PTRM input'!$H$203*(1+rvanilla02)^0.5)/A1stdlife)) -> 0.003597486439 | BG109: =IF(A1stdlife="n/a","n/a",IF(BG$3>(A1stdlife+$E109),('PTRM input'!$H$203*(1+rvanilla02)^0.5)-SUM($H109:BF109),('PTRM input'!$H$203*(1+rvanilla02)^0.5)/A1stdlife)) -> 8.326672685e-17 | BH109: =IF(A1stdlife="n/a","n/a",IF(BH$3>(A1stdlife+$E109),('PTRM input'!$H$203*(1+rvanilla02)^0.5)-SUM($H109:BG109),('PTRM input'!$H$203*(1+rvanilla02)^0.5)/A1stdlife)) -> 0 | BI109: =IF(A1stdlife="n/a","n/a",IF(BI$3>(A1stdlife+$E109),('PTRM input'!$H$203*(1+rvanilla02)^0.5)-SUM($H109:BH109),('PTRM input'!$H$203*(1+rvanilla02)^0.5)/A1stdlife)) -> 0
E110: 3 | J110: =IF(A1stdlife="n/a","n/a",IF(J$3>(A1stdlife+$E110),('PTRM input'!$I$203*(1+rvanilla03)^0.5)-SUM($I110:I110),('PTRM input'!$I$203*(1+rvanilla03)^0.5)/A1stdlife)) -> 0 | K110: =IF(A1stdlife="n/a","n/a",IF(K$3>(A1stdlife+$E110),('PTRM input'!$I$203*(1+rvanilla03)^0.5)-SUM($I110:J110),('PTRM input'!$I$203*(1+rvanilla03)^0.5)/A1stdlife)) -> 0 | L110: =IF(A1stdlife="n/a","n/a",IF(L$3>(A1stdlife+$E110),('PTRM input'!$I$203*(1+rvanilla03)^0.5)-SUM($I110:K110),('PTRM input'!$I$203*(1+rvanilla03)^0.5)/A1stdlife)) -> 0 | M110: =IF(A1stdlife="n/a","n/a",IF(M$3>(A1stdlife+$E110),('PTRM input'!$I$203*(1+rvanilla03)^0.5)-SUM($I110:L110),('PTRM input'!$I$203*(1+rvanilla03)^0.5)/A1stdlife)) -> 0 | N110: =IF(A1stdlife="n/a","n/a",IF(N$3>(A1stdlife+$E110),('PTRM input'!$I$203*(1+rvanilla03)^0.5)-SUM($I110:M110),('PTRM input'!$I$203*(1+rvanilla03)^0.5)/A1stdlife)) -> 0 | O110: =IF(A1stdlife="n/a","n/a",IF(O$3>(A1stdlife+$E110),('PTRM input'!$I$203*(1+rvanilla03)^0.5)-SUM($I110:N110),('PTRM input'!$I$203*(1+rvanilla03)^0.5)/A1stdlife)) -> 0 | P110: =IF(A1stdlife="n/a","n/a",IF(P$3>(A1stdlife+$E110),('PTRM input'!$I$203*(1+rvanilla03)^0.5)-SUM($I110:O110),('PTRM input'!$I$203*(1+rvanilla03)^0.5)/A1stdlife)) -> 0 | Q110: =IF(A1stdlife="n/a","n/a",IF(Q$3>(A1stdlife+$E110),('PTRM input'!$I$203*(1+rvanilla03)^0.5)-SUM($I110:P110),('PTRM input'!$I$203*(1+rvanilla03)^0.5)/A1stdlife)) -> 0 | R110: =IF(A1stdlife="n/a","n/a",IF(R$3>(A1stdlife+$E110),('PTRM input'!$I$203*(1+rvanilla03)^0.5)-SUM($I110:Q110),('PTRM input'!$I$203*(1+rvanilla03)^0.5)/A1stdlife)) -> 0 | S110: =IF(A1stdlife="n/a","n/a",IF(S$3>(A1stdlife+$E110),('PTRM input'!$I$203*(1+rvanilla03)^0.5)-SUM($I110:R110),('PTRM input'!$I$203*(1+rvanilla03)^0.5)/A1stdlife)) -> 0 | T110: =IF(A1stdlife="n/a","n/a",IF(T$3>(A1stdlife+$E110),('PTRM input'!$I$203*(1+rvanilla03)^0.5)-SUM($I110:S110),('PTRM input'!$I$203*(1+rvanilla03)^0.5)/A1stdlife)) -> 0 | U110: =IF(A1stdlife="n/a","n/a",IF(U$3>(A1stdlife+$E110),('PTRM input'!$I$203*(1+rvanilla03)^0.5)-SUM($I110:T110),('PTRM input'!$I$203*(1+rvanilla03)^0.5)/A1stdlife)) -> 0 | V110: =IF(A1stdlife="n/a","n/a",IF(V$3>(A1stdlife+$E110),('PTRM input'!$I$203*(1+rvanilla03)^0.5)-SUM($I110:U110),('PTRM input'!$I$203*(1+rvanilla03)^0.5)/A1stdlife)) -> 0 | W110: =IF(A1stdlife="n/a","n/a",IF(W$3>(A1stdlife+$E110),('PTRM input'!$I$203*(1+rvanilla03)^0.5)-SUM($I110:V110),('PTRM input'!$I$203*(1+rvanilla03)^0.5)/A1stdlife)) -> 0 | X110: =IF(A1stdlife="n/a","n/a",IF(X$3>(A1stdlife+$E110),('PTRM input'!$I$203*(1+rvanilla03)^0.5)-SUM($I110:W110),('PTRM input'!$I$203*(1+rvanilla03)^0.5)/A1stdlife)) -> 0 | Y110: =IF(A1stdlife="n/a","n/a",IF(Y$3>(A1stdlife+$E110),('PTRM input'!$I$203*(1+rvanilla03)^0.5)-SUM($I110:X110),('PTRM input'!$I$203*(1+rvanilla03)^0.5)/A1stdlife)) -> 0 | Z110: =IF(A1stdlife="n/a","n/a",IF(Z$3>(A1stdlife+$E110),('PTRM input'!$I$203*(1+rvanilla03)^0.5)-SUM($I110:Y110),('PTRM input'!$I$203*(1+rvanilla03)^0.5)/A1stdlife)) -> 0 | AA110: =IF(A1stdlife="n/a","n/a",IF(AA$3>(A1stdlife+$E110),('PTRM input'!$I$203*(1+rvanilla03)^0.5)-SUM($I110:Z110),('PTRM input'!$I$203*(1+rvanilla03)^0.5)/A1stdlife)) -> 0 | AB110: =IF(A1stdlife="n/a","n/a",IF(AB$3>(A1stdlife+$E110),('PTRM input'!$I$203*(1+rvanilla03)^0.5)-SUM($I110:AA110),('PTRM input'!$I$203*(1+rvanilla03)^0.5)/A1stdlife)) -> 0 | AC110: =IF(A1stdlife="n/a","n/a",IF(AC$3>(A1stdlife+$E110),('PTRM input'!$I$203*(1+rvanilla03)^0.5)-SUM($I110:AB110),('PTRM input'!$I$203*(1+rvanilla03)^0.5)/A1stdlife)) -> 0 | AD110: =IF(A1stdlife="n/a","n/a",IF(AD$3>(A1stdlife+$E110),('PTRM input'!$I$203*(1+rvanilla03)^0.5)-SUM($I110:AC110),('PTRM input'!$I$203*(1+rvanilla03)^0.5)/A1stdlife)) -> 0 | AE110: =IF(A1stdlife="n/a","n/a",IF(AE$3>(A1stdlife+$E110),('PTRM input'!$I$203*(1+rvanilla03)^0.5)-SUM($I110:AD110),('PTRM input'!$I$203*(1+rvanilla03)^0.5)/A1stdlife)) -> 0 | AF110: =IF(A1stdlife="n/a","n/a",IF(AF$3>(A1stdlife+$E110),('PTRM input'!$I$203*(1+rvanilla03)^0.5)-SUM($I110:AE110),('PTRM input'!$I$203*(1+rvanilla03)^0.5)/A1stdlife)) -> 0 | AG110: =IF(A1stdlife="n/a","n/a",IF(AG$3>(A1stdlife+$E110),('PTRM input'!$I$203*(1+rvanilla03)^0.5)-SUM($I110:AF110),('PTRM input'!$I$203*(1+rvanilla03)^0.5)/A1stdlife)) -> 0 | AH110: =IF(A1stdlife="n/a","n/a",IF(AH$3>(A1stdlife+$E110),('PTRM input'!$I$203*(1+rvanilla03)^0.5)-SUM($I110:AG110),('PTRM input'!$I$203*(1+rvanilla03)^0.5)/A1stdlife)) -> 0 | AI110: =IF(A1stdlife="n/a","n/a",IF(AI$3>(A1stdlife+$E110),('PTRM input'!$I$203*(1+rvanilla03)^0.5)-SUM($I110:AH110),('PTRM input'!$I$203*(1+rvanilla03)^0.5)/A1stdlife)) -> 0 | AJ110: =IF(A1stdlife="n/a","n/a",IF(AJ$3>(A1stdlife+$E110),('PTRM input'!$I$203*(1+rvanilla03)^0.5)-SUM($I110:AI110),('PTRM input'!$I$203*(1+rvanilla03)^0.5)/A1stdlife)) -> 0 | AK110: =IF(A1stdlife="n/a","n/a",IF(AK$3>(A1stdlife+$E110),('PTRM input'!$I$203*(1+rvanilla03)^0.5)-SUM($I110:AJ110),('PTRM input'!$I$203*(1+rvanilla03)^0.5)/A1stdlife)) -> 0 | AL110: =IF(A1stdlife="n/a","n/a",IF(AL$3>(A1stdlife+$E110),('PTRM input'!$I$203*(1+rvanilla03)^0.5)-SUM($I110:AK110),('PTRM input'!$I$203*(1+rvanilla03)^0.5)/A1stdlife)) -> 0 | AM110: =IF(A1stdlife="n/a","n/a",IF(AM$3>(A1stdlife+$E110),('PTRM input'!$I$203*(1+rvanilla03)^0.5)-SUM($I110:AL110),('PTRM input'!$I$203*(1+rvanilla03)^0.5)/A1stdlife)) -> 0 | AN110: =IF(A1stdlife="n/a","n/a",IF(AN$3>(A1stdlife+$E110),('PTRM input'!$I$203*(1+rvanilla03)^0.5)-SUM($I110:AM110),('PTRM input'!$I$203*(1+rvanilla03)^0.5)/A1stdlife)) -> 0 | AO110: =IF(A1stdlife="n/a","n/a",IF(AO$3>(A1stdlife+$E110),('PTRM input'!$I$203*(1+rvanilla03)^0.5)-SUM($I110:AN110),('PTRM input'!$I$203*(1+rvanilla03)^0.5)/A1stdlife)) -> 0 | AP110: =IF(A1stdlife="n/a","n/a",IF(AP$3>(A1stdlife+$E110),('PTRM input'!$I$203*(1+rvanilla03)^0.5)-SUM($I110:AO110),('PTRM input'!$I$203*(1+rvanilla03)^0.5)/A1stdlife)) -> 0 | AQ110: =IF(A1stdlife="n/a","n/a",IF(AQ$3>(A1stdlife+$E110),('PTRM input'!$I$203*(1+rvanilla03)^0.5)-SUM($I110:AP110),('PTRM input'!$I$203*(1+rvanilla03)^0.5)/A1stdlife)) -> 0 | AR110: =IF(A1stdlife="n/a","n/a",IF(AR$3>(A1stdlife+$E110),('PTRM input'!$I$203*(1+rvanilla03)^0.5)-SUM($I110:AQ110),('PTRM input'!$I$203*(1+rvanilla03)^0.5)/A1stdlife)) -> 0 | AS110: =IF(A1stdlife="n/a","n/a",IF(AS$3>(A1stdlife+$E110),('PTRM input'!$I$203*(1+rvanilla03)^0.5)-SUM($I110:AR110),('PTRM input'!$I$203*(1+rvanilla03)^0.5)/A1stdlife)) -> 0 | AT110: =IF(A1stdlife="n/a","n/a",IF(AT$3>(A1stdlife+$E110),('PTRM input'!$I$203*(1+rvanilla03)^0.5)-SUM($I110:AS110),('PTRM input'!$I$203*(1+rvanilla03)^0.5)/A1stdlife)) -> 0 | AU110: =IF(A1stdlife="n/a","n/a",IF(AU$3>(A1stdlife+$E110),('PTRM input'!$I$203*(1+rvanilla03)^0.5)-SUM($I110:AT110),('PTRM input'!$I$203*(1+rvanilla03)^0.5)/A1stdlife)) -> 0 | AV110: =IF(A1stdlife="n/a","n/a",IF(AV$3>(A1stdlife+$E110),('PTRM input'!$I$203*(1+rvanilla03)^0.5)-SUM($I110:AU110),('PTRM input'!$I$203*(1+rvanilla03)^0.5)/A1stdlife)) -> 0 | AW110: =IF(A1stdlife="n/a","n/a",IF(AW$3>(A1stdlife+$E110),('PTRM input'!$I$203*(1+rvanilla03)^0.5)-SUM($I110:AV110),('PTRM input'!$I$203*(1+rvanilla03)^0.5)/A1stdlife)) -> 0 | AX110: =IF(A1stdlife="n/a","n/a",IF(AX$3>(A1stdlife+$E110),('PTRM input'!$I$203*(1+rvanilla03)^0.5)-SUM($I110:AW110),('PTRM input'!$I$203*(1+rvanilla03)^0.5)/A1stdlife)) -> 0 | AY110: =IF(A1stdlife="n/a","n/a",IF(AY$3>(A1stdlife+$E110),('PTRM input'!$I$203*(1+rvanilla03)^0.5)-SUM($I110:AX110),('PTRM input'!$I$203*(1+rvanilla03)^0.5)/A1stdlife)) -> 0 | AZ110: =IF(A1stdlife="n/a","n/a",IF(AZ$3>(A1stdlife+$E110),('PTRM input'!$I$203*(1+rvanilla03)^0.5)-SUM($I110:AY110),('PTRM input'!$I$203*(1+rvanilla03)^0.5)/A1stdlife)) -> 0 | BA110: =IF(A1stdlife="n/a","n/a",IF(BA$3>(A1stdlife+$E110),('PTRM input'!$I$203*(1+rvanilla03)^0.5)-SUM($I110:AZ110),('PTRM input'!$I$203*(1+rvanilla03)^0.5)/A1stdlife)) -> 0 | BB110: =IF(A1stdlife="n/a","n/a",IF(BB$3>(A1stdlife+$E110),('PTRM input'!$I$203*(1+rvanilla03)^0.5)-SUM($I110:BA110),('PTRM input'!$I$203*(1+rvanilla03)^0.5)/A1stdlife)) -> 0 | BC110: =IF(A1stdlife="n/a","n/a",IF(BC$3>(A1stdlife+$E110),('PTRM input'!$I$203*(1+rvanilla03)^0.5)-SUM($I110:BB110),('PTRM input'!$I$203*(1+rvanilla03)^0.5)/A1stdlife)) -> 0 | BD110: =IF(A1stdlife="n/a","n/a",IF(BD$3>(A1stdlife+$E110),('PTRM input'!$I$203*(1+rvanilla03)^0.5)-SUM($I110:BC110),('PTRM input'!$I$203*(1+rvanilla03)^0.5)/A1stdlife)) -> 0 | BE110: =IF(A1stdlife="n/a","n/a",IF(BE$3>(A1stdlife+$E110),('PTRM input'!$I$203*(1+rvanilla03)^0.5)-SUM($I110:BD110),('PTRM input'!$I$203*(1+rvanilla03)^0.5)/A1stdlife)) -> 0 | BF110: =IF(A1stdlife="n/a","n/a",IF(BF$3>(A1stdlife+$E110),('PTRM input'!$I$203*(1+rvanilla03)^0.5)-SUM($I110:BE110),('PTRM input'!$I$203*(1+rvanilla03)^0.5)/A1stdlife)) -> 0 | BG110: =IF(A1stdlife="n/a","n/a",IF(BG$3>(A1stdlife+$E110),('PTRM input'!$I$203*(1+rvanilla03)^0.5)-SUM($I110:BF110),('PTRM input'!$I$203*(1+rvanilla03)^0.5)/A1stdlife)) -> 0 | BH110: =IF(A1stdlife="n/a","n/a",IF(BH$3>(A1stdlife+$E110),('PTRM input'!$I$203*(1+rvanilla03)^0.5)-SUM($I110:BG110),('PTRM input'!$I$203*(1+rvanilla03)^0.5)/A1stdlife)) -> 0 | BI110: =IF(A1stdlife="n/a","n/a",IF(BI$3>(A1stdlife+$E110),('PTRM input'!$I$203*(1+rvanilla03)^0.5)-SUM($I110:BH110),('PTRM input'!$I$203*(1+rvanilla03)^0.5)/A1stdlife)) -> 0
E111: 4 | K111: =IF(A1stdlife="n/a","n/a",IF(K$3>(A1stdlife+$E111),('PTRM input'!$J$203*(1+rvanilla04)^0.5)-SUM($J111:J111),('PTRM input'!$J$203*(1+rvanilla04)^0.5)/A1stdlife)) -> 0 | L111: =IF(A1stdlife="n/a","n/a",IF(L$3>(A1stdlife+$E111),('PTRM input'!$J$203*(1+rvanilla04)^0.5)-SUM($J111:K111),('PTRM input'!$J$203*(1+rvanilla04)^0.5)/A1stdlife)) -> 0 | M111: =IF(A1stdlife="n/a","n/a",IF(M$3>(A1stdlife+$E111),('PTRM input'!$J$203*(1+rvanilla04)^0.5)-SUM($J111:L111),('PTRM input'!$J$203*(1+rvanilla04)^0.5)/A1stdlife)) -> 0 | N111: =IF(A1stdlife="n/a","n/a",IF(N$3>(A1stdlife+$E111),('PTRM input'!$J$203*(1+rvanilla04)^0.5)-SUM($J111:M111),('PTRM input'!$J$203*(1+rvanilla04)^0.5)/A1stdlife)) -> 0 | O111: =IF(A1stdlife="n/a","n/a",IF(O$3>(A1stdlife+$E111),('PTRM input'!$J$203*(1+rvanilla04)^0.5)-SUM($J111:N111),('PTRM input'!$J$203*(1+rvanilla04)^0.5)/A1stdlife)) -> 0 | P111: =IF(A1stdlife="n/a","n/a",IF(P$3>(A1stdlife+$E111),('PTRM input'!$J$203*(1+rvanilla04)^0.5)-SUM($J111:O111),('PTRM input'!$J$203*(1+rvanilla04)^0.5)/A1stdlife)) -> 0 | Q111: =IF(A1stdlife="n/a","n/a",IF(Q$3>(A1stdlife+$E111),('PTRM input'!$J$203*(1+rvanilla04)^0.5)-SUM($J111:P111),('PTRM input'!$J$203*(1+rvanilla04)^0.5)/A1stdlife)) -> 0 | R111: =IF(A1stdlife="n/a","n/a",IF(R$3>(A1stdlife+$E111),('PTRM input'!$J$203*(1+rvanilla04)^0.5)-SUM($J111:Q111),('PTRM input'!$J$203*(1+rvanilla04)^0.5)/A1stdlife)) -> 0 | S111: =IF(A1stdlife="n/a","n/a",IF(S$3>(A1stdlife+$E111),('PTRM input'!$J$203*(1+rvanilla04)^0.5)-SUM($J111:R111),('PTRM input'!$J$203*(1+rvanilla04)^0.5)/A1stdlife)) -> 0 | T111: =IF(A1stdlife="n/a","n/a",IF(T$3>(A1stdlife+$E111),('PTRM input'!$J$203*(1+rvanilla04)^0.5)-SUM($J111:S111),('PTRM input'!$J$203*(1+rvanilla04)^0.5)/A1stdlife)) -> 0 | U111: =IF(A1stdlife="n/a","n/a",IF(U$3>(A1stdlife+$E111),('PTRM input'!$J$203*(1+rvanilla04)^0.5)-SUM($J111:T111),('PTRM input'!$J$203*(1+rvanilla04)^0.5)/A1stdlife)) -> 0 | V111: =IF(A1stdlife="n/a","n/a",IF(V$3>(A1stdlife+$E111),('PTRM input'!$J$203*(1+rvanilla04)^0.5)-SUM($J111:U111),('PTRM input'!$J$203*(1+rvanilla04)^0.5)/A1stdlife)) -> 0 | W111: =IF(A1stdlife="n/a","n/a",IF(W$3>(A1stdlife+$E111),('PTRM input'!$J$203*(1+rvanilla04)^0.5)-SUM($J111:V111),('PTRM input'!$J$203*(1+rvanilla04)^0.5)/A1stdlife)) -> 0 | X111: =IF(A1stdlife="n/a","n/a",IF(X$3>(A1stdlife+$E111),('PTRM input'!$J$203*(1+rvanilla04)^0.5)-SUM($J111:W111),('PTRM input'!$J$203*(1+rvanilla04)^0.5)/A1stdlife)) -> 0 | Y111: =IF(A1stdlife="n/a","n/a",IF(Y$3>(A1stdlife+$E111),('PTRM input'!$J$203*(1+rvanilla04)^0.5)-SUM($J111:X111),('PTRM input'!$J$203*(1+rvanilla04)^0.5)/A1stdlife)) -> 0 | Z111: =IF(A1stdlife="n/a","n/a",IF(Z$3>(A1stdlife+$E111),('PTRM input'!$J$203*(1+rvanilla04)^0.5)-SUM($J111:Y111),('PTRM input'!$J$203*(1+rvanilla04)^0.5)/A1stdlife)) -> 0 | AA111: =IF(A1stdlife="n/a","n/a",IF(AA$3>(A1stdlife+$E111),('PTRM input'!$J$203*(1+rvanilla04)^0.5)-SUM($J111:Z111),('PTRM input'!$J$203*(1+rvanilla04)^0.5)/A1stdlife)) -> 0 | AB111: =IF(A1stdlife="n/a","n/a",IF(AB$3>(A1stdlife+$E111),('PTRM input'!$J$203*(1+rvanilla04)^0.5)-SUM($J111:AA111),('PTRM input'!$J$203*(1+rvanilla04)^0.5)/A1stdlife)) -> 0 | AC111: =IF(A1stdlife="n/a","n/a",IF(AC$3>(A1stdlife+$E111),('PTRM input'!$J$203*(1+rvanilla04)^0.5)-SUM($J111:AB111),('PTRM input'!$J$203*(1+rvanilla04)^0.5)/A1stdlife)) -> 0 | AD111: =IF(A1stdlife="n/a","n/a",IF(AD$3>(A1stdlife+$E111),('PTRM input'!$J$203*(1+rvanilla04)^0.5)-SUM($J111:AC111),('PTRM input'!$J$203*(1+rvanilla04)^0.5)/A1stdlife)) -> 0 | AE111: =IF(A1stdlife="n/a","n/a",IF(AE$3>(A1stdlife+$E111),('PTRM input'!$J$203*(1+rvanilla04)^0.5)-SUM($J111:AD111),('PTRM input'!$J$203*(1+rvanilla04)^0.5)/A1stdlife)) -> 0 | AF111: =IF(A1stdlife="n/a","n/a",IF(AF$3>(A1stdlife+$E111),('PTRM input'!$J$203*(1+rvanilla04)^0.5)-SUM($J111:AE111),('PTRM input'!$J$203*(1+rvanilla04)^0.5)/A1stdlife)) -> 0 | AG111: =IF(A1stdlife="n/a","n/a",IF(AG$3>(A1stdlife+$E111),('PTRM input'!$J$203*(1+rvanilla04)^0.5)-SUM($J111:AF111),('PTRM input'!$J$203*(1+rvanilla04)^0.5)/A1stdlife)) -> 0 | AH111: =IF(A1stdlife="n/a","n/a",IF(AH$3>(A1stdlife+$E111),('PTRM input'!$J$203*(1+rvanilla04)^0.5)-SUM($J111:AG111),('PTRM input'!$J$203*(1+rvanilla04)^0.5)/A1stdlife)) -> 0 | AI111: =IF(A1stdlife="n/a","n/a",IF(AI$3>(A1stdlife+$E111),('PTRM input'!$J$203*(1+rvanilla04)^0.5)-SUM($J111:AH111),('PTRM input'!$J$203*(1+rvanilla04)^0.5)/A1stdlife)) -> 0 | AJ111: =IF(A1stdlife="n/a","n/a",IF(AJ$3>(A1stdlife+$E111),('PTRM input'!$J$203*(1+rvanilla04)^0.5)-SUM($J111:AI111),('PTRM input'!$J$203*(1+rvanilla04)^0.5)/A1stdlife)) -> 0 | AK111: =IF(A1stdlife="n/a","n/a",IF(AK$3>(A1stdlife+$E111),('PTRM input'!$J$203*(1+rvanilla04)^0.5)-SUM($J111:AJ111),('PTRM input'!$J$203*(1+rvanilla04)^0.5)/A1stdlife)) -> 0 | AL111: =IF(A1stdlife="n/a","n/a",IF(AL$3>(A1stdlife+$E111),('PTRM input'!$J$203*(1+rvanilla04)^0.5)-SUM($J111:AK111),('PTRM input'!$J$203*(1+rvanilla04)^0.5)/A1stdlife)) -> 0 | AM111: =IF(A1stdlife="n/a","n/a",IF(AM$3>(A1stdlife+$E111),('PTRM input'!$J$203*(1+rvanilla04)^0.5)-SUM($J111:AL111),('PTRM input'!$J$203*(1+rvanilla04)^0.5)/A1stdlife)) -> 0 | AN111: =IF(A1stdlife="n/a","n/a",IF(AN$3>(A1stdlife+$E111),('PTRM input'!$J$203*(1+rvanilla04)^0.5)-SUM($J111:AM111),('PTRM input'!$J$203*(1+rvanilla04)^0.5)/A1stdlife)) -> 0 | AO111: =IF(A1stdlife="n/a","n/a",IF(AO$3>(A1stdlife+$E111),('PTRM input'!$J$203*(1+rvanilla04)^0.5)-SUM($J111:AN111),('PTRM input'!$J$203*(1+rvanilla04)^0.5)/A1stdlife)) -> 0 | AP111: =IF(A1stdlife="n/a","n/a",IF(AP$3>(A1stdlife+$E111),('PTRM input'!$J$203*(1+rvanilla04)^0.5)-SUM($J111:AO111),('PTRM input'!$J$203*(1+rvanilla04)^0.5)/A1stdlife)) -> 0 | AQ111: =IF(A1stdlife="n/a","n/a",IF(AQ$3>(A1stdlife+$E111),('PTRM input'!$J$203*(1+rvanilla04)^0.5)-SUM($J111:AP111),('PTRM input'!$J$203*(1+rvanilla04)^0.5)/A1stdlife)) -> 0 | AR111: =IF(A1stdlife="n/a","n/a",IF(AR$3>(A1stdlife+$E111),('PTRM input'!$J$203*(1+rvanilla04)^0.5)-SUM($J111:AQ111),('PTRM input'!$J$203*(1+rvanilla04)^0.5)/A1stdlife)) -> 0 | AS111: =IF(A1stdlife="n/a","n/a",IF(AS$3>(A1stdlife+$E111),('PTRM input'!$J$203*(1+rvanilla04)^0.5)-SUM($J111:AR111),('PTRM input'!$J$203*(1+rvanilla04)^0.5)/A1stdlife)) -> 0 | AT111: =IF(A1stdlife="n/a","n/a",IF(AT$3>(A1stdlife+$E111),('PTRM input'!$J$203*(1+rvanilla04)^0.5)-SUM($J111:AS111),('PTRM input'!$J$203*(1+rvanilla04)^0.5)/A1stdlife)) -> 0 | AU111: =IF(A1stdlife="n/a","n/a",IF(AU$3>(A1stdlife+$E111),('PTRM input'!$J$203*(1+rvanilla04)^0.5)-SUM($J111:AT111),('PTRM input'!$J$203*(1+rvanilla04)^0.5)/A1stdlife)) -> 0 | AV111: =IF(A1stdlife="n/a","n/a",IF(AV$3>(A1stdlife+$E111),('PTRM input'!$J$203*(1+rvanilla04)^0.5)-SUM($J111:AU111),('PTRM input'!$J$203*(1+rvanilla04)^0.5)/A1stdlife)) -> 0 | AW111: =IF(A1stdlife="n/a","n/a",IF(AW$3>(A1stdlife+$E111),('PTRM input'!$J$203*(1+rvanilla04)^0.5)-SUM($J111:AV111),('PTRM input'!$J$203*(1+rvanilla04)^0.5)/A1stdlife)) -> 0 | AX111: =IF(A1stdlife="n/a","n/a",IF(AX$3>(A1stdlife+$E111),('PTRM input'!$J$203*(1+rvanilla04)^0.5)-SUM($J111:AW111),('PTRM input'!$J$203*(1+rvanilla04)^0.5)/A1stdlife)) -> 0 | AY111: =IF(A1stdlife="n/a","n/a",IF(AY$3>(A1stdlife+$E111),('PTRM input'!$J$203*(1+rvanilla04)^0.5)-SUM($J111:AX111),('PTRM input'!$J$203*(1+rvanilla04)^0.5)/A1stdlife)) -> 0 | AZ111: =IF(A1stdlife="n/a","n/a",IF(AZ$3>(A1stdlife+$E111),('PTRM input'!$J$203*(1+rvanilla04)^0.5)-SUM($J111:AY111),('PTRM input'!$J$203*(1+rvanilla04)^0.5)/A1stdlife)) -> 0 | BA111: =IF(A1stdlife="n/a","n/a",IF(BA$3>(A1stdlife+$E111),('PTRM input'!$J$203*(1+rvanilla04)^0.5)-SUM($J111:AZ111),('PTRM input'!$J$203*(1+rvanilla04)^0.5)/A1stdlife)) -> 0 | BB111: =IF(A1stdlife="n/a","n/a",IF(BB$3>(A1stdlife+$E111),('PTRM input'!$J$203*(1+rvanilla04)^0.5)-SUM($J111:BA111),('PTRM input'!$J$203*(1+rvanilla04)^0.5)/A1stdlife)) -> 0 | BC111: =IF(A1stdlife="n/a","n/a",IF(BC$3>(A1stdlife+$E111),('PTRM input'!$J$203*(1+rvanilla04)^0.5)-SUM($J111:BB111),('PTRM input'!$J$203*(1+rvanilla04)^0.5)/A1stdlife)) -> 0 | BD111: =IF(A1stdlife="n/a","n/a",IF(BD$3>(A1stdlife+$E111),('PTRM input'!$J$203*(1+rvanilla04)^0.5)-SUM($J111:BC111),('PTRM input'!$J$203*(1+rvanilla04)^0.5)/A1stdlife)) -> 0 | BE111: =IF(A1stdlife="n/a","n/a",IF(BE$3>(A1stdlife+$E111),('PTRM input'!$J$203*(1+rvanilla04)^0.5)-SUM($J111:BD111),('PTRM input'!$J$203*(1+rvanilla04)^0.5)/A1stdlife)) -> 0 | BF111: =IF(A1stdlife="n/a","n/a",IF(BF$3>(A1stdlife+$E111),('PTRM input'!$J$203*(1+rvanilla04)^0.5)-SUM($J111:BE111),('PTRM input'!$J$203*(1+rvanilla04)^0.5)/A1stdlife)) -> 0 | BG111: =IF(A1stdlife="n/a","n/a",IF(BG$3>(A1stdlife+$E111),('PTRM input'!$J$203*(1+rvanilla04)^0.5)-SUM($J111:BF111),('PTRM input'!$J$203*(1+rvanilla04)^0.5)/A1stdlife)) -> 0 | BH111: =IF(A1stdlife="n/a","n/a",IF(BH$3>(A1stdlife+$E111),('PTRM input'!$J$203*(1+rvanilla04)^0.5)-SUM($J111:BG111),('PTRM input'!$J$203*(1+rvanilla04)^0.5)/A1stdlife)) -> 0 | BI111: =IF(A1stdlife="n/a","n/a",IF(BI$3>(A1stdlife+$E111),('PTRM input'!$J$203*(1+rvanilla04)^0.5)-SUM($J111:BH111),('PTRM input'!$J$203*(1+rvanilla04)^0.5)/A1stdlife)) -> 0
E112: 5 | L112: =IF(A1stdlife="n/a","n/a",IF(L$3>(A1stdlife+$E112),('PTRM input'!$K$203*(1+rvanilla05)^0.5)-SUM($K112:K112),('PTRM input'!$K$203*(1+rvanilla05)^0.5)/A1stdlife)) -> 0 | M112: =IF(A1stdlife="n/a","n/a",IF(M$3>(A1stdlife+$E112),('PTRM input'!$K$203*(1+rvanilla05)^0.5)-SUM($K112:L112),('PTRM input'!$K$203*(1+rvanilla05)^0.5)/A1stdlife)) -> 0 | N112: =IF(A1stdlife="n/a","n/a",IF(N$3>(A1stdlife+$E112),('PTRM input'!$K$203*(1+rvanilla05)^0.5)-SUM($K112:M112),('PTRM input'!$K$203*(1+rvanilla05)^0.5)/A1stdlife)) -> 0 | O112: =IF(A1stdlife="n/a","n/a",IF(O$3>(A1stdlife+$E112),('PTRM input'!$K$203*(1+rvanilla05)^0.5)-SUM($K112:N112),('PTRM input'!$K$203*(1+rvanilla05)^0.5)/A1stdlife)) -> 0 | P112: =IF(A1stdlife="n/a","n/a",IF(P$3>(A1stdlife+$E112),('PTRM input'!$K$203*(1+rvanilla05)^0.5)-SUM($K112:O112),('PTRM input'!$K$203*(1+rvanilla05)^0.5)/A1stdlife)) -> 0 | Q112: =IF(A1stdlife="n/a","n/a",IF(Q$3>(A1stdlife+$E112),('PTRM input'!$K$203*(1+rvanilla05)^0.5)-SUM($K112:P112),('PTRM input'!$K$203*(1+rvanilla05)^0.5)/A1stdlife)) -> 0 | R112: =IF(A1stdlife="n/a","n/a",IF(R$3>(A1stdlife+$E112),('PTRM input'!$K$203*(1+rvanilla05)^0.5)-SUM($K112:Q112),('PTRM input'!$K$203*(1+rvanilla05)^0.5)/A1stdlife)) -> 0 | S112: =IF(A1stdlife="n/a","n/a",IF(S$3>(A1stdlife+$E112),('PTRM input'!$K$203*(1+rvanilla05)^0.5)-SUM($K112:R112),('PTRM input'!$K$203*(1+rvanilla05)^0.5)/A1stdlife)) -> 0 | T112: =IF(A1stdlife="n/a","n/a",IF(T$3>(A1stdlife+$E112),('PTRM input'!$K$203*(1+rvanilla05)^0.5)-SUM($K112:S112),('PTRM input'!$K$203*(1+rvanilla05)^0.5)/A1stdlife)) -> 0 | U112: =IF(A1stdlife="n/a","n/a",IF(U$3>(A1stdlife+$E112),('PTRM input'!$K$203*(1+rvanilla05)^0.5)-SUM($K112:T112),('PTRM input'!$K$203*(1+rvanilla05)^0.5)/A1stdlife)) -> 0 | V112: =IF(A1stdlife="n/a","n/a",IF(V$3>(A1stdlife+$E112),('PTRM input'!$K$203*(1+rvanilla05)^0.5)-SUM($K112:U112),('PTRM input'!$K$203*(1+rvanilla05)^0.5)/A1stdlife)) -> 0 | W112: =IF(A1stdlife="n/a","n/a",IF(W$3>(A1stdlife+$E112),('PTRM input'!$K$203*(1+rvanilla05)^0.5)-SUM($K112:V112),('PTRM input'!$K$203*(1+rvanilla05)^0.5)/A1stdlife)) -> 0 | X112: =IF(A1stdlife="n/a","n/a",IF(X$3>(A1stdlife+$E112),('PTRM input'!$K$203*(1+rvanilla05)^0.5)-SUM($K112:W112),('PTRM input'!$K$203*(1+rvanilla05)^0.5)/A1stdlife)) -> 0 | Y112: =IF(A1stdlife="n/a","n/a",IF(Y$3>(A1stdlife+$E112),('PTRM input'!$K$203*(1+rvanilla05)^0.5)-SUM($K112:X112),('PTRM input'!$K$203*(1+rvanilla05)^0.5)/A1stdlife)) -> 0 | Z112: =IF(A1stdlife="n/a","n/a",IF(Z$3>(A1stdlife+$E112),('PTRM input'!$K$203*(1+rvanilla05)^0.5)-SUM($K112:Y112),('PTRM input'!$K$203*(1+rvanilla05)^0.5)/A1stdlife)) -> 0 | AA112: =IF(A1stdlife="n/a","n/a",IF(AA$3>(A1stdlife+$E112),('PTRM input'!$K$203*(1+rvanilla05)^0.5)-SUM($K112:Z112),('PTRM input'!$K$203*(1+rvanilla05)^0.5)/A1stdlife)) -> 0 | AB112: =IF(A1stdlife="n/a","n/a",IF(AB$3>(A1stdlife+$E112),('PTRM input'!$K$203*(1+rvanilla05)^0.5)-SUM($K112:AA112),('PTRM input'!$K$203*(1+rvanilla05)^0.5)/A1stdlife)) -> 0 | AC112: =IF(A1stdlife="n/a","n/a",IF(AC$3>(A1stdlife+$E112),('PTRM input'!$K$203*(1+rvanilla05)^0.5)-SUM($K112:AB112),('PTRM input'!$K$203*(1+rvanilla05)^0.5)/A1stdlife)) -> 0 | AD112: =IF(A1stdlife="n/a","n/a",IF(AD$3>(A1stdlife+$E112),('PTRM input'!$K$203*(1+rvanilla05)^0.5)-SUM($K112:AC112),('PTRM input'!$K$203*(1+rvanilla05)^0.5)/A1stdlife)) -> 0 | AE112: =IF(A1stdlife="n/a","n/a",IF(AE$3>(A1stdlife+$E112),('PTRM input'!$K$203*(1+rvanilla05)^0.5)-SUM($K112:AD112),('PTRM input'!$K$203*(1+rvanilla05)^0.5)/A1stdlife)) -> 0 | AF112: =IF(A1stdlife="n/a","n/a",IF(AF$3>(A1stdlife+$E112),('PTRM input'!$K$203*(1+rvanilla05)^0.5)-SUM($K112:AE112),('PTRM input'!$K$203*(1+rvanilla05)^0.5)/A1stdlife)) -> 0 | AG112: =IF(A1stdlife="n/a","n/a",IF(AG$3>(A1stdlife+$E112),('PTRM input'!$K$203*(1+rvanilla05)^0.5)-SUM($K112:AF112),('PTRM input'!$K$203*(1+rvanilla05)^0.5)/A1stdlife)) -> 0 | AH112: =IF(A1stdlife="n/a","n/a",IF(AH$3>(A1stdlife+$E112),('PTRM input'!$K$203*(1+rvanilla05)^0.5)-SUM($K112:AG112),('PTRM input'!$K$203*(1+rvanilla05)^0.5)/A1stdlife)) -> 0 | AI112: =IF(A1stdlife="n/a","n/a",IF(AI$3>(A1stdlife+$E112),('PTRM input'!$K$203*(1+rvanilla05)^0.5)-SUM($K112:AH112),('PTRM input'!$K$203*(1+rvanilla05)^0.5)/A1stdlife)) -> 0 | AJ112: =IF(A1stdlife="n/a","n/a",IF(AJ$3>(A1stdlife+$E112),('PTRM input'!$K$203*(1+rvanilla05)^0.5)-SUM($K112:AI112),('PTRM input'!$K$203*(1+rvanilla05)^0.5)/A1stdlife)) -> 0 | AK112: =IF(A1stdlife="n/a","n/a",IF(AK$3>(A1stdlife+$E112),('PTRM input'!$K$203*(1+rvanilla05)^0.5)-SUM($K112:AJ112),('PTRM input'!$K$203*(1+rvanilla05)^0.5)/A1stdlife)) -> 0 | AL112: =IF(A1stdlife="n/a","n/a",IF(AL$3>(A1stdlife+$E112),('PTRM input'!$K$203*(1+rvanilla05)^0.5)-SUM($K112:AK112),('PTRM input'!$K$203*(1+rvanilla05)^0.5)/A1stdlife)) -> 0 | AM112: =IF(A1stdlife="n/a","n/a",IF(AM$3>(A1stdlife+$E112),('PTRM input'!$K$203*(1+rvanilla05)^0.5)-SUM($K112:AL112),('PTRM input'!$K$203*(1+rvanilla05)^0.5)/A1stdlife)) -> 0 | AN112: =IF(A1stdlife="n/a","n/a",IF(AN$3>(A1stdlife+$E112),('PTRM input'!$K$203*(1+rvanilla05)^0.5)-SUM($K112:AM112),('PTRM input'!$K$203*(1+rvanilla05)^0.5)/A1stdlife)) -> 0 | AO112: =IF(A1stdlife="n/a","n/a",IF(AO$3>(A1stdlife+$E112),('PTRM input'!$K$203*(1+rvanilla05)^0.5)-SUM($K112:AN112),('PTRM input'!$K$203*(1+rvanilla05)^0.5)/A1stdlife)) -> 0 | AP112: =IF(A1stdlife="n/a","n/a",IF(AP$3>(A1stdlife+$E112),('PTRM input'!$K$203*(1+rvanilla05)^0.5)-SUM($K112:AO112),('PTRM input'!$K$203*(1+rvanilla05)^0.5)/A1stdlife)) -> 0 | AQ112: =IF(A1stdlife="n/a","n/a",IF(AQ$3>(A1stdlife+$E112),('PTRM input'!$K$203*(1+rvanilla05)^0.5)-SUM($K112:AP112),('PTRM input'!$K$203*(1+rvanilla05)^0.5)/A1stdlife)) -> 0 | AR112: =IF(A1stdlife="n/a","n/a",IF(AR$3>(A1stdlife+$E112),('PTRM input'!$K$203*(1+rvanilla05)^0.5)-SUM($K112:AQ112),('PTRM input'!$K$203*(1+rvanilla05)^0.5)/A1stdlife)) -> 0 | AS112: =IF(A1stdlife="n/a","n/a",IF(AS$3>(A1stdlife+$E112),('PTRM input'!$K$203*(1+rvanilla05)^0.5)-SUM($K112:AR112),('PTRM input'!$K$203*(1+rvanilla05)^0.5)/A1stdlife)) -> 0 | AT112: =IF(A1stdlife="n/a","n/a",IF(AT$3>(A1stdlife+$E112),('PTRM input'!$K$203*(1+rvanilla05)^0.5)-SUM($K112:AS112),('PTRM input'!$K$203*(1+rvanilla05)^0.5)/A1stdlife)) -> 0 | AU112: =IF(A1stdlife="n/a","n/a",IF(AU$3>(A1stdlife+$E112),('PTRM input'!$K$203*(1+rvanilla05)^0.5)-SUM($K112:AT112),('PTRM input'!$K$203*(1+rvanilla05)^0.5)/A1stdlife)) -> 0 | AV112: =IF(A1stdlife="n/a","n/a",IF(AV$3>(A1stdlife+$E112),('PTRM input'!$K$203*(1+rvanilla05)^0.5)-SUM($K112:AU112),('PTRM input'!$K$203*(1+rvanilla05)^0.5)/A1stdlife)) -> 0 | AW112: =IF(A1stdlife="n/a","n/a",IF(AW$3>(A1stdlife+$E112),('PTRM input'!$K$203*(1+rvanilla05)^0.5)-SUM($K112:AV112),('PTRM input'!$K$203*(1+rvanilla05)^0.5)/A1stdlife)) -> 0 | AX112: =IF(A1stdlife="n/a","n/a",IF(AX$3>(A1stdlife+$E112),('PTRM input'!$K$203*(1+rvanilla05)^0.5)-SUM($K112:AW112),('PTRM input'!$K$203*(1+rvanilla05)^0.5)/A1stdlife)) -> 0 | AY112: =IF(A1stdlife="n/a","n/a",IF(AY$3>(A1stdlife+$E112),('PTRM input'!$K$203*(1+rvanilla05)^0.5)-SUM($K112:AX112),('PTRM input'!$K$203*(1+rvanilla05)^0.5)/A1stdlife)) -> 0 | AZ112: =IF(A1stdlife="n/a","n/a",IF(AZ$3>(A1stdlife+$E112),('PTRM input'!$K$203*(1+rvanilla05)^0.5)-SUM($K112:AY112),('PTRM input'!$K$203*(1+rvanilla05)^0.5)/A1stdlife)) -> 0 | BA112: =IF(A1stdlife="n/a","n/a",IF(BA$3>(A1stdlife+$E112),('PTRM input'!$K$203*(1+rvanilla05)^0.5)-SUM($K112:AZ112),('PTRM input'!$K$203*(1+rvanilla05)^0.5)/A1stdlife)) -> 0 | BB112: =IF(A1stdlife="n/a","n/a",IF(BB$3>(A1stdlife+$E112),('PTRM input'!$K$203*(1+rvanilla05)^0.5)-SUM($K112:BA112),('PTRM input'!$K$203*(1+rvanilla05)^0.5)/A1stdlife)) -> 0 | BC112: =IF(A1stdlife="n/a","n/a",IF(BC$3>(A1stdlife+$E112),('PTRM input'!$K$203*(1+rvanilla05)^0.5)-SUM($K112:BB112),('PTRM input'!$K$203*(1+rvanilla05)^0.5)/A1stdlife)) -> 0 | BD112: =IF(A1stdlife="n/a","n/a",IF(BD$3>(A1stdlife+$E112),('PTRM input'!$K$203*(1+rvanilla05)^0.5)-SUM($K112:BC112),('PTRM input'!$K$203*(1+rvanilla05)^0.5)/A1stdlife)) -> 0 | BE112: =IF(A1stdlife="n/a","n/a",IF(BE$3>(A1stdlife+$E112),('PTRM input'!$K$203*(1+rvanilla05)^0.5)-SUM($K112:BD112),('PTRM input'!$K$203*(1+rvanilla05)^0.5)/A1stdlife)) -> 0 | BF112: =IF(A1stdlife="n/a","n/a",IF(BF$3>(A1stdlife+$E112),('PTRM input'!$K$203*(1+rvanilla05)^0.5)-SUM($K112:BE112),('PTRM input'!$K$203*(1+rvanilla05)^0.5)/A1stdlife)) -> 0 | BG112: =IF(A1stdlife="n/a","n/a",IF(BG$3>(A1stdlife+$E112),('PTRM input'!$K$203*(1+rvanilla05)^0.5)-SUM($K112:BF112),('PTRM input'!$K$203*(1+rvanilla05)^0.5)/A1stdlife)) -> 0 | BH112: =IF(A1stdlife="n/a","n/a",IF(BH$3>(A1stdlife+$E112),('PTRM input'!$K$203*(1+rvanilla05)^0.5)-SUM($K112:BG112),('PTRM input'!$K$203*(1+rvanilla05)^0.5)/A1stdlife)) -> 0 | BI112: =IF(A1stdlife="n/a","n/a",IF(BI$3>(A1stdlife+$E112),('PTRM input'!$K$203*(1+rvanilla05)^0.5)-SUM($K112:BH112),('PTRM input'!$K$203*(1+rvanilla05)^0.5)/A1stdlife)) -> 0
E113: 6 | M113: =IF(A1stdlife="n/a","n/a",IF(M$3>(A1stdlife+$E113),('PTRM input'!$L$203*(1+rvanilla06)^0.5)-SUM($L113:L113),('PTRM input'!$L$203*(1+rvanilla06)^0.5)/A1stdlife)) -> 0 | N113: =IF(A1stdlife="n/a","n/a",IF(N$3>(A1stdlife+$E113),('PTRM input'!$L$203*(1+rvanilla06)^0.5)-SUM($L113:M113),('PTRM input'!$L$203*(1+rvanilla06)^0.5)/A1stdlife)) -> 0 | O113: =IF(A1stdlife="n/a","n/a",IF(O$3>(A1stdlife+$E113),('PTRM input'!$L$203*(1+rvanilla06)^0.5)-SUM($L113:N113),('PTRM input'!$L$203*(1+rvanilla06)^0.5)/A1stdlife)) -> 0 | P113: =IF(A1stdlife="n/a","n/a",IF(P$3>(A1stdlife+$E113),('PTRM input'!$L$203*(1+rvanilla06)^0.5)-SUM($L113:O113),('PTRM input'!$L$203*(1+rvanilla06)^0.5)/A1stdlife)) -> 0 | Q113: =IF(A1stdlife="n/a","n/a",IF(Q$3>(A1stdlife+$E113),('PTRM input'!$L$203*(1+rvanilla06)^0.5)-SUM($L113:P113),('PTRM input'!$L$203*(1+rvanilla06)^0.5)/A1stdlife)) -> 0 | R113: =IF(A1stdlife="n/a","n/a",IF(R$3>(A1stdlife+$E113),('PTRM input'!$L$203*(1+rvanilla06)^0.5)-SUM($L113:Q113),('PTRM input'!$L$203*(1+rvanilla06)^0.5)/A1stdlife)) -> 0 | S113: =IF(A1stdlife="n/a","n/a",IF(S$3>(A1stdlife+$E113),('PTRM input'!$L$203*(1+rvanilla06)^0.5)-SUM($L113:R113),('PTRM input'!$L$203*(1+rvanilla06)^0.5)/A1stdlife)) -> 0 | T113: =IF(A1stdlife="n/a","n/a",IF(T$3>(A1stdlife+$E113),('PTRM input'!$L$203*(1+rvanilla06)^0.5)-SUM($L113:S113),('PTRM input'!$L$203*(1+rvanilla06)^0.5)/A1stdlife)) -> 0 | U113: =IF(A1stdlife="n/a","n/a",IF(U$3>(A1stdlife+$E113),('PTRM input'!$L$203*(1+rvanilla06)^0.5)-SUM($L113:T113),('PTRM input'!$L$203*(1+rvanilla06)^0.5)/A1stdlife)) -> 0 | V113: =IF(A1stdlife="n/a","n/a",IF(V$3>(A1stdlife+$E113),('PTRM input'!$L$203*(1+rvanilla06)^0.5)-SUM($L113:U113),('PTRM input'!$L$203*(1+rvanilla06)^0.5)/A1stdlife)) -> 0 | W113: =IF(A1stdlife="n/a","n/a",IF(W$3>(A1stdlife+$E113),('PTRM input'!$L$203*(1+rvanilla06)^0.5)-SUM($L113:V113),('PTRM input'!$L$203*(1+rvanilla06)^0.5)/A1stdlife)) -> 0 | X113: =IF(A1stdlife="n/a","n/a",IF(X$3>(A1stdlife+$E113),('PTRM input'!$L$203*(1+rvanilla06)^0.5)-SUM($L113:W113),('PTRM input'!$L$203*(1+rvanilla06)^0.5)/A1stdlife)) -> 0 | Y113: =IF(A1stdlife="n/a","n/a",IF(Y$3>(A1stdlife+$E113),('PTRM input'!$L$203*(1+rvanilla06)^0.5)-SUM($L113:X113),('PTRM input'!$L$203*(1+rvanilla06)^0.5)/A1stdlife)) -> 0 | Z113: =IF(A1stdlife="n/a","n/a",IF(Z$3>(A1stdlife+$E113),('PTRM input'!$L$203*(1+rvanilla06)^0.5)-SUM($L113:Y113),('PTRM input'!$L$203*(1+rvanilla06)^0.5)/A1stdlife)) -> 0 | AA113: =IF(A1stdlife="n/a","n/a",IF(AA$3>(A1stdlife+$E113),('PTRM input'!$L$203*(1+rvanilla06)^0.5)-SUM($L113:Z113),('PTRM input'!$L$203*(1+rvanilla06)^0.5)/A1stdlife)) -> 0 | AB113: =IF(A1stdlife="n/a","n/a",IF(AB$3>(A1stdlife+$E113),('PTRM input'!$L$203*(1+rvanilla06)^0.5)-SUM($L113:AA113),('PTRM input'!$L$203*(1+rvanilla06)^0.5)/A1stdlife)) -> 0 | AC113: =IF(A1stdlife="n/a","n/a",IF(AC$3>(A1stdlife+$E113),('PTRM input'!$L$203*(1+rvanilla06)^0.5)-SUM($L113:AB113),('PTRM input'!$L$203*(1+rvanilla06)^0.5)/A1stdlife)) -> 0 | AD113: =IF(A1stdlife="n/a","n/a",IF(AD$3>(A1stdlife+$E113),('PTRM input'!$L$203*(1+rvanilla06)^0.5)-SUM($L113:AC113),('PTRM input'!$L$203*(1+rvanilla06)^0.5)/A1stdlife)) -> 0 | AE113: =IF(A1stdlife="n/a","n/a",IF(AE$3>(A1stdlife+$E113),('PTRM input'!$L$203*(1+rvanilla06)^0.5)-SUM($L113:AD113),('PTRM input'!$L$203*(1+rvanilla06)^0.5)/A1stdlife)) -> 0 | AF113: =IF(A1stdlife="n/a","n/a",IF(AF$3>(A1stdlife+$E113),('PTRM input'!$L$203*(1+rvanilla06)^0.5)-SUM($L113:AE113),('PTRM input'!$L$203*(1+rvanilla06)^0.5)/A1stdlife)) -> 0 | AG113: =IF(A1stdlife="n/a","n/a",IF(AG$3>(A1stdlife+$E113),('PTRM input'!$L$203*(1+rvanilla06)^0.5)-SUM($L113:AF113),('PTRM input'!$L$203*(1+rvanilla06)^0.5)/A1stdlife)) -> 0 | AH113: =IF(A1stdlife="n/a","n/a",IF(AH$3>(A1stdlife+$E113),('PTRM input'!$L$203*(1+rvanilla06)^0.5)-SUM($L113:AG113),('PTRM input'!$L$203*(1+rvanilla06)^0.5)/A1stdlife)) -> 0 | AI113: =IF(A1stdlife="n/a","n/a",IF(AI$3>(A1stdlife+$E113),('PTRM input'!$L$203*(1+rvanilla06)^0.5)-SUM($L113:AH113),('PTRM input'!$L$203*(1+rvanilla06)^0.5)/A1stdlife)) -> 0 | AJ113: =IF(A1stdlife="n/a","n/a",IF(AJ$3>(A1stdlife+$E113),('PTRM input'!$L$203*(1+rvanilla06)^0.5)-SUM($L113:AI113),('PTRM input'!$L$203*(1+rvanilla06)^0.5)/A1stdlife)) -> 0 | AK113: =IF(A1stdlife="n/a","n/a",IF(AK$3>(A1stdlife+$E113),('PTRM input'!$L$203*(1+rvanilla06)^0.5)-SUM($L113:AJ113),('PTRM input'!$L$203*(1+rvanilla06)^0.5)/A1stdlife)) -> 0 | AL113: =IF(A1stdlife="n/a","n/a",IF(AL$3>(A1stdlife+$E113),('PTRM input'!$L$203*(1+rvanilla06)^0.5)-SUM($L113:AK113),('PTRM input'!$L$203*(1+rvanilla06)^0.5)/A1stdlife)) -> 0 | AM113: =IF(A1stdlife="n/a","n/a",IF(AM$3>(A1stdlife+$E113),('PTRM input'!$L$203*(1+rvanilla06)^0.5)-SUM($L113:AL113),('PTRM input'!$L$203*(1+rvanilla06)^0.5)/A1stdlife)) -> 0 | AN113: =IF(A1stdlife="n/a","n/a",IF(AN$3>(A1stdlife+$E113),('PTRM input'!$L$203*(1+rvanilla06)^0.5)-SUM($L113:AM113),('PTRM input'!$L$203*(1+rvanilla06)^0.5)/A1stdlife)) -> 0 | AO113: =IF(A1stdlife="n/a","n/a",IF(AO$3>(A1stdlife+$E113),('PTRM input'!$L$203*(1+rvanilla06)^0.5)-SUM($L113:AN113),('PTRM input'!$L$203*(1+rvanilla06)^0.5)/A1stdlife)) -> 0 | AP113: =IF(A1stdlife="n/a","n/a",IF(AP$3>(A1stdlife+$E113),('PTRM input'!$L$203*(1+rvanilla06)^0.5)-SUM($L113:AO113),('PTRM input'!$L$203*(1+rvanilla06)^0.5)/A1stdlife)) -> 0 | AQ113: =IF(A1stdlife="n/a","n/a",IF(AQ$3>(A1stdlife+$E113),('PTRM input'!$L$203*(1+rvanilla06)^0.5)-SUM($L113:AP113),('PTRM input'!$L$203*(1+rvanilla06)^0.5)/A1stdlife)) -> 0 | AR113: =IF(A1stdlife="n/a","n/a",IF(AR$3>(A1stdlife+$E113),('PTRM input'!$L$203*(1+rvanilla06)^0.5)-SUM($L113:AQ113),('PTRM input'!$L$203*(1+rvanilla06)^0.5)/A1stdlife)) -> 0 | AS113: =IF(A1stdlife="n/a","n/a",IF(AS$3>(A1stdlife+$E113),('PTRM input'!$L$203*(1+rvanilla06)^0.5)-SUM($L113:AR113),('PTRM input'!$L$203*(1+rvanilla06)^0.5)/A1stdlife)) -> 0 | AT113: =IF(A1stdlife="n/a","n/a",IF(AT$3>(A1stdlife+$E113),('PTRM input'!$L$203*(1+rvanilla06)^0.5)-SUM($L113:AS113),('PTRM input'!$L$203*(1+rvanilla06)^0.5)/A1stdlife)) -> 0 | AU113: =IF(A1stdlife="n/a","n/a",IF(AU$3>(A1stdlife+$E113),('PTRM input'!$L$203*(1+rvanilla06)^0.5)-SUM($L113:AT113),('PTRM input'!$L$203*(1+rvanilla06)^0.5)/A1stdlife)) -> 0 | AV113: =IF(A1stdlife="n/a","n/a",IF(AV$3>(A1stdlife+$E113),('PTRM input'!$L$203*(1+rvanilla06)^0.5)-SUM($L113:AU113),('PTRM input'!$L$203*(1+rvanilla06)^0.5)/A1stdlife)) -> 0 | AW113: =IF(A1stdlife="n/a","n/a",IF(AW$3>(A1stdlife+$E113),('PTRM input'!$L$203*(1+rvanilla06)^0.5)-SUM($L113:AV113),('PTRM input'!$L$203*(1+rvanilla06)^0.5)/A1stdlife)) -> 0 | AX113: =IF(A1stdlife="n/a","n/a",IF(AX$3>(A1stdlife+$E113),('PTRM input'!$L$203*(1+rvanilla06)^0.5)-SUM($L113:AW113),('PTRM input'!$L$203*(1+rvanilla06)^0.5)/A1stdlife)) -> 0 | AY113: =IF(A1stdlife="n/a","n/a",IF(AY$3>(A1stdlife+$E113),('PTRM input'!$L$203*(1+rvanilla06)^0.5)-SUM($L113:AX113),('PTRM input'!$L$203*(1+rvanilla06)^0.5)/A1stdlife)) -> 0 | AZ113: =IF(A1stdlife="n/a","n/a",IF(AZ$3>(A1stdlife+$E113),('PTRM input'!$L$203*(1+rvanilla06)^0.5)-SUM($L113:AY113),('PTRM input'!$L$203*(1+rvanilla06)^0.5)/A1stdlife)) -> 0 | BA113: =IF(A1stdlife="n/a","n/a",IF(BA$3>(A1stdlife+$E113),('PTRM input'!$L$203*(1+rvanilla06)^0.5)-SUM($L113:AZ113),('PTRM input'!$L$203*(1+rvanilla06)^0.5)/A1stdlife)) -> 0 | BB113: =IF(A1stdlife="n/a","n/a",IF(BB$3>(A1stdlife+$E113),('PTRM input'!$L$203*(1+rvanilla06)^0.5)-SUM($L113:BA113),('PTRM input'!$L$203*(1+rvanilla06)^0.5)/A1stdlife)) -> 0 | BC113: =IF(A1stdlife="n/a","n/a",IF(BC$3>(A1stdlife+$E113),('PTRM input'!$L$203*(1+rvanilla06)^0.5)-SUM($L113:BB113),('PTRM input'!$L$203*(1+rvanilla06)^0.5)/A1stdlife)) -> 0 | BD113: =IF(A1stdlife="n/a","n/a",IF(BD$3>(A1stdlife+$E113),('PTRM input'!$L$203*(1+rvanilla06)^0.5)-SUM($L113:BC113),('PTRM input'!$L$203*(1+rvanilla06)^0.5)/A1stdlife)) -> 0 | BE113: =IF(A1stdlife="n/a","n/a",IF(BE$3>(A1stdlife+$E113),('PTRM input'!$L$203*(1+rvanilla06)^0.5)-SUM($L113:BD113),('PTRM input'!$L$203*(1+rvanilla06)^0.5)/A1stdlife)) -> 0 | BF113: =IF(A1stdlife="n/a","n/a",IF(BF$3>(A1stdlife+$E113),('PTRM input'!$L$203*(1+rvanilla06)^0.5)-SUM($L113:BE113),('PTRM input'!$L$203*(1+rvanilla06)^0.5)/A1stdlife)) -> 0 | BG113: =IF(A1stdlife="n/a","n/a",IF(BG$3>(A1stdlife+$E113),('PTRM input'!$L$203*(1+rvanilla06)^0.5)-SUM($L113:BF113),('PTRM input'!$L$203*(1+rvanilla06)^0.5)/A1stdlife)) -> 0 | BH113: =IF(A1stdlife="n/a","n/a",IF(BH$3>(A1stdlife+$E113),('PTRM input'!$L$203*(1+rvanilla06)^0.5)-SUM($L113:BG113),('PTRM input'!$L$203*(1+rvanilla06)^0.5)/A1stdlife)) -> 0 | BI113: =IF(A1stdlife="n/a","n/a",IF(BI$3>(A1stdlife+$E113),('PTRM input'!$L$203*(1+rvanilla06)^0.5)-SUM($L113:BH113),('PTRM input'!$L$203*(1+rvanilla06)^0.5)/A1stdlife)) -> 0
E114: 7 | N114: =IF(A1stdlife="n/a","n/a",IF(N$3>(A1stdlife+$E114),('PTRM input'!$M$203*(1+rvanilla07)^0.5)-SUM($M114:M114),('PTRM input'!$M$203*(1+rvanilla07)^0.5)/A1stdlife)) -> 0 | O114: =IF(A1stdlife="n/a","n/a",IF(O$3>(A1stdlife+$E114),('PTRM input'!$M$203*(1+rvanilla07)^0.5)-SUM($M114:N114),('PTRM input'!$M$203*(1+rvanilla07)^0.5)/A1stdlife)) -> 0 | P114: =IF(A1stdlife="n/a","n/a",IF(P$3>(A1stdlife+$E114),('PTRM input'!$M$203*(1+rvanilla07)^0.5)-SUM($M114:O114),('PTRM input'!$M$203*(1+rvanilla07)^0.5)/A1stdlife)) -> 0 | Q114: =IF(A1stdlife="n/a","n/a",IF(Q$3>(A1stdlife+$E114),('PTRM input'!$M$203*(1+rvanilla07)^0.5)-SUM($M114:P114),('PTRM input'!$M$203*(1+rvanilla07)^0.5)/A1stdlife)) -> 0 | R114: =IF(A1stdlife="n/a","n/a",IF(R$3>(A1stdlife+$E114),('PTRM input'!$M$203*(1+rvanilla07)^0.5)-SUM($M114:Q114),('PTRM input'!$M$203*(1+rvanilla07)^0.5)/A1stdlife)) -> 0 | S114: =IF(A1stdlife="n/a","n/a",IF(S$3>(A1stdlife+$E114),('PTRM input'!$M$203*(1+rvanilla07)^0.5)-SUM($M114:R114),('PTRM input'!$M$203*(1+rvanilla07)^0.5)/A1stdlife)) -> 0 | T114: =IF(A1stdlife="n/a","n/a",IF(T$3>(A1stdlife+$E114),('PTRM input'!$M$203*(1+rvanilla07)^0.5)-SUM($M114:S114),('PTRM input'!$M$203*(1+rvanilla07)^0.5)/A1stdlife)) -> 0 | U114: =IF(A1stdlife="n/a","n/a",IF(U$3>(A1stdlife+$E114),('PTRM input'!$M$203*(1+rvanilla07)^0.5)-SUM($M114:T114),('PTRM input'!$M$203*(1+rvanilla07)^0.5)/A1stdlife)) -> 0 | V114: =IF(A1stdlife="n/a","n/a",IF(V$3>(A1stdlife+$E114),('PTRM input'!$M$203*(1+rvanilla07)^0.5)-SUM($M114:U114),('PTRM input'!$M$203*(1+rvanilla07)^0.5)/A1stdlife)) -> 0 | W114: =IF(A1stdlife="n/a","n/a",IF(W$3>(A1stdlife+$E114),('PTRM input'!$M$203*(1+rvanilla07)^0.5)-SUM($M114:V114),('PTRM input'!$M$203*(1+rvanilla07)^0.5)/A1stdlife)) -> 0 | X114: =IF(A1stdlife="n/a","n/a",IF(X$3>(A1stdlife+$E114),('PTRM input'!$M$203*(1+rvanilla07)^0.5)-SUM($M114:W114),('PTRM input'!$M$203*(1+rvanilla07)^0.5)/A1stdlife)) -> 0 | Y114: =IF(A1stdlife="n/a","n/a",IF(Y$3>(A1stdlife+$E114),('PTRM input'!$M$203*(1+rvanilla07)^0.5)-SUM($M114:X114),('PTRM input'!$M$203*(1+rvanilla07)^0.5)/A1stdlife)) -> 0 | Z114: =IF(A1stdlife="n/a","n/a",IF(Z$3>(A1stdlife+$E114),('PTRM input'!$M$203*(1+rvanilla07)^0.5)-SUM($M114:Y114),('PTRM input'!$M$203*(1+rvanilla07)^0.5)/A1stdlife)) -> 0 | AA114: =IF(A1stdlife="n/a","n/a",IF(AA$3>(A1stdlife+$E114),('PTRM input'!$M$203*(1+rvanilla07)^0.5)-SUM($M114:Z114),('PTRM input'!$M$203*(1+rvanilla07)^0.5)/A1stdlife)) -> 0 | AB114: =IF(A1stdlife="n/a","n/a",IF(AB$3>(A1stdlife+$E114),('PTRM input'!$M$203*(1+rvanilla07)^0.5)-SUM($M114:AA114),('PTRM input'!$M$203*(1+rvanilla07)^0.5)/A1stdlife)) -> 0 | AC114: =IF(A1stdlife="n/a","n/a",IF(AC$3>(A1stdlife+$E114),('PTRM input'!$M$203*(1+rvanilla07)^0.5)-SUM($M114:AB114),('PTRM input'!$M$203*(1+rvanilla07)^0.5)/A1stdlife)) -> 0 | AD114: =IF(A1stdlife="n/a","n/a",IF(AD$3>(A1stdlife+$E114),('PTRM input'!$M$203*(1+rvanilla07)^0.5)-SUM($M114:AC114),('PTRM input'!$M$203*(1+rvanilla07)^0.5)/A1stdlife)) -> 0 | AE114: =IF(A1stdlife="n/a","n/a",IF(AE$3>(A1stdlife+$E114),('PTRM input'!$M$203*(1+rvanilla07)^0.5)-SUM($M114:AD114),('PTRM input'!$M$203*(1+rvanilla07)^0.5)/A1stdlife)) -> 0 | AF114: =IF(A1stdlife="n/a","n/a",IF(AF$3>(A1stdlife+$E114),('PTRM input'!$M$203*(1+rvanilla07)^0.5)-SUM($M114:AE114),('PTRM input'!$M$203*(1+rvanilla07)^0.5)/A1stdlife)) -> 0 | AG114: =IF(A1stdlife="n/a","n/a",IF(AG$3>(A1stdlife+$E114),('PTRM input'!$M$203*(1+rvanilla07)^0.5)-SUM($M114:AF114),('PTRM input'!$M$203*(1+rvanilla07)^0.5)/A1stdlife)) -> 0 | AH114: =IF(A1stdlife="n/a","n/a",IF(AH$3>(A1stdlife+$E114),('PTRM input'!$M$203*(1+rvanilla07)^0.5)-SUM($M114:AG114),('PTRM input'!$M$203*(1+rvanilla07)^0.5)/A1stdlife)) -> 0 | AI114: =IF(A1stdlife="n/a","n/a",IF(AI$3>(A1stdlife+$E114),('PTRM input'!$M$203*(1+rvanilla07)^0.5)-SUM($M114:AH114),('PTRM input'!$M$203*(1+rvanilla07)^0.5)/A1stdlife)) -> 0 | AJ114: =IF(A1stdlife="n/a","n/a",IF(AJ$3>(A1stdlife+$E114),('PTRM input'!$M$203*(1+rvanilla07)^0.5)-SUM($M114:AI114),('PTRM input'!$M$203*(1+rvanilla07)^0.5)/A1stdlife)) -> 0 | AK114: =IF(A1stdlife="n/a","n/a",IF(AK$3>(A1stdlife+$E114),('PTRM input'!$M$203*(1+rvanilla07)^0.5)-SUM($M114:AJ114),('PTRM input'!$M$203*(1+rvanilla07)^0.5)/A1stdlife)) -> 0 | AL114: =IF(A1stdlife="n/a","n/a",IF(AL$3>(A1stdlife+$E114),('PTRM input'!$M$203*(1+rvanilla07)^0.5)-SUM($M114:AK114),('PTRM input'!$M$203*(1+rvanilla07)^0.5)/A1stdlife)) -> 0 | AM114: =IF(A1stdlife="n/a","n/a",IF(AM$3>(A1stdlife+$E114),('PTRM input'!$M$203*(1+rvanilla07)^0.5)-SUM($M114:AL114),('PTRM input'!$M$203*(1+rvanilla07)^0.5)/A1stdlife)) -> 0 | AN114: =IF(A1stdlife="n/a","n/a",IF(AN$3>(A1stdlife+$E114),('PTRM input'!$M$203*(1+rvanilla07)^0.5)-SUM($M114:AM114),('PTRM input'!$M$203*(1+rvanilla07)^0.5)/A1stdlife)) -> 0 | AO114: =IF(A1stdlife="n/a","n/a",IF(AO$3>(A1stdlife+$E114),('PTRM input'!$M$203*(1+rvanilla07)^0.5)-SUM($M114:AN114),('PTRM input'!$M$203*(1+rvanilla07)^0.5)/A1stdlife)) -> 0 | AP114: =IF(A1stdlife="n/a","n/a",IF(AP$3>(A1stdlife+$E114),('PTRM input'!$M$203*(1+rvanilla07)^0.5)-SUM($M114:AO114),('PTRM input'!$M$203*(1+rvanilla07)^0.5)/A1stdlife)) -> 0 | AQ114: =IF(A1stdlife="n/a","n/a",IF(AQ$3>(A1stdlife+$E114),('PTRM input'!$M$203*(1+rvanilla07)^0.5)-SUM($M114:AP114),('PTRM input'!$M$203*(1+rvanilla07)^0.5)/A1stdlife)) -> 0 | AR114: =IF(A1stdlife="n/a","n/a",IF(AR$3>(A1stdlife+$E114),('PTRM input'!$M$203*(1+rvanilla07)^0.5)-SUM($M114:AQ114),('PTRM input'!$M$203*(1+rvanilla07)^0.5)/A1stdlife)) -> 0 | AS114: =IF(A1stdlife="n/a","n/a",IF(AS$3>(A1stdlife+$E114),('PTRM input'!$M$203*(1+rvanilla07)^0.5)-SUM($M114:AR114),('PTRM input'!$M$203*(1+rvanilla07)^0.5)/A1stdlife)) -> 0 | AT114: =IF(A1stdlife="n/a","n/a",IF(AT$3>(A1stdlife+$E114),('PTRM input'!$M$203*(1+rvanilla07)^0.5)-SUM($M114:AS114),('PTRM input'!$M$203*(1+rvanilla07)^0.5)/A1stdlife)) -> 0 | AU114: =IF(A1stdlife="n/a","n/a",IF(AU$3>(A1stdlife+$E114),('PTRM input'!$M$203*(1+rvanilla07)^0.5)-SUM($M114:AT114),('PTRM input'!$M$203*(1+rvanilla07)^0.5)/A1stdlife)) -> 0 | AV114: =IF(A1stdlife="n/a","n/a",IF(AV$3>(A1stdlife+$E114),('PTRM input'!$M$203*(1+rvanilla07)^0.5)-SUM($M114:AU114),('PTRM input'!$M$203*(1+rvanilla07)^0.5)/A1stdlife)) -> 0 | AW114: =IF(A1stdlife="n/a","n/a",IF(AW$3>(A1stdlife+$E114),('PTRM input'!$M$203*(1+rvanilla07)^0.5)-SUM($M114:AV114),('PTRM input'!$M$203*(1+rvanilla07)^0.5)/A1stdlife)) -> 0 | AX114: =IF(A1stdlife="n/a","n/a",IF(AX$3>(A1stdlife+$E114),('PTRM input'!$M$203*(1+rvanilla07)^0.5)-SUM($M114:AW114),('PTRM input'!$M$203*(1+rvanilla07)^0.5)/A1stdlife)) -> 0 | AY114: =IF(A1stdlife="n/a","n/a",IF(AY$3>(A1stdlife+$E114),('PTRM input'!$M$203*(1+rvanilla07)^0.5)-SUM($M114:AX114),('PTRM input'!$M$203*(1+rvanilla07)^0.5)/A1stdlife)) -> 0 | AZ114: =IF(A1stdlife="n/a","n/a",IF(AZ$3>(A1stdlife+$E114),('PTRM input'!$M$203*(1+rvanilla07)^0.5)-SUM($M114:AY114),('PTRM input'!$M$203*(1+rvanilla07)^0.5)/A1stdlife)) -> 0 | BA114: =IF(A1stdlife="n/a","n/a",IF(BA$3>(A1stdlife+$E114),('PTRM input'!$M$203*(1+rvanilla07)^0.5)-SUM($M114:AZ114),('PTRM input'!$M$203*(1+rvanilla07)^0.5)/A1stdlife)) -> 0 | BB114: =IF(A1stdlife="n/a","n/a",IF(BB$3>(A1stdlife+$E114),('PTRM input'!$M$203*(1+rvanilla07)^0.5)-SUM($M114:BA114),('PTRM input'!$M$203*(1+rvanilla07)^0.5)/A1stdlife)) -> 0 | BC114: =IF(A1stdlife="n/a","n/a",IF(BC$3>(A1stdlife+$E114),('PTRM input'!$M$203*(1+rvanilla07)^0.5)-SUM($M114:BB114),('PTRM input'!$M$203*(1+rvanilla07)^0.5)/A1stdlife)) -> 0 | BD114: =IF(A1stdlife="n/a","n/a",IF(BD$3>(A1stdlife+$E114),('PTRM input'!$M$203*(1+rvanilla07)^0.5)-SUM($M114:BC114),('PTRM input'!$M$203*(1+rvanilla07)^0.5)/A1stdlife)) -> 0 | BE114: =IF(A1stdlife="n/a","n/a",IF(BE$3>(A1stdlife+$E114),('PTRM input'!$M$203*(1+rvanilla07)^0.5)-SUM($M114:BD114),('PTRM input'!$M$203*(1+rvanilla07)^0.5)/A1stdlife)) -> 0 | BF114: =IF(A1stdlife="n/a","n/a",IF(BF$3>(A1stdlife+$E114),('PTRM input'!$M$203*(1+rvanilla07)^0.5)-SUM($M114:BE114),('PTRM input'!$M$203*(1+rvanilla07)^0.5)/A1stdlife)) -> 0 | BG114: =IF(A1stdlife="n/a","n/a",IF(BG$3>(A1stdlife+$E114),('PTRM input'!$M$203*(1+rvanilla07)^0.5)-SUM($M114:BF114),('PTRM input'!$M$203*(1+rvanilla07)^0.5)/A1stdlife)) -> 0 | BH114: =IF(A1stdlife="n/a","n/a",IF(BH$3>(A1stdlife+$E114),('PTRM input'!$M$203*(1+rvanilla07)^0.5)-SUM($M114:BG114),('PTRM input'!$M$203*(1+rvanilla07)^0.5)/A1stdlife)) -> 0 | BI114: =IF(A1stdlife="n/a","n/a",IF(BI$3>(A1stdlife+$E114),('PTRM input'!$M$203*(1+rvanilla07)^0.5)-SUM($M114:BH114),('PTRM input'!$M$203*(1+rvanilla07)^0.5)/A1stdlife)) -> 0
E115: 8 | O115: =IF(A1stdlife="n/a","n/a",IF(O$3>(A1stdlife+$E115),('PTRM input'!$N$203*(1+rvanilla08)^0.5)-SUM($N115:N115),('PTRM input'!$N$203*(1+rvanilla08)^0.5)/A1stdlife)) -> 0 | P115: =IF(A1stdlife="n/a","n/a",IF(P$3>(A1stdlife+$E115),('PTRM input'!$N$203*(1+rvanilla08)^0.5)-SUM($N115:O115),('PTRM input'!$N$203*(1+rvanilla08)^0.5)/A1stdlife)) -> 0 | Q115: =IF(A1stdlife="n/a","n/a",IF(Q$3>(A1stdlife+$E115),('PTRM input'!$N$203*(1+rvanilla08)^0.5)-SUM($N115:P115),('PTRM input'!$N$203*(1+rvanilla08)^0.5)/A1stdlife)) -> 0 | R115: =IF(A1stdlife="n/a","n/a",IF(R$3>(A1stdlife+$E115),('PTRM input'!$N$203*(1+rvanilla08)^0.5)-SUM($N115:Q115),('PTRM input'!$N$203*(1+rvanilla08)^0.5)/A1stdlife)) -> 0 | S115: =IF(A1stdlife="n/a","n/a",IF(S$3>(A1stdlife+$E115),('PTRM input'!$N$203*(1+rvanilla08)^0.5)-SUM($N115:R115),('PTRM input'!$N$203*(1+rvanilla08)^0.5)/A1stdlife)) -> 0 | T115: =IF(A1stdlife="n/a","n/a",IF(T$3>(A1stdlife+$E115),('PTRM input'!$N$203*(1+rvanilla08)^0.5)-SUM($N115:S115),('PTRM input'!$N$203*(1+rvanilla08)^0.5)/A1stdlife)) -> 0 | U115: =IF(A1stdlife="n/a","n/a",IF(U$3>(A1stdlife+$E115),('PTRM input'!$N$203*(1+rvanilla08)^0.5)-SUM($N115:T115),('PTRM input'!$N$203*(1+rvanilla08)^0.5)/A1stdlife)) -> 0 | V115: =IF(A1stdlife="n/a","n/a",IF(V$3>(A1stdlife+$E115),('PTRM input'!$N$203*(1+rvanilla08)^0.5)-SUM($N115:U115),('PTRM input'!$N$203*(1+rvanilla08)^0.5)/A1stdlife)) -> 0 | W115: =IF(A1stdlife="n/a","n/a",IF(W$3>(A1stdlife+$E115),('PTRM input'!$N$203*(1+rvanilla08)^0.5)-SUM($N115:V115),('PTRM input'!$N$203*(1+rvanilla08)^0.5)/A1stdlife)) -> 0 | X115: =IF(A1stdlife="n/a","n/a",IF(X$3>(A1stdlife+$E115),('PTRM input'!$N$203*(1+rvanilla08)^0.5)-SUM($N115:W115),('PTRM input'!$N$203*(1+rvanilla08)^0.5)/A1stdlife)) -> 0 | Y115: =IF(A1stdlife="n/a","n/a",IF(Y$3>(A1stdlife+$E115),('PTRM input'!$N$203*(1+rvanilla08)^0.5)-SUM($N115:X115),('PTRM input'!$N$203*(1+rvanilla08)^0.5)/A1stdlife)) -> 0 | Z115: =IF(A1stdlife="n/a","n/a",IF(Z$3>(A1stdlife+$E115),('PTRM input'!$N$203*(1+rvanilla08)^0.5)-SUM($N115:Y115),('PTRM input'!$N$203*(1+rvanilla08)^0.5)/A1stdlife)) -> 0 | AA115: =IF(A1stdlife="n/a","n/a",IF(AA$3>(A1stdlife+$E115),('PTRM input'!$N$203*(1+rvanilla08)^0.5)-SUM($N115:Z115),('PTRM input'!$N$203*(1+rvanilla08)^0.5)/A1stdlife)) -> 0 | AB115: =IF(A1stdlife="n/a","n/a",IF(AB$3>(A1stdlife+$E115),('PTRM input'!$N$203*(1+rvanilla08)^0.5)-SUM($N115:AA115),('PTRM input'!$N$203*(1+rvanilla08)^0.5)/A1stdlife)) -> 0 | AC115: =IF(A1stdlife="n/a","n/a",IF(AC$3>(A1stdlife+$E115),('PTRM input'!$N$203*(1+rvanilla08)^0.5)-SUM($N115:AB115),('PTRM input'!$N$203*(1+rvanilla08)^0.5)/A1stdlife)) -> 0 | AD115: =IF(A1stdlife="n/a","n/a",IF(AD$3>(A1stdlife+$E115),('PTRM input'!$N$203*(1+rvanilla08)^0.5)-SUM($N115:AC115),('PTRM input'!$N$203*(1+rvanilla08)^0.5)/A1stdlife)) -> 0 | AE115: =IF(A1stdlife="n/a","n/a",IF(AE$3>(A1stdlife+$E115),('PTRM input'!$N$203*(1+rvanilla08)^0.5)-SUM($N115:AD115),('PTRM input'!$N$203*(1+rvanilla08)^0.5)/A1stdlife)) -> 0 | AF115: =IF(A1stdlife="n/a","n/a",IF(AF$3>(A1stdlife+$E115),('PTRM input'!$N$203*(1+rvanilla08)^0.5)-SUM($N115:AE115),('PTRM input'!$N$203*(1+rvanilla08)^0.5)/A1stdlife)) -> 0 | AG115: =IF(A1stdlife="n/a","n/a",IF(AG$3>(A1stdlife+$E115),('PTRM input'!$N$203*(1+rvanilla08)^0.5)-SUM($N115:AF115),('PTRM input'!$N$203*(1+rvanilla08)^0.5)/A1stdlife)) -> 0 | AH115: =IF(A1stdlife="n/a","n/a",IF(AH$3>(A1stdlife+$E115),('PTRM input'!$N$203*(1+rvanilla08)^0.5)-SUM($N115:AG115),('PTRM input'!$N$203*(1+rvanilla08)^0.5)/A1stdlife)) -> 0 | AI115: =IF(A1stdlife="n/a","n/a",IF(AI$3>(A1stdlife+$E115),('PTRM input'!$N$203*(1+rvanilla08)^0.5)-SUM($N115:AH115),('PTRM input'!$N$203*(1+rvanilla08)^0.5)/A1stdlife)) -> 0 | AJ115: =IF(A1stdlife="n/a","n/a",IF(AJ$3>(A1stdlife+$E115),('PTRM input'!$N$203*(1+rvanilla08)^0.5)-SUM($N115:AI115),('PTRM input'!$N$203*(1+rvanilla08)^0.5)/A1stdlife)) -> 0 | AK115: =IF(A1stdlife="n/a","n/a",IF(AK$3>(A1stdlife+$E115),('PTRM input'!$N$203*(1+rvanilla08)^0.5)-SUM($N115:AJ115),('PTRM input'!$N$203*(1+rvanilla08)^0.5)/A1stdlife)) -> 0 | AL115: =IF(A1stdlife="n/a","n/a",IF(AL$3>(A1stdlife+$E115),('PTRM input'!$N$203*(1+rvanilla08)^0.5)-SUM($N115:AK115),('PTRM input'!$N$203*(1+rvanilla08)^0.5)/A1stdlife)) -> 0 | AM115: =IF(A1stdlife="n/a","n/a",IF(AM$3>(A1stdlife+$E115),('PTRM input'!$N$203*(1+rvanilla08)^0.5)-SUM($N115:AL115),('PTRM input'!$N$203*(1+rvanilla08)^0.5)/A1stdlife)) -> 0 | AN115: =IF(A1stdlife="n/a","n/a",IF(AN$3>(A1stdlife+$E115),('PTRM input'!$N$203*(1+rvanilla08)^0.5)-SUM($N115:AM115),('PTRM input'!$N$203*(1+rvanilla08)^0.5)/A1stdlife)) -> 0 | AO115: =IF(A1stdlife="n/a","n/a",IF(AO$3>(A1stdlife+$E115),('PTRM input'!$N$203*(1+rvanilla08)^0.5)-SUM($N115:AN115),('PTRM input'!$N$203*(1+rvanilla08)^0.5)/A1stdlife)) -> 0 | AP115: =IF(A1stdlife="n/a","n/a",IF(AP$3>(A1stdlife+$E115),('PTRM input'!$N$203*(1+rvanilla08)^0.5)-SUM($N115:AO115),('PTRM input'!$N$203*(1+rvanilla08)^0.5)/A1stdlife)) -> 0 | AQ115: =IF(A1stdlife="n/a","n/a",IF(AQ$3>(A1stdlife+$E115),('PTRM input'!$N$203*(1+rvanilla08)^0.5)-SUM($N115:AP115),('PTRM input'!$N$203*(1+rvanilla08)^0.5)/A1stdlife)) -> 0 | AR115: =IF(A1stdlife="n/a","n/a",IF(AR$3>(A1stdlife+$E115),('PTRM input'!$N$203*(1+rvanilla08)^0.5)-SUM($N115:AQ115),('PTRM input'!$N$203*(1+rvanilla08)^0.5)/A1stdlife)) -> 0 | AS115: =IF(A1stdlife="n/a","n/a",IF(AS$3>(A1stdlife+$E115),('PTRM input'!$N$203*(1+rvanilla08)^0.5)-SUM($N115:AR115),('PTRM input'!$N$203*(1+rvanilla08)^0.5)/A1stdlife)) -> 0 | AT115: =IF(A1stdlife="n/a","n/a",IF(AT$3>(A1stdlife+$E115),('PTRM input'!$N$203*(1+rvanilla08)^0.5)-SUM($N115:AS115),('PTRM input'!$N$203*(1+rvanilla08)^0.5)/A1stdlife)) -> 0 | AU115: =IF(A1stdlife="n/a","n/a",IF(AU$3>(A1stdlife+$E115),('PTRM input'!$N$203*(1+rvanilla08)^0.5)-SUM($N115:AT115),('PTRM input'!$N$203*(1+rvanilla08)^0.5)/A1stdlife)) -> 0 | AV115: =IF(A1stdlife="n/a","n/a",IF(AV$3>(A1stdlife+$E115),('PTRM input'!$N$203*(1+rvanilla08)^0.5)-SUM($N115:AU115),('PTRM input'!$N$203*(1+rvanilla08)^0.5)/A1stdlife)) -> 0 | AW115: =IF(A1stdlife="n/a","n/a",IF(AW$3>(A1stdlife+$E115),('PTRM input'!$N$203*(1+rvanilla08)^0.5)-SUM($N115:AV115),('PTRM input'!$N$203*(1+rvanilla08)^0.5)/A1stdlife)) -> 0 | AX115: =IF(A1stdlife="n/a","n/a",IF(AX$3>(A1stdlife+$E115),('PTRM input'!$N$203*(1+rvanilla08)^0.5)-SUM($N115:AW115),('PTRM input'!$N$203*(1+rvanilla08)^0.5)/A1stdlife)) -> 0 | AY115: =IF(A1stdlife="n/a","n/a",IF(AY$3>(A1stdlife+$E115),('PTRM input'!$N$203*(1+rvanilla08)^0.5)-SUM($N115:AX115),('PTRM input'!$N$203*(1+rvanilla08)^0.5)/A1stdlife)) -> 0 | AZ115: =IF(A1stdlife="n/a","n/a",IF(AZ$3>(A1stdlife+$E115),('PTRM input'!$N$203*(1+rvanilla08)^0.5)-SUM($N115:AY115),('PTRM input'!$N$203*(1+rvanilla08)^0.5)/A1stdlife)) -> 0 | BA115: =IF(A1stdlife="n/a","n/a",IF(BA$3>(A1stdlife+$E115),('PTRM input'!$N$203*(1+rvanilla08)^0.5)-SUM($N115:AZ115),('PTRM input'!$N$203*(1+rvanilla08)^0.5)/A1stdlife)) -> 0 | BB115: =IF(A1stdlife="n/a","n/a",IF(BB$3>(A1stdlife+$E115),('PTRM input'!$N$203*(1+rvanilla08)^0.5)-SUM($N115:BA115),('PTRM input'!$N$203*(1+rvanilla08)^0.5)/A1stdlife)) -> 0 | BC115: =IF(A1stdlife="n/a","n/a",IF(BC$3>(A1stdlife+$E115),('PTRM input'!$N$203*(1+rvanilla08)^0.5)-SUM($N115:BB115),('PTRM input'!$N$203*(1+rvanilla08)^0.5)/A1stdlife)) -> 0 | BD115: =IF(A1stdlife="n/a","n/a",IF(BD$3>(A1stdlife+$E115),('PTRM input'!$N$203*(1+rvanilla08)^0.5)-SUM($N115:BC115),('PTRM input'!$N$203*(1+rvanilla08)^0.5)/A1stdlife)) -> 0 | BE115: =IF(A1stdlife="n/a","n/a",IF(BE$3>(A1stdlife+$E115),('PTRM input'!$N$203*(1+rvanilla08)^0.5)-SUM($N115:BD115),('PTRM input'!$N$203*(1+rvanilla08)^0.5)/A1stdlife)) -> 0 | BF115: =IF(A1stdlife="n/a","n/a",IF(BF$3>(A1stdlife+$E115),('PTRM input'!$N$203*(1+rvanilla08)^0.5)-SUM($N115:BE115),('PTRM input'!$N$203*(1+rvanilla08)^0.5)/A1stdlife)) -> 0 | BG115: =IF(A1stdlife="n/a","n/a",IF(BG$3>(A1stdlife+$E115),('PTRM input'!$N$203*(1+rvanilla08)^0.5)-SUM($N115:BF115),('PTRM input'!$N$203*(1+rvanilla08)^0.5)/A1stdlife)) -> 0 | BH115: =IF(A1stdlife="n/a","n/a",IF(BH$3>(A1stdlife+$E115),('PTRM input'!$N$203*(1+rvanilla08)^0.5)-SUM($N115:BG115),('PTRM input'!$N$203*(1+rvanilla08)^0.5)/A1stdlife)) -> 0 | BI115: =IF(A1stdlife="n/a","n/a",IF(BI$3>(A1stdlife+$E115),('PTRM input'!$N$203*(1+rvanilla08)^0.5)-SUM($N115:BH115),('PTRM input'!$N$203*(1+rvanilla08)^0.5)/A1stdlife)) -> 0
E116: 9 | P116: =IF(A1stdlife="n/a","n/a",IF(P$3>(A1stdlife+$E116),('PTRM input'!$O$203*(1+rvanilla09)^0.5)-SUM($O116:O116),('PTRM input'!$O$203*(1+rvanilla09)^0.5)/A1stdlife)) -> 0 | Q116: =IF(A1stdlife="n/a","n/a",IF(Q$3>(A1stdlife+$E116),('PTRM input'!$O$203*(1+rvanilla09)^0.5)-SUM($O116:P116),('PTRM input'!$O$203*(1+rvanilla09)^0.5)/A1stdlife)) -> 0 | R116: =IF(A1stdlife="n/a","n/a",IF(R$3>(A1stdlife+$E116),('PTRM input'!$O$203*(1+rvanilla09)^0.5)-SUM($O116:Q116),('PTRM input'!$O$203*(1+rvanilla09)^0.5)/A1stdlife)) -> 0 | S116: =IF(A1stdlife="n/a","n/a",IF(S$3>(A1stdlife+$E116),('PTRM input'!$O$203*(1+rvanilla09)^0.5)-SUM($O116:R116),('PTRM input'!$O$203*(1+rvanilla09)^0.5)/A1stdlife)) -> 0 | T116: =IF(A1stdlife="n/a","n/a",IF(T$3>(A1stdlife+$E116),('PTRM input'!$O$203*(1+rvanilla09)^0.5)-SUM($O116:S116),('PTRM input'!$O$203*(1+rvanilla09)^0.5)/A1stdlife)) -> 0 | U116: =IF(A1stdlife="n/a","n/a",IF(U$3>(A1stdlife+$E116),('PTRM input'!$O$203*(1+rvanilla09)^0.5)-SUM($O116:T116),('PTRM input'!$O$203*(1+rvanilla09)^0.5)/A1stdlife)) -> 0 | V116: =IF(A1stdlife="n/a","n/a",IF(V$3>(A1stdlife+$E116),('PTRM input'!$O$203*(1+rvanilla09)^0.5)-SUM($O116:U116),('PTRM input'!$O$203*(1+rvanilla09)^0.5)/A1stdlife)) -> 0 | W116: =IF(A1stdlife="n/a","n/a",IF(W$3>(A1stdlife+$E116),('PTRM input'!$O$203*(1+rvanilla09)^0.5)-SUM($O116:V116),('PTRM input'!$O$203*(1+rvanilla09)^0.5)/A1stdlife)) -> 0 | X116: =IF(A1stdlife="n/a","n/a",IF(X$3>(A1stdlife+$E116),('PTRM input'!$O$203*(1+rvanilla09)^0.5)-SUM($O116:W116),('PTRM input'!$O$203*(1+rvanilla09)^0.5)/A1stdlife)) -> 0 | Y116: =IF(A1stdlife="n/a","n/a",IF(Y$3>(A1stdlife+$E116),('PTRM input'!$O$203*(1+rvanilla09)^0.5)-SUM($O116:X116),('PTRM input'!$O$203*(1+rvanilla09)^0.5)/A1stdlife)) -> 0 | Z116: =IF(A1stdlife="n/a","n/a",IF(Z$3>(A1stdlife+$E116),('PTRM input'!$O$203*(1+rvanilla09)^0.5)-SUM($O116:Y116),('PTRM input'!$O$203*(1+rvanilla09)^0.5)/A1stdlife)) -> 0 | AA116: =IF(A1stdlife="n/a","n/a",IF(AA$3>(A1stdlife+$E116),('PTRM input'!$O$203*(1+rvanilla09)^0.5)-SUM($O116:Z116),('PTRM input'!$O$203*(1+rvanilla09)^0.5)/A1stdlife)) -> 0 | AB116: =IF(A1stdlife="n/a","n/a",IF(AB$3>(A1stdlife+$E116),('PTRM input'!$O$203*(1+rvanilla09)^0.5)-SUM($O116:AA116),('PTRM input'!$O$203*(1+rvanilla09)^0.5)/A1stdlife)) -> 0 | AC116: =IF(A1stdlife="n/a","n/a",IF(AC$3>(A1stdlife+$E116),('PTRM input'!$O$203*(1+rvanilla09)^0.5)-SUM($O116:AB116),('PTRM input'!$O$203*(1+rvanilla09)^0.5)/A1stdlife)) -> 0 | AD116: =IF(A1stdlife="n/a","n/a",IF(AD$3>(A1stdlife+$E116),('PTRM input'!$O$203*(1+rvanilla09)^0.5)-SUM($O116:AC116),('PTRM input'!$O$203*(1+rvanilla09)^0.5)/A1stdlife)) -> 0 | AE116: =IF(A1stdlife="n/a","n/a",IF(AE$3>(A1stdlife+$E116),('PTRM input'!$O$203*(1+rvanilla09)^0.5)-SUM($O116:AD116),('PTRM input'!$O$203*(1+rvanilla09)^0.5)/A1stdlife)) -> 0 | AF116: =IF(A1stdlife="n/a","n/a",IF(AF$3>(A1stdlife+$E116),('PTRM input'!$O$203*(1+rvanilla09)^0.5)-SUM($O116:AE116),('PTRM input'!$O$203*(1+rvanilla09)^0.5)/A1stdlife)) -> 0 | AG116: =IF(A1stdlife="n/a","n/a",IF(AG$3>(A1stdlife+$E116),('PTRM input'!$O$203*(1+rvanilla09)^0.5)-SUM($O116:AF116),('PTRM input'!$O$203*(1+rvanilla09)^0.5)/A1stdlife)) -> 0 | AH116: =IF(A1stdlife="n/a","n/a",IF(AH$3>(A1stdlife+$E116),('PTRM input'!$O$203*(1+rvanilla09)^0.5)-SUM($O116:AG116),('PTRM input'!$O$203*(1+rvanilla09)^0.5)/A1stdlife)) -> 0 | AI116: =IF(A1stdlife="n/a","n/a",IF(AI$3>(A1stdlife+$E116),('PTRM input'!$O$203*(1+rvanilla09)^0.5)-SUM($O116:AH116),('PTRM input'!$O$203*(1+rvanilla09)^0.5)/A1stdlife)) -> 0 | AJ116: =IF(A1stdlife="n/a","n/a",IF(AJ$3>(A1stdlife+$E116),('PTRM input'!$O$203*(1+rvanilla09)^0.5)-SUM($O116:AI116),('PTRM input'!$O$203*(1+rvanilla09)^0.5)/A1stdlife)) -> 0 | AK116: =IF(A1stdlife="n/a","n/a",IF(AK$3>(A1stdlife+$E116),('PTRM input'!$O$203*(1+rvanilla09)^0.5)-SUM($O116:AJ116),('PTRM input'!$O$203*(1+rvanilla09)^0.5)/A1stdlife)) -> 0 | AL116: =IF(A1stdlife="n/a","n/a",IF(AL$3>(A1stdlife+$E116),('PTRM input'!$O$203*(1+rvanilla09)^0.5)-SUM($O116:AK116),('PTRM input'!$O$203*(1+rvanilla09)^0.5)/A1stdlife)) -> 0 | AM116: =IF(A1stdlife="n/a","n/a",IF(AM$3>(A1stdlife+$E116),('PTRM input'!$O$203*(1+rvanilla09)^0.5)-SUM($O116:AL116),('PTRM input'!$O$203*(1+rvanilla09)^0.5)/A1stdlife)) -> 0 | AN116: =IF(A1stdlife="n/a","n/a",IF(AN$3>(A1stdlife+$E116),('PTRM input'!$O$203*(1+rvanilla09)^0.5)-SUM($O116:AM116),('PTRM input'!$O$203*(1+rvanilla09)^0.5)/A1stdlife)) -> 0 | AO116: =IF(A1stdlife="n/a","n/a",IF(AO$3>(A1stdlife+$E116),('PTRM input'!$O$203*(1+rvanilla09)^0.5)-SUM($O116:AN116),('PTRM input'!$O$203*(1+rvanilla09)^0.5)/A1stdlife)) -> 0 | AP116: =IF(A1stdlife="n/a","n/a",IF(AP$3>(A1stdlife+$E116),('PTRM input'!$O$203*(1+rvanilla09)^0.5)-SUM($O116:AO116),('PTRM input'!$O$203*(1+rvanilla09)^0.5)/A1stdlife)) -> 0 | AQ116: =IF(A1stdlife="n/a","n/a",IF(AQ$3>(A1stdlife+$E116),('PTRM input'!$O$203*(1+rvanilla09)^0.5)-SUM($O116:AP116),('PTRM input'!$O$203*(1+rvanilla09)^0.5)/A1stdlife)) -> 0 | AR116: =IF(A1stdlife="n/a","n/a",IF(AR$3>(A1stdlife+$E116),('PTRM input'!$O$203*(1+rvanilla09)^0.5)-SUM($O116:AQ116),('PTRM input'!$O$203*(1+rvanilla09)^0.5)/A1stdlife)) -> 0 | AS116: =IF(A1stdlife="n/a","n/a",IF(AS$3>(A1stdlife+$E116),('PTRM input'!$O$203*(1+rvanilla09)^0.5)-SUM($O116:AR116),('PTRM input'!$O$203*(1+rvanilla09)^0.5)/A1stdlife)) -> 0 | AT116: =IF(A1stdlife="n/a","n/a",IF(AT$3>(A1stdlife+$E116),('PTRM input'!$O$203*(1+rvanilla09)^0.5)-SUM($O116:AS116),('PTRM input'!$O$203*(1+rvanilla09)^0.5)/A1stdlife)) -> 0 | AU116: =IF(A1stdlife="n/a","n/a",IF(AU$3>(A1stdlife+$E116),('PTRM input'!$O$203*(1+rvanilla09)^0.5)-SUM($O116:AT116),('PTRM input'!$O$203*(1+rvanilla09)^0.5)/A1stdlife)) -> 0 | AV116: =IF(A1stdlife="n/a","n/a",IF(AV$3>(A1stdlife+$E116),('PTRM input'!$O$203*(1+rvanilla09)^0.5)-SUM($O116:AU116),('PTRM input'!$O$203*(1+rvanilla09)^0.5)/A1stdlife)) -> 0 | AW116: =IF(A1stdlife="n/a","n/a",IF(AW$3>(A1stdlife+$E116),('PTRM input'!$O$203*(1+rvanilla09)^0.5)-SUM($O116:AV116),('PTRM input'!$O$203*(1+rvanilla09)^0.5)/A1stdlife)) -> 0 | AX116: =IF(A1stdlife="n/a","n/a",IF(AX$3>(A1stdlife+$E116),('PTRM input'!$O$203*(1+rvanilla09)^0.5)-SUM($O116:AW116),('PTRM input'!$O$203*(1+rvanilla09)^0.5)/A1stdlife)) -> 0 | AY116: =IF(A1stdlife="n/a","n/a",IF(AY$3>(A1stdlife+$E116),('PTRM input'!$O$203*(1+rvanilla09)^0.5)-SUM($O116:AX116),('PTRM input'!$O$203*(1+rvanilla09)^0.5)/A1stdlife)) -> 0 | AZ116: =IF(A1stdlife="n/a","n/a",IF(AZ$3>(A1stdlife+$E116),('PTRM input'!$O$203*(1+rvanilla09)^0.5)-SUM($O116:AY116),('PTRM input'!$O$203*(1+rvanilla09)^0.5)/A1stdlife)) -> 0 | BA116: =IF(A1stdlife="n/a","n/a",IF(BA$3>(A1stdlife+$E116),('PTRM input'!$O$203*(1+rvanilla09)^0.5)-SUM($O116:AZ116),('PTRM input'!$O$203*(1+rvanilla09)^0.5)/A1stdlife)) -> 0 | BB116: =IF(A1stdlife="n/a","n/a",IF(BB$3>(A1stdlife+$E116),('PTRM input'!$O$203*(1+rvanilla09)^0.5)-SUM($O116:BA116),('PTRM input'!$O$203*(1+rvanilla09)^0.5)/A1stdlife)) -> 0 | BC116: =IF(A1stdlife="n/a","n/a",IF(BC$3>(A1stdlife+$E116),('PTRM input'!$O$203*(1+rvanilla09)^0.5)-SUM($O116:BB116),('PTRM input'!$O$203*(1+rvanilla09)^0.5)/A1stdlife)) -> 0 | BD116: =IF(A1stdlife="n/a","n/a",IF(BD$3>(A1stdlife+$E116),('PTRM input'!$O$203*(1+rvanilla09)^0.5)-SUM($O116:BC116),('PTRM input'!$O$203*(1+rvanilla09)^0.5)/A1stdlife)) -> 0 | BE116: =IF(A1stdlife="n/a","n/a",IF(BE$3>(A1stdlife+$E116),('PTRM input'!$O$203*(1+rvanilla09)^0.5)-SUM($O116:BD116),('PTRM input'!$O$203*(1+rvanilla09)^0.5)/A1stdlife)) -> 0 | BF116: =IF(A1stdlife="n/a","n/a",IF(BF$3>(A1stdlife+$E116),('PTRM input'!$O$203*(1+rvanilla09)^0.5)-SUM($O116:BE116),('PTRM input'!$O$203*(1+rvanilla09)^0.5)/A1stdlife)) -> 0 | BG116: =IF(A1stdlife="n/a","n/a",IF(BG$3>(A1stdlife+$E116),('PTRM input'!$O$203*(1+rvanilla09)^0.5)-SUM($O116:BF116),('PTRM input'!$O$203*(1+rvanilla09)^0.5)/A1stdlife)) -> 0 | BH116: =IF(A1stdlife="n/a","n/a",IF(BH$3>(A1stdlife+$E116),('PTRM input'!$O$203*(1+rvanilla09)^0.5)-SUM($O116:BG116),('PTRM input'!$O$203*(1+rvanilla09)^0.5)/A1stdlife)) -> 0 | BI116: =IF(A1stdlife="n/a","n/a",IF(BI$3>(A1stdlife+$E116),('PTRM input'!$O$203*(1+rvanilla09)^0.5)-SUM($O116:BH116),('PTRM input'!$O$203*(1+rvanilla09)^0.5)/A1stdlife)) -> 0
E117: 10 | Q117: =IF(A1stdlife="n/a","n/a",IF(Q$3>(A1stdlife+$E117),('PTRM input'!$P$203*(1+rvanilla10)^0.5)-SUM($P117:P117),('PTRM input'!$P$203*(1+rvanilla10)^0.5)/A1stdlife)) -> 0 | R117: =IF(A1stdlife="n/a","n/a",IF(R$3>(A1stdlife+$E117),('PTRM input'!$P$203*(1+rvanilla10)^0.5)-SUM($P117:Q117),('PTRM input'!$P$203*(1+rvanilla10)^0.5)/A1stdlife)) -> 0 | S117: =IF(A1stdlife="n/a","n/a",IF(S$3>(A1stdlife+$E117),('PTRM input'!$P$203*(1+rvanilla10)^0.5)-SUM($P117:R117),('PTRM input'!$P$203*(1+rvanilla10)^0.5)/A1stdlife)) -> 0 | T117: =IF(A1stdlife="n/a","n/a",IF(T$3>(A1stdlife+$E117),('PTRM input'!$P$203*(1+rvanilla10)^0.5)-SUM($P117:S117),('PTRM input'!$P$203*(1+rvanilla10)^0.5)/A1stdlife)) -> 0 | U117: =IF(A1stdlife="n/a","n/a",IF(U$3>(A1stdlife+$E117),('PTRM input'!$P$203*(1+rvanilla10)^0.5)-SUM($P117:T117),('PTRM input'!$P$203*(1+rvanilla10)^0.5)/A1stdlife)) -> 0 | V117: =IF(A1stdlife="n/a","n/a",IF(V$3>(A1stdlife+$E117),('PTRM input'!$P$203*(1+rvanilla10)^0.5)-SUM($P117:U117),('PTRM input'!$P$203*(1+rvanilla10)^0.5)/A1stdlife)) -> 0 | W117: =IF(A1stdlife="n/a","n/a",IF(W$3>(A1stdlife+$E117),('PTRM input'!$P$203*(1+rvanilla10)^0.5)-SUM($P117:V117),('PTRM input'!$P$203*(1+rvanilla10)^0.5)/A1stdlife)) -> 0 | X117: =IF(A1stdlife="n/a","n/a",IF(X$3>(A1stdlife+$E117),('PTRM input'!$P$203*(1+rvanilla10)^0.5)-SUM($P117:W117),('PTRM input'!$P$203*(1+rvanilla10)^0.5)/A1stdlife)) -> 0 | Y117: =IF(A1stdlife="n/a","n/a",IF(Y$3>(A1stdlife+$E117),('PTRM input'!$P$203*(1+rvanilla10)^0.5)-SUM($P117:X117),('PTRM input'!$P$203*(1+rvanilla10)^0.5)/A1stdlife)) -> 0 | Z117: =IF(A1stdlife="n/a","n/a",IF(Z$3>(A1stdlife+$E117),('PTRM input'!$P$203*(1+rvanilla10)^0.5)-SUM($P117:Y117),('PTRM input'!$P$203*(1+rvanilla10)^0.5)/A1stdlife)) -> 0 | AA117: =IF(A1stdlife="n/a","n/a",IF(AA$3>(A1stdlife+$E117),('PTRM input'!$P$203*(1+rvanilla10)^0.5)-SUM($P117:Z117),('PTRM input'!$P$203*(1+rvanilla10)^0.5)/A1stdlife)) -> 0 | AB117: =IF(A1stdlife="n/a","n/a",IF(AB$3>(A1stdlife+$E117),('PTRM input'!$P$203*(1+rvanilla10)^0.5)-SUM($P117:AA117),('PTRM input'!$P$203*(1+rvanilla10)^0.5)/A1stdlife)) -> 0 | AC117: =IF(A1stdlife="n/a","n/a",IF(AC$3>(A1stdlife+$E117),('PTRM input'!$P$203*(1+rvanilla10)^0.5)-SUM($P117:AB117),('PTRM input'!$P$203*(1+rvanilla10)^0.5)/A1stdlife)) -> 0 | AD117: =IF(A1stdlife="n/a","n/a",IF(AD$3>(A1stdlife+$E117),('PTRM input'!$P$203*(1+rvanilla10)^0.5)-SUM($P117:AC117),('PTRM input'!$P$203*(1+rvanilla10)^0.5)/A1stdlife)) -> 0 | AE117: =IF(A1stdlife="n/a","n/a",IF(AE$3>(A1stdlife+$E117),('PTRM input'!$P$203*(1+rvanilla10)^0.5)-SUM($P117:AD117),('PTRM input'!$P$203*(1+rvanilla10)^0.5)/A1stdlife)) -> 0 | AF117: =IF(A1stdlife="n/a","n/a",IF(AF$3>(A1stdlife+$E117),('PTRM input'!$P$203*(1+rvanilla10)^0.5)-SUM($P117:AE117),('PTRM input'!$P$203*(1+rvanilla10)^0.5)/A1stdlife)) -> 0 | AG117: =IF(A1stdlife="n/a","n/a",IF(AG$3>(A1stdlife+$E117),('PTRM input'!$P$203*(1+rvanilla10)^0.5)-SUM($P117:AF117),('PTRM input'!$P$203*(1+rvanilla10)^0.5)/A1stdlife)) -> 0 | AH117: =IF(A1stdlife="n/a","n/a",IF(AH$3>(A1stdlife+$E117),('PTRM input'!$P$203*(1+rvanilla10)^0.5)-SUM($P117:AG117),('PTRM input'!$P$203*(1+rvanilla10)^0.5)/A1stdlife)) -> 0 | AI117: =IF(A1stdlife="n/a","n/a",IF(AI$3>(A1stdlife+$E117),('PTRM input'!$P$203*(1+rvanilla10)^0.5)-SUM($P117:AH117),('PTRM input'!$P$203*(1+rvanilla10)^0.5)/A1stdlife)) -> 0 | AJ117: =IF(A1stdlife="n/a","n/a",IF(AJ$3>(A1stdlife+$E117),('PTRM input'!$P$203*(1+rvanilla10)^0.5)-SUM($P117:AI117),('PTRM input'!$P$203*(1+rvanilla10)^0.5)/A1stdlife)) -> 0 | AK117: =IF(A1stdlife="n/a","n/a",IF(AK$3>(A1stdlife+$E117),('PTRM input'!$P$203*(1+rvanilla10)^0.5)-SUM($P117:AJ117),('PTRM input'!$P$203*(1+rvanilla10)^0.5)/A1stdlife)) -> 0 | AL117: =IF(A1stdlife="n/a","n/a",IF(AL$3>(A1stdlife+$E117),('PTRM input'!$P$203*(1+rvanilla10)^0.5)-SUM($P117:AK117),('PTRM input'!$P$203*(1+rvanilla10)^0.5)/A1stdlife)) -> 0 | AM117: =IF(A1stdlife="n/a","n/a",IF(AM$3>(A1stdlife+$E117),('PTRM input'!$P$203*(1+rvanilla10)^0.5)-SUM($P117:AL117),('PTRM input'!$P$203*(1+rvanilla10)^0.5)/A1stdlife)) -> 0 | AN117: =IF(A1stdlife="n/a","n/a",IF(AN$3>(A1stdlife+$E117),('PTRM input'!$P$203*(1+rvanilla10)^0.5)-SUM($P117:AM117),('PTRM input'!$P$203*(1+rvanilla10)^0.5)/A1stdlife)) -> 0 | AO117: =IF(A1stdlife="n/a","n/a",IF(AO$3>(A1stdlife+$E117),('PTRM input'!$P$203*(1+rvanilla10)^0.5)-SUM($P117:AN117),('PTRM input'!$P$203*(1+rvanilla10)^0.5)/A1stdlife)) -> 0 | AP117: =IF(A1stdlife="n/a","n/a",IF(AP$3>(A1stdlife+$E117),('PTRM input'!$P$203*(1+rvanilla10)^0.5)-SUM($P117:AO117),('PTRM input'!$P$203*(1+rvanilla10)^0.5)/A1stdlife)) -> 0 | AQ117: =IF(A1stdlife="n/a","n/a",IF(AQ$3>(A1stdlife+$E117),('PTRM input'!$P$203*(1+rvanilla10)^0.5)-SUM($P117:AP117),('PTRM input'!$P$203*(1+rvanilla10)^0.5)/A1stdlife)) -> 0 | AR117: =IF(A1stdlife="n/a","n/a",IF(AR$3>(A1stdlife+$E117),('PTRM input'!$P$203*(1+rvanilla10)^0.5)-SUM($P117:AQ117),('PTRM input'!$P$203*(1+rvanilla10)^0.5)/A1stdlife)) -> 0 | AS117: =IF(A1stdlife="n/a","n/a",IF(AS$3>(A1stdlife+$E117),('PTRM input'!$P$203*(1+rvanilla10)^0.5)-SUM($P117:AR117),('PTRM input'!$P$203*(1+rvanilla10)^0.5)/A1stdlife)) -> 0 | AT117: =IF(A1stdlife="n/a","n/a",IF(AT$3>(A1stdlife+$E117),('PTRM input'!$P$203*(1+rvanilla10)^0.5)-SUM($P117:AS117),('PTRM input'!$P$203*(1+rvanilla10)^0.5)/A1stdlife)) -> 0 | AU117: =IF(A1stdlife="n/a","n/a",IF(AU$3>(A1stdlife+$E117),('PTRM input'!$P$203*(1+rvanilla10)^0.5)-SUM($P117:AT117),('PTRM input'!$P$203*(1+rvanilla10)^0.5)/A1stdlife)) -> 0 | AV117: =IF(A1stdlife="n/a","n/a",IF(AV$3>(A1stdlife+$E117),('PTRM input'!$P$203*(1+rvanilla10)^0.5)-SUM($P117:AU117),('PTRM input'!$P$203*(1+rvanilla10)^0.5)/A1stdlife)) -> 0 | AW117: =IF(A1stdlife="n/a","n/a",IF(AW$3>(A1stdlife+$E117),('PTRM input'!$P$203*(1+rvanilla10)^0.5)-SUM($P117:AV117),('PTRM input'!$P$203*(1+rvanilla10)^0.5)/A1stdlife)) -> 0 | AX117: =IF(A1stdlife="n/a","n/a",IF(AX$3>(A1stdlife+$E117),('PTRM input'!$P$203*(1+rvanilla10)^0.5)-SUM($P117:AW117),('PTRM input'!$P$203*(1+rvanilla10)^0.5)/A1stdlife)) -> 0 | AY117: =IF(A1stdlife="n/a","n/a",IF(AY$3>(A1stdlife+$E117),('PTRM input'!$P$203*(1+rvanilla10)^0.5)-SUM($P117:AX117),('PTRM input'!$P$203*(1+rvanilla10)^0.5)/A1stdlife)) -> 0 | AZ117: =IF(A1stdlife="n/a","n/a",IF(AZ$3>(A1stdlife+$E117),('PTRM input'!$P$203*(1+rvanilla10)^0.5)-SUM($P117:AY117),('PTRM input'!$P$203*(1+rvanilla10)^0.5)/A1stdlife)) -> 0 | BA117: =IF(A1stdlife="n/a","n/a",IF(BA$3>(A1stdlife+$E117),('PTRM input'!$P$203*(1+rvanilla10)^0.5)-SUM($P117:AZ117),('PTRM input'!$P$203*(1+rvanilla10)^0.5)/A1stdlife)) -> 0 | BB117: =IF(A1stdlife="n/a","n/a",IF(BB$3>(A1stdlife+$E117),('PTRM input'!$P$203*(1+rvanilla10)^0.5)-SUM($P117:BA117),('PTRM input'!$P$203*(1+rvanilla10)^0.5)/A1stdlife)) -> 0 | BC117: =IF(A1stdlife="n/a","n/a",IF(BC$3>(A1stdlife+$E117),('PTRM input'!$P$203*(1+rvanilla10)^0.5)-SUM($P117:BB117),('PTRM input'!$P$203*(1+rvanilla10)^0.5)/A1stdlife)) -> 0 | BD117: =IF(A1stdlife="n/a","n/a",IF(BD$3>(A1stdlife+$E117),('PTRM input'!$P$203*(1+rvanilla10)^0.5)-SUM($P117:BC117),('PTRM input'!$P$203*(1+rvanilla10)^0.5)/A1stdlife)) -> 0 | BE117: =IF(A1stdlife="n/a","n/a",IF(BE$3>(A1stdlife+$E117),('PTRM input'!$P$203*(1+rvanilla10)^0.5)-SUM($P117:BD117),('PTRM input'!$P$203*(1+rvanilla10)^0.5)/A1stdlife)) -> 0 | BF117: =IF(A1stdlife="n/a","n/a",IF(BF$3>(A1stdlife+$E117),('PTRM input'!$P$203*(1+rvanilla10)^0.5)-SUM($P117:BE117),('PTRM input'!$P$203*(1+rvanilla10)^0.5)/A1stdlife)) -> 0 | BG117: =IF(A1stdlife="n/a","n/a",IF(BG$3>(A1stdlife+$E117),('PTRM input'!$P$203*(1+rvanilla10)^0.5)-SUM($P117:BF117),('PTRM input'!$P$203*(1+rvanilla10)^0.5)/A1stdlife)) -> 0 | BH117: =IF(A1stdlife="n/a","n/a",IF(BH$3>(A1stdlife+$E117),('PTRM input'!$P$203*(1+rvanilla10)^0.5)-SUM($P117:BG117),('PTRM input'!$P$203*(1+rvanilla10)^0.5)/A1stdlife)) -> 0 | BI117: =IF(A1stdlife="n/a","n/a",IF(BI$3>(A1stdlife+$E117),('PTRM input'!$P$203*(1+rvanilla10)^0.5)-SUM($P117:BH117),('PTRM input'!$P$203*(1+rvanilla10)^0.5)/A1stdlife)) -> 0
C118: =Asset1 -> Overhead Subtransmission Lines (Urban) | G118: =SUM(G106:G117) -> 0.4572538022 | H118: =SUM(H106:H117) -> 0.4607574686 | I118: =SUM(I106:I117) -> 0.464354955 | J118: 0.464354955 | K118: 0.464354955 | L118: 0.464354955 | M118: 0.464354955 | N118: =SUM(N106:N117) -> 0.464354955 | O118: 0.464354955 | P118: 0.464354955 | Q118: 0.464354955 | R118: 0.464354955 | S118: 0.464354955 | T118: 0.464354955 | U118: 0.464354955 | V118: 0.464354955 | W118: 0.464354955 | X118: 0.464354955 | Y118: 0.464354955 | Z118: 0.464354955 | AA118: 0.464354955 | AB118: 0.464354955 | AC118: 0.464354955 | AD118: 0.464354955 | AE118: 0.112212822 | AF118: 0.05391980179 | AG118: 0.05391980179 | AH118: 0.05391980179 | AI118: 0.05391980179 | AJ118: 0.05391980179 | AK118: 0.05391980179 | AL118: 0.05391980179 | AM118: 0.05391980179 | AN118: 0.05391980179 | AO118: 0.05391980179 | AP118: 0.05391980179 | AQ118: 0.05391980179 | AR118: 0.05391980179 | AS118: 0.05391980179 | AT118: 0.05391980179 | AU118: 0.05391980179 | AV118: 0.05391980179 | AW118: 0.05391980179 | AX118: 0.05391980179 | AY118: 0.05391980179 | AZ118: 0.07417589791 | BA118: 0.04272496661 | BB118: 0.02593384441 | BC118: 0.01901922641 | BD118: 0.01188510003 | BE118: 0.007101152847 | BF118: 0.003597486439 | BG118: 8.326672685e-17 | BH118: 0 | BI118: 0
B119: =C131 -> Underground Subtransmission Lines (Urban) | D119: Initial Asset Base | G119: 0.3027247429 | H119: 0.3027247429 | I119: 0.3027247429 | J119: 0.3027247429 | K119: 0.3027247429 | L119: 0.3027247429 | M119: 0.3027247429 | N119: 0.3027247429 | O119: 0.3027247429 | P119: 0.3027247429 | Q119: 0.3027247429 | R119: 0.3027247429 | S119: 0.3027247429 | T119: 0.3027247429 | U119: 0.3027247429 | V119: 0.3027247429 | W119: 0.3027247429 | X119: 0.3027247429 | Y119: 0.3027247429 | Z119: 0.3027247429 | AA119: 0.3027247429 | AB119: 0.3027247429 | AC119: 0.3027247429 | AD119: 0.3027247429 | AE119: 0.3027247429 | AF119: 0.3027247429 | AG119: 0.3027247429 | AH119: 0.3027247429 | AI119: 0.3027247429 | AJ119: 0.3027247429 | AK119: 0.3027247429 | AL119: 0.3027247429 | AM119: 0.2714041606 | AN119: -0.004173405161 | AO119: -0.004173405161 | AP119: -0.004173405161 | AQ119: -0.004173405161 | AR119: -0.004173405161 | AS119: -0.004173405161 | AT119: -0.004173405161 | AU119: -0.004173405161 | AV119: -0.004173405161 | AW119: -0.004173405161 | AX119: -0.004173405161 | AY119: -0.004173405161 | AZ119: -0.004173405161 | BA119: -0.004173405161 | BB119: -0.004173405161 | BC119: -0.004173405161 | BD119: -0.004173405161 | BE119: -0.004173405161 | BF119: -0.004173405161 | BG119: -0.004173405161 | BH119: -0.004173405161 | BI119: -0.004173405161 | BJ119: 0.006116546659 | BK119: 0.003076538525 | BL119: 0.0006408835566 | BM119: 0.0004659851395 | BN119: 0 | BO119: 0
D120: Capex in year | E120: 0
E121: 1 | H121: =IF(A2stdlife="n/a","n/a",IF(H$3>(A2stdlife+$E121),('PTRM input'!$G$204*(1+rvanilla01)^0.5)-SUM($G121:G121),('PTRM input'!$G$204*(1+rvanilla01)^0.5)/A2stdlife)) -> 0 | I121: =IF(A2stdlife="n/a","n/a",IF(I$3>(A2stdlife+$E121),('PTRM input'!$G$204*(1+rvanilla01)^0.5)-SUM($G121:H121),('PTRM input'!$G$204*(1+rvanilla01)^0.5)/A2stdlife)) -> 0 | J121: =IF(A2stdlife="n/a","n/a",IF(J$3>(A2stdlife+$E121),('PTRM input'!$G$204*(1+rvanilla01)^0.5)-SUM($G121:I121),('PTRM input'!$G$204*(1+rvanilla01)^0.5)/A2stdlife)) -> 0 | K121: =IF(A2stdlife="n/a","n/a",IF(K$3>(A2stdlife+$E121),('PTRM input'!$G$204*(1+rvanilla01)^0.5)-SUM($G121:J121),('PTRM input'!$G$204*(1+rvanilla01)^0.5)/A2stdlife)) -> 0 | L121: =IF(A2stdlife="n/a","n/a",IF(L$3>(A2stdlife+$E121),('PTRM input'!$G$204*(1+rvanilla01)^0.5)-SUM($G121:K121),('PTRM input'!$G$204*(1+rvanilla01)^0.5)/A2stdlife)) -> 0 | M121: =IF(A2stdlife="n/a","n/a",IF(M$3>(A2stdlife+$E121),('PTRM input'!$G$204*(1+rvanilla01)^0.5)-SUM($G121:L121),('PTRM input'!$G$204*(1+rvanilla01)^0.5)/A2stdlife)) -> 0 | N121: =IF(A2stdlife="n/a","n/a",IF(N$3>(A2stdlife+$E121),('PTRM input'!$G$204*(1+rvanilla01)^0.5)-SUM($G121:M121),('PTRM input'!$G$204*(1+rvanilla01)^0.5)/A2stdlife)) -> 0 | O121: =IF(A2stdlife="n/a","n/a",IF(O$3>(A2stdlife+$E121),('PTRM input'!$G$204*(1+rvanilla01)^0.5)-SUM($G121:N121),('PTRM input'!$G$204*(1+rvanilla01)^0.5)/A2stdlife)) -> 0 | P121: =IF(A2stdlife="n/a","n/a",IF(P$3>(A2stdlife+$E121),('PTRM input'!$G$204*(1+rvanilla01)^0.5)-SUM($G121:O121),('PTRM input'!$G$204*(1+rvanilla01)^0.5)/A2stdlife)) -> 0 | Q121: =IF(A2stdlife="n/a","n/a",IF(Q$3>(A2stdlife+$E121),('PTRM input'!$G$204*(1+rvanilla01)^0.5)-SUM($G121:P121),('PTRM input'!$G$204*(1+rvanilla01)^0.5)/A2stdlife)) -> 0 | R121: =IF(A2stdlife="n/a","n/a",IF(R$3>(A2stdlife+$E121),('PTRM input'!$G$204*(1+rvanilla01)^0.5)-SUM($G121:Q121),('PTRM input'!$G$204*(1+rvanilla01)^0.5)/A2stdlife)) -> 0 | S121: =IF(A2stdlife="n/a","n/a",IF(S$3>(A2stdlife+$E121),('PTRM input'!$G$204*(1+rvanilla01)^0.5)-SUM($G121:R121),('PTRM input'!$G$204*(1+rvanilla01)^0.5)/A2stdlife)) -> 0 | T121: =IF(A2stdlife="n/a","n/a",IF(T$3>(A2stdlife+$E121),('PTRM input'!$G$204*(1+rvanilla01)^0.5)-SUM($G121:S121),('PTRM input'!$G$204*(1+rvanilla01)^0.5)/A2stdlife)) -> 0 | U121: =IF(A2stdlife="n/a","n/a",IF(U$3>(A2stdlife+$E121),('PTRM input'!$G$204*(1+rvanilla01)^0.5)-SUM($G121:T121),('PTRM input'!$G$204*(1+rvanilla01)^0.5)/A2stdlife)) -> 0 | V121: =IF(A2stdlife="n/a","n/a",IF(V$3>(A2stdlife+$E121),('PTRM input'!$G$204*(1+rvanilla01)^0.5)-SUM($G121:U121),('PTRM input'!$G$204*(1+rvanilla01)^0.5)/A2stdlife)) -> 0 | W121: =IF(A2stdlife="n/a","n/a",IF(W$3>(A2stdlife+$E121),('PTRM input'!$G$204*(1+rvanilla01)^0.5)-SUM($G121:V121),('PTRM input'!$G$204*(1+rvanilla01)^0.5)/A2stdlife)) -> 0 | X121: =IF(A2stdlife="n/a","n/a",IF(X$3>(A2stdlife+$E121),('PTRM input'!$G$204*(1+rvanilla01)^0.5)-SUM($G121:W121),('PTRM input'!$G$204*(1+rvanilla01)^0.5)/A2stdlife)) -> 0 | Y121: =IF(A2stdlife="n/a","n/a",IF(Y$3>(A2stdlife+$E121),('PTRM input'!$G$204*(1+rvanilla01)^0.5)-SUM($G121:X121),('PTRM input'!$G$204*(1+rvanilla01)^0.5)/A2stdlife)) -> 0 | Z121: =IF(A2stdlife="n/a","n/a",IF(Z$3>(A2stdlife+$E121),('PTRM input'!$G$204*(1+rvanilla01)^0.5)-SUM($G121:Y121),('PTRM input'!$G$204*(1+rvanilla01)^0.5)/A2stdlife)) -> 0 | AA121: =IF(A2stdlife="n/a","n/a",IF(AA$3>(A2stdlife+$E121),('PTRM input'!$G$204*(1+rvanilla01)^0.5)-SUM($G121:Z121),('PTRM input'!$G$204*(1+rvanilla01)^0.5)/A2stdlife)) -> 0 | AB121: =IF(A2stdlife="n/a","n/a",IF(AB$3>(A2stdlife+$E121),('PTRM input'!$G$204*(1+rvanilla01)^0.5)-SUM($G121:AA121),('PTRM input'!$G$204*(1+rvanilla01)^0.5)/A2stdlife)) -> 0 | AC121: =IF(A2stdlife="n/a","n/a",IF(AC$3>(A2stdlife+$E121),('PTRM input'!$G$204*(1+rvanilla01)^0.5)-SUM($G121:AB121),('PTRM input'!$G$204*(1+rvanilla01)^0.5)/A2stdlife)) -> 0 | AD121: =IF(A2stdlife="n/a","n/a",IF(AD$3>(A2stdlife+$E121),('PTRM input'!$G$204*(1+rvanilla01)^0.5)-SUM($G121:AC121),('PTRM input'!$G$204*(1+rvanilla01)^0.5)/A2stdlife)) -> 0 | AE121: =IF(A2stdlife="n/a","n/a",IF(AE$3>(A2stdlife+$E121),('PTRM input'!$G$204*(1+rvanilla01)^0.5)-SUM($G121:AD121),('PTRM input'!$G$204*(1+rvanilla01)^0.5)/A2stdlife)) -> 0 | AF121: =IF(A2stdlife="n/a","n/a",IF(AF$3>(A2stdlife+$E121),('PTRM input'!$G$204*(1+rvanilla01)^0.5)-SUM($G121:AE121),('PTRM input'!$G$204*(1+rvanilla01)^0.5)/A2stdlife)) -> 0 | AG121: =IF(A2stdlife="n/a","n/a",IF(AG$3>(A2stdlife+$E121),('PTRM input'!$G$204*(1+rvanilla01)^0.5)-SUM($G121:AF121),('PTRM input'!$G$204*(1+rvanilla01)^0.5)/A2stdlife)) -> 0 | AH121: =IF(A2stdlife="n/a","n/a",IF(AH$3>(A2stdlife+$E121),('PTRM input'!$G$204*(1+rvanilla01)^0.5)-SUM($G121:AG121),('PTRM input'!$G$204*(1+rvanilla01)^0.5)/A2stdlife)) -> 0 | AI121: =IF(A2stdlife="n/a","n/a",IF(AI$3>(A2stdlife+$E121),('PTRM input'!$G$204*(1+rvanilla01)^0.5)-SUM($G121:AH121),('PTRM input'!$G$204*(1+rvanilla01)^0.5)/A2stdlife)) -> 0 | AJ121: =IF(A2stdlife="n/a","n/a",IF(AJ$3>(A2stdlife+$E121),('PTRM input'!$G$204*(1+rvanilla01)^0.5)-SUM($G121:AI121),('PTRM input'!$G$204*(1+rvanilla01)^0.5)/A2stdlife)) -> 0 | AK121: =IF(A2stdlife="n/a","n/a",IF(AK$3>(A2stdlife+$E121),('PTRM input'!$G$204*(1+rvanilla01)^0.5)-SUM($G121:AJ121),('PTRM input'!$G$204*(1+rvanilla01)^0.5)/A2stdlife)) -> 0 | AL121: =IF(A2stdlife="n/a","n/a",IF(AL$3>(A2stdlife+$E121),('PTRM input'!$G$204*(1+rvanilla01)^0.5)-SUM($G121:AK121),('PTRM input'!$G$204*(1+rvanilla01)^0.5)/A2stdlife)) -> 0 | AM121: =IF(A2stdlife="n/a","n/a",IF(AM$3>(A2stdlife+$E121),('PTRM input'!$G$204*(1+rvanilla01)^0.5)-SUM($G121:AL121),('PTRM input'!$G$204*(1+rvanilla01)^0.5)/A2stdlife)) -> 0 | AN121: =IF(A2stdlife="n/a","n/a",IF(AN$3>(A2stdlife+$E121),('PTRM input'!$G$204*(1+rvanilla01)^0.5)-SUM($G121:AM121),('PTRM input'!$G$204*(1+rvanilla01)^0.5)/A2stdlife)) -> 0 | AO121: =IF(A2stdlife="n/a","n/a",IF(AO$3>(A2stdlife+$E121),('PTRM input'!$G$204*(1+rvanilla01)^0.5)-SUM($G121:AN121),('PTRM input'!$G$204*(1+rvanilla01)^0.5)/A2stdlife)) -> 0 | AP121: =IF(A2stdlife="n/a","n/a",IF(AP$3>(A2stdlife+$E121),('PTRM input'!$G$204*(1+rvanilla01)^0.5)-SUM($G121:AO121),('PTRM input'!$G$204*(1+rvanilla01)^0.5)/A2stdlife)) -> 0 | AQ121: =IF(A2stdlife="n/a","n/a",IF(AQ$3>(A2stdlife+$E121),('PTRM input'!$G$204*(1+rvanilla01)^0.5)-SUM($G121:AP121),('PTRM input'!$G$204*(1+rvanilla01)^0.5)/A2stdlife)) -> 0 | AR121: =IF(A2stdlife="n/a","n/a",IF(AR$3>(A2stdlife+$E121),('PTRM input'!$G$204*(1+rvanilla01)^0.5)-SUM($G121:AQ121),('PTRM input'!$G$204*(1+rvanilla01)^0.5)/A2stdlife)) -> 0 | AS121: =IF(A2stdlife="n/a","n/a",IF(AS$3>(A2stdlife+$E121),('PTRM input'!$G$204*(1+rvanilla01)^0.5)-SUM($G121:AR121),('PTRM input'!$G$204*(1+rvanilla01)^0.5)/A2stdlife)) -> 0 | AT121: =IF(A2stdlife="n/a","n/a",IF(AT$3>(A2stdlife+$E121),('PTRM input'!$G$204*(1+rvanilla01)^0.5)-SUM($G121:AS121),('PTRM input'!$G$204*(1+rvanilla01)^0.5)/A2stdlife)) -> 0 | AU121: =IF(A2stdlife="n/a","n/a",IF(AU$3>(A2stdlife+$E121),('PTRM input'!$G$204*(1+rvanilla01)^0.5)-SUM($G121:AT121),('PTRM input'!$G$204*(1+rvanilla01)^0.5)/A2stdlife)) -> 0 | AV121: =IF(A2stdlife="n/a","n/a",IF(AV$3>(A2stdlife+$E121),('PTRM input'!$G$204*(1+rvanilla01)^0.5)-SUM($G121:AU121),('PTRM input'!$G$204*(1+rvanilla01)^0.5)/A2stdlife)) -> 0 | AW121: =IF(A2stdlife="n/a","n/a",IF(AW$3>(A2stdlife+$E121),('PTRM input'!$G$204*(1+rvanilla01)^0.5)-SUM($G121:AV121),('PTRM input'!$G$204*(1+rvanilla01)^0.5)/A2stdlife)) -> 0 | AX121: =IF(A2stdlife="n/a","n/a",IF(AX$3>(A2stdlife+$E121),('PTRM input'!$G$204*(1+rvanilla01)^0.5)-SUM($G121:AW121),('PTRM input'!$G$204*(1+rvanilla01)^0.5)/A2stdlife)) -> 0 | AY121: =IF(A2stdlife="n/a","n/a",IF(AY$3>(A2stdlife+$E121),('PTRM input'!$G$204*(1+rvanilla01)^0.5)-SUM($G121:AX121),('PTRM input'!$G$204*(1+rvanilla01)^0.5)/A2stdlife)) -> 0 | AZ121: =IF(A2stdlife="n/a","n/a",IF(AZ$3>(A2stdlife+$E121),('PTRM input'!$G$204*(1+rvanilla01)^0.5)-SUM($G121:AY121),('PTRM input'!$G$204*(1+rvanilla01)^0.5)/A2stdlife)) -> 0 | BA121: =IF(A2stdlife="n/a","n/a",IF(BA$3>(A2stdlife+$E121),('PTRM input'!$G$204*(1+rvanilla01)^0.5)-SUM($G121:AZ121),('PTRM input'!$G$204*(1+rvanilla01)^0.5)/A2stdlife)) -> 0 | BB121: =IF(A2stdlife="n/a","n/a",IF(BB$3>(A2stdlife+$E121),('PTRM input'!$G$204*(1+rvanilla01)^0.5)-SUM($G121:BA121),('PTRM input'!$G$204*(1+rvanilla01)^0.5)/A2stdlife)) -> 0 | BC121: =IF(A2stdlife="n/a","n/a",IF(BC$3>(A2stdlife+$E121),('PTRM input'!$G$204*(1+rvanilla01)^0.5)-SUM($G121:BB121),('PTRM input'!$G$204*(1+rvanilla01)^0.5)/A2stdlife)) -> 0 | BD121: =IF(A2stdlife="n/a","n/a",IF(BD$3>(A2stdlife+$E121),('PTRM input'!$G$204*(1+rvanilla01)^0.5)-SUM($G121:BC121),('PTRM input'!$G$204*(1+rvanilla01)^0.5)/A2stdlife)) -> 0 | BE121: =IF(A2stdlife="n/a","n/a",IF(BE$3>(A2stdlife+$E121),('PTRM input'!$G$204*(1+rvanilla01)^0.5)-SUM($G121:BD121),('PTRM input'!$G$204*(1+rvanilla01)^0.5)/A2stdlife)) -> 0 | BF121: =IF(A2stdlife="n/a","n/a",IF(BF$3>(A2stdlife+$E121),('PTRM input'!$G$204*(1+rvanilla01)^0.5)-SUM($G121:BE121),('PTRM input'!$G$204*(1+rvanilla01)^0.5)/A2stdlife)) -> 0 | BG121: =IF(A2stdlife="n/a","n/a",IF(BG$3>(A2stdlife+$E121),('PTRM input'!$G$204*(1+rvanilla01)^0.5)-SUM($G121:BF121),('PTRM input'!$G$204*(1+rvanilla01)^0.5)/A2stdlife)) -> 0 | BH121: =IF(A2stdlife="n/a","n/a",IF(BH$3>(A2stdlife+$E121),('PTRM input'!$G$204*(1+rvanilla01)^0.5)-SUM($G121:BG121),('PTRM input'!$G$204*(1+rvanilla01)^0.5)/A2stdlife)) -> 0 | BI121: =IF(A2stdlife="n/a","n/a",IF(BI$3>(A2stdlife+$E121),('PTRM input'!$G$204*(1+rvanilla01)^0.5)-SUM($G121:BH121),('PTRM input'!$G$204*(1+rvanilla01)^0.5)/A2stdlife)) -> 0
E122: 2 | I122: =IF(A2stdlife="n/a","n/a",IF(I$3>(A2stdlife+$E122),('PTRM input'!$H$204*(1+rvanilla02)^0.5)-SUM($H122:H122),('PTRM input'!$H$204*(1+rvanilla02)^0.5)/A2stdlife)) -> 0 | J122: =IF(A2stdlife="n/a","n/a",IF(J$3>(A2stdlife+$E122),('PTRM input'!$H$204*(1+rvanilla02)^0.5)-SUM($H122:I122),('PTRM input'!$H$204*(1+rvanilla02)^0.5)/A2stdlife)) -> 0 | K122: =IF(A2stdlife="n/a","n/a",IF(K$3>(A2stdlife+$E122),('PTRM input'!$H$204*(1+rvanilla02)^0.5)-SUM($H122:J122),('PTRM input'!$H$204*(1+rvanilla02)^0.5)/A2stdlife)) -> 0 | L122: =IF(A2stdlife="n/a","n/a",IF(L$3>(A2stdlife+$E122),('PTRM input'!$H$204*(1+rvanilla02)^0.5)-SUM($H122:K122),('PTRM input'!$H$204*(1+rvanilla02)^0.5)/A2stdlife)) -> 0 | M122: =IF(A2stdlife="n/a","n/a",IF(M$3>(A2stdlife+$E122),('PTRM input'!$H$204*(1+rvanilla02)^0.5)-SUM($H122:L122),('PTRM input'!$H$204*(1+rvanilla02)^0.5)/A2stdlife)) -> 0 | N122: =IF(A2stdlife="n/a","n/a",IF(N$3>(A2stdlife+$E122),('PTRM input'!$H$204*(1+rvanilla02)^0.5)-SUM($H122:M122),('PTRM input'!$H$204*(1+rvanilla02)^0.5)/A2stdlife)) -> 0 | O122: =IF(A2stdlife="n/a","n/a",IF(O$3>(A2stdlife+$E122),('PTRM input'!$H$204*(1+rvanilla02)^0.5)-SUM($H122:N122),('PTRM input'!$H$204*(1+rvanilla02)^0.5)/A2stdlife)) -> 0 | P122: =IF(A2stdlife="n/a","n/a",IF(P$3>(A2stdlife+$E122),('PTRM input'!$H$204*(1+rvanilla02)^0.5)-SUM($H122:O122),('PTRM input'!$H$204*(1+rvanilla02)^0.5)/A2stdlife)) -> 0 | Q122: =IF(A2stdlife="n/a","n/a",IF(Q$3>(A2stdlife+$E122),('PTRM input'!$H$204*(1+rvanilla02)^0.5)-SUM($H122:P122),('PTRM input'!$H$204*(1+rvanilla02)^0.5)/A2stdlife)) -> 0 | R122: =IF(A2stdlife="n/a","n/a",IF(R$3>(A2stdlife+$E122),('PTRM input'!$H$204*(1+rvanilla02)^0.5)-SUM($H122:Q122),('PTRM input'!$H$204*(1+rvanilla02)^0.5)/A2stdlife)) -> 0 | S122: =IF(A2stdlife="n/a","n/a",IF(S$3>(A2stdlife+$E122),('PTRM input'!$H$204*(1+rvanilla02)^0.5)-SUM($H122:R122),('PTRM input'!$H$204*(1+rvanilla02)^0.5)/A2stdlife)) -> 0 | T122: =IF(A2stdlife="n/a","n/a",IF(T$3>(A2stdlife+$E122),('PTRM input'!$H$204*(1+rvanilla02)^0.5)-SUM($H122:S122),('PTRM input'!$H$204*(1+rvanilla02)^0.5)/A2stdlife)) -> 0 | U122: =IF(A2stdlife="n/a","n/a",IF(U$3>(A2stdlife+$E122),('PTRM input'!$H$204*(1+rvanilla02)^0.5)-SUM($H122:T122),('PTRM input'!$H$204*(1+rvanilla02)^0.5)/A2stdlife)) -> 0 | V122: =IF(A2stdlife="n/a","n/a",IF(V$3>(A2stdlife+$E122),('PTRM input'!$H$204*(1+rvanilla02)^0.5)-SUM($H122:U122),('PTRM input'!$H$204*(1+rvanilla02)^0.5)/A2stdlife)) -> 0 | W122: =IF(A2stdlife="n/a","n/a",IF(W$3>(A2stdlife+$E122),('PTRM input'!$H$204*(1+rvanilla02)^0.5)-SUM($H122:V122),('PTRM input'!$H$204*(1+rvanilla02)^0.5)/A2stdlife)) -> 0 | X122: =IF(A2stdlife="n/a","n/a",IF(X$3>(A2stdlife+$E122),('PTRM input'!$H$204*(1+rvanilla02)^0.5)-SUM($H122:W122),('PTRM input'!$H$204*(1+rvanilla02)^0.5)/A2stdlife)) -> 0 | Y122: =IF(A2stdlife="n/a","n/a",IF(Y$3>(A2stdlife+$E122),('PTRM input'!$H$204*(1+rvanilla02)^0.5)-SUM($H122:X122),('PTRM input'!$H$204*(1+rvanilla02)^0.5)/A2stdlife)) -> 0 | Z122: =IF(A2stdlife="n/a","n/a",IF(Z$3>(A2stdlife+$E122),('PTRM input'!$H$204*(1+rvanilla02)^0.5)-SUM($H122:Y122),('PTRM input'!$H$204*(1+rvanilla02)^0.5)/A2stdlife)) -> 0 | AA122: =IF(A2stdlife="n/a","n/a",IF(AA$3>(A2stdlife+$E122),('PTRM input'!$H$204*(1+rvanilla02)^0.5)-SUM($H122:Z122),('PTRM input'!$H$204*(1+rvanilla02)^0.5)/A2stdlife)) -> 0 | AB122: =IF(A2stdlife="n/a","n/a",IF(AB$3>(A2stdlife+$E122),('PTRM input'!$H$204*(1+rvanilla02)^0.5)-SUM($H122:AA122),('PTRM input'!$H$204*(1+rvanilla02)^0.5)/A2stdlife)) -> 0 | AC122: =IF(A2stdlife="n/a","n/a",IF(AC$3>(A2stdlife+$E122),('PTRM input'!$H$204*(1+rvanilla02)^0.5)-SUM($H122:AB122),('PTRM input'!$H$204*(1+rvanilla02)^0.5)/A2stdlife)) -> 0 | AD122: =IF(A2stdlife="n/a","n/a",IF(AD$3>(A2stdlife+$E122),('PTRM input'!$H$204*(1+rvanilla02)^0.5)-SUM($H122:AC122),('PTRM input'!$H$204*(1+rvanilla02)^0.5)/A2stdlife)) -> 0 | AE122: =IF(A2stdlife="n/a","n/a",IF(AE$3>(A2stdlife+$E122),('PTRM input'!$H$204*(1+rvanilla02)^0.5)-SUM($H122:AD122),('PTRM input'!$H$204*(1+rvanilla02)^0.5)/A2stdlife)) -> 0 | AF122: =IF(A2stdlife="n/a","n/a",IF(AF$3>(A2stdlife+$E122),('PTRM input'!$H$204*(1+rvanilla02)^0.5)-SUM($H122:AE122),('PTRM input'!$H$204*(1+rvanilla02)^0.5)/A2stdlife)) -> 0 | AG122: =IF(A2stdlife="n/a","n/a",IF(AG$3>(A2stdlife+$E122),('PTRM input'!$H$204*(1+rvanilla02)^0.5)-SUM($H122:AF122),('PTRM input'!$H$204*(1+rvanilla02)^0.5)/A2stdlife)) -> 0 | AH122: =IF(A2stdlife="n/a","n/a",IF(AH$3>(A2stdlife+$E122),('PTRM input'!$H$204*(1+rvanilla02)^0.5)-SUM($H122:AG122),('PTRM input'!$H$204*(1+rvanilla02)^0.5)/A2stdlife)) -> 0 | AI122: =IF(A2stdlife="n/a","n/a",IF(AI$3>(A2stdlife+$E122),('PTRM input'!$H$204*(1+rvanilla02)^0.5)-SUM($H122:AH122),('PTRM input'!$H$204*(1+rvanilla02)^0.5)/A2stdlife)) -> 0 | AJ122: =IF(A2stdlife="n/a","n/a",IF(AJ$3>(A2stdlife+$E122),('PTRM input'!$H$204*(1+rvanilla02)^0.5)-SUM($H122:AI122),('PTRM input'!$H$204*(1+rvanilla02)^0.5)/A2stdlife)) -> 0 | AK122: =IF(A2stdlife="n/a","n/a",IF(AK$3>(A2stdlife+$E122),('PTRM input'!$H$204*(1+rvanilla02)^0.5)-SUM($H122:AJ122),('PTRM input'!$H$204*(1+rvanilla02)^0.5)/A2stdlife)) -> 0 | AL122: =IF(A2stdlife="n/a","n/a",IF(AL$3>(A2stdlife+$E122),('PTRM input'!$H$204*(1+rvanilla02)^0.5)-SUM($H122:AK122),('PTRM input'!$H$204*(1+rvanilla02)^0.5)/A2stdlife)) -> 0 | AM122: =IF(A2stdlife="n/a","n/a",IF(AM$3>(A2stdlife+$E122),('PTRM input'!$H$204*(1+rvanilla02)^0.5)-SUM($H122:AL122),('PTRM input'!$H$204*(1+rvanilla02)^0.5)/A2stdlife)) -> 0 | AN122: =IF(A2stdlife="n/a","n/a",IF(AN$3>(A2stdlife+$E122),('PTRM input'!$H$204*(1+rvanilla02)^0.5)-SUM($H122:AM122),('PTRM input'!$H$204*(1+rvanilla02)^0.5)/A2stdlife)) -> 0 | AO122: =IF(A2stdlife="n/a","n/a",IF(AO$3>(A2stdlife+$E122),('PTRM input'!$H$204*(1+rvanilla02)^0.5)-SUM($H122:AN122),('PTRM input'!$H$204*(1+rvanilla02)^0.5)/A2stdlife)) -> 0 | AP122: =IF(A2stdlife="n/a","n/a",IF(AP$3>(A2stdlife+$E122),('PTRM input'!$H$204*(1+rvanilla02)^0.5)-SUM($H122:AO122),('PTRM input'!$H$204*(1+rvanilla02)^0.5)/A2stdlife)) -> 0 | AQ122: =IF(A2stdlife="n/a","n/a",IF(AQ$3>(A2stdlife+$E122),('PTRM input'!$H$204*(1+rvanilla02)^0.5)-SUM($H122:AP122),('PTRM input'!$H$204*(1+rvanilla02)^0.5)/A2stdlife)) -> 0 | AR122: =IF(A2stdlife="n/a","n/a",IF(AR$3>(A2stdlife+$E122),('PTRM input'!$H$204*(1+rvanilla02)^0.5)-SUM($H122:AQ122),('PTRM input'!$H$204*(1+rvanilla02)^0.5)/A2stdlife)) -> 0 | AS122: =IF(A2stdlife="n/a","n/a",IF(AS$3>(A2stdlife+$E122),('PTRM input'!$H$204*(1+rvanilla02)^0.5)-SUM($H122:AR122),('PTRM input'!$H$204*(1+rvanilla02)^0.5)/A2stdlife)) -> 0 | AT122: =IF(A2stdlife="n/a","n/a",IF(AT$3>(A2stdlife+$E122),('PTRM input'!$H$204*(1+rvanilla02)^0.5)-SUM($H122:AS122),('PTRM input'!$H$204*(1+rvanilla02)^0.5)/A2stdlife)) -> 0 | AU122: =IF(A2stdlife="n/a","n/a",IF(AU$3>(A2stdlife+$E122),('PTRM input'!$H$204*(1+rvanilla02)^0.5)-SUM($H122:AT122),('PTRM input'!$H$204*(1+rvanilla02)^0.5)/A2stdlife)) -> 0 | AV122: =IF(A2stdlife="n/a","n/a",IF(AV$3>(A2stdlife+$E122),('PTRM input'!$H$204*(1+rvanilla02)^0.5)-SUM($H122:AU122),('PTRM input'!$H$204*(1+rvanilla02)^0.5)/A2stdlife)) -> 0 | AW122: =IF(A2stdlife="n/a","n/a",IF(AW$3>(A2stdlife+$E122),('PTRM input'!$H$204*(1+rvanilla02)^0.5)-SUM($H122:AV122),('PTRM input'!$H$204*(1+rvanilla02)^0.5)/A2stdlife)) -> 0 | AX122: =IF(A2stdlife="n/a","n/a",IF(AX$3>(A2stdlife+$E122),('PTRM input'!$H$204*(1+rvanilla02)^0.5)-SUM($H122:AW122),('PTRM input'!$H$204*(1+rvanilla02)^0.5)/A2stdlife)) -> 0 | AY122: =IF(A2stdlife="n/a","n/a",IF(AY$3>(A2stdlife+$E122),('PTRM input'!$H$204*(1+rvanilla02)^0.5)-SUM($H122:AX122),('PTRM input'!$H$204*(1+rvanilla02)^0.5)/A2stdlife)) -> 0 | AZ122: =IF(A2stdlife="n/a","n/a",IF(AZ$3>(A2stdlife+$E122),('PTRM input'!$H$204*(1+rvanilla02)^0.5)-SUM($H122:AY122),('PTRM input'!$H$204*(1+rvanilla02)^0.5)/A2stdlife)) -> 0 | BA122: =IF(A2stdlife="n/a","n/a",IF(BA$3>(A2stdlife+$E122),('PTRM input'!$H$204*(1+rvanilla02)^0.5)-SUM($H122:AZ122),('PTRM input'!$H$204*(1+rvanilla02)^0.5)/A2stdlife)) -> 0 | BB122: =IF(A2stdlife="n/a","n/a",IF(BB$3>(A2stdlife+$E122),('PTRM input'!$H$204*(1+rvanilla02)^0.5)-SUM($H122:BA122),('PTRM input'!$H$204*(1+rvanilla02)^0.5)/A2stdlife)) -> 0 | BC122: =IF(A2stdlife="n/a","n/a",IF(BC$3>(A2stdlife+$E122),('PTRM input'!$H$204*(1+rvanilla02)^0.5)-SUM($H122:BB122),('PTRM input'!$H$204*(1+rvanilla02)^0.5)/A2stdlife)) -> 0 | BD122: =IF(A2stdlife="n/a","n/a",IF(BD$3>(A2stdlife+$E122),('PTRM input'!$H$204*(1+rvanilla02)^0.5)-SUM($H122:BC122),('PTRM input'!$H$204*(1+rvanilla02)^0.5)/A2stdlife)) -> 0 | BE122: =IF(A2stdlife="n/a","n/a",IF(BE$3>(A2stdlife+$E122),('PTRM input'!$H$204*(1+rvanilla02)^0.5)-SUM($H122:BD122),('PTRM input'!$H$204*(1+rvanilla02)^0.5)/A2stdlife)) -> 0 | BF122: =IF(A2stdlife="n/a","n/a",IF(BF$3>(A2stdlife+$E122),('PTRM input'!$H$204*(1+rvanilla02)^0.5)-SUM($H122:BE122),('PTRM input'!$H$204*(1+rvanilla02)^0.5)/A2stdlife)) -> 0 | BG122: =IF(A2stdlife="n/a","n/a",IF(BG$3>(A2stdlife+$E122),('PTRM input'!$H$204*(1+rvanilla02)^0.5)-SUM($H122:BF122),('PTRM input'!$H$204*(1+rvanilla02)^0.5)/A2stdlife)) -> 0 | BH122: =IF(A2stdlife="n/a","n/a",IF(BH$3>(A2stdlife+$E122),('PTRM input'!$H$204*(1+rvanilla02)^0.5)-SUM($H122:BG122),('PTRM input'!$H$204*(1+rvanilla02)^0.5)/A2stdlife)) -> 0 | BI122: =IF(A2stdlife="n/a","n/a",IF(BI$3>(A2stdlife+$E122),('PTRM input'!$H$204*(1+rvanilla02)^0.5)-SUM($H122:BH122),('PTRM input'!$H$204*(1+rvanilla02)^0.5)/A2stdlife)) -> 0
E123: 3 | J123: =IF(A2stdlife="n/a","n/a",IF(J$3>(A2stdlife+$E123),('PTRM input'!$I$204*(1+rvanilla03)^0.5)-SUM($I123:I123),('PTRM input'!$I$204*(1+rvanilla03)^0.5)/A2stdlife)) -> 0 | K123: =IF(A2stdlife="n/a","n/a",IF(K$3>(A2stdlife+$E123),('PTRM input'!$I$204*(1+rvanilla03)^0.5)-SUM($I123:J123),('PTRM input'!$I$204*(1+rvanilla03)^0.5)/A2stdlife)) -> 0 | L123: =IF(A2stdlife="n/a","n/a",IF(L$3>(A2stdlife+$E123),('PTRM input'!$I$204*(1+rvanilla03)^0.5)-SUM($I123:K123),('PTRM input'!$I$204*(1+rvanilla03)^0.5)/A2stdlife)) -> 0 | M123: =IF(A2stdlife="n/a","n/a",IF(M$3>(A2stdlife+$E123),('PTRM input'!$I$204*(1+rvanilla03)^0.5)-SUM($I123:L123),('PTRM input'!$I$204*(1+rvanilla03)^0.5)/A2stdlife)) -> 0 | N123: =IF(A2stdlife="n/a","n/a",IF(N$3>(A2stdlife+$E123),('PTRM input'!$I$204*(1+rvanilla03)^0.5)-SUM($I123:M123),('PTRM input'!$I$204*(1+rvanilla03)^0.5)/A2stdlife)) -> 0 | O123: =IF(A2stdlife="n/a","n/a",IF(O$3>(A2stdlife+$E123),('PTRM input'!$I$204*(1+rvanilla03)^0.5)-SUM($I123:N123),('PTRM input'!$I$204*(1+rvanilla03)^0.5)/A2stdlife)) -> 0 | P123: =IF(A2stdlife="n/a","n/a",IF(P$3>(A2stdlife+$E123),('PTRM input'!$I$204*(1+rvanilla03)^0.5)-SUM($I123:O123),('PTRM input'!$I$204*(1+rvanilla03)^0.5)/A2stdlife)) -> 0 | Q123: =IF(A2stdlife="n/a","n/a",IF(Q$3>(A2stdlife+$E123),('PTRM input'!$I$204*(1+rvanilla03)^0.5)-SUM($I123:P123),('PTRM input'!$I$204*(1+rvanilla03)^0.5)/A2stdlife)) -> 0 | R123: =IF(A2stdlife="n/a","n/a",IF(R$3>(A2stdlife+$E123),('PTRM input'!$I$204*(1+rvanilla03)^0.5)-SUM($I123:Q123),('PTRM input'!$I$204*(1+rvanilla03)^0.5)/A2stdlife)) -> 0 | S123: =IF(A2stdlife="n/a","n/a",IF(S$3>(A2stdlife+$E123),('PTRM input'!$I$204*(1+rvanilla03)^0.5)-SUM($I123:R123),('PTRM input'!$I$204*(1+rvanilla03)^0.5)/A2stdlife)) -> 0 | T123: =IF(A2stdlife="n/a","n/a",IF(T$3>(A2stdlife+$E123),('PTRM input'!$I$204*(1+rvanilla03)^0.5)-SUM($I123:S123),('PTRM input'!$I$204*(1+rvanilla03)^0.5)/A2stdlife)) -> 0 | U123: =IF(A2stdlife="n/a","n/a",IF(U$3>(A2stdlife+$E123),('PTRM input'!$I$204*(1+rvanilla03)^0.5)-SUM($I123:T123),('PTRM input'!$I$204*(1+rvanilla03)^0.5)/A2stdlife)) -> 0 | V123: =IF(A2stdlife="n/a","n/a",IF(V$3>(A2stdlife+$E123),('PTRM input'!$I$204*(1+rvanilla03)^0.5)-SUM($I123:U123),('PTRM input'!$I$204*(1+rvanilla03)^0.5)/A2stdlife)) -> 0 | W123: =IF(A2stdlife="n/a","n/a",IF(W$3>(A2stdlife+$E123),('PTRM input'!$I$204*(1+rvanilla03)^0.5)-SUM($I123:V123),('PTRM input'!$I$204*(1+rvanilla03)^0.5)/A2stdlife)) -> 0 | X123: =IF(A2stdlife="n/a","n/a",IF(X$3>(A2stdlife+$E123),('PTRM input'!$I$204*(1+rvanilla03)^0.5)-SUM($I123:W123),('PTRM input'!$I$204*(1+rvanilla03)^0.5)/A2stdlife)) -> 0 | Y123: =IF(A2stdlife="n/a","n/a",IF(Y$3>(A2stdlife+$E123),('PTRM input'!$I$204*(1+rvanilla03)^0.5)-SUM($I123:X123),('PTRM input'!$I$204*(1+rvanilla03)^0.5)/A2stdlife)) -> 0 | Z123: =IF(A2stdlife="n/a","n/a",IF(Z$3>(A2stdlife+$E123),('PTRM input'!$I$204*(1+rvanilla03)^0.5)-SUM($I123:Y123),('PTRM input'!$I$204*(1+rvanilla03)^0.5)/A2stdlife)) -> 0 | AA123: =IF(A2stdlife="n/a","n/a",IF(AA$3>(A2stdlife+$E123),('PTRM input'!$I$204*(1+rvanilla03)^0.5)-SUM($I123:Z123),('PTRM input'!$I$204*(1+rvanilla03)^0.5)/A2stdlife)) -> 0 | AB123: =IF(A2stdlife="n/a","n/a",IF(AB$3>(A2stdlife+$E123),('PTRM input'!$I$204*(1+rvanilla03)^0.5)-SUM($I123:AA123),('PTRM input'!$I$204*(1+rvanilla03)^0.5)/A2stdlife)) -> 0 | AC123: =IF(A2stdlife="n/a","n/a",IF(AC$3>(A2stdlife+$E123),('PTRM input'!$I$204*(1+rvanilla03)^0.5)-SUM($I123:AB123),('PTRM input'!$I$204*(1+rvanilla03)^0.5)/A2stdlife)) -> 0 | AD123: =IF(A2stdlife="n/a","n/a",IF(AD$3>(A2stdlife+$E123),('PTRM input'!$I$204*(1+rvanilla03)^0.5)-SUM($I123:AC123),('PTRM input'!$I$204*(1+rvanilla03)^0.5)/A2stdlife)) -> 0 | AE123: =IF(A2stdlife="n/a","n/a",IF(AE$3>(A2stdlife+$E123),('PTRM input'!$I$204*(1+rvanilla03)^0.5)-SUM($I123:AD123),('PTRM input'!$I$204*(1+rvanilla03)^0.5)/A2stdlife)) -> 0 | AF123: =IF(A2stdlife="n/a","n/a",IF(AF$3>(A2stdlife+$E123),('PTRM input'!$I$204*(1+rvanilla03)^0.5)-SUM($I123:AE123),('PTRM input'!$I$204*(1+rvanilla03)^0.5)/A2stdlife)) -> 0 | AG123: =IF(A2stdlife="n/a","n/a",IF(AG$3>(A2stdlife+$E123),('PTRM input'!$I$204*(1+rvanilla03)^0.5)-SUM($I123:AF123),('PTRM input'!$I$204*(1+rvanilla03)^0.5)/A2stdlife)) -> 0 | AH123: =IF(A2stdlife="n/a","n/a",IF(AH$3>(A2stdlife+$E123),('PTRM input'!$I$204*(1+rvanilla03)^0.5)-SUM($I123:AG123),('PTRM input'!$I$204*(1+rvanilla03)^0.5)/A2stdlife)) -> 0 | AI123: =IF(A2stdlife="n/a","n/a",IF(AI$3>(A2stdlife+$E123),('PTRM input'!$I$204*(1+rvanilla03)^0.5)-SUM($I123:AH123),('PTRM input'!$I$204*(1+rvanilla03)^0.5)/A2stdlife)) -> 0 | AJ123: =IF(A2stdlife="n/a","n/a",IF(AJ$3>(A2stdlife+$E123),('PTRM input'!$I$204*(1+rvanilla03)^0.5)-SUM($I123:AI123),('PTRM input'!$I$204*(1+rvanilla03)^0.5)/A2stdlife)) -> 0 | AK123: =IF(A2stdlife="n/a","n/a",IF(AK$3>(A2stdlife+$E123),('PTRM input'!$I$204*(1+rvanilla03)^0.5)-SUM($I123:AJ123),('PTRM input'!$I$204*(1+rvanilla03)^0.5)/A2stdlife)) -> 0 | AL123: =IF(A2stdlife="n/a","n/a",IF(AL$3>(A2stdlife+$E123),('PTRM input'!$I$204*(1+rvanilla03)^0.5)-SUM($I123:AK123),('PTRM input'!$I$204*(1+rvanilla03)^0.5)/A2stdlife)) -> 0 | AM123: =IF(A2stdlife="n/a","n/a",IF(AM$3>(A2stdlife+$E123),('PTRM input'!$I$204*(1+rvanilla03)^0.5)-SUM($I123:AL123),('PTRM input'!$I$204*(1+rvanilla03)^0.5)/A2stdlife)) -> 0 | AN123: =IF(A2stdlife="n/a","n/a",IF(AN$3>(A2stdlife+$E123),('PTRM input'!$I$204*(1+rvanilla03)^0.5)-SUM($I123:AM123),('PTRM input'!$I$204*(1+rvanilla03)^0.5)/A2stdlife)) -> 0 | AO123: =IF(A2stdlife="n/a","n/a",IF(AO$3>(A2stdlife+$E123),('PTRM input'!$I$204*(1+rvanilla03)^0.5)-SUM($I123:AN123),('PTRM input'!$I$204*(1+rvanilla03)^0.5)/A2stdlife)) -> 0 | AP123: =IF(A2stdlife="n/a","n/a",IF(AP$3>(A2stdlife+$E123),('PTRM input'!$I$204*(1+rvanilla03)^0.5)-SUM($I123:AO123),('PTRM input'!$I$204*(1+rvanilla03)^0.5)/A2stdlife)) -> 0 | AQ123: =IF(A2stdlife="n/a","n/a",IF(AQ$3>(A2stdlife+$E123),('PTRM input'!$I$204*(1+rvanilla03)^0.5)-SUM($I123:AP123),('PTRM input'!$I$204*(1+rvanilla03)^0.5)/A2stdlife)) -> 0 | AR123: =IF(A2stdlife="n/a","n/a",IF(AR$3>(A2stdlife+$E123),('PTRM input'!$I$204*(1+rvanilla03)^0.5)-SUM($I123:AQ123),('PTRM input'!$I$204*(1+rvanilla03)^0.5)/A2stdlife)) -> 0 | AS123: =IF(A2stdlife="n/a","n/a",IF(AS$3>(A2stdlife+$E123),('PTRM input'!$I$204*(1+rvanilla03)^0.5)-SUM($I123:AR123),('PTRM input'!$I$204*(1+rvanilla03)^0.5)/A2stdlife)) -> 0 | AT123: =IF(A2stdlife="n/a","n/a",IF(AT$3>(A2stdlife+$E123),('PTRM input'!$I$204*(1+rvanilla03)^0.5)-SUM($I123:AS123),('PTRM input'!$I$204*(1+rvanilla03)^0.5)/A2stdlife)) -> 0 | AU123: =IF(A2stdlife="n/a","n/a",IF(AU$3>(A2stdlife+$E123),('PTRM input'!$I$204*(1+rvanilla03)^0.5)-SUM($I123:AT123),('PTRM input'!$I$204*(1+rvanilla03)^0.5)/A2stdlife)) -> 0 | AV123: =IF(A2stdlife="n/a","n/a",IF(AV$3>(A2stdlife+$E123),('PTRM input'!$I$204*(1+rvanilla03)^0.5)-SUM($I123:AU123),('PTRM input'!$I$204*(1+rvanilla03)^0.5)/A2stdlife)) -> 0 | AW123: =IF(A2stdlife="n/a","n/a",IF(AW$3>(A2stdlife+$E123),('PTRM input'!$I$204*(1+rvanilla03)^0.5)-SUM($I123:AV123),('PTRM input'!$I$204*(1+rvanilla03)^0.5)/A2stdlife)) -> 0 | AX123: =IF(A2stdlife="n/a","n/a",IF(AX$3>(A2stdlife+$E123),('PTRM input'!$I$204*(1+rvanilla03)^0.5)-SUM($I123:AW123),('PTRM input'!$I$204*(1+rvanilla03)^0.5)/A2stdlife)) -> 0 | AY123: =IF(A2stdlife="n/a","n/a",IF(AY$3>(A2stdlife+$E123),('PTRM input'!$I$204*(1+rvanilla03)^0.5)-SUM($I123:AX123),('PTRM input'!$I$204*(1+rvanilla03)^0.5)/A2stdlife)) -> 0 | AZ123: =IF(A2stdlife="n/a","n/a",IF(AZ$3>(A2stdlife+$E123),('PTRM input'!$I$204*(1+rvanilla03)^0.5)-SUM($I123:AY123),('PTRM input'!$I$204*(1+rvanilla03)^0.5)/A2stdlife)) -> 0 | BA123: =IF(A2stdlife="n/a","n/a",IF(BA$3>(A2stdlife+$E123),('PTRM input'!$I$204*(1+rvanilla03)^0.5)-SUM($I123:AZ123),('PTRM input'!$I$204*(1+rvanilla03)^0.5)/A2stdlife)) -> 0 | BB123: =IF(A2stdlife="n/a","n/a",IF(BB$3>(A2stdlife+$E123),('PTRM input'!$I$204*(1+rvanilla03)^0.5)-SUM($I123:BA123),('PTRM input'!$I$204*(1+rvanilla03)^0.5)/A2stdlife)) -> 0 | BC123: =IF(A2stdlife="n/a","n/a",IF(BC$3>(A2stdlife+$E123),('PTRM input'!$I$204*(1+rvanilla03)^0.5)-SUM($I123:BB123),('PTRM input'!$I$204*(1+rvanilla03)^0.5)/A2stdlife)) -> 0 | BD123: =IF(A2stdlife="n/a","n/a",IF(BD$3>(A2stdlife+$E123),('PTRM input'!$I$204*(1+rvanilla03)^0.5)-SUM($I123:BC123),('PTRM input'!$I$204*(1+rvanilla03)^0.5)/A2stdlife)) -> 0 | BE123: =IF(A2stdlife="n/a","n/a",IF(BE$3>(A2stdlife+$E123),('PTRM input'!$I$204*(1+rvanilla03)^0.5)-SUM($I123:BD123),('PTRM input'!$I$204*(1+rvanilla03)^0.5)/A2stdlife)) -> 0 | BF123: =IF(A2stdlife="n/a","n/a",IF(BF$3>(A2stdlife+$E123),('PTRM input'!$I$204*(1+rvanilla03)^0.5)-SUM($I123:BE123),('PTRM input'!$I$204*(1+rvanilla03)^0.5)/A2stdlife)) -> 0 | BG123: =IF(A2stdlife="n/a","n/a",IF(BG$3>(A2stdlife+$E123),('PTRM input'!$I$204*(1+rvanilla03)^0.5)-SUM($I123:BF123),('PTRM input'!$I$204*(1+rvanilla03)^0.5)/A2stdlife)) -> 0 | BH123: =IF(A2stdlife="n/a","n/a",IF(BH$3>(A2stdlife+$E123),('PTRM input'!$I$204*(1+rvanilla03)^0.5)-SUM($I123:BG123),('PTRM input'!$I$204*(1+rvanilla03)^0.5)/A2stdlife)) -> 0 | BI123: =IF(A2stdlife="n/a","n/a",IF(BI$3>(A2stdlife+$E123),('PTRM input'!$I$204*(1+rvanilla03)^0.5)-SUM($I123:BH123),('PTRM input'!$I$204*(1+rvanilla03)^0.5)/A2stdlife)) -> 0
E124: 4 | K124: =IF(A2stdlife="n/a","n/a",IF(K$3>(A2stdlife+$E124),('PTRM input'!$J$204*(1+rvanilla04)^0.5)-SUM($J124:J124),('PTRM input'!$J$204*(1+rvanilla04)^0.5)/A2stdlife)) -> 0 | L124: =IF(A2stdlife="n/a","n/a",IF(L$3>(A2stdlife+$E124),('PTRM input'!$J$204*(1+rvanilla04)^0.5)-SUM($J124:K124),('PTRM input'!$J$204*(1+rvanilla04)^0.5)/A2stdlife)) -> 0 | M124: =IF(A2stdlife="n/a","n/a",IF(M$3>(A2stdlife+$E124),('PTRM input'!$J$204*(1+rvanilla04)^0.5)-SUM($J124:L124),('PTRM input'!$J$204*(1+rvanilla04)^0.5)/A2stdlife)) -> 0 | N124: =IF(A2stdlife="n/a","n/a",IF(N$3>(A2stdlife+$E124),('PTRM input'!$J$204*(1+rvanilla04)^0.5)-SUM($J124:M124),('PTRM input'!$J$204*(1+rvanilla04)^0.5)/A2stdlife)) -> 0 | O124: =IF(A2stdlife="n/a","n/a",IF(O$3>(A2stdlife+$E124),('PTRM input'!$J$204*(1+rvanilla04)^0.5)-SUM($J124:N124),('PTRM input'!$J$204*(1+rvanilla04)^0.5)/A2stdlife)) -> 0 | P124: =IF(A2stdlife="n/a","n/a",IF(P$3>(A2stdlife+$E124),('PTRM input'!$J$204*(1+rvanilla04)^0.5)-SUM($J124:O124),('PTRM input'!$J$204*(1+rvanilla04)^0.5)/A2stdlife)) -> 0 | Q124: =IF(A2stdlife="n/a","n/a",IF(Q$3>(A2stdlife+$E124),('PTRM input'!$J$204*(1+rvanilla04)^0.5)-SUM($J124:P124),('PTRM input'!$J$204*(1+rvanilla04)^0.5)/A2stdlife)) -> 0 | R124: =IF(A2stdlife="n/a","n/a",IF(R$3>(A2stdlife+$E124),('PTRM input'!$J$204*(1+rvanilla04)^0.5)-SUM($J124:Q124),('PTRM input'!$J$204*(1+rvanilla04)^0.5)/A2stdlife)) -> 0 | S124: =IF(A2stdlife="n/a","n/a",IF(S$3>(A2stdlife+$E124),('PTRM input'!$J$204*(1+rvanilla04)^0.5)-SUM($J124:R124),('PTRM input'!$J$204*(1+rvanilla04)^0.5)/A2stdlife)) -> 0 | T124: =IF(A2stdlife="n/a","n/a",IF(T$3>(A2stdlife+$E124),('PTRM input'!$J$204*(1+rvanilla04)^0.5)-SUM($J124:S124),('PTRM input'!$J$204*(1+rvanilla04)^0.5)/A2stdlife)) -> 0 | U124: =IF(A2stdlife="n/a","n/a",IF(U$3>(A2stdlife+$E124),('PTRM input'!$J$204*(1+rvanilla04)^0.5)-SUM($J124:T124),('PTRM input'!$J$204*(1+rvanilla04)^0.5)/A2stdlife)) -> 0 | V124: =IF(A2stdlife="n/a","n/a",IF(V$3>(A2stdlife+$E124),('PTRM input'!$J$204*(1+rvanilla04)^0.5)-SUM($J124:U124),('PTRM input'!$J$204*(1+rvanilla04)^0.5)/A2stdlife)) -> 0 | W124: =IF(A2stdlife="n/a","n/a",IF(W$3>(A2stdlife+$E124),('PTRM input'!$J$204*(1+rvanilla04)^0.5)-SUM($J124:V124),('PTRM input'!$J$204*(1+rvanilla04)^0.5)/A2stdlife)) -> 0 | X124: =IF(A2stdlife="n/a","n/a",IF(X$3>(A2stdlife+$E124),('PTRM input'!$J$204*(1+rvanilla04)^0.5)-SUM($J124:W124),('PTRM input'!$J$204*(1+rvanilla04)^0.5)/A2stdlife)) -> 0 | Y124: =IF(A2stdlife="n/a","n/a",IF(Y$3>(A2stdlife+$E124),('PTRM input'!$J$204*(1+rvanilla04)^0.5)-SUM($J124:X124),('PTRM input'!$J$204*(1+rvanilla04)^0.5)/A2stdlife)) -> 0 | Z124: =IF(A2stdlife="n/a","n/a",IF(Z$3>(A2stdlife+$E124),('PTRM input'!$J$204*(1+rvanilla04)^0.5)-SUM($J124:Y124),('PTRM input'!$J$204*(1+rvanilla04)^0.5)/A2stdlife)) -> 0 | AA124: =IF(A2stdlife="n/a","n/a",IF(AA$3>(A2stdlife+$E124),('PTRM input'!$J$204*(1+rvanilla04)^0.5)-SUM($J124:Z124),('PTRM input'!$J$204*(1+rvanilla04)^0.5)/A2stdlife)) -> 0 | AB124: =IF(A2stdlife="n/a","n/a",IF(AB$3>(A2stdlife+$E124),('PTRM input'!$J$204*(1+rvanilla04)^0.5)-SUM($J124:AA124),('PTRM input'!$J$204*(1+rvanilla04)^0.5)/A2stdlife)) -> 0 | AC124: =IF(A2stdlife="n/a","n/a",IF(AC$3>(A2stdlife+$E124),('PTRM input'!$J$204*(1+rvanilla04)^0.5)-SUM($J124:AB124),('PTRM input'!$J$204*(1+rvanilla04)^0.5)/A2stdlife)) -> 0 | AD124: =IF(A2stdlife="n/a","n/a",IF(AD$3>(A2stdlife+$E124),('PTRM input'!$J$204*(1+rvanilla04)^0.5)-SUM($J124:AC124),('PTRM input'!$J$204*(1+rvanilla04)^0.5)/A2stdlife)) -> 0 | AE124: =IF(A2stdlife="n/a","n/a",IF(AE$3>(A2stdlife+$E124),('PTRM input'!$J$204*(1+rvanilla04)^0.5)-SUM($J124:AD124),('PTRM input'!$J$204*(1+rvanilla04)^0.5)/A2stdlife)) -> 0 | AF124: =IF(A2stdlife="n/a","n/a",IF(AF$3>(A2stdlife+$E124),('PTRM input'!$J$204*(1+rvanilla04)^0.5)-SUM($J124:AE124),('PTRM input'!$J$204*(1+rvanilla04)^0.5)/A2stdlife)) -> 0 | AG124: =IF(A2stdlife="n/a","n/a",IF(AG$3>(A2stdlife+$E124),('PTRM input'!$J$204*(1+rvanilla04)^0.5)-SUM($J124:AF124),('PTRM input'!$J$204*(1+rvanilla04)^0.5)/A2stdlife)) -> 0 | AH124: =IF(A2stdlife="n/a","n/a",IF(AH$3>(A2stdlife+$E124),('PTRM input'!$J$204*(1+rvanilla04)^0.5)-SUM($J124:AG124),('PTRM input'!$J$204*(1+rvanilla04)^0.5)/A2stdlife)) -> 0 | AI124: =IF(A2stdlife="n/a","n/a",IF(AI$3>(A2stdlife+$E124),('PTRM input'!$J$204*(1+rvanilla04)^0.5)-SUM($J124:AH124),('PTRM input'!$J$204*(1+rvanilla04)^0.5)/A2stdlife)) -> 0 | AJ124: =IF(A2stdlife="n/a","n/a",IF(AJ$3>(A2stdlife+$E124),('PTRM input'!$J$204*(1+rvanilla04)^0.5)-SUM($J124:AI124),('PTRM input'!$J$204*(1+rvanilla04)^0.5)/A2stdlife)) -> 0 | AK124: =IF(A2stdlife="n/a","n/a",IF(AK$3>(A2stdlife+$E124),('PTRM input'!$J$204*(1+rvanilla04)^0.5)-SUM($J124:AJ124),('PTRM input'!$J$204*(1+rvanilla04)^0.5)/A2stdlife)) -> 0 | AL124: =IF(A2stdlife="n/a","n/a",IF(AL$3>(A2stdlife+$E124),('PTRM input'!$J$204*(1+rvanilla04)^0.5)-SUM($J124:AK124),('PTRM input'!$J$204*(1+rvanilla04)^0.5)/A2stdlife)) -> 0 | AM124: =IF(A2stdlife="n/a","n/a",IF(AM$3>(A2stdlife+$E124),('PTRM input'!$J$204*(1+rvanilla04)^0.5)-SUM($J124:AL124),('PTRM input'!$J$204*(1+rvanilla04)^0.5)/A2stdlife)) -> 0 | AN124: =IF(A2stdlife="n/a","n/a",IF(AN$3>(A2stdlife+$E124),('PTRM input'!$J$204*(1+rvanilla04)^0.5)-SUM($J124:AM124),('PTRM input'!$J$204*(1+rvanilla04)^0.5)/A2stdlife)) -> 0 | AO124: =IF(A2stdlife="n/a","n/a",IF(AO$3>(A2stdlife+$E124),('PTRM input'!$J$204*(1+rvanilla04)^0.5)-SUM($J124:AN124),('PTRM input'!$J$204*(1+rvanilla04)^0.5)/A2stdlife)) -> 0 | AP124: =IF(A2stdlife="n/a","n/a",IF(AP$3>(A2stdlife+$E124),('PTRM input'!$J$204*(1+rvanilla04)^0.5)-SUM($J124:AO124),('PTRM input'!$J$204*(1+rvanilla04)^0.5)/A2stdlife)) -> 0 | AQ124: =IF(A2stdlife="n/a","n/a",IF(AQ$3>(A2stdlife+$E124),('PTRM input'!$J$204*(1+rvanilla04)^0.5)-SUM($J124:AP124),('PTRM input'!$J$204*(1+rvanilla04)^0.5)/A2stdlife)) -> 0 | AR124: =IF(A2stdlife="n/a","n/a",IF(AR$3>(A2stdlife+$E124),('PTRM input'!$J$204*(1+rvanilla04)^0.5)-SUM($J124:AQ124),('PTRM input'!$J$204*(1+rvanilla04)^0.5)/A2stdlife)) -> 0 | AS124: =IF(A2stdlife="n/a","n/a",IF(AS$3>(A2stdlife+$E124),('PTRM input'!$J$204*(1+rvanilla04)^0.5)-SUM($J124:AR124),('PTRM input'!$J$204*(1+rvanilla04)^0.5)/A2stdlife)) -> 0 | AT124: =IF(A2stdlife="n/a","n/a",IF(AT$3>(A2stdlife+$E124),('PTRM input'!$J$204*(1+rvanilla04)^0.5)-SUM($J124:AS124),('PTRM input'!$J$204*(1+rvanilla04)^0.5)/A2stdlife)) -> 0 | AU124: =IF(A2stdlife="n/a","n/a",IF(AU$3>(A2stdlife+$E124),('PTRM input'!$J$204*(1+rvanilla04)^0.5)-SUM($J124:AT124),('PTRM input'!$J$204*(1+rvanilla04)^0.5)/A2stdlife)) -> 0 | AV124: =IF(A2stdlife="n/a","n/a",IF(AV$3>(A2stdlife+$E124),('PTRM input'!$J$204*(1+rvanilla04)^0.5)-SUM($J124:AU124),('PTRM input'!$J$204*(1+rvanilla04)^0.5)/A2stdlife)) -> 0 | AW124: =IF(A2stdlife="n/a","n/a",IF(AW$3>(A2stdlife+$E124),('PTRM input'!$J$204*(1+rvanilla04)^0.5)-SUM($J124:AV124),('PTRM input'!$J$204*(1+rvanilla04)^0.5)/A2stdlife)) -> 0 | AX124: =IF(A2stdlife="n/a","n/a",IF(AX$3>(A2stdlife+$E124),('PTRM input'!$J$204*(1+rvanilla04)^0.5)-SUM($J124:AW124),('PTRM input'!$J$204*(1+rvanilla04)^0.5)/A2stdlife)) -> 0 | AY124: =IF(A2stdlife="n/a","n/a",IF(AY$3>(A2stdlife+$E124),('PTRM input'!$J$204*(1+rvanilla04)^0.5)-SUM($J124:AX124),('PTRM input'!$J$204*(1+rvanilla04)^0.5)/A2stdlife)) -> 0 | AZ124: =IF(A2stdlife="n/a","n/a",IF(AZ$3>(A2stdlife+$E124),('PTRM input'!$J$204*(1+rvanilla04)^0.5)-SUM($J124:AY124),('PTRM input'!$J$204*(1+rvanilla04)^0.5)/A2stdlife)) -> 0 | BA124: =IF(A2stdlife="n/a","n/a",IF(BA$3>(A2stdlife+$E124),('PTRM input'!$J$204*(1+rvanilla04)^0.5)-SUM($J124:AZ124),('PTRM input'!$J$204*(1+rvanilla04)^0.5)/A2stdlife)) -> 0 | BB124: =IF(A2stdlife="n/a","n/a",IF(BB$3>(A2stdlife+$E124),('PTRM input'!$J$204*(1+rvanilla04)^0.5)-SUM($J124:BA124),('PTRM input'!$J$204*(1+rvanilla04)^0.5)/A2stdlife)) -> 0 | BC124: =IF(A2stdlife="n/a","n/a",IF(BC$3>(A2stdlife+$E124),('PTRM input'!$J$204*(1+rvanilla04)^0.5)-SUM($J124:BB124),('PTRM input'!$J$204*(1+rvanilla04)^0.5)/A2stdlife)) -> 0 | BD124: =IF(A2stdlife="n/a","n/a",IF(BD$3>(A2stdlife+$E124),('PTRM input'!$J$204*(1+rvanilla04)^0.5)-SUM($J124:BC124),('PTRM input'!$J$204*(1+rvanilla04)^0.5)/A2stdlife)) -> 0 | BE124: =IF(A2stdlife="n/a","n/a",IF(BE$3>(A2stdlife+$E124),('PTRM input'!$J$204*(1+rvanilla04)^0.5)-SUM($J124:BD124),('PTRM input'!$J$204*(1+rvanilla04)^0.5)/A2stdlife)) -> 0 | BF124: =IF(A2stdlife="n/a","n/a",IF(BF$3>(A2stdlife+$E124),('PTRM input'!$J$204*(1+rvanilla04)^0.5)-SUM($J124:BE124),('PTRM input'!$J$204*(1+rvanilla04)^0.5)/A2stdlife)) -> 0 | BG124: =IF(A2stdlife="n/a","n/a",IF(BG$3>(A2stdlife+$E124),('PTRM input'!$J$204*(1+rvanilla04)^0.5)-SUM($J124:BF124),('PTRM input'!$J$204*(1+rvanilla04)^0.5)/A2stdlife)) -> 0 | BH124: =IF(A2stdlife="n/a","n/a",IF(BH$3>(A2stdlife+$E124),('PTRM input'!$J$204*(1+rvanilla04)^0.5)-SUM($J124:BG124),('PTRM input'!$J$204*(1+rvanilla04)^0.5)/A2stdlife)) -> 0 | BI124: =IF(A2stdlife="n/a","n/a",IF(BI$3>(A2stdlife+$E124),('PTRM input'!$J$204*(1+rvanilla04)^0.5)-SUM($J124:BH124),('PTRM input'!$J$204*(1+rvanilla04)^0.5)/A2stdlife)) -> 0
E125: 5 | L125: =IF(A2stdlife="n/a","n/a",IF(L$3>(A2stdlife+$E125),('PTRM input'!$K$204*(1+rvanilla05)^0.5)-SUM($K125:K125),('PTRM input'!$K$204*(1+rvanilla05)^0.5)/A2stdlife)) -> 0 | M125: =IF(A2stdlife="n/a","n/a",IF(M$3>(A2stdlife+$E125),('PTRM input'!$K$204*(1+rvanilla05)^0.5)-SUM($K125:L125),('PTRM input'!$K$204*(1+rvanilla05)^0.5)/A2stdlife)) -> 0 | N125: =IF(A2stdlife="n/a","n/a",IF(N$3>(A2stdlife+$E125),('PTRM input'!$K$204*(1+rvanilla05)^0.5)-SUM($K125:M125),('PTRM input'!$K$204*(1+rvanilla05)^0.5)/A2stdlife)) -> 0 | O125: =IF(A2stdlife="n/a","n/a",IF(O$3>(A2stdlife+$E125),('PTRM input'!$K$204*(1+rvanilla05)^0.5)-SUM($K125:N125),('PTRM input'!$K$204*(1+rvanilla05)^0.5)/A2stdlife)) -> 0 | P125: =IF(A2stdlife="n/a","n/a",IF(P$3>(A2stdlife+$E125),('PTRM input'!$K$204*(1+rvanilla05)^0.5)-SUM($K125:O125),('PTRM input'!$K$204*(1+rvanilla05)^0.5)/A2stdlife)) -> 0 | Q125: =IF(A2stdlife="n/a","n/a",IF(Q$3>(A2stdlife+$E125),('PTRM input'!$K$204*(1+rvanilla05)^0.5)-SUM($K125:P125),('PTRM input'!$K$204*(1+rvanilla05)^0.5)/A2stdlife)) -> 0 | R125: =IF(A2stdlife="n/a","n/a",IF(R$3>(A2stdlife+$E125),('PTRM input'!$K$204*(1+rvanilla05)^0.5)-SUM($K125:Q125),('PTRM input'!$K$204*(1+rvanilla05)^0.5)/A2stdlife)) -> 0 | S125: =IF(A2stdlife="n/a","n/a",IF(S$3>(A2stdlife+$E125),('PTRM input'!$K$204*(1+rvanilla05)^0.5)-SUM($K125:R125),('PTRM input'!$K$204*(1+rvanilla05)^0.5)/A2stdlife)) -> 0 | T125: =IF(A2stdlife="n/a","n/a",IF(T$3>(A2stdlife+$E125),('PTRM input'!$K$204*(1+rvanilla05)^0.5)-SUM($K125:S125),('PTRM input'!$K$204*(1+rvanilla05)^0.5)/A2stdlife)) -> 0 | U125: =IF(A2stdlife="n/a","n/a",IF(U$3>(A2stdlife+$E125),('PTRM input'!$K$204*(1+rvanilla05)^0.5)-SUM($K125:T125),('PTRM input'!$K$204*(1+rvanilla05)^0.5)/A2stdlife)) -> 0 | V125: =IF(A2stdlife="n/a","n/a",IF(V$3>(A2stdlife+$E125),('PTRM input'!$K$204*(1+rvanilla05)^0.5)-SUM($K125:U125),('PTRM input'!$K$204*(1+rvanilla05)^0.5)/A2stdlife)) -> 0 | W125: =IF(A2stdlife="n/a","n/a",IF(W$3>(A2stdlife+$E125),('PTRM input'!$K$204*(1+rvanilla05)^0.5)-SUM($K125:V125),('PTRM input'!$K$204*(1+rvanilla05)^0.5)/A2stdlife)) -> 0 | X125: =IF(A2stdlife="n/a","n/a",IF(X$3>(A2stdlife+$E125),('PTRM input'!$K$204*(1+rvanilla05)^0.5)-SUM($K125:W125),('PTRM input'!$K$204*(1+rvanilla05)^0.5)/A2stdlife)) -> 0 | Y125: =IF(A2stdlife="n/a","n/a",IF(Y$3>(A2stdlife+$E125),('PTRM input'!$K$204*(1+rvanilla05)^0.5)-SUM($K125:X125),('PTRM input'!$K$204*(1+rvanilla05)^0.5)/A2stdlife)) -> 0 | Z125: =IF(A2stdlife="n/a","n/a",IF(Z$3>(A2stdlife+$E125),('PTRM input'!$K$204*(1+rvanilla05)^0.5)-SUM($K125:Y125),('PTRM input'!$K$204*(1+rvanilla05)^0.5)/A2stdlife)) -> 0 | AA125: =IF(A2stdlife="n/a","n/a",IF(AA$3>(A2stdlife+$E125),('PTRM input'!$K$204*(1+rvanilla05)^0.5)-SUM($K125:Z125),('PTRM input'!$K$204*(1+rvanilla05)^0.5)/A2stdlife)) -> 0 | AB125: =IF(A2stdlife="n/a","n/a",IF(AB$3>(A2stdlife+$E125),('PTRM input'!$K$204*(1+rvanilla05)^0.5)-SUM($K125:AA125),('PTRM input'!$K$204*(1+rvanilla05)^0.5)/A2stdlife)) -> 0 | AC125: =IF(A2stdlife="n/a","n/a",IF(AC$3>(A2stdlife+$E125),('PTRM input'!$K$204*(1+rvanilla05)^0.5)-SUM($K125:AB125),('PTRM input'!$K$204*(1+rvanilla05)^0.5)/A2stdlife)) -> 0 | AD125: =IF(A2stdlife="n/a","n/a",IF(AD$3>(A2stdlife+$E125),('PTRM input'!$K$204*(1+rvanilla05)^0.5)-SUM($K125:AC125),('PTRM input'!$K$204*(1+rvanilla05)^0.5)/A2stdlife)) -> 0 | AE125: =IF(A2stdlife="n/a","n/a",IF(AE$3>(A2stdlife+$E125),('PTRM input'!$K$204*(1+rvanilla05)^0.5)-SUM($K125:AD125),('PTRM input'!$K$204*(1+rvanilla05)^0.5)/A2stdlife)) -> 0 | AF125: =IF(A2stdlife="n/a","n/a",IF(AF$3>(A2stdlife+$E125),('PTRM input'!$K$204*(1+rvanilla05)^0.5)-SUM($K125:AE125),('PTRM input'!$K$204*(1+rvanilla05)^0.5)/A2stdlife)) -> 0 | AG125: =IF(A2stdlife="n/a","n/a",IF(AG$3>(A2stdlife+$E125),('PTRM input'!$K$204*(1+rvanilla05)^0.5)-SUM($K125:AF125),('PTRM input'!$K$204*(1+rvanilla05)^0.5)/A2stdlife)) -> 0 | AH125: =IF(A2stdlife="n/a","n/a",IF(AH$3>(A2stdlife+$E125),('PTRM input'!$K$204*(1+rvanilla05)^0.5)-SUM($K125:AG125),('PTRM input'!$K$204*(1+rvanilla05)^0.5)/A2stdlife)) -> 0 | AI125: =IF(A2stdlife="n/a","n/a",IF(AI$3>(A2stdlife+$E125),('PTRM input'!$K$204*(1+rvanilla05)^0.5)-SUM($K125:AH125),('PTRM input'!$K$204*(1+rvanilla05)^0.5)/A2stdlife)) -> 0 | AJ125: =IF(A2stdlife="n/a","n/a",IF(AJ$3>(A2stdlife+$E125),('PTRM input'!$K$204*(1+rvanilla05)^0.5)-SUM($K125:AI125),('PTRM input'!$K$204*(1+rvanilla05)^0.5)/A2stdlife)) -> 0 | AK125: =IF(A2stdlife="n/a","n/a",IF(AK$3>(A2stdlife+$E125),('PTRM input'!$K$204*(1+rvanilla05)^0.5)-SUM($K125:AJ125),('PTRM input'!$K$204*(1+rvanilla05)^0.5)/A2stdlife)) -> 0 | AL125: =IF(A2stdlife="n/a","n/a",IF(AL$3>(A2stdlife+$E125),('PTRM input'!$K$204*(1+rvanilla05)^0.5)-SUM($K125:AK125),('PTRM input'!$K$204*(1+rvanilla05)^0.5)/A2stdlife)) -> 0 | AM125: =IF(A2stdlife="n/a","n/a",IF(AM$3>(A2stdlife+$E125),('PTRM input'!$K$204*(1+rvanilla05)^0.5)-SUM($K125:AL125),('PTRM input'!$K$204*(1+rvanilla05)^0.5)/A2stdlife)) -> 0 | AN125: =IF(A2stdlife="n/a","n/a",IF(AN$3>(A2stdlife+$E125),('PTRM input'!$K$204*(1+rvanilla05)^0.5)-SUM($K125:AM125),('PTRM input'!$K$204*(1+rvanilla05)^0.5)/A2stdlife)) -> 0 | AO125: =IF(A2stdlife="n/a","n/a",IF(AO$3>(A2stdlife+$E125),('PTRM input'!$K$204*(1+rvanilla05)^0.5)-SUM($K125:AN125),('PTRM input'!$K$204*(1+rvanilla05)^0.5)/A2stdlife)) -> 0 | AP125: =IF(A2stdlife="n/a","n/a",IF(AP$3>(A2stdlife+$E125),('PTRM input'!$K$204*(1+rvanilla05)^0.5)-SUM($K125:AO125),('PTRM input'!$K$204*(1+rvanilla05)^0.5)/A2stdlife)) -> 0 | AQ125: =IF(A2stdlife="n/a","n/a",IF(AQ$3>(A2stdlife+$E125),('PTRM input'!$K$204*(1+rvanilla05)^0.5)-SUM($K125:AP125),('PTRM input'!$K$204*(1+rvanilla05)^0.5)/A2stdlife)) -> 0 | AR125: =IF(A2stdlife="n/a","n/a",IF(AR$3>(A2stdlife+$E125),('PTRM input'!$K$204*(1+rvanilla05)^0.5)-SUM($K125:AQ125),('PTRM input'!$K$204*(1+rvanilla05)^0.5)/A2stdlife)) -> 0 | AS125: =IF(A2stdlife="n/a","n/a",IF(AS$3>(A2stdlife+$E125),('PTRM input'!$K$204*(1+rvanilla05)^0.5)-SUM($K125:AR125),('PTRM input'!$K$204*(1+rvanilla05)^0.5)/A2stdlife)) -> 0 | AT125: =IF(A2stdlife="n/a","n/a",IF(AT$3>(A2stdlife+$E125),('PTRM input'!$K$204*(1+rvanilla05)^0.5)-SUM($K125:AS125),('PTRM input'!$K$204*(1+rvanilla05)^0.5)/A2stdlife)) -> 0 | AU125: =IF(A2stdlife="n/a","n/a",IF(AU$3>(A2stdlife+$E125),('PTRM input'!$K$204*(1+rvanilla05)^0.5)-SUM($K125:AT125),('PTRM input'!$K$204*(1+rvanilla05)^0.5)/A2stdlife)) -> 0 | AV125: =IF(A2stdlife="n/a","n/a",IF(AV$3>(A2stdlife+$E125),('PTRM input'!$K$204*(1+rvanilla05)^0.5)-SUM($K125:AU125),('PTRM input'!$K$204*(1+rvanilla05)^0.5)/A2stdlife)) -> 0 | AW125: =IF(A2stdlife="n/a","n/a",IF(AW$3>(A2stdlife+$E125),('PTRM input'!$K$204*(1+rvanilla05)^0.5)-SUM($K125:AV125),('PTRM input'!$K$204*(1+rvanilla05)^0.5)/A2stdlife)) -> 0 | AX125: =IF(A2stdlife="n/a","n/a",IF(AX$3>(A2stdlife+$E125),('PTRM input'!$K$204*(1+rvanilla05)^0.5)-SUM($K125:AW125),('PTRM input'!$K$204*(1+rvanilla05)^0.5)/A2stdlife)) -> 0 | AY125: =IF(A2stdlife="n/a","n/a",IF(AY$3>(A2stdlife+$E125),('PTRM input'!$K$204*(1+rvanilla05)^0.5)-SUM($K125:AX125),('PTRM input'!$K$204*(1+rvanilla05)^0.5)/A2stdlife)) -> 0 | AZ125: =IF(A2stdlife="n/a","n/a",IF(AZ$3>(A2stdlife+$E125),('PTRM input'!$K$204*(1+rvanilla05)^0.5)-SUM($K125:AY125),('PTRM input'!$K$204*(1+rvanilla05)^0.5)/A2stdlife)) -> 0 | BA125: =IF(A2stdlife="n/a","n/a",IF(BA$3>(A2stdlife+$E125),('PTRM input'!$K$204*(1+rvanilla05)^0.5)-SUM($K125:AZ125),('PTRM input'!$K$204*(1+rvanilla05)^0.5)/A2stdlife)) -> 0 | BB125: =IF(A2stdlife="n/a","n/a",IF(BB$3>(A2stdlife+$E125),('PTRM input'!$K$204*(1+rvanilla05)^0.5)-SUM($K125:BA125),('PTRM input'!$K$204*(1+rvanilla05)^0.5)/A2stdlife)) -> 0 | BC125: =IF(A2stdlife="n/a","n/a",IF(BC$3>(A2stdlife+$E125),('PTRM input'!$K$204*(1+rvanilla05)^0.5)-SUM($K125:BB125),('PTRM input'!$K$204*(1+rvanilla05)^0.5)/A2stdlife)) -> 0 | BD125: =IF(A2stdlife="n/a","n/a",IF(BD$3>(A2stdlife+$E125),('PTRM input'!$K$204*(1+rvanilla05)^0.5)-SUM($K125:BC125),('PTRM input'!$K$204*(1+rvanilla05)^0.5)/A2stdlife)) -> 0 | BE125: =IF(A2stdlife="n/a","n/a",IF(BE$3>(A2stdlife+$E125),('PTRM input'!$K$204*(1+rvanilla05)^0.5)-SUM($K125:BD125),('PTRM input'!$K$204*(1+rvanilla05)^0.5)/A2stdlife)) -> 0 | BF125: =IF(A2stdlife="n/a","n/a",IF(BF$3>(A2stdlife+$E125),('PTRM input'!$K$204*(1+rvanilla05)^0.5)-SUM($K125:BE125),('PTRM input'!$K$204*(1+rvanilla05)^0.5)/A2stdlife)) -> 0 | BG125: =IF(A2stdlife="n/a","n/a",IF(BG$3>(A2stdlife+$E125),('PTRM input'!$K$204*(1+rvanilla05)^0.5)-SUM($K125:BF125),('PTRM input'!$K$204*(1+rvanilla05)^0.5)/A2stdlife)) -> 0 | BH125: =IF(A2stdlife="n/a","n/a",IF(BH$3>(A2stdlife+$E125),('PTRM input'!$K$204*(1+rvanilla05)^0.5)-SUM($K125:BG125),('PTRM input'!$K$204*(1+rvanilla05)^0.5)/A2stdlife)) -> 0 | BI125: =IF(A2stdlife="n/a","n/a",IF(BI$3>(A2stdlife+$E125),('PTRM input'!$K$204*(1+rvanilla05)^0.5)-SUM($K125:BH125),('PTRM input'!$K$204*(1+rvanilla05)^0.5)/A2stdlife)) -> 0
E126: 6 | M126: =IF(A2stdlife="n/a","n/a",IF(M$3>(A2stdlife+$E126),('PTRM input'!$L$204*(1+rvanilla06)^0.5)-SUM($L126:L126),('PTRM input'!$L$204*(1+rvanilla06)^0.5)/A2stdlife)) -> 0 | N126: =IF(A2stdlife="n/a","n/a",IF(N$3>(A2stdlife+$E126),('PTRM input'!$L$204*(1+rvanilla06)^0.5)-SUM($L126:M126),('PTRM input'!$L$204*(1+rvanilla06)^0.5)/A2stdlife)) -> 0 | O126: =IF(A2stdlife="n/a","n/a",IF(O$3>(A2stdlife+$E126),('PTRM input'!$L$204*(1+rvanilla06)^0.5)-SUM($L126:N126),('PTRM input'!$L$204*(1+rvanilla06)^0.5)/A2stdlife)) -> 0 | P126: =IF(A2stdlife="n/a","n/a",IF(P$3>(A2stdlife+$E126),('PTRM input'!$L$204*(1+rvanilla06)^0.5)-SUM($L126:O126),('PTRM input'!$L$204*(1+rvanilla06)^0.5)/A2stdlife)) -> 0 | Q126: =IF(A2stdlife="n/a","n/a",IF(Q$3>(A2stdlife+$E126),('PTRM input'!$L$204*(1+rvanilla06)^0.5)-SUM($L126:P126),('PTRM input'!$L$204*(1+rvanilla06)^0.5)/A2stdlife)) -> 0 | R126: =IF(A2stdlife="n/a","n/a",IF(R$3>(A2stdlife+$E126),('PTRM input'!$L$204*(1+rvanilla06)^0.5)-SUM($L126:Q126),('PTRM input'!$L$204*(1+rvanilla06)^0.5)/A2stdlife)) -> 0 | S126: =IF(A2stdlife="n/a","n/a",IF(S$3>(A2stdlife+$E126),('PTRM input'!$L$204*(1+rvanilla06)^0.5)-SUM($L126:R126),('PTRM input'!$L$204*(1+rvanilla06)^0.5)/A2stdlife)) -> 0 | T126: =IF(A2stdlife="n/a","n/a",IF(T$3>(A2stdlife+$E126),('PTRM input'!$L$204*(1+rvanilla06)^0.5)-SUM($L126:S126),('PTRM input'!$L$204*(1+rvanilla06)^0.5)/A2stdlife)) -> 0 | U126: =IF(A2stdlife="n/a","n/a",IF(U$3>(A2stdlife+$E126),('PTRM input'!$L$204*(1+rvanilla06)^0.5)-SUM($L126:T126),('PTRM input'!$L$204*(1+rvanilla06)^0.5)/A2stdlife)) -> 0 | V126: =IF(A2stdlife="n/a","n/a",IF(V$3>(A2stdlife+$E126),('PTRM input'!$L$204*(1+rvanilla06)^0.5)-SUM($L126:U126),('PTRM input'!$L$204*(1+rvanilla06)^0.5)/A2stdlife)) -> 0 | W126: =IF(A2stdlife="n/a","n/a",IF(W$3>(A2stdlife+$E126),('PTRM input'!$L$204*(1+rvanilla06)^0.5)-SUM($L126:V126),('PTRM input'!$L$204*(1+rvanilla06)^0.5)/A2stdlife)) -> 0 | X126: =IF(A2stdlife="n/a","n/a",IF(X$3>(A2stdlife+$E126),('PTRM input'!$L$204*(1+rvanilla06)^0.5)-SUM($L126:W126),('PTRM input'!$L$204*(1+rvanilla06)^0.5)/A2stdlife)) -> 0 | Y126: =IF(A2stdlife="n/a","n/a",IF(Y$3>(A2stdlife+$E126),('PTRM input'!$L$204*(1+rvanilla06)^0.5)-SUM($L126:X126),('PTRM input'!$L$204*(1+rvanilla06)^0.5)/A2stdlife)) -> 0 | Z126: =IF(A2stdlife="n/a","n/a",IF(Z$3>(A2stdlife+$E126),('PTRM input'!$L$204*(1+rvanilla06)^0.5)-SUM($L126:Y126),('PTRM input'!$L$204*(1+rvanilla06)^0.5)/A2stdlife)) -> 0 | AA126: =IF(A2stdlife="n/a","n/a",IF(AA$3>(A2stdlife+$E126),('PTRM input'!$L$204*(1+rvanilla06)^0.5)-SUM($L126:Z126),('PTRM input'!$L$204*(1+rvanilla06)^0.5)/A2stdlife)) -> 0 | AB126: =IF(A2stdlife="n/a","n/a",IF(AB$3>(A2stdlife+$E126),('PTRM input'!$L$204*(1+rvanilla06)^0.5)-SUM($L126:AA126),('PTRM input'!$L$204*(1+rvanilla06)^0.5)/A2stdlife)) -> 0 | AC126: =IF(A2stdlife="n/a","n/a",IF(AC$3>(A2stdlife+$E126),('PTRM input'!$L$204*(1+rvanilla06)^0.5)-SUM($L126:AB126),('PTRM input'!$L$204*(1+rvanilla06)^0.5)/A2stdlife)) -> 0 | AD126: =IF(A2stdlife="n/a","n/a",IF(AD$3>(A2stdlife+$E126),('PTRM input'!$L$204*(1+rvanilla06)^0.5)-SUM($L126:AC126),('PTRM input'!$L$204*(1+rvanilla06)^0.5)/A2stdlife)) -> 0 | AE126: =IF(A2stdlife="n/a","n/a",IF(AE$3>(A2stdlife+$E126),('PTRM input'!$L$204*(1+rvanilla06)^0.5)-SUM($L126:AD126),('PTRM input'!$L$204*(1+rvanilla06)^0.5)/A2stdlife)) -> 0 | AF126: =IF(A2stdlife="n/a","n/a",IF(AF$3>(A2stdlife+$E126),('PTRM input'!$L$204*(1+rvanilla06)^0.5)-SUM($L126:AE126),('PTRM input'!$L$204*(1+rvanilla06)^0.5)/A2stdlife)) -> 0 | AG126: =IF(A2stdlife="n/a","n/a",IF(AG$3>(A2stdlife+$E126),('PTRM input'!$L$204*(1+rvanilla06)^0.5)-SUM($L126:AF126),('PTRM input'!$L$204*(1+rvanilla06)^0.5)/A2stdlife)) -> 0 | AH126: =IF(A2stdlife="n/a","n/a",IF(AH$3>(A2stdlife+$E126),('PTRM input'!$L$204*(1+rvanilla06)^0.5)-SUM($L126:AG126),('PTRM input'!$L$204*(1+rvanilla06)^0.5)/A2stdlife)) -> 0 | AI126: =IF(A2stdlife="n/a","n/a",IF(AI$3>(A2stdlife+$E126),('PTRM input'!$L$204*(1+rvanilla06)^0.5)-SUM($L126:AH126),('PTRM input'!$L$204*(1+rvanilla06)^0.5)/A2stdlife)) -> 0 | AJ126: =IF(A2stdlife="n/a","n/a",IF(AJ$3>(A2stdlife+$E126),('PTRM input'!$L$204*(1+rvanilla06)^0.5)-SUM($L126:AI126),('PTRM input'!$L$204*(1+rvanilla06)^0.5)/A2stdlife)) -> 0 | AK126: =IF(A2stdlife="n/a","n/a",IF(AK$3>(A2stdlife+$E126),('PTRM input'!$L$204*(1+rvanilla06)^0.5)-SUM($L126:AJ126),('PTRM input'!$L$204*(1+rvanilla06)^0.5)/A2stdlife)) -> 0 | AL126: =IF(A2stdlife="n/a","n/a",IF(AL$3>(A2stdlife+$E126),('PTRM input'!$L$204*(1+rvanilla06)^0.5)-SUM($L126:AK126),('PTRM input'!$L$204*(1+rvanilla06)^0.5)/A2stdlife)) -> 0 | AM126: =IF(A2stdlife="n/a","n/a",IF(AM$3>(A2stdlife+$E126),('PTRM input'!$L$204*(1+rvanilla06)^0.5)-SUM($L126:AL126),('PTRM input'!$L$204*(1+rvanilla06)^0.5)/A2stdlife)) -> 0 | AN126: =IF(A2stdlife="n/a","n/a",IF(AN$3>(A2stdlife+$E126),('PTRM input'!$L$204*(1+rvanilla06)^0.5)-SUM($L126:AM126),('PTRM input'!$L$204*(1+rvanilla06)^0.5)/A2stdlife)) -> 0 | AO126: =IF(A2stdlife="n/a","n/a",IF(AO$3>(A2stdlife+$E126),('PTRM input'!$L$204*(1+rvanilla06)^0.5)-SUM($L126:AN126),('PTRM input'!$L$204*(1+rvanilla06)^0.5)/A2stdlife)) -> 0 | AP126: =IF(A2stdlife="n/a","n/a",IF(AP$3>(A2stdlife+$E126),('PTRM input'!$L$204*(1+rvanilla06)^0.5)-SUM($L126:AO126),('PTRM input'!$L$204*(1+rvanilla06)^0.5)/A2stdlife)) -> 0 | AQ126: =IF(A2stdlife="n/a","n/a",IF(AQ$3>(A2stdlife+$E126),('PTRM input'!$L$204*(1+rvanilla06)^0.5)-SUM($L126:AP126),('PTRM input'!$L$204*(1+rvanilla06)^0.5)/A2stdlife)) -> 0 | AR126: =IF(A2stdlife="n/a","n/a",IF(AR$3>(A2stdlife+$E126),('PTRM input'!$L$204*(1+rvanilla06)^0.5)-SUM($L126:AQ126),('PTRM input'!$L$204*(1+rvanilla06)^0.5)/A2stdlife)) -> 0 | AS126: =IF(A2stdlife="n/a","n/a",IF(AS$3>(A2stdlife+$E126),('PTRM input'!$L$204*(1+rvanilla06)^0.5)-SUM($L126:AR126),('PTRM input'!$L$204*(1+rvanilla06)^0.5)/A2stdlife)) -> 0 | AT126: =IF(A2stdlife="n/a","n/a",IF(AT$3>(A2stdlife+$E126),('PTRM input'!$L$204*(1+rvanilla06)^0.5)-SUM($L126:AS126),('PTRM input'!$L$204*(1+rvanilla06)^0.5)/A2stdlife)) -> 0 | AU126: =IF(A2stdlife="n/a","n/a",IF(AU$3>(A2stdlife+$E126),('PTRM input'!$L$204*(1+rvanilla06)^0.5)-SUM($L126:AT126),('PTRM input'!$L$204*(1+rvanilla06)^0.5)/A2stdlife)) -> 0 | AV126: =IF(A2stdlife="n/a","n/a",IF(AV$3>(A2stdlife+$E126),('PTRM input'!$L$204*(1+rvanilla06)^0.5)-SUM($L126:AU126),('PTRM input'!$L$204*(1+rvanilla06)^0.5)/A2stdlife)) -> 0 | AW126: =IF(A2stdlife="n/a","n/a",IF(AW$3>(A2stdlife+$E126),('PTRM input'!$L$204*(1+rvanilla06)^0.5)-SUM($L126:AV126),('PTRM input'!$L$204*(1+rvanilla06)^0.5)/A2stdlife)) -> 0 | AX126: =IF(A2stdlife="n/a","n/a",IF(AX$3>(A2stdlife+$E126),('PTRM input'!$L$204*(1+rvanilla06)^0.5)-SUM($L126:AW126),('PTRM input'!$L$204*(1+rvanilla06)^0.5)/A2stdlife)) -> 0 | AY126: =IF(A2stdlife="n/a","n/a",IF(AY$3>(A2stdlife+$E126),('PTRM input'!$L$204*(1+rvanilla06)^0.5)-SUM($L126:AX126),('PTRM input'!$L$204*(1+rvanilla06)^0.5)/A2stdlife)) -> 0 | AZ126: =IF(A2stdlife="n/a","n/a",IF(AZ$3>(A2stdlife+$E126),('PTRM input'!$L$204*(1+rvanilla06)^0.5)-SUM($L126:AY126),('PTRM input'!$L$204*(1+rvanilla06)^0.5)/A2stdlife)) -> 0 | BA126: =IF(A2stdlife="n/a","n/a",IF(BA$3>(A2stdlife+$E126),('PTRM input'!$L$204*(1+rvanilla06)^0.5)-SUM($L126:AZ126),('PTRM input'!$L$204*(1+rvanilla06)^0.5)/A2stdlife)) -> 0 | BB126: =IF(A2stdlife="n/a","n/a",IF(BB$3>(A2stdlife+$E126),('PTRM input'!$L$204*(1+rvanilla06)^0.5)-SUM($L126:BA126),('PTRM input'!$L$204*(1+rvanilla06)^0.5)/A2stdlife)) -> 0 | BC126: =IF(A2stdlife="n/a","n/a",IF(BC$3>(A2stdlife+$E126),('PTRM input'!$L$204*(1+rvanilla06)^0.5)-SUM($L126:BB126),('PTRM input'!$L$204*(1+rvanilla06)^0.5)/A2stdlife)) -> 0 | BD126: =IF(A2stdlife="n/a","n/a",IF(BD$3>(A2stdlife+$E126),('PTRM input'!$L$204*(1+rvanilla06)^0.5)-SUM($L126:BC126),('PTRM input'!$L$204*(1+rvanilla06)^0.5)/A2stdlife)) -> 0 | BE126: =IF(A2stdlife="n/a","n/a",IF(BE$3>(A2stdlife+$E126),('PTRM input'!$L$204*(1+rvanilla06)^0.5)-SUM($L126:BD126),('PTRM input'!$L$204*(1+rvanilla06)^0.5)/A2stdlife)) -> 0 | BF126: =IF(A2stdlife="n/a","n/a",IF(BF$3>(A2stdlife+$E126),('PTRM input'!$L$204*(1+rvanilla06)^0.5)-SUM($L126:BE126),('PTRM input'!$L$204*(1+rvanilla06)^0.5)/A2stdlife)) -> 0 | BG126: =IF(A2stdlife="n/a","n/a",IF(BG$3>(A2stdlife+$E126),('PTRM input'!$L$204*(1+rvanilla06)^0.5)-SUM($L126:BF126),('PTRM input'!$L$204*(1+rvanilla06)^0.5)/A2stdlife)) -> 0 | BH126: =IF(A2stdlife="n/a","n/a",IF(BH$3>(A2stdlife+$E126),('PTRM input'!$L$204*(1+rvanilla06)^0.5)-SUM($L126:BG126),('PTRM input'!$L$204*(1+rvanilla06)^0.5)/A2stdlife)) -> 0 | BI126: =IF(A2stdlife="n/a","n/a",IF(BI$3>(A2stdlife+$E126),('PTRM input'!$L$204*(1+rvanilla06)^0.5)-SUM($L126:BH126),('PTRM input'!$L$204*(1+rvanilla06)^0.5)/A2stdlife)) -> 0
E127: 7 | N127: =IF(A2stdlife="n/a","n/a",IF(N$3>(A2stdlife+$E127),('PTRM input'!$M$204*(1+rvanilla07)^0.5)-SUM($M127:M127),('PTRM input'!$M$204*(1+rvanilla07)^0.5)/A2stdlife)) -> 0 | O127: =IF(A2stdlife="n/a","n/a",IF(O$3>(A2stdlife+$E127),('PTRM input'!$M$204*(1+rvanilla07)^0.5)-SUM($M127:N127),('PTRM input'!$M$204*(1+rvanilla07)^0.5)/A2stdlife)) -> 0 | P127: =IF(A2stdlife="n/a","n/a",IF(P$3>(A2stdlife+$E127),('PTRM input'!$M$204*(1+rvanilla07)^0.5)-SUM($M127:O127),('PTRM input'!$M$204*(1+rvanilla07)^0.5)/A2stdlife)) -> 0 | Q127: =IF(A2stdlife="n/a","n/a",IF(Q$3>(A2stdlife+$E127),('PTRM input'!$M$204*(1+rvanilla07)^0.5)-SUM($M127:P127),('PTRM input'!$M$204*(1+rvanilla07)^0.5)/A2stdlife)) -> 0 | R127: =IF(A2stdlife="n/a","n/a",IF(R$3>(A2stdlife+$E127),('PTRM input'!$M$204*(1+rvanilla07)^0.5)-SUM($M127:Q127),('PTRM input'!$M$204*(1+rvanilla07)^0.5)/A2stdlife)) -> 0 | S127: =IF(A2stdlife="n/a","n/a",IF(S$3>(A2stdlife+$E127),('PTRM input'!$M$204*(1+rvanilla07)^0.5)-SUM($M127:R127),('PTRM input'!$M$204*(1+rvanilla07)^0.5)/A2stdlife)) -> 0 | T127: =IF(A2stdlife="n/a","n/a",IF(T$3>(A2stdlife+$E127),('PTRM input'!$M$204*(1+rvanilla07)^0.5)-SUM($M127:S127),('PTRM input'!$M$204*(1+rvanilla07)^0.5)/A2stdlife)) -> 0 | U127: =IF(A2stdlife="n/a","n/a",IF(U$3>(A2stdlife+$E127),('PTRM input'!$M$204*(1+rvanilla07)^0.5)-SUM($M127:T127),('PTRM input'!$M$204*(1+rvanilla07)^0.5)/A2stdlife)) -> 0 | V127: =IF(A2stdlife="n/a","n/a",IF(V$3>(A2stdlife+$E127),('PTRM input'!$M$204*(1+rvanilla07)^0.5)-SUM($M127:U127),('PTRM input'!$M$204*(1+rvanilla07)^0.5)/A2stdlife)) -> 0 | W127: =IF(A2stdlife="n/a","n/a",IF(W$3>(A2stdlife+$E127),('PTRM input'!$M$204*(1+rvanilla07)^0.5)-SUM($M127:V127),('PTRM input'!$M$204*(1+rvanilla07)^0.5)/A2stdlife)) -> 0 | X127: =IF(A2stdlife="n/a","n/a",IF(X$3>(A2stdlife+$E127),('PTRM input'!$M$204*(1+rvanilla07)^0.5)-SUM($M127:W127),('PTRM input'!$M$204*(1+rvanilla07)^0.5)/A2stdlife)) -> 0 | Y127: =IF(A2stdlife="n/a","n/a",IF(Y$3>(A2stdlife+$E127),('PTRM input'!$M$204*(1+rvanilla07)^0.5)-SUM($M127:X127),('PTRM input'!$M$204*(1+rvanilla07)^0.5)/A2stdlife)) -> 0 | Z127: =IF(A2stdlife="n/a","n/a",IF(Z$3>(A2stdlife+$E127),('PTRM input'!$M$204*(1+rvanilla07)^0.5)-SUM($M127:Y127),('PTRM input'!$M$204*(1+rvanilla07)^0.5)/A2stdlife)) -> 0 | AA127: =IF(A2stdlife="n/a","n/a",IF(AA$3>(A2stdlife+$E127),('PTRM input'!$M$204*(1+rvanilla07)^0.5)-SUM($M127:Z127),('PTRM input'!$M$204*(1+rvanilla07)^0.5)/A2stdlife)) -> 0 | AB127: =IF(A2stdlife="n/a","n/a",IF(AB$3>(A2stdlife+$E127),('PTRM input'!$M$204*(1+rvanilla07)^0.5)-SUM($M127:AA127),('PTRM input'!$M$204*(1+rvanilla07)^0.5)/A2stdlife)) -> 0 | AC127: =IF(A2stdlife="n/a","n/a",IF(AC$3>(A2stdlife+$E127),('PTRM input'!$M$204*(1+rvanilla07)^0.5)-SUM($M127:AB127),('PTRM input'!$M$204*(1+rvanilla07)^0.5)/A2stdlife)) -> 0 | AD127: =IF(A2stdlife="n/a","n/a",IF(AD$3>(A2stdlife+$E127),('PTRM input'!$M$204*(1+rvanilla07)^0.5)-SUM($M127:AC127),('PTRM input'!$M$204*(1+rvanilla07)^0.5)/A2stdlife)) -> 0 | AE127: =IF(A2stdlife="n/a","n/a",IF(AE$3>(A2stdlife+$E127),('PTRM input'!$M$204*(1+rvanilla07)^0.5)-SUM($M127:AD127),('PTRM input'!$M$204*(1+rvanilla07)^0.5)/A2stdlife)) -> 0 | AF127: =IF(A2stdlife="n/a","n/a",IF(AF$3>(A2stdlife+$E127),('PTRM input'!$M$204*(1+rvanilla07)^0.5)-SUM($M127:AE127),('PTRM input'!$M$204*(1+rvanilla07)^0.5)/A2stdlife)) -> 0 | AG127: =IF(A2stdlife="n/a","n/a",IF(AG$3>(A2stdlife+$E127),('PTRM input'!$M$204*(1+rvanilla07)^0.5)-SUM($M127:AF127),('PTRM input'!$M$204*(1+rvanilla07)^0.5)/A2stdlife)) -> 0 | AH127: =IF(A2stdlife="n/a","n/a",IF(AH$3>(A2stdlife+$E127),('PTRM input'!$M$204*(1+rvanilla07)^0.5)-SUM($M127:AG127),('PTRM input'!$M$204*(1+rvanilla07)^0.5)/A2stdlife)) -> 0 | AI127: =IF(A2stdlife="n/a","n/a",IF(AI$3>(A2stdlife+$E127),('PTRM input'!$M$204*(1+rvanilla07)^0.5)-SUM($M127:AH127),('PTRM input'!$M$204*(1+rvanilla07)^0.5)/A2stdlife)) -> 0 | AJ127: =IF(A2stdlife="n/a","n/a",IF(AJ$3>(A2stdlife+$E127),('PTRM input'!$M$204*(1+rvanilla07)^0.5)-SUM($M127:AI127),('PTRM input'!$M$204*(1+rvanilla07)^0.5)/A2stdlife)) -> 0 | AK127: =IF(A2stdlife="n/a","n/a",IF(AK$3>(A2stdlife+$E127),('PTRM input'!$M$204*(1+rvanilla07)^0.5)-SUM($M127:AJ127),('PTRM input'!$M$204*(1+rvanilla07)^0.5)/A2stdlife)) -> 0 | AL127: =IF(A2stdlife="n/a","n/a",IF(AL$3>(A2stdlife+$E127),('PTRM input'!$M$204*(1+rvanilla07)^0.5)-SUM($M127:AK127),('PTRM input'!$M$204*(1+rvanilla07)^0.5)/A2stdlife)) -> 0 | AM127: =IF(A2stdlife="n/a","n/a",IF(AM$3>(A2stdlife+$E127),('PTRM input'!$M$204*(1+rvanilla07)^0.5)-SUM($M127:AL127),('PTRM input'!$M$204*(1+rvanilla07)^0.5)/A2stdlife)) -> 0 | AN127: =IF(A2stdlife="n/a","n/a",IF(AN$3>(A2stdlife+$E127),('PTRM input'!$M$204*(1+rvanilla07)^0.5)-SUM($M127:AM127),('PTRM input'!$M$204*(1+rvanilla07)^0.5)/A2stdlife)) -> 0 | AO127: =IF(A2stdlife="n/a","n/a",IF(AO$3>(A2stdlife+$E127),('PTRM input'!$M$204*(1+rvanilla07)^0.5)-SUM($M127:AN127),('PTRM input'!$M$204*(1+rvanilla07)^0.5)/A2stdlife)) -> 0 | AP127: =IF(A2stdlife="n/a","n/a",IF(AP$3>(A2stdlife+$E127),('PTRM input'!$M$204*(1+rvanilla07)^0.5)-SUM($M127:AO127),('PTRM input'!$M$204*(1+rvanilla07)^0.5)/A2stdlife)) -> 0 | AQ127: =IF(A2stdlife="n/a","n/a",IF(AQ$3>(A2stdlife+$E127),('PTRM input'!$M$204*(1+rvanilla07)^0.5)-SUM($M127:AP127),('PTRM input'!$M$204*(1+rvanilla07)^0.5)/A2stdlife)) -> 0 | AR127: =IF(A2stdlife="n/a","n/a",IF(AR$3>(A2stdlife+$E127),('PTRM input'!$M$204*(1+rvanilla07)^0.5)-SUM($M127:AQ127),('PTRM input'!$M$204*(1+rvanilla07)^0.5)/A2stdlife)) -> 0 | AS127: =IF(A2stdlife="n/a","n/a",IF(AS$3>(A2stdlife+$E127),('PTRM input'!$M$204*(1+rvanilla07)^0.5)-SUM($M127:AR127),('PTRM input'!$M$204*(1+rvanilla07)^0.5)/A2stdlife)) -> 0 | AT127: =IF(A2stdlife="n/a","n/a",IF(AT$3>(A2stdlife+$E127),('PTRM input'!$M$204*(1+rvanilla07)^0.5)-SUM($M127:AS127),('PTRM input'!$M$204*(1+rvanilla07)^0.5)/A2stdlife)) -> 0 | AU127: =IF(A2stdlife="n/a","n/a",IF(AU$3>(A2stdlife+$E127),('PTRM input'!$M$204*(1+rvanilla07)^0.5)-SUM($M127:AT127),('PTRM input'!$M$204*(1+rvanilla07)^0.5)/A2stdlife)) -> 0 | AV127: =IF(A2stdlife="n/a","n/a",IF(AV$3>(A2stdlife+$E127),('PTRM input'!$M$204*(1+rvanilla07)^0.5)-SUM($M127:AU127),('PTRM input'!$M$204*(1+rvanilla07)^0.5)/A2stdlife)) -> 0 | AW127: =IF(A2stdlife="n/a","n/a",IF(AW$3>(A2stdlife+$E127),('PTRM input'!$M$204*(1+rvanilla07)^0.5)-SUM($M127:AV127),('PTRM input'!$M$204*(1+rvanilla07)^0.5)/A2stdlife)) -> 0 | AX127: =IF(A2stdlife="n/a","n/a",IF(AX$3>(A2stdlife+$E127),('PTRM input'!$M$204*(1+rvanilla07)^0.5)-SUM($M127:AW127),('PTRM input'!$M$204*(1+rvanilla07)^0.5)/A2stdlife)) -> 0 | AY127: =IF(A2stdlife="n/a","n/a",IF(AY$3>(A2stdlife+$E127),('PTRM input'!$M$204*(1+rvanilla07)^0.5)-SUM($M127:AX127),('PTRM input'!$M$204*(1+rvanilla07)^0.5)/A2stdlife)) -> 0 | AZ127: =IF(A2stdlife="n/a","n/a",IF(AZ$3>(A2stdlife+$E127),('PTRM input'!$M$204*(1+rvanilla07)^0.5)-SUM($M127:AY127),('PTRM input'!$M$204*(1+rvanilla07)^0.5)/A2stdlife)) -> 0 | BA127: =IF(A2stdlife="n/a","n/a",IF(BA$3>(A2stdlife+$E127),('PTRM input'!$M$204*(1+rvanilla07)^0.5)-SUM($M127:AZ127),('PTRM input'!$M$204*(1+rvanilla07)^0.5)/A2stdlife)) -> 0 | BB127: =IF(A2stdlife="n/a","n/a",IF(BB$3>(A2stdlife+$E127),('PTRM input'!$M$204*(1+rvanilla07)^0.5)-SUM($M127:BA127),('PTRM input'!$M$204*(1+rvanilla07)^0.5)/A2stdlife)) -> 0 | BC127: =IF(A2stdlife="n/a","n/a",IF(BC$3>(A2stdlife+$E127),('PTRM input'!$M$204*(1+rvanilla07)^0.5)-SUM($M127:BB127),('PTRM input'!$M$204*(1+rvanilla07)^0.5)/A2stdlife)) -> 0 | BD127: =IF(A2stdlife="n/a","n/a",IF(BD$3>(A2stdlife+$E127),('PTRM input'!$M$204*(1+rvanilla07)^0.5)-SUM($M127:BC127),('PTRM input'!$M$204*(1+rvanilla07)^0.5)/A2stdlife)) -> 0 | BE127: =IF(A2stdlife="n/a","n/a",IF(BE$3>(A2stdlife+$E127),('PTRM input'!$M$204*(1+rvanilla07)^0.5)-SUM($M127:BD127),('PTRM input'!$M$204*(1+rvanilla07)^0.5)/A2stdlife)) -> 0 | BF127: =IF(A2stdlife="n/a","n/a",IF(BF$3>(A2stdlife+$E127),('PTRM input'!$M$204*(1+rvanilla07)^0.5)-SUM($M127:BE127),('PTRM input'!$M$204*(1+rvanilla07)^0.5)/A2stdlife)) -> 0 | BG127: =IF(A2stdlife="n/a","n/a",IF(BG$3>(A2stdlife+$E127),('PTRM input'!$M$204*(1+rvanilla07)^0.5)-SUM($M127:BF127),('PTRM input'!$M$204*(1+rvanilla07)^0.5)/A2stdlife)) -> 0 | BH127: =IF(A2stdlife="n/a","n/a",IF(BH$3>(A2stdlife+$E127),('PTRM input'!$M$204*(1+rvanilla07)^0.5)-SUM($M127:BG127),('PTRM input'!$M$204*(1+rvanilla07)^0.5)/A2stdlife)) -> 0 | BI127: =IF(A2stdlife="n/a","n/a",IF(BI$3>(A2stdlife+$E127),('PTRM input'!$M$204*(1+rvanilla07)^0.5)-SUM($M127:BH127),('PTRM input'!$M$204*(1+rvanilla07)^0.5)/A2stdlife)) -> 0
E128: 8 | O128: =IF(A2stdlife="n/a","n/a",IF(O$3>(A2stdlife+$E128),('PTRM input'!$N$204*(1+rvanilla08)^0.5)-SUM($N128:N128),('PTRM input'!$N$204*(1+rvanilla08)^0.5)/A2stdlife)) -> 0 | P128: =IF(A2stdlife="n/a","n/a",IF(P$3>(A2stdlife+$E128),('PTRM input'!$N$204*(1+rvanilla08)^0.5)-SUM($N128:O128),('PTRM input'!$N$204*(1+rvanilla08)^0.5)/A2stdlife)) -> 0 | Q128: =IF(A2stdlife="n/a","n/a",IF(Q$3>(A2stdlife+$E128),('PTRM input'!$N$204*(1+rvanilla08)^0.5)-SUM($N128:P128),('PTRM input'!$N$204*(1+rvanilla08)^0.5)/A2stdlife)) -> 0 | R128: =IF(A2stdlife="n/a","n/a",IF(R$3>(A2stdlife+$E128),('PTRM input'!$N$204*(1+rvanilla08)^0.5)-SUM($N128:Q128),('PTRM input'!$N$204*(1+rvanilla08)^0.5)/A2stdlife)) -> 0 | S128: =IF(A2stdlife="n/a","n/a",IF(S$3>(A2stdlife+$E128),('PTRM input'!$N$204*(1+rvanilla08)^0.5)-SUM($N128:R128),('PTRM input'!$N$204*(1+rvanilla08)^0.5)/A2stdlife)) -> 0 | T128: =IF(A2stdlife="n/a","n/a",IF(T$3>(A2stdlife+$E128),('PTRM input'!$N$204*(1+rvanilla08)^0.5)-SUM($N128:S128),('PTRM input'!$N$204*(1+rvanilla08)^0.5)/A2stdlife)) -> 0 | U128: =IF(A2stdlife="n/a","n/a",IF(U$3>(A2stdlife+$E128),('PTRM input'!$N$204*(1+rvanilla08)^0.5)-SUM($N128:T128),('PTRM input'!$N$204*(1+rvanilla08)^0.5)/A2stdlife)) -> 0 | V128: =IF(A2stdlife="n/a","n/a",IF(V$3>(A2stdlife+$E128),('PTRM input'!$N$204*(1+rvanilla08)^0.5)-SUM($N128:U128),('PTRM input'!$N$204*(1+rvanilla08)^0.5)/A2stdlife)) -> 0 | W128: =IF(A2stdlife="n/a","n/a",IF(W$3>(A2stdlife+$E128),('PTRM input'!$N$204*(1+rvanilla08)^0.5)-SUM($N128:V128),('PTRM input'!$N$204*(1+rvanilla08)^0.5)/A2stdlife)) -> 0 | X128: =IF(A2stdlife="n/a","n/a",IF(X$3>(A2stdlife+$E128),('PTRM input'!$N$204*(1+rvanilla08)^0.5)-SUM($N128:W128),('PTRM input'!$N$204*(1+rvanilla08)^0.5)/A2stdlife)) -> 0 | Y128: =IF(A2stdlife="n/a","n/a",IF(Y$3>(A2stdlife+$E128),('PTRM input'!$N$204*(1+rvanilla08)^0.5)-SUM($N128:X128),('PTRM input'!$N$204*(1+rvanilla08)^0.5)/A2stdlife)) -> 0 | Z128: =IF(A2stdlife="n/a","n/a",IF(Z$3>(A2stdlife+$E128),('PTRM input'!$N$204*(1+rvanilla08)^0.5)-SUM($N128:Y128),('PTRM input'!$N$204*(1+rvanilla08)^0.5)/A2stdlife)) -> 0 | AA128: =IF(A2stdlife="n/a","n/a",IF(AA$3>(A2stdlife+$E128),('PTRM input'!$N$204*(1+rvanilla08)^0.5)-SUM($N128:Z128),('PTRM input'!$N$204*(1+rvanilla08)^0.5)/A2stdlife)) -> 0 | AB128: =IF(A2stdlife="n/a","n/a",IF(AB$3>(A2stdlife+$E128),('PTRM input'!$N$204*(1+rvanilla08)^0.5)-SUM($N128:AA128),('PTRM input'!$N$204*(1+rvanilla08)^0.5)/A2stdlife)) -> 0 | AC128: =IF(A2stdlife="n/a","n/a",IF(AC$3>(A2stdlife+$E128),('PTRM input'!$N$204*(1+rvanilla08)^0.5)-SUM($N128:AB128),('PTRM input'!$N$204*(1+rvanilla08)^0.5)/A2stdlife)) -> 0 | AD128: =IF(A2stdlife="n/a","n/a",IF(AD$3>(A2stdlife+$E128),('PTRM input'!$N$204*(1+rvanilla08)^0.5)-SUM($N128:AC128),('PTRM input'!$N$204*(1+rvanilla08)^0.5)/A2stdlife)) -> 0 | AE128: =IF(A2stdlife="n/a","n/a",IF(AE$3>(A2stdlife+$E128),('PTRM input'!$N$204*(1+rvanilla08)^0.5)-SUM($N128:AD128),('PTRM input'!$N$204*(1+rvanilla08)^0.5)/A2stdlife)) -> 0 | AF128: =IF(A2stdlife="n/a","n/a",IF(AF$3>(A2stdlife+$E128),('PTRM input'!$N$204*(1+rvanilla08)^0.5)-SUM($N128:AE128),('PTRM input'!$N$204*(1+rvanilla08)^0.5)/A2stdlife)) -> 0 | AG128: =IF(A2stdlife="n/a","n/a",IF(AG$3>(A2stdlife+$E128),('PTRM input'!$N$204*(1+rvanilla08)^0.5)-SUM($N128:AF128),('PTRM input'!$N$204*(1+rvanilla08)^0.5)/A2stdlife)) -> 0 | AH128: =IF(A2stdlife="n/a","n/a",IF(AH$3>(A2stdlife+$E128),('PTRM input'!$N$204*(1+rvanilla08)^0.5)-SUM($N128:AG128),('PTRM input'!$N$204*(1+rvanilla08)^0.5)/A2stdlife)) -> 0 | AI128: =IF(A2stdlife="n/a","n/a",IF(AI$3>(A2stdlife+$E128),('PTRM input'!$N$204*(1+rvanilla08)^0.5)-SUM($N128:AH128),('PTRM input'!$N$204*(1+rvanilla08)^0.5)/A2stdlife)) -> 0 | AJ128: =IF(A2stdlife="n/a","n/a",IF(AJ$3>(A2stdlife+$E128),('PTRM input'!$N$204*(1+rvanilla08)^0.5)-SUM($N128:AI128),('PTRM input'!$N$204*(1+rvanilla08)^0.5)/A2stdlife)) -> 0 | AK128: =IF(A2stdlife="n/a","n/a",IF(AK$3>(A2stdlife+$E128),('PTRM input'!$N$204*(1+rvanilla08)^0.5)-SUM($N128:AJ128),('PTRM input'!$N$204*(1+rvanilla08)^0.5)/A2stdlife)) -> 0 | AL128: =IF(A2stdlife="n/a","n/a",IF(AL$3>(A2stdlife+$E128),('PTRM input'!$N$204*(1+rvanilla08)^0.5)-SUM($N128:AK128),('PTRM input'!$N$204*(1+rvanilla08)^0.5)/A2stdlife)) -> 0 | AM128: =IF(A2stdlife="n/a","n/a",IF(AM$3>(A2stdlife+$E128),('PTRM input'!$N$204*(1+rvanilla08)^0.5)-SUM($N128:AL128),('PTRM input'!$N$204*(1+rvanilla08)^0.5)/A2stdlife)) -> 0 | AN128: =IF(A2stdlife="n/a","n/a",IF(AN$3>(A2stdlife+$E128),('PTRM input'!$N$204*(1+rvanilla08)^0.5)-SUM($N128:AM128),('PTRM input'!$N$204*(1+rvanilla08)^0.5)/A2stdlife)) -> 0 | AO128: =IF(A2stdlife="n/a","n/a",IF(AO$3>(A2stdlife+$E128),('PTRM input'!$N$204*(1+rvanilla08)^0.5)-SUM($N128:AN128),('PTRM input'!$N$204*(1+rvanilla08)^0.5)/A2stdlife)) -> 0 | AP128: =IF(A2stdlife="n/a","n/a",IF(AP$3>(A2stdlife+$E128),('PTRM input'!$N$204*(1+rvanilla08)^0.5)-SUM($N128:AO128),('PTRM input'!$N$204*(1+rvanilla08)^0.5)/A2stdlife)) -> 0 | AQ128: =IF(A2stdlife="n/a","n/a",IF(AQ$3>(A2stdlife+$E128),('PTRM input'!$N$204*(1+rvanilla08)^0.5)-SUM($N128:AP128),('PTRM input'!$N$204*(1+rvanilla08)^0.5)/A2stdlife)) -> 0 | AR128: =IF(A2stdlife="n/a","n/a",IF(AR$3>(A2stdlife+$E128),('PTRM input'!$N$204*(1+rvanilla08)^0.5)-SUM($N128:AQ128),('PTRM input'!$N$204*(1+rvanilla08)^0.5)/A2stdlife)) -> 0 | AS128: =IF(A2stdlife="n/a","n/a",IF(AS$3>(A2stdlife+$E128),('PTRM input'!$N$204*(1+rvanilla08)^0.5)-SUM($N128:AR128),('PTRM input'!$N$204*(1+rvanilla08)^0.5)/A2stdlife)) -> 0 | AT128: =IF(A2stdlife="n/a","n/a",IF(AT$3>(A2stdlife+$E128),('PTRM input'!$N$204*(1+rvanilla08)^0.5)-SUM($N128:AS128),('PTRM input'!$N$204*(1+rvanilla08)^0.5)/A2stdlife)) -> 0 | AU128: =IF(A2stdlife="n/a","n/a",IF(AU$3>(A2stdlife+$E128),('PTRM input'!$N$204*(1+rvanilla08)^0.5)-SUM($N128:AT128),('PTRM input'!$N$204*(1+rvanilla08)^0.5)/A2stdlife)) -> 0 | AV128: =IF(A2stdlife="n/a","n/a",IF(AV$3>(A2stdlife+$E128),('PTRM input'!$N$204*(1+rvanilla08)^0.5)-SUM($N128:AU128),('PTRM input'!$N$204*(1+rvanilla08)^0.5)/A2stdlife)) -> 0 | AW128: =IF(A2stdlife="n/a","n/a",IF(AW$3>(A2stdlife+$E128),('PTRM input'!$N$204*(1+rvanilla08)^0.5)-SUM($N128:AV128),('PTRM input'!$N$204*(1+rvanilla08)^0.5)/A2stdlife)) -> 0 | AX128: =IF(A2stdlife="n/a","n/a",IF(AX$3>(A2stdlife+$E128),('PTRM input'!$N$204*(1+rvanilla08)^0.5)-SUM($N128:AW128),('PTRM input'!$N$204*(1+rvanilla08)^0.5)/A2stdlife)) -> 0 | AY128: =IF(A2stdlife="n/a","n/a",IF(AY$3>(A2stdlife+$E128),('PTRM input'!$N$204*(1+rvanilla08)^0.5)-SUM($N128:AX128),('PTRM input'!$N$204*(1+rvanilla08)^0.5)/A2stdlife)) -> 0 | AZ128: =IF(A2stdlife="n/a","n/a",IF(AZ$3>(A2stdlife+$E128),('PTRM input'!$N$204*(1+rvanilla08)^0.5)-SUM($N128:AY128),('PTRM input'!$N$204*(1+rvanilla08)^0.5)/A2stdlife)) -> 0 | BA128: =IF(A2stdlife="n/a","n/a",IF(BA$3>(A2stdlife+$E128),('PTRM input'!$N$204*(1+rvanilla08)^0.5)-SUM($N128:AZ128),('PTRM input'!$N$204*(1+rvanilla08)^0.5)/A2stdlife)) -> 0 | BB128: =IF(A2stdlife="n/a","n/a",IF(BB$3>(A2stdlife+$E128),('PTRM input'!$N$204*(1+rvanilla08)^0.5)-SUM($N128:BA128),('PTRM input'!$N$204*(1+rvanilla08)^0.5)/A2stdlife)) -> 0 | BC128: =IF(A2stdlife="n/a","n/a",IF(BC$3>(A2stdlife+$E128),('PTRM input'!$N$204*(1+rvanilla08)^0.5)-SUM($N128:BB128),('PTRM input'!$N$204*(1+rvanilla08)^0.5)/A2stdlife)) -> 0 | BD128: =IF(A2stdlife="n/a","n/a",IF(BD$3>(A2stdlife+$E128),('PTRM input'!$N$204*(1+rvanilla08)^0.5)-SUM($N128:BC128),('PTRM input'!$N$204*(1+rvanilla08)^0.5)/A2stdlife)) -> 0 | BE128: =IF(A2stdlife="n/a","n/a",IF(BE$3>(A2stdlife+$E128),('PTRM input'!$N$204*(1+rvanilla08)^0.5)-SUM($N128:BD128),('PTRM input'!$N$204*(1+rvanilla08)^0.5)/A2stdlife)) -> 0 | BF128: =IF(A2stdlife="n/a","n/a",IF(BF$3>(A2stdlife+$E128),('PTRM input'!$N$204*(1+rvanilla08)^0.5)-SUM($N128:BE128),('PTRM input'!$N$204*(1+rvanilla08)^0.5)/A2stdlife)) -> 0 | BG128: =IF(A2stdlife="n/a","n/a",IF(BG$3>(A2stdlife+$E128),('PTRM input'!$N$204*(1+rvanilla08)^0.5)-SUM($N128:BF128),('PTRM input'!$N$204*(1+rvanilla08)^0.5)/A2stdlife)) -> 0 | BH128: =IF(A2stdlife="n/a","n/a",IF(BH$3>(A2stdlife+$E128),('PTRM input'!$N$204*(1+rvanilla08)^0.5)-SUM($N128:BG128),('PTRM input'!$N$204*(1+rvanilla08)^0.5)/A2stdlife)) -> 0 | BI128: =IF(A2stdlife="n/a","n/a",IF(BI$3>(A2stdlife+$E128),('PTRM input'!$N$204*(1+rvanilla08)^0.5)-SUM($N128:BH128),('PTRM input'!$N$204*(1+rvanilla08)^0.5)/A2stdlife)) -> 0
E129: 9 | P129: =IF(A2stdlife="n/a","n/a",IF(P$3>(A2stdlife+$E129),('PTRM input'!$O$204*(1+rvanilla09)^0.5)-SUM($O129:O129),('PTRM input'!$O$204*(1+rvanilla09)^0.5)/A2stdlife)) -> 0 | Q129: =IF(A2stdlife="n/a","n/a",IF(Q$3>(A2stdlife+$E129),('PTRM input'!$O$204*(1+rvanilla09)^0.5)-SUM($O129:P129),('PTRM input'!$O$204*(1+rvanilla09)^0.5)/A2stdlife)) -> 0 | R129: =IF(A2stdlife="n/a","n/a",IF(R$3>(A2stdlife+$E129),('PTRM input'!$O$204*(1+rvanilla09)^0.5)-SUM($O129:Q129),('PTRM input'!$O$204*(1+rvanilla09)^0.5)/A2stdlife)) -> 0 | S129: =IF(A2stdlife="n/a","n/a",IF(S$3>(A2stdlife+$E129),('PTRM input'!$O$204*(1+rvanilla09)^0.5)-SUM($O129:R129),('PTRM input'!$O$204*(1+rvanilla09)^0.5)/A2stdlife)) -> 0 | T129: =IF(A2stdlife="n/a","n/a",IF(T$3>(A2stdlife+$E129),('PTRM input'!$O$204*(1+rvanilla09)^0.5)-SUM($O129:S129),('PTRM input'!$O$204*(1+rvanilla09)^0.5)/A2stdlife)) -> 0 | U129: =IF(A2stdlife="n/a","n/a",IF(U$3>(A2stdlife+$E129),('PTRM input'!$O$204*(1+rvanilla09)^0.5)-SUM($O129:T129),('PTRM input'!$O$204*(1+rvanilla09)^0.5)/A2stdlife)) -> 0 | V129: =IF(A2stdlife="n/a","n/a",IF(V$3>(A2stdlife+$E129),('PTRM input'!$O$204*(1+rvanilla09)^0.5)-SUM($O129:U129),('PTRM input'!$O$204*(1+rvanilla09)^0.5)/A2stdlife)) -> 0 | W129: =IF(A2stdlife="n/a","n/a",IF(W$3>(A2stdlife+$E129),('PTRM input'!$O$204*(1+rvanilla09)^0.5)-SUM($O129:V129),('PTRM input'!$O$204*(1+rvanilla09)^0.5)/A2stdlife)) -> 0 | X129: =IF(A2stdlife="n/a","n/a",IF(X$3>(A2stdlife+$E129),('PTRM input'!$O$204*(1+rvanilla09)^0.5)-SUM($O129:W129),('PTRM input'!$O$204*(1+rvanilla09)^0.5)/A2stdlife)) -> 0 | Y129: =IF(A2stdlife="n/a","n/a",IF(Y$3>(A2stdlife+$E129),('PTRM input'!$O$204*(1+rvanilla09)^0.5)-SUM($O129:X129),('PTRM input'!$O$204*(1+rvanilla09)^0.5)/A2stdlife)) -> 0 | Z129: =IF(A2stdlife="n/a","n/a",IF(Z$3>(A2stdlife+$E129),('PTRM input'!$O$204*(1+rvanilla09)^0.5)-SUM($O129:Y129),('PTRM input'!$O$204*(1+rvanilla09)^0.5)/A2stdlife)) -> 0 | AA129: =IF(A2stdlife="n/a","n/a",IF(AA$3>(A2stdlife+$E129),('PTRM input'!$O$204*(1+rvanilla09)^0.5)-SUM($O129:Z129),('PTRM input'!$O$204*(1+rvanilla09)^0.5)/A2stdlife)) -> 0 | AB129: =IF(A2stdlife="n/a","n/a",IF(AB$3>(A2stdlife+$E129),('PTRM input'!$O$204*(1+rvanilla09)^0.5)-SUM($O129:AA129),('PTRM input'!$O$204*(1+rvanilla09)^0.5)/A2stdlife)) -> 0 | AC129: =IF(A2stdlife="n/a","n/a",IF(AC$3>(A2stdlife+$E129),('PTRM input'!$O$204*(1+rvanilla09)^0.5)-SUM($O129:AB129),('PTRM input'!$O$204*(1+rvanilla09)^0.5)/A2stdlife)) -> 0 | AD129: =IF(A2stdlife="n/a","n/a",IF(AD$3>(A2stdlife+$E129),('PTRM input'!$O$204*(1+rvanilla09)^0.5)-SUM($O129:AC129),('PTRM input'!$O$204*(1+rvanilla09)^0.5)/A2stdlife)) -> 0 | AE129: =IF(A2stdlife="n/a","n/a",IF(AE$3>(A2stdlife+$E129),('PTRM input'!$O$204*(1+rvanilla09)^0.5)-SUM($O129:AD129),('PTRM input'!$O$204*(1+rvanilla09)^0.5)/A2stdlife)) -> 0 | AF129: =IF(A2stdlife="n/a","n/a",IF(AF$3>(A2stdlife+$E129),('PTRM input'!$O$204*(1+rvanilla09)^0.5)-SUM($O129:AE129),('PTRM input'!$O$204*(1+rvanilla09)^0.5)/A2stdlife)) -> 0 | AG129: =IF(A2stdlife="n/a","n/a",IF(AG$3>(A2stdlife+$E129),('PTRM input'!$O$204*(1+rvanilla09)^0.5)-SUM($O129:AF129),('PTRM input'!$O$204*(1+rvanilla09)^0.5)/A2stdlife)) -> 0 | AH129: =IF(A2stdlife="n/a","n/a",IF(AH$3>(A2stdlife+$E129),('PTRM input'!$O$204*(1+rvanilla09)^0.5)-SUM($O129:AG129),('PTRM input'!$O$204*(1+rvanilla09)^0.5)/A2stdlife)) -> 0 | AI129: =IF(A2stdlife="n/a","n/a",IF(AI$3>(A2stdlife+$E129),('PTRM input'!$O$204*(1+rvanilla09)^0.5)-SUM($O129:AH129),('PTRM input'!$O$204*(1+rvanilla09)^0.5)/A2stdlife)) -> 0 | AJ129: =IF(A2stdlife="n/a","n/a",IF(AJ$3>(A2stdlife+$E129),('PTRM input'!$O$204*(1+rvanilla09)^0.5)-SUM($O129:AI129),('PTRM input'!$O$204*(1+rvanilla09)^0.5)/A2stdlife)) -> 0 | AK129: =IF(A2stdlife="n/a","n/a",IF(AK$3>(A2stdlife+$E129),('PTRM input'!$O$204*(1+rvanilla09)^0.5)-SUM($O129:AJ129),('PTRM input'!$O$204*(1+rvanilla09)^0.5)/A2stdlife)) -> 0 | AL129: =IF(A2stdlife="n/a","n/a",IF(AL$3>(A2stdlife+$E129),('PTRM input'!$O$204*(1+rvanilla09)^0.5)-SUM($O129:AK129),('PTRM input'!$O$204*(1+rvanilla09)^0.5)/A2stdlife)) -> 0 | AM129: =IF(A2stdlife="n/a","n/a",IF(AM$3>(A2stdlife+$E129),('PTRM input'!$O$204*(1+rvanilla09)^0.5)-SUM($O129:AL129),('PTRM input'!$O$204*(1+rvanilla09)^0.5)/A2stdlife)) -> 0 | AN129: =IF(A2stdlife="n/a","n/a",IF(AN$3>(A2stdlife+$E129),('PTRM input'!$O$204*(1+rvanilla09)^0.5)-SUM($O129:AM129),('PTRM input'!$O$204*(1+rvanilla09)^0.5)/A2stdlife)) -> 0 | AO129: =IF(A2stdlife="n/a","n/a",IF(AO$3>(A2stdlife+$E129),('PTRM input'!$O$204*(1+rvanilla09)^0.5)-SUM($O129:AN129),('PTRM input'!$O$204*(1+rvanilla09)^0.5)/A2stdlife)) -> 0 | AP129: =IF(A2stdlife="n/a","n/a",IF(AP$3>(A2stdlife+$E129),('PTRM input'!$O$204*(1+rvanilla09)^0.5)-SUM($O129:AO129),('PTRM input'!$O$204*(1+rvanilla09)^0.5)/A2stdlife)) -> 0 | AQ129: =IF(A2stdlife="n/a","n/a",IF(AQ$3>(A2stdlife+$E129),('PTRM input'!$O$204*(1+rvanilla09)^0.5)-SUM($O129:AP129),('PTRM input'!$O$204*(1+rvanilla09)^0.5)/A2stdlife)) -> 0 | AR129: =IF(A2stdlife="n/a","n/a",IF(AR$3>(A2stdlife+$E129),('PTRM input'!$O$204*(1+rvanilla09)^0.5)-SUM($O129:AQ129),('PTRM input'!$O$204*(1+rvanilla09)^0.5)/A2stdlife)) -> 0 | AS129: =IF(A2stdlife="n/a","n/a",IF(AS$3>(A2stdlife+$E129),('PTRM input'!$O$204*(1+rvanilla09)^0.5)-SUM($O129:AR129),('PTRM input'!$O$204*(1+rvanilla09)^0.5)/A2stdlife)) -> 0 | AT129: =IF(A2stdlife="n/a","n/a",IF(AT$3>(A2stdlife+$E129),('PTRM input'!$O$204*(1+rvanilla09)^0.5)-SUM($O129:AS129),('PTRM input'!$O$204*(1+rvanilla09)^0.5)/A2stdlife)) -> 0 | AU129: =IF(A2stdlife="n/a","n/a",IF(AU$3>(A2stdlife+$E129),('PTRM input'!$O$204*(1+rvanilla09)^0.5)-SUM($O129:AT129),('PTRM input'!$O$204*(1+rvanilla09)^0.5)/A2stdlife)) -> 0 | AV129: =IF(A2stdlife="n/a","n/a",IF(AV$3>(A2stdlife+$E129),('PTRM input'!$O$204*(1+rvanilla09)^0.5)-SUM($O129:AU129),('PTRM input'!$O$204*(1+rvanilla09)^0.5)/A2stdlife)) -> 0 | AW129: =IF(A2stdlife="n/a","n/a",IF(AW$3>(A2stdlife+$E129),('PTRM input'!$O$204*(1+rvanilla09)^0.5)-SUM($O129:AV129),('PTRM input'!$O$204*(1+rvanilla09)^0.5)/A2stdlife)) -> 0 | AX129: =IF(A2stdlife="n/a","n/a",IF(AX$3>(A2stdlife+$E129),('PTRM input'!$O$204*(1+rvanilla09)^0.5)-SUM($O129:AW129),('PTRM input'!$O$204*(1+rvanilla09)^0.5)/A2stdlife)) -> 0 | AY129: =IF(A2stdlife="n/a","n/a",IF(AY$3>(A2stdlife+$E129),('PTRM input'!$O$204*(1+rvanilla09)^0.5)-SUM($O129:AX129),('PTRM input'!$O$204*(1+rvanilla09)^0.5)/A2stdlife)) -> 0 | AZ129: =IF(A2stdlife="n/a","n/a",IF(AZ$3>(A2stdlife+$E129),('PTRM input'!$O$204*(1+rvanilla09)^0.5)-SUM($O129:AY129),('PTRM input'!$O$204*(1+rvanilla09)^0.5)/A2stdlife)) -> 0 | BA129: =IF(A2stdlife="n/a","n/a",IF(BA$3>(A2stdlife+$E129),('PTRM input'!$O$204*(1+rvanilla09)^0.5)-SUM($O129:AZ129),('PTRM input'!$O$204*(1+rvanilla09)^0.5)/A2stdlife)) -> 0 | BB129: =IF(A2stdlife="n/a","n/a",IF(BB$3>(A2stdlife+$E129),('PTRM input'!$O$204*(1+rvanilla09)^0.5)-SUM($O129:BA129),('PTRM input'!$O$204*(1+rvanilla09)^0.5)/A2stdlife)) -> 0 | BC129: =IF(A2stdlife="n/a","n/a",IF(BC$3>(A2stdlife+$E129),('PTRM input'!$O$204*(1+rvanilla09)^0.5)-SUM($O129:BB129),('PTRM input'!$O$204*(1+rvanilla09)^0.5)/A2stdlife)) -> 0 | BD129: =IF(A2stdlife="n/a","n/a",IF(BD$3>(A2stdlife+$E129),('PTRM input'!$O$204*(1+rvanilla09)^0.5)-SUM($O129:BC129),('PTRM input'!$O$204*(1+rvanilla09)^0.5)/A2stdlife)) -> 0 | BE129: =IF(A2stdlife="n/a","n/a",IF(BE$3>(A2stdlife+$E129),('PTRM input'!$O$204*(1+rvanilla09)^0.5)-SUM($O129:BD129),('PTRM input'!$O$204*(1+rvanilla09)^0.5)/A2stdlife)) -> 0 | BF129: =IF(A2stdlife="n/a","n/a",IF(BF$3>(A2stdlife+$E129),('PTRM input'!$O$204*(1+rvanilla09)^0.5)-SUM($O129:BE129),('PTRM input'!$O$204*(1+rvanilla09)^0.5)/A2stdlife)) -> 0 | BG129: =IF(A2stdlife="n/a","n/a",IF(BG$3>(A2stdlife+$E129),('PTRM input'!$O$204*(1+rvanilla09)^0.5)-SUM($O129:BF129),('PTRM input'!$O$204*(1+rvanilla09)^0.5)/A2stdlife)) -> 0 | BH129: =IF(A2stdlife="n/a","n/a",IF(BH$3>(A2stdlife+$E129),('PTRM input'!$O$204*(1+rvanilla09)^0.5)-SUM($O129:BG129),('PTRM input'!$O$204*(1+rvanilla09)^0.5)/A2stdlife)) -> 0 | BI129: =IF(A2stdlife="n/a","n/a",IF(BI$3>(A2stdlife+$E129),('PTRM input'!$O$204*(1+rvanilla09)^0.5)-SUM($O129:BH129),('PTRM input'!$O$204*(1+rvanilla09)^0.5)/A2stdlife)) -> 0
E130: 10 | Q130: =IF(A2stdlife="n/a","n/a",IF(Q$3>(A2stdlife+$E130),('PTRM input'!$P$204*(1+rvanilla10)^0.5)-SUM($P130:P130),('PTRM input'!$P$204*(1+rvanilla10)^0.5)/A2stdlife)) -> 0 | R130: =IF(A2stdlife="n/a","n/a",IF(R$3>(A2stdlife+$E130),('PTRM input'!$P$204*(1+rvanilla10)^0.5)-SUM($P130:Q130),('PTRM input'!$P$204*(1+rvanilla10)^0.5)/A2stdlife)) -> 0 | S130: =IF(A2stdlife="n/a","n/a",IF(S$3>(A2stdlife+$E130),('PTRM input'!$P$204*(1+rvanilla10)^0.5)-SUM($P130:R130),('PTRM input'!$P$204*(1+rvanilla10)^0.5)/A2stdlife)) -> 0 | T130: =IF(A2stdlife="n/a","n/a",IF(T$3>(A2stdlife+$E130),('PTRM input'!$P$204*(1+rvanilla10)^0.5)-SUM($P130:S130),('PTRM input'!$P$204*(1+rvanilla10)^0.5)/A2stdlife)) -> 0 | U130: =IF(A2stdlife="n/a","n/a",IF(U$3>(A2stdlife+$E130),('PTRM input'!$P$204*(1+rvanilla10)^0.5)-SUM($P130:T130),('PTRM input'!$P$204*(1+rvanilla10)^0.5)/A2stdlife)) -> 0 | V130: =IF(A2stdlife="n/a","n/a",IF(V$3>(A2stdlife+$E130),('PTRM input'!$P$204*(1+rvanilla10)^0.5)-SUM($P130:U130),('PTRM input'!$P$204*(1+rvanilla10)^0.5)/A2stdlife)) -> 0 | W130: =IF(A2stdlife="n/a","n/a",IF(W$3>(A2stdlife+$E130),('PTRM input'!$P$204*(1+rvanilla10)^0.5)-SUM($P130:V130),('PTRM input'!$P$204*(1+rvanilla10)^0.5)/A2stdlife)) -> 0 | X130: =IF(A2stdlife="n/a","n/a",IF(X$3>(A2stdlife+$E130),('PTRM input'!$P$204*(1+rvanilla10)^0.5)-SUM($P130:W130),('PTRM input'!$P$204*(1+rvanilla10)^0.5)/A2stdlife)) -> 0 | Y130: =IF(A2stdlife="n/a","n/a",IF(Y$3>(A2stdlife+$E130),('PTRM input'!$P$204*(1+rvanilla10)^0.5)-SUM($P130:X130),('PTRM input'!$P$204*(1+rvanilla10)^0.5)/A2stdlife)) -> 0 | Z130: =IF(A2stdlife="n/a","n/a",IF(Z$3>(A2stdlife+$E130),('PTRM input'!$P$204*(1+rvanilla10)^0.5)-SUM($P130:Y130),('PTRM input'!$P$204*(1+rvanilla10)^0.5)/A2stdlife)) -> 0 | AA130: =IF(A2stdlife="n/a","n/a",IF(AA$3>(A2stdlife+$E130),('PTRM input'!$P$204*(1+rvanilla10)^0.5)-SUM($P130:Z130),('PTRM input'!$P$204*(1+rvanilla10)^0.5)/A2stdlife)) -> 0 | AB130: =IF(A2stdlife="n/a","n/a",IF(AB$3>(A2stdlife+$E130),('PTRM input'!$P$204*(1+rvanilla10)^0.5)-SUM($P130:AA130),('PTRM input'!$P$204*(1+rvanilla10)^0.5)/A2stdlife)) -> 0 | AC130: =IF(A2stdlife="n/a","n/a",IF(AC$3>(A2stdlife+$E130),('PTRM input'!$P$204*(1+rvanilla10)^0.5)-SUM($P130:AB130),('PTRM input'!$P$204*(1+rvanilla10)^0.5)/A2stdlife)) -> 0 | AD130: =IF(A2stdlife="n/a","n/a",IF(AD$3>(A2stdlife+$E130),('PTRM input'!$P$204*(1+rvanilla10)^0.5)-SUM($P130:AC130),('PTRM input'!$P$204*(1+rvanilla10)^0.5)/A2stdlife)) -> 0 | AE130: =IF(A2stdlife="n/a","n/a",IF(AE$3>(A2stdlife+$E130),('PTRM input'!$P$204*(1+rvanilla10)^0.5)-SUM($P130:AD130),('PTRM input'!$P$204*(1+rvanilla10)^0.5)/A2stdlife)) -> 0 | AF130: =IF(A2stdlife="n/a","n/a",IF(AF$3>(A2stdlife+$E130),('PTRM input'!$P$204*(1+rvanilla10)^0.5)-SUM($P130:AE130),('PTRM input'!$P$204*(1+rvanilla10)^0.5)/A2stdlife)) -> 0 | AG130: =IF(A2stdlife="n/a","n/a",IF(AG$3>(A2stdlife+$E130),('PTRM input'!$P$204*(1+rvanilla10)^0.5)-SUM($P130:AF130),('PTRM input'!$P$204*(1+rvanilla10)^0.5)/A2stdlife)) -> 0 | AH130: =IF(A2stdlife="n/a","n/a",IF(AH$3>(A2stdlife+$E130),('PTRM input'!$P$204*(1+rvanilla10)^0.5)-SUM($P130:AG130),('PTRM input'!$P$204*(1+rvanilla10)^0.5)/A2stdlife)) -> 0 | AI130: =IF(A2stdlife="n/a","n/a",IF(AI$3>(A2stdlife+$E130),('PTRM input'!$P$204*(1+rvanilla10)^0.5)-SUM($P130:AH130),('PTRM input'!$P$204*(1+rvanilla10)^0.5)/A2stdlife)) -> 0 | AJ130: =IF(A2stdlife="n/a","n/a",IF(AJ$3>(A2stdlife+$E130),('PTRM input'!$P$204*(1+rvanilla10)^0.5)-SUM($P130:AI130),('PTRM input'!$P$204*(1+rvanilla10)^0.5)/A2stdlife)) -> 0 | AK130: =IF(A2stdlife="n/a","n/a",IF(AK$3>(A2stdlife+$E130),('PTRM input'!$P$204*(1+rvanilla10)^0.5)-SUM($P130:AJ130),('PTRM input'!$P$204*(1+rvanilla10)^0.5)/A2stdlife)) -> 0 | AL130: =IF(A2stdlife="n/a","n/a",IF(AL$3>(A2stdlife+$E130),('PTRM input'!$P$204*(1+rvanilla10)^0.5)-SUM($P130:AK130),('PTRM input'!$P$204*(1+rvanilla10)^0.5)/A2stdlife)) -> 0 | AM130: =IF(A2stdlife="n/a","n/a",IF(AM$3>(A2stdlife+$E130),('PTRM input'!$P$204*(1+rvanilla10)^0.5)-SUM($P130:AL130),('PTRM input'!$P$204*(1+rvanilla10)^0.5)/A2stdlife)) -> 0 | AN130: =IF(A2stdlife="n/a","n/a",IF(AN$3>(A2stdlife+$E130),('PTRM input'!$P$204*(1+rvanilla10)^0.5)-SUM($P130:AM130),('PTRM input'!$P$204*(1+rvanilla10)^0.5)/A2stdlife)) -> 0 | AO130: =IF(A2stdlife="n/a","n/a",IF(AO$3>(A2stdlife+$E130),('PTRM input'!$P$204*(1+rvanilla10)^0.5)-SUM($P130:AN130),('PTRM input'!$P$204*(1+rvanilla10)^0.5)/A2stdlife)) -> 0 | AP130: =IF(A2stdlife="n/a","n/a",IF(AP$3>(A2stdlife+$E130),('PTRM input'!$P$204*(1+rvanilla10)^0.5)-SUM($P130:AO130),('PTRM input'!$P$204*(1+rvanilla10)^0.5)/A2stdlife)) -> 0 | AQ130: =IF(A2stdlife="n/a","n/a",IF(AQ$3>(A2stdlife+$E130),('PTRM input'!$P$204*(1+rvanilla10)^0.5)-SUM($P130:AP130),('PTRM input'!$P$204*(1+rvanilla10)^0.5)/A2stdlife)) -> 0 | AR130: =IF(A2stdlife="n/a","n/a",IF(AR$3>(A2stdlife+$E130),('PTRM input'!$P$204*(1+rvanilla10)^0.5)-SUM($P130:AQ130),('PTRM input'!$P$204*(1+rvanilla10)^0.5)/A2stdlife)) -> 0 | AS130: =IF(A2stdlife="n/a","n/a",IF(AS$3>(A2stdlife+$E130),('PTRM input'!$P$204*(1+rvanilla10)^0.5)-SUM($P130:AR130),('PTRM input'!$P$204*(1+rvanilla10)^0.5)/A2stdlife)) -> 0 | AT130: =IF(A2stdlife="n/a","n/a",IF(AT$3>(A2stdlife+$E130),('PTRM input'!$P$204*(1+rvanilla10)^0.5)-SUM($P130:AS130),('PTRM input'!$P$204*(1+rvanilla10)^0.5)/A2stdlife)) -> 0 | AU130: =IF(A2stdlife="n/a","n/a",IF(AU$3>(A2stdlife+$E130),('PTRM input'!$P$204*(1+rvanilla10)^0.5)-SUM($P130:AT130),('PTRM input'!$P$204*(1+rvanilla10)^0.5)/A2stdlife)) -> 0 | AV130: =IF(A2stdlife="n/a","n/a",IF(AV$3>(A2stdlife+$E130),('PTRM input'!$P$204*(1+rvanilla10)^0.5)-SUM($P130:AU130),('PTRM input'!$P$204*(1+rvanilla10)^0.5)/A2stdlife)) -> 0 | AW130: =IF(A2stdlife="n/a","n/a",IF(AW$3>(A2stdlife+$E130),('PTRM input'!$P$204*(1+rvanilla10)^0.5)-SUM($P130:AV130),('PTRM input'!$P$204*(1+rvanilla10)^0.5)/A2stdlife)) -> 0 | AX130: =IF(A2stdlife="n/a","n/a",IF(AX$3>(A2stdlife+$E130),('PTRM input'!$P$204*(1+rvanilla10)^0.5)-SUM($P130:AW130),('PTRM input'!$P$204*(1+rvanilla10)^0.5)/A2stdlife)) -> 0 | AY130: =IF(A2stdlife="n/a","n/a",IF(AY$3>(A2stdlife+$E130),('PTRM input'!$P$204*(1+rvanilla10)^0.5)-SUM($P130:AX130),('PTRM input'!$P$204*(1+rvanilla10)^0.5)/A2stdlife)) -> 0 | AZ130: =IF(A2stdlife="n/a","n/a",IF(AZ$3>(A2stdlife+$E130),('PTRM input'!$P$204*(1+rvanilla10)^0.5)-SUM($P130:AY130),('PTRM input'!$P$204*(1+rvanilla10)^0.5)/A2stdlife)) -> 0 | BA130: =IF(A2stdlife="n/a","n/a",IF(BA$3>(A2stdlife+$E130),('PTRM input'!$P$204*(1+rvanilla10)^0.5)-SUM($P130:AZ130),('PTRM input'!$P$204*(1+rvanilla10)^0.5)/A2stdlife)) -> 0 | BB130: =IF(A2stdlife="n/a","n/a",IF(BB$3>(A2stdlife+$E130),('PTRM input'!$P$204*(1+rvanilla10)^0.5)-SUM($P130:BA130),('PTRM input'!$P$204*(1+rvanilla10)^0.5)/A2stdlife)) -> 0 | BC130: =IF(A2stdlife="n/a","n/a",IF(BC$3>(A2stdlife+$E130),('PTRM input'!$P$204*(1+rvanilla10)^0.5)-SUM($P130:BB130),('PTRM input'!$P$204*(1+rvanilla10)^0.5)/A2stdlife)) -> 0 | BD130: =IF(A2stdlife="n/a","n/a",IF(BD$3>(A2stdlife+$E130),('PTRM input'!$P$204*(1+rvanilla10)^0.5)-SUM($P130:BC130),('PTRM input'!$P$204*(1+rvanilla10)^0.5)/A2stdlife)) -> 0 | BE130: =IF(A2stdlife="n/a","n/a",IF(BE$3>(A2stdlife+$E130),('PTRM input'!$P$204*(1+rvanilla10)^0.5)-SUM($P130:BD130),('PTRM input'!$P$204*(1+rvanilla10)^0.5)/A2stdlife)) -> 0 | BF130: =IF(A2stdlife="n/a","n/a",IF(BF$3>(A2stdlife+$E130),('PTRM input'!$P$204*(1+rvanilla10)^0.5)-SUM($P130:BE130),('PTRM input'!$P$204*(1+rvanilla10)^0.5)/A2stdlife)) -> 0 | BG130: =IF(A2stdlife="n/a","n/a",IF(BG$3>(A2stdlife+$E130),('PTRM input'!$P$204*(1+rvanilla10)^0.5)-SUM($P130:BF130),('PTRM input'!$P$204*(1+rvanilla10)^0.5)/A2stdlife)) -> 0 | BH130: =IF(A2stdlife="n/a","n/a",IF(BH$3>(A2stdlife+$E130),('PTRM input'!$P$204*(1+rvanilla10)^0.5)-SUM($P130:BG130),('PTRM input'!$P$204*(1+rvanilla10)^0.5)/A2stdlife)) -> 0 | BI130: =IF(A2stdlife="n/a","n/a",IF(BI$3>(A2stdlife+$E130),('PTRM input'!$P$204*(1+rvanilla10)^0.5)-SUM($P130:BH130),('PTRM input'!$P$204*(1+rvanilla10)^0.5)/A2stdlife)) -> 0
C131: =Asset2 -> Underground Subtransmission Lines (Urban) | G131: =SUM(G119:G130) -> 0.3027247429 | H131: =SUM(H119:H130) -> 0.3027247429 | I131: 0.3027247429 | J131: 0.3027247429 | K131: 0.3027247429 | L131: 0.3027247429 | M131: 0.3027247429 | N131: 0.3027247429 | O131: 0.3027247429 | P131: 0.3027247429 | Q131: 0.3027247429 | R131: 0.3027247429 | S131: 0.3027247429 | T131: 0.3027247429 | U131: 0.3027247429 | V131: 0.3027247429 | W131: 0.3027247429 | X131: 0.3027247429 | Y131: 0.3027247429 | Z131: 0.3027247429 | AA131: 0.3027247429 | AB131: 0.3027247429 | AC131: 0.3027247429 | AD131: 0.3027247429 | AE131: 0.3027247429 | AF131: 0.3027247429 | AG131: 0.3027247429 | AH131: 0.3027247429 | AI131: 0.3027247429 | AJ131: 0.3027247429 | AK131: 0.3027247429 | AL131: 0.3027247429 | AM131: 0.2714041606 | AN131: -0.004173405161 | AO131: -0.004173405161 | AP131: -0.004173405161 | AQ131: -0.004173405161 | AR131: -0.004173405161 | AS131: -0.004173405161 | AT131: -0.004173405161 | AU131: -0.004173405161 | AV131: -0.004173405161 | AW131: -0.004173405161 | AX131: -0.004173405161 | AY131: -0.004173405161 | AZ131: -0.004173405161 | BA131: -0.004173405161 | BB131: -0.004173405161 | BC131: -0.004173405161 | BD131: -0.004173405161 | BE131: -0.004173405161 | BF131: -0.004173405161 | BG131: -0.004173405161 | BH131: -0.004173405161 | BI131: -0.004173405161
B132: =C144 -> Urban Zone Substations | D132: Initial Asset Base | G132: 1.613628766 | H132: 1.613628766 | I132: 1.613628766 | J132: 1.613628766 | K132: 1.613628766 | L132: 1.613628766 | M132: 1.613628766 | N132: 1.613628766 | O132: 1.613628766 | P132: 1.613628766 | Q132: 1.613628766 | R132: 1.613628766 | S132: 1.613628766 | T132: 1.613628766 | U132: 1.613628766 | V132: 1.613628766 | W132: 1.613628766 | X132: 1.613628766 | Y132: 1.613628766 | Z132: 1.613628766 | AA132: 1.613628766 | AB132: 1.613628766 | AC132: 1.613628766 | AD132: 1.613628766 | AE132: 1.613628766 | AF132: 1.383527698 | AG132: 0.152059807 | AH132: 0.152059807 | AI132: 0.152059807 | AJ132: 0.152059807 | AK132: 0.152059807 | AL132: 0.152059807 | AM132: 0.152059807 | AN132: 0.152059807 | AO132: 0.152059807 | AP132: 0.3202192444 | AQ132: 0.2623079444 | AR132: 0.1249057643 | AS132: 0.1042859436 | AT132: 0.004187671184 | AU132: 0 | AV132: 0 | AW132: 0 | AX132: 0 | AY132: 0 | AZ132: 0 | BA132: 0 | BB132: 0 | BC132: 0 | BD132: 0 | BE132: 0 | BF132: 0 | BG132: 0 | BH132: 0 | BI132: 0 | BJ132: 0 | BK132: 0 | BL132: 0 | BM132: 0 | BN132: 0 | BO132: 0
D133: Capex in year | E133: 0
E134: 1 | H134: =IF(A3stdlife="n/a","n/a",IF(H$3>(A3stdlife+$E134),('PTRM input'!$G$205*(1+rvanilla01)^0.5)-SUM($G134:G134),('PTRM input'!$G$205*(1+rvanilla01)^0.5)/A3stdlife)) -> 0.02060510154 | I134: =IF(A3stdlife="n/a","n/a",IF(I$3>(A3stdlife+$E134),('PTRM input'!$G$205*(1+rvanilla01)^0.5)-SUM($G134:H134),('PTRM input'!$G$205*(1+rvanilla01)^0.5)/A3stdlife)) -> 0.02060510154 | J134: =IF(A3stdlife="n/a","n/a",IF(J$3>(A3stdlife+$E134),('PTRM input'!$G$205*(1+rvanilla01)^0.5)-SUM($G134:I134),('PTRM input'!$G$205*(1+rvanilla01)^0.5)/A3stdlife)) -> 0.02060510154 | K134: =IF(A3stdlife="n/a","n/a",IF(K$3>(A3stdlife+$E134),('PTRM input'!$G$205*(1+rvanilla01)^0.5)-SUM($G134:J134),('PTRM input'!$G$205*(1+rvanilla01)^0.5)/A3stdlife)) -> 0.02060510154 | L134: =IF(A3stdlife="n/a","n/a",IF(L$3>(A3stdlife+$E134),('PTRM input'!$G$205*(1+rvanilla01)^0.5)-SUM($G134:K134),('PTRM input'!$G$205*(1+rvanilla01)^0.5)/A3stdlife)) -> 0.02060510154 | M134: =IF(A3stdlife="n/a","n/a",IF(M$3>(A3stdlife+$E134),('PTRM input'!$G$205*(1+rvanilla01)^0.5)-SUM($G134:L134),('PTRM input'!$G$205*(1+rvanilla01)^0.5)/A3stdlife)) -> 0.02060510154 | N134: =IF(A3stdlife="n/a","n/a",IF(N$3>(A3stdlife+$E134),('PTRM input'!$G$205*(1+rvanilla01)^0.5)-SUM($G134:M134),('PTRM input'!$G$205*(1+rvanilla01)^0.5)/A3stdlife)) -> 0.02060510154 | O134: =IF(A3stdlife="n/a","n/a",IF(O$3>(A3stdlife+$E134),('PTRM input'!$G$205*(1+rvanilla01)^0.5)-SUM($G134:N134),('PTRM input'!$G$205*(1+rvanilla01)^0.5)/A3stdlife)) -> 0.02060510154 | P134: =IF(A3stdlife="n/a","n/a",IF(P$3>(A3stdlife+$E134),('PTRM input'!$G$205*(1+rvanilla01)^0.5)-SUM($G134:O134),('PTRM input'!$G$205*(1+rvanilla01)^0.5)/A3stdlife)) -> 0.02060510154 | Q134: =IF(A3stdlife="n/a","n/a",IF(Q$3>(A3stdlife+$E134),('PTRM input'!$G$205*(1+rvanilla01)^0.5)-SUM($G134:P134),('PTRM input'!$G$205*(1+rvanilla01)^0.5)/A3stdlife)) -> 0.02060510154 | R134: =IF(A3stdlife="n/a","n/a",IF(R$3>(A3stdlife+$E134),('PTRM input'!$G$205*(1+rvanilla01)^0.5)-SUM($G134:Q134),('PTRM input'!$G$205*(1+rvanilla01)^0.5)/A3stdlife)) -> 0.02060510154 | S134: =IF(A3stdlife="n/a","n/a",IF(S$3>(A3stdlife+$E134),('PTRM input'!$G$205*(1+rvanilla01)^0.5)-SUM($G134:R134),('PTRM input'!$G$205*(1+rvanilla01)^0.5)/A3stdlife)) -> 0.02060510154 | T134: =IF(A3stdlife="n/a","n/a",IF(T$3>(A3stdlife+$E134),('PTRM input'!$G$205*(1+rvanilla01)^0.5)-SUM($G134:S134),('PTRM input'!$G$205*(1+rvanilla01)^0.5)/A3stdlife)) -> 0.02060510154 | U134: =IF(A3stdlife="n/a","n/a",IF(U$3>(A3stdlife+$E134),('PTRM input'!$G$205*(1+rvanilla01)^0.5)-SUM($G134:T134),('PTRM input'!$G$205*(1+rvanilla01)^0.5)/A3stdlife)) -> 0.02060510154 | V134: =IF(A3stdlife="n/a","n/a",IF(V$3>(A3stdlife+$E134),('PTRM input'!$G$205*(1+rvanilla01)^0.5)-SUM($G134:U134),('PTRM input'!$G$205*(1+rvanilla01)^0.5)/A3stdlife)) -> 0.02060510154 | W134: =IF(A3stdlife="n/a","n/a",IF(W$3>(A3stdlife+$E134),('PTRM input'!$G$205*(1+rvanilla01)^0.5)-SUM($G134:V134),('PTRM input'!$G$205*(1+rvanilla01)^0.5)/A3stdlife)) -> 0.02060510154 | X134: =IF(A3stdlife="n/a","n/a",IF(X$3>(A3stdlife+$E134),('PTRM input'!$G$205*(1+rvanilla01)^0.5)-SUM($G134:W134),('PTRM input'!$G$205*(1+rvanilla01)^0.5)/A3stdlife)) -> 0.02060510154 | Y134: =IF(A3stdlife="n/a","n/a",IF(Y$3>(A3stdlife+$E134),('PTRM input'!$G$205*(1+rvanilla01)^0.5)-SUM($G134:X134),('PTRM input'!$G$205*(1+rvanilla01)^0.5)/A3stdlife)) -> 0.02060510154 | Z134: =IF(A3stdlife="n/a","n/a",IF(Z$3>(A3stdlife+$E134),('PTRM input'!$G$205*(1+rvanilla01)^0.5)-SUM($G134:Y134),('PTRM input'!$G$205*(1+rvanilla01)^0.5)/A3stdlife)) -> 0.02060510154 | AA134: =IF(A3stdlife="n/a","n/a",IF(AA$3>(A3stdlife+$E134),('PTRM input'!$G$205*(1+rvanilla01)^0.5)-SUM($G134:Z134),('PTRM input'!$G$205*(1+rvanilla01)^0.5)/A3stdlife)) -> 0.02060510154 | AB134: =IF(A3stdlife="n/a","n/a",IF(AB$3>(A3stdlife+$E134),('PTRM input'!$G$205*(1+rvanilla01)^0.5)-SUM($G134:AA134),('PTRM input'!$G$205*(1+rvanilla01)^0.5)/A3stdlife)) -> 0.02060510154 | AC134: =IF(A3stdlife="n/a","n/a",IF(AC$3>(A3stdlife+$E134),('PTRM input'!$G$205*(1+rvanilla01)^0.5)-SUM($G134:AB134),('PTRM input'!$G$205*(1+rvanilla01)^0.5)/A3stdlife)) -> 0.02060510154 | AD134: =IF(A3stdlife="n/a","n/a",IF(AD$3>(A3stdlife+$E134),('PTRM input'!$G$205*(1+rvanilla01)^0.5)-SUM($G134:AC134),('PTRM input'!$G$205*(1+rvanilla01)^0.5)/A3stdlife)) -> 0.02060510154 | AE134: =IF(A3stdlife="n/a","n/a",IF(AE$3>(A3stdlife+$E134),('PTRM input'!$G$205*(1+rvanilla01)^0.5)-SUM($G134:AD134),('PTRM input'!$G$205*(1+rvanilla01)^0.5)/A3stdlife)) -> 0.02060510154 | AF134: =IF(A3stdlife="n/a","n/a",IF(AF$3>(A3stdlife+$E134),('PTRM input'!$G$205*(1+rvanilla01)^0.5)-SUM($G134:AE134),('PTRM input'!$G$205*(1+rvanilla01)^0.5)/A3stdlife)) -> 0.02060510154 | AG134: =IF(A3stdlife="n/a","n/a",IF(AG$3>(A3stdlife+$E134),('PTRM input'!$G$205*(1+rvanilla01)^0.5)-SUM($G134:AF134),('PTRM input'!$G$205*(1+rvanilla01)^0.5)/A3stdlife)) -> 0.02060510154 | AH134: =IF(A3stdlife="n/a","n/a",IF(AH$3>(A3stdlife+$E134),('PTRM input'!$G$205*(1+rvanilla01)^0.5)-SUM($G134:AG134),('PTRM input'!$G$205*(1+rvanilla01)^0.5)/A3stdlife)) -> 0.02060510154 | AI134: =IF(A3stdlife="n/a","n/a",IF(AI$3>(A3stdlife+$E134),('PTRM input'!$G$205*(1+rvanilla01)^0.5)-SUM($G134:AH134),('PTRM input'!$G$205*(1+rvanilla01)^0.5)/A3stdlife)) -> 0.02060510154 | AJ134: =IF(A3stdlife="n/a","n/a",IF(AJ$3>(A3stdlife+$E134),('PTRM input'!$G$205*(1+rvanilla01)^0.5)-SUM($G134:AI134),('PTRM input'!$G$205*(1+rvanilla01)^0.5)/A3stdlife)) -> 0.02060510154 | AK134: =IF(A3stdlife="n/a","n/a",IF(AK$3>(A3stdlife+$E134),('PTRM input'!$G$205*(1+rvanilla01)^0.5)-SUM($G134:AJ134),('PTRM input'!$G$205*(1+rvanilla01)^0.5)/A3stdlife)) -> 0.02060510154 | AL134: =IF(A3stdlife="n/a","n/a",IF(AL$3>(A3stdlife+$E134),('PTRM input'!$G$205*(1+rvanilla01)^0.5)-SUM($G134:AK134),('PTRM input'!$G$205*(1+rvanilla01)^0.5)/A3stdlife)) -> 0.02060510154 | AM134: =IF(A3stdlife="n/a","n/a",IF(AM$3>(A3stdlife+$E134),('PTRM input'!$G$205*(1+rvanilla01)^0.5)-SUM($G134:AL134),('PTRM input'!$G$205*(1+rvanilla01)^0.5)/A3stdlife)) -> 0.02060510154 | AN134: =IF(A3stdlife="n/a","n/a",IF(AN$3>(A3stdlife+$E134),('PTRM input'!$G$205*(1+rvanilla01)^0.5)-SUM($G134:AM134),('PTRM input'!$G$205*(1+rvanilla01)^0.5)/A3stdlife)) -> 0.02060510154 | AO134: =IF(A3stdlife="n/a","n/a",IF(AO$3>(A3stdlife+$E134),('PTRM input'!$G$205*(1+rvanilla01)^0.5)-SUM($G134:AN134),('PTRM input'!$G$205*(1+rvanilla01)^0.5)/A3stdlife)) -> 0.02060510154 | AP134: =IF(A3stdlife="n/a","n/a",IF(AP$3>(A3stdlife+$E134),('PTRM input'!$G$205*(1+rvanilla01)^0.5)-SUM($G134:AO134),('PTRM input'!$G$205*(1+rvanilla01)^0.5)/A3stdlife)) -> 0.02060510154 | AQ134: =IF(A3stdlife="n/a","n/a",IF(AQ$3>(A3stdlife+$E134),('PTRM input'!$G$205*(1+rvanilla01)^0.5)-SUM($G134:AP134),('PTRM input'!$G$205*(1+rvanilla01)^0.5)/A3stdlife)) -> 0.02060510154 | AR134: =IF(A3stdlife="n/a","n/a",IF(AR$3>(A3stdlife+$E134),('PTRM input'!$G$205*(1+rvanilla01)^0.5)-SUM($G134:AQ134),('PTRM input'!$G$205*(1+rvanilla01)^0.5)/A3stdlife)) -> 0.02060510154 | AS134: =IF(A3stdlife="n/a","n/a",IF(AS$3>(A3stdlife+$E134),('PTRM input'!$G$205*(1+rvanilla01)^0.5)-SUM($G134:AR134),('PTRM input'!$G$205*(1+rvanilla01)^0.5)/A3stdlife)) -> 0.02060510154 | AT134: =IF(A3stdlife="n/a","n/a",IF(AT$3>(A3stdlife+$E134),('PTRM input'!$G$205*(1+rvanilla01)^0.5)-SUM($G134:AS134),('PTRM input'!$G$205*(1+rvanilla01)^0.5)/A3stdlife)) -> 0.02060510154 | AU134: =IF(A3stdlife="n/a","n/a",IF(AU$3>(A3stdlife+$E134),('PTRM input'!$G$205*(1+rvanilla01)^0.5)-SUM($G134:AT134),('PTRM input'!$G$205*(1+rvanilla01)^0.5)/A3stdlife)) -> 0.02060510154 | AV134: =IF(A3stdlife="n/a","n/a",IF(AV$3>(A3stdlife+$E134),('PTRM input'!$G$205*(1+rvanilla01)^0.5)-SUM($G134:AU134),('PTRM input'!$G$205*(1+rvanilla01)^0.5)/A3stdlife)) -> 7.771561172e-16 | AW134: =IF(A3stdlife="n/a","n/a",IF(AW$3>(A3stdlife+$E134),('PTRM input'!$G$205*(1+rvanilla01)^0.5)-SUM($G134:AV134),('PTRM input'!$G$205*(1+rvanilla01)^0.5)/A3stdlife)) -> 0 | AX134: =IF(A3stdlife="n/a","n/a",IF(AX$3>(A3stdlife+$E134),('PTRM input'!$G$205*(1+rvanilla01)^0.5)-SUM($G134:AW134),('PTRM input'!$G$205*(1+rvanilla01)^0.5)/A3stdlife)) -> 0 | AY134: =IF(A3stdlife="n/a","n/a",IF(AY$3>(A3stdlife+$E134),('PTRM input'!$G$205*(1+rvanilla01)^0.5)-SUM($G134:AX134),('PTRM input'!$G$205*(1+rvanilla01)^0.5)/A3stdlife)) -> 0 | AZ134: =IF(A3stdlife="n/a","n/a",IF(AZ$3>(A3stdlife+$E134),('PTRM input'!$G$205*(1+rvanilla01)^0.5)-SUM($G134:AY134),('PTRM input'!$G$205*(1+rvanilla01)^0.5)/A3stdlife)) -> 0 | BA134: =IF(A3stdlife="n/a","n/a",IF(BA$3>(A3stdlife+$E134),('PTRM input'!$G$205*(1+rvanilla01)^0.5)-SUM($G134:AZ134),('PTRM input'!$G$205*(1+rvanilla01)^0.5)/A3stdlife)) -> 0 | BB134: =IF(A3stdlife="n/a","n/a",IF(BB$3>(A3stdlife+$E134),('PTRM input'!$G$205*(1+rvanilla01)^0.5)-SUM($G134:BA134),('PTRM input'!$G$205*(1+rvanilla01)^0.5)/A3stdlife)) -> 0 | BC134: =IF(A3stdlife="n/a","n/a",IF(BC$3>(A3stdlife+$E134),('PTRM input'!$G$205*(1+rvanilla01)^0.5)-SUM($G134:BB134),('PTRM input'!$G$205*(1+rvanilla01)^0.5)/A3stdlife)) -> 0 | BD134: =IF(A3stdlife="n/a","n/a",IF(BD$3>(A3stdlife+$E134),('PTRM input'!$G$205*(1+rvanilla01)^0.5)-SUM($G134:BC134),('PTRM input'!$G$205*(1+rvanilla01)^0.5)/A3stdlife)) -> 0 | BE134: =IF(A3stdlife="n/a","n/a",IF(BE$3>(A3stdlife+$E134),('PTRM input'!$G$205*(1+rvanilla01)^0.5)-SUM($G134:BD134),('PTRM input'!$G$205*(1+rvanilla01)^0.5)/A3stdlife)) -> 0 | BF134: =IF(A3stdlife="n/a","n/a",IF(BF$3>(A3stdlife+$E134),('PTRM input'!$G$205*(1+rvanilla01)^0.5)-SUM($G134:BE134),('PTRM input'!$G$205*(1+rvanilla01)^0.5)/A3stdlife)) -> 0 | BG134: =IF(A3stdlife="n/a","n/a",IF(BG$3>(A3stdlife+$E134),('PTRM input'!$G$205*(1+rvanilla01)^0.5)-SUM($G134:BF134),('PTRM input'!$G$205*(1+rvanilla01)^0.5)/A3stdlife)) -> 0 | BH134: =IF(A3stdlife="n/a","n/a",IF(BH$3>(A3stdlife+$E134),('PTRM input'!$G$205*(1+rvanilla01)^0.5)-SUM($G134:BG134),('PTRM input'!$G$205*(1+rvanilla01)^0.5)/A3stdlife)) -> 0 | BI134: =IF(A3stdlife="n/a","n/a",IF(BI$3>(A3stdlife+$E134),('PTRM input'!$G$205*(1+rvanilla01)^0.5)-SUM($G134:BH134),('PTRM input'!$G$205*(1+rvanilla01)^0.5)/A3stdlife)) -> 0
E135: 2 | I135: =IF(A3stdlife="n/a","n/a",IF(I$3>(A3stdlife+$E135),('PTRM input'!$H$205*(1+rvanilla02)^0.5)-SUM($H135:H135),('PTRM input'!$H$205*(1+rvanilla02)^0.5)/A3stdlife)) -> 0.1078020553 | J135: =IF(A3stdlife="n/a","n/a",IF(J$3>(A3stdlife+$E135),('PTRM input'!$H$205*(1+rvanilla02)^0.5)-SUM($H135:I135),('PTRM input'!$H$205*(1+rvanilla02)^0.5)/A3stdlife)) -> 0.1078020553 | K135: =IF(A3stdlife="n/a","n/a",IF(K$3>(A3stdlife+$E135),('PTRM input'!$H$205*(1+rvanilla02)^0.5)-SUM($H135:J135),('PTRM input'!$H$205*(1+rvanilla02)^0.5)/A3stdlife)) -> 0.1078020553 | L135: =IF(A3stdlife="n/a","n/a",IF(L$3>(A3stdlife+$E135),('PTRM input'!$H$205*(1+rvanilla02)^0.5)-SUM($H135:K135),('PTRM input'!$H$205*(1+rvanilla02)^0.5)/A3stdlife)) -> 0.1078020553 | M135: =IF(A3stdlife="n/a","n/a",IF(M$3>(A3stdlife+$E135),('PTRM input'!$H$205*(1+rvanilla02)^0.5)-SUM($H135:L135),('PTRM input'!$H$205*(1+rvanilla02)^0.5)/A3stdlife)) -> 0.1078020553 | N135: =IF(A3stdlife="n/a","n/a",IF(N$3>(A3stdlife+$E135),('PTRM input'!$H$205*(1+rvanilla02)^0.5)-SUM($H135:M135),('PTRM input'!$H$205*(1+rvanilla02)^0.5)/A3stdlife)) -> 0.1078020553 | O135: =IF(A3stdlife="n/a","n/a",IF(O$3>(A3stdlife+$E135),('PTRM input'!$H$205*(1+rvanilla02)^0.5)-SUM($H135:N135),('PTRM input'!$H$205*(1+rvanilla02)^0.5)/A3stdlife)) -> 0.1078020553 | P135: =IF(A3stdlife="n/a","n/a",IF(P$3>(A3stdlife+$E135),('PTRM input'!$H$205*(1+rvanilla02)^0.5)-SUM($H135:O135),('PTRM input'!$H$205*(1+rvanilla02)^0.5)/A3stdlife)) -> 0.1078020553 | Q135: =IF(A3stdlife="n/a","n/a",IF(Q$3>(A3stdlife+$E135),('PTRM input'!$H$205*(1+rvanilla02)^0.5)-SUM($H135:P135),('PTRM input'!$H$205*(1+rvanilla02)^0.5)/A3stdlife)) -> 0.1078020553 | R135: =IF(A3stdlife="n/a","n/a",IF(R$3>(A3stdlife+$E135),('PTRM input'!$H$205*(1+rvanilla02)^0.5)-SUM($H135:Q135),('PTRM input'!$H$205*(1+rvanilla02)^0.5)/A3stdlife)) -> 0.1078020553 | S135: =IF(A3stdlife="n/a","n/a",IF(S$3>(A3stdlife+$E135),('PTRM input'!$H$205*(1+rvanilla02)^0.5)-SUM($H135:R135),('PTRM input'!$H$205*(1+rvanilla02)^0.5)/A3stdlife)) -> 0.1078020553 | T135: =IF(A3stdlife="n/a","n/a",IF(T$3>(A3stdlife+$E135),('PTRM input'!$H$205*(1+rvanilla02)^0.5)-SUM($H135:S135),('PTRM input'!$H$205*(1+rvanilla02)^0.5)/A3stdlife)) -> 0.1078020553 | U135: =IF(A3stdlife="n/a","n/a",IF(U$3>(A3stdlife+$E135),('PTRM input'!$H$205*(1+rvanilla02)^0.5)-SUM($H135:T135),('PTRM input'!$H$205*(1+rvanilla02)^0.5)/A3stdlife)) -> 0.1078020553 | V135: =IF(A3stdlife="n/a","n/a",IF(V$3>(A3stdlife+$E135),('PTRM input'!$H$205*(1+rvanilla02)^0.5)-SUM($H135:U135),('PTRM input'!$H$205*(1+rvanilla02)^0.5)/A3stdlife)) -> 0.1078020553 | W135: =IF(A3stdlife="n/a","n/a",IF(W$3>(A3stdlife+$E135),('PTRM input'!$H$205*(1+rvanilla02)^0.5)-SUM($H135:V135),('PTRM input'!$H$205*(1+rvanilla02)^0.5)/A3stdlife)) -> 0.1078020553 | X135: =IF(A3stdlife="n/a","n/a",IF(X$3>(A3stdlife+$E135),('PTRM input'!$H$205*(1+rvanilla02)^0.5)-SUM($H135:W135),('PTRM input'!$H$205*(1+rvanilla02)^0.5)/A3stdlife)) -> 0.1078020553 | Y135: =IF(A3stdlife="n/a","n/a",IF(Y$3>(A3stdlife+$E135),('PTRM input'!$H$205*(1+rvanilla02)^0.5)-SUM($H135:X135),('PTRM input'!$H$205*(1+rvanilla02)^0.5)/A3stdlife)) -> 0.1078020553 | Z135: =IF(A3stdlife="n/a","n/a",IF(Z$3>(A3stdlife+$E135),('PTRM input'!$H$205*(1+rvanilla02)^0.5)-SUM($H135:Y135),('PTRM input'!$H$205*(1+rvanilla02)^0.5)/A3stdlife)) -> 0.1078020553 | AA135: =IF(A3stdlife="n/a","n/a",IF(AA$3>(A3stdlife+$E135),('PTRM input'!$H$205*(1+rvanilla02)^0.5)-SUM($H135:Z135),('PTRM input'!$H$205*(1+rvanilla02)^0.5)/A3stdlife)) -> 0.1078020553 | AB135: =IF(A3stdlife="n/a","n/a",IF(AB$3>(A3stdlife+$E135),('PTRM input'!$H$205*(1+rvanilla02)^0.5)-SUM($H135:AA135),('PTRM input'!$H$205*(1+rvanilla02)^0.5)/A3stdlife)) -> 0.1078020553 | AC135: =IF(A3stdlife="n/a","n/a",IF(AC$3>(A3stdlife+$E135),('PTRM input'!$H$205*(1+rvanilla02)^0.5)-SUM($H135:AB135),('PTRM input'!$H$205*(1+rvanilla02)^0.5)/A3stdlife)) -> 0.1078020553 | AD135: =IF(A3stdlife="n/a","n/a",IF(AD$3>(A3stdlife+$E135),('PTRM input'!$H$205*(1+rvanilla02)^0.5)-SUM($H135:AC135),('PTRM input'!$H$205*(1+rvanilla02)^0.5)/A3stdlife)) -> 0.1078020553 | AE135: =IF(A3stdlife="n/a","n/a",IF(AE$3>(A3stdlife+$E135),('PTRM input'!$H$205*(1+rvanilla02)^0.5)-SUM($H135:AD135),('PTRM input'!$H$205*(1+rvanilla02)^0.5)/A3stdlife)) -> 0.1078020553 | AF135: =IF(A3stdlife="n/a","n/a",IF(AF$3>(A3stdlife+$E135),('PTRM input'!$H$205*(1+rvanilla02)^0.5)-SUM($H135:AE135),('PTRM input'!$H$205*(1+rvanilla02)^0.5)/A3stdlife)) -> 0.1078020553 | AG135: =IF(A3stdlife="n/a","n/a",IF(AG$3>(A3stdlife+$E135),('PTRM input'!$H$205*(1+rvanilla02)^0.5)-SUM($H135:AF135),('PTRM input'!$H$205*(1+rvanilla02)^0.5)/A3stdlife)) -> 0.1078020553 | AH135: =IF(A3stdlife="n/a","n/a",IF(AH$3>(A3stdlife+$E135),('PTRM input'!$H$205*(1+rvanilla02)^0.5)-SUM($H135:AG135),('PTRM input'!$H$205*(1+rvanilla02)^0.5)/A3stdlife)) -> 0.1078020553 | AI135: =IF(A3stdlife="n/a","n/a",IF(AI$3>(A3stdlife+$E135),('PTRM input'!$H$205*(1+rvanilla02)^0.5)-SUM($H135:AH135),('PTRM input'!$H$205*(1+rvanilla02)^0.5)/A3stdlife)) -> 0.1078020553 | AJ135: =IF(A3stdlife="n/a","n/a",IF(AJ$3>(A3stdlife+$E135),('PTRM input'!$H$205*(1+rvanilla02)^0.5)-SUM($H135:AI135),('PTRM input'!$H$205*(1+rvanilla02)^0.5)/A3stdlife)) -> 0.1078020553 | AK135: =IF(A3stdlife="n/a","n/a",IF(AK$3>(A3stdlife+$E135),('PTRM input'!$H$205*(1+rvanilla02)^0.5)-SUM($H135:AJ135),('PTRM input'!$H$205*(1+rvanilla02)^0.5)/A3stdlife)) -> 0.1078020553 | AL135: =IF(A3stdlife="n/a","n/a",IF(AL$3>(A3stdlife+$E135),('PTRM input'!$H$205*(1+rvanilla02)^0.5)-SUM($H135:AK135),('PTRM input'!$H$205*(1+rvanilla02)^0.5)/A3stdlife)) -> 0.1078020553 | AM135: =IF(A3stdlife="n/a","n/a",IF(AM$3>(A3stdlife+$E135),('PTRM input'!$H$205*(1+rvanilla02)^0.5)-SUM($H135:AL135),('PTRM input'!$H$205*(1+rvanilla02)^0.5)/A3stdlife)) -> 0.1078020553 | AN135: =IF(A3stdlife="n/a","n/a",IF(AN$3>(A3stdlife+$E135),('PTRM input'!$H$205*(1+rvanilla02)^0.5)-SUM($H135:AM135),('PTRM input'!$H$205*(1+rvanilla02)^0.5)/A3stdlife)) -> 0.1078020553 | AO135: =IF(A3stdlife="n/a","n/a",IF(AO$3>(A3stdlife+$E135),('PTRM input'!$H$205*(1+rvanilla02)^0.5)-SUM($H135:AN135),('PTRM input'!$H$205*(1+rvanilla02)^0.5)/A3stdlife)) -> 0.1078020553 | AP135: =IF(A3stdlife="n/a","n/a",IF(AP$3>(A3stdlife+$E135),('PTRM input'!$H$205*(1+rvanilla02)^0.5)-SUM($H135:AO135),('PTRM input'!$H$205*(1+rvanilla02)^0.5)/A3stdlife)) -> 0.1078020553 | AQ135: =IF(A3stdlife="n/a","n/a",IF(AQ$3>(A3stdlife+$E135),('PTRM input'!$H$205*(1+rvanilla02)^0.5)-SUM($H135:AP135),('PTRM input'!$H$205*(1+rvanilla02)^0.5)/A3stdlife)) -> 0.1078020553 | AR135: =IF(A3stdlife="n/a","n/a",IF(AR$3>(A3stdlife+$E135),('PTRM input'!$H$205*(1+rvanilla02)^0.5)-SUM($H135:AQ135),('PTRM input'!$H$205*(1+rvanilla02)^0.5)/A3stdlife)) -> 0.1078020553 | AS135: =IF(A3stdlife="n/a","n/a",IF(AS$3>(A3stdlife+$E135),('PTRM input'!$H$205*(1+rvanilla02)^0.5)-SUM($H135:AR135),('PTRM input'!$H$205*(1+rvanilla02)^0.5)/A3stdlife)) -> 0.1078020553 | AT135: =IF(A3stdlife="n/a","n/a",IF(AT$3>(A3stdlife+$E135),('PTRM input'!$H$205*(1+rvanilla02)^0.5)-SUM($H135:AS135),('PTRM input'!$H$205*(1+rvanilla02)^0.5)/A3stdlife)) -> 0.1078020553 | AU135: =IF(A3stdlife="n/a","n/a",IF(AU$3>(A3stdlife+$E135),('PTRM input'!$H$205*(1+rvanilla02)^0.5)-SUM($H135:AT135),('PTRM input'!$H$205*(1+rvanilla02)^0.5)/A3stdlife)) -> 0.1078020553 | AV135: =IF(A3stdlife="n/a","n/a",IF(AV$3>(A3stdlife+$E135),('PTRM input'!$H$205*(1+rvanilla02)^0.5)-SUM($H135:AU135),('PTRM input'!$H$205*(1+rvanilla02)^0.5)/A3stdlife)) -> 0.1078020553 | AW135: =IF(A3stdlife="n/a","n/a",IF(AW$3>(A3stdlife+$E135),('PTRM input'!$H$205*(1+rvanilla02)^0.5)-SUM($H135:AV135),('PTRM input'!$H$205*(1+rvanilla02)^0.5)/A3stdlife)) -> -1.776356839e-15 | AX135: =IF(A3stdlife="n/a","n/a",IF(AX$3>(A3stdlife+$E135),('PTRM input'!$H$205*(1+rvanilla02)^0.5)-SUM($H135:AW135),('PTRM input'!$H$205*(1+rvanilla02)^0.5)/A3stdlife)) -> 0 | AY135: =IF(A3stdlife="n/a","n/a",IF(AY$3>(A3stdlife+$E135),('PTRM input'!$H$205*(1+rvanilla02)^0.5)-SUM($H135:AX135),('PTRM input'!$H$205*(1+rvanilla02)^0.5)/A3stdlife)) -> 0 | AZ135: =IF(A3stdlife="n/a","n/a",IF(AZ$3>(A3stdlife+$E135),('PTRM input'!$H$205*(1+rvanilla02)^0.5)-SUM($H135:AY135),('PTRM input'!$H$205*(1+rvanilla02)^0.5)/A3stdlife)) -> 0 | BA135: =IF(A3stdlife="n/a","n/a",IF(BA$3>(A3stdlife+$E135),('PTRM input'!$H$205*(1+rvanilla02)^0.5)-SUM($H135:AZ135),('PTRM input'!$H$205*(1+rvanilla02)^0.5)/A3stdlife)) -> 0 | BB135: =IF(A3stdlife="n/a","n/a",IF(BB$3>(A3stdlife+$E135),('PTRM input'!$H$205*(1+rvanilla02)^0.5)-SUM($H135:BA135),('PTRM input'!$H$205*(1+rvanilla02)^0.5)/A3stdlife)) -> 0 | BC135: =IF(A3stdlife="n/a","n/a",IF(BC$3>(A3stdlife+$E135),('PTRM input'!$H$205*(1+rvanilla02)^0.5)-SUM($H135:BB135),('PTRM input'!$H$205*(1+rvanilla02)^0.5)/A3stdlife)) -> 0 | BD135: =IF(A3stdlife="n/a","n/a",IF(BD$3>(A3stdlife+$E135),('PTRM input'!$H$205*(1+rvanilla02)^0.5)-SUM($H135:BC135),('PTRM input'!$H$205*(1+rvanilla02)^0.5)/A3stdlife)) -> 0 | BE135: =IF(A3stdlife="n/a","n/a",IF(BE$3>(A3stdlife+$E135),('PTRM input'!$H$205*(1+rvanilla02)^0.5)-SUM($H135:BD135),('PTRM input'!$H$205*(1+rvanilla02)^0.5)/A3stdlife)) -> 0 | BF135: =IF(A3stdlife="n/a","n/a",IF(BF$3>(A3stdlife+$E135),('PTRM input'!$H$205*(1+rvanilla02)^0.5)-SUM($H135:BE135),('PTRM input'!$H$205*(1+rvanilla02)^0.5)/A3stdlife)) -> 0 | BG135: =IF(A3stdlife="n/a","n/a",IF(BG$3>(A3stdlife+$E135),('PTRM input'!$H$205*(1+rvanilla02)^0.5)-SUM($H135:BF135),('PTRM input'!$H$205*(1+rvanilla02)^0.5)/A3stdlife)) -> 0 | BH135: =IF(A3stdlife="n/a","n/a",IF(BH$3>(A3stdlife+$E135),('PTRM input'!$H$205*(1+rvanilla02)^0.5)-SUM($H135:BG135),('PTRM input'!$H$205*(1+rvanilla02)^0.5)/A3stdlife)) -> 0 | BI135: =IF(A3stdlife="n/a","n/a",IF(BI$3>(A3stdlife+$E135),('PTRM input'!$H$205*(1+rvanilla02)^0.5)-SUM($H135:BH135),('PTRM input'!$H$205*(1+rvanilla02)^0.5)/A3stdlife)) -> 0
E136: 3 | J136: =IF(A3stdlife="n/a","n/a",IF(J$3>(A3stdlife+$E136),('PTRM input'!$I$205*(1+rvanilla03)^0.5)-SUM($I136:I136),('PTRM input'!$I$205*(1+rvanilla03)^0.5)/A3stdlife)) -> 0 | K136: =IF(A3stdlife="n/a","n/a",IF(K$3>(A3stdlife+$E136),('PTRM input'!$I$205*(1+rvanilla03)^0.5)-SUM($I136:J136),('PTRM input'!$I$205*(1+rvanilla03)^0.5)/A3stdlife)) -> 0 | L136: =IF(A3stdlife="n/a","n/a",IF(L$3>(A3stdlife+$E136),('PTRM input'!$I$205*(1+rvanilla03)^0.5)-SUM($I136:K136),('PTRM input'!$I$205*(1+rvanilla03)^0.5)/A3stdlife)) -> 0 | M136: =IF(A3stdlife="n/a","n/a",IF(M$3>(A3stdlife+$E136),('PTRM input'!$I$205*(1+rvanilla03)^0.5)-SUM($I136:L136),('PTRM input'!$I$205*(1+rvanilla03)^0.5)/A3stdlife)) -> 0 | N136: =IF(A3stdlife="n/a","n/a",IF(N$3>(A3stdlife+$E136),('PTRM input'!$I$205*(1+rvanilla03)^0.5)-SUM($I136:M136),('PTRM input'!$I$205*(1+rvanilla03)^0.5)/A3stdlife)) -> 0 | O136: =IF(A3stdlife="n/a","n/a",IF(O$3>(A3stdlife+$E136),('PTRM input'!$I$205*(1+rvanilla03)^0.5)-SUM($I136:N136),('PTRM input'!$I$205*(1+rvanilla03)^0.5)/A3stdlife)) -> 0 | P136: =IF(A3stdlife="n/a","n/a",IF(P$3>(A3stdlife+$E136),('PTRM input'!$I$205*(1+rvanilla03)^0.5)-SUM($I136:O136),('PTRM input'!$I$205*(1+rvanilla03)^0.5)/A3stdlife)) -> 0 | Q136: =IF(A3stdlife="n/a","n/a",IF(Q$3>(A3stdlife+$E136),('PTRM input'!$I$205*(1+rvanilla03)^0.5)-SUM($I136:P136),('PTRM input'!$I$205*(1+rvanilla03)^0.5)/A3stdlife)) -> 0 | R136: =IF(A3stdlife="n/a","n/a",IF(R$3>(A3stdlife+$E136),('PTRM input'!$I$205*(1+rvanilla03)^0.5)-SUM($I136:Q136),('PTRM input'!$I$205*(1+rvanilla03)^0.5)/A3stdlife)) -> 0 | S136: =IF(A3stdlife="n/a","n/a",IF(S$3>(A3stdlife+$E136),('PTRM input'!$I$205*(1+rvanilla03)^0.5)-SUM($I136:R136),('PTRM input'!$I$205*(1+rvanilla03)^0.5)/A3stdlife)) -> 0 | T136: =IF(A3stdlife="n/a","n/a",IF(T$3>(A3stdlife+$E136),('PTRM input'!$I$205*(1+rvanilla03)^0.5)-SUM($I136:S136),('PTRM input'!$I$205*(1+rvanilla03)^0.5)/A3stdlife)) -> 0 | U136: =IF(A3stdlife="n/a","n/a",IF(U$3>(A3stdlife+$E136),('PTRM input'!$I$205*(1+rvanilla03)^0.5)-SUM($I136:T136),('PTRM input'!$I$205*(1+rvanilla03)^0.5)/A3stdlife)) -> 0 | V136: =IF(A3stdlife="n/a","n/a",IF(V$3>(A3stdlife+$E136),('PTRM input'!$I$205*(1+rvanilla03)^0.5)-SUM($I136:U136),('PTRM input'!$I$205*(1+rvanilla03)^0.5)/A3stdlife)) -> 0 | W136: =IF(A3stdlife="n/a","n/a",IF(W$3>(A3stdlife+$E136),('PTRM input'!$I$205*(1+rvanilla03)^0.5)-SUM($I136:V136),('PTRM input'!$I$205*(1+rvanilla03)^0.5)/A3stdlife)) -> 0 | X136: =IF(A3stdlife="n/a","n/a",IF(X$3>(A3stdlife+$E136),('PTRM input'!$I$205*(1+rvanilla03)^0.5)-SUM($I136:W136),('PTRM input'!$I$205*(1+rvanilla03)^0.5)/A3stdlife)) -> 0 | Y136: =IF(A3stdlife="n/a","n/a",IF(Y$3>(A3stdlife+$E136),('PTRM input'!$I$205*(1+rvanilla03)^0.5)-SUM($I136:X136),('PTRM input'!$I$205*(1+rvanilla03)^0.5)/A3stdlife)) -> 0 | Z136: =IF(A3stdlife="n/a","n/a",IF(Z$3>(A3stdlife+$E136),('PTRM input'!$I$205*(1+rvanilla03)^0.5)-SUM($I136:Y136),('PTRM input'!$I$205*(1+rvanilla03)^0.5)/A3stdlife)) -> 0 | AA136: =IF(A3stdlife="n/a","n/a",IF(AA$3>(A3stdlife+$E136),('PTRM input'!$I$205*(1+rvanilla03)^0.5)-SUM($I136:Z136),('PTRM input'!$I$205*(1+rvanilla03)^0.5)/A3stdlife)) -> 0 | AB136: =IF(A3stdlife="n/a","n/a",IF(AB$3>(A3stdlife+$E136),('PTRM input'!$I$205*(1+rvanilla03)^0.5)-SUM($I136:AA136),('PTRM input'!$I$205*(1+rvanilla03)^0.5)/A3stdlife)) -> 0 | AC136: =IF(A3stdlife="n/a","n/a",IF(AC$3>(A3stdlife+$E136),('PTRM input'!$I$205*(1+rvanilla03)^0.5)-SUM($I136:AB136),('PTRM input'!$I$205*(1+rvanilla03)^0.5)/A3stdlife)) -> 0 | AD136: =IF(A3stdlife="n/a","n/a",IF(AD$3>(A3stdlife+$E136),('PTRM input'!$I$205*(1+rvanilla03)^0.5)-SUM($I136:AC136),('PTRM input'!$I$205*(1+rvanilla03)^0.5)/A3stdlife)) -> 0 | AE136: =IF(A3stdlife="n/a","n/a",IF(AE$3>(A3stdlife+$E136),('PTRM input'!$I$205*(1+rvanilla03)^0.5)-SUM($I136:AD136),('PTRM input'!$I$205*(1+rvanilla03)^0.5)/A3stdlife)) -> 0 | AF136: =IF(A3stdlife="n/a","n/a",IF(AF$3>(A3stdlife+$E136),('PTRM input'!$I$205*(1+rvanilla03)^0.5)-SUM($I136:AE136),('PTRM input'!$I$205*(1+rvanilla03)^0.5)/A3stdlife)) -> 0 | AG136: =IF(A3stdlife="n/a","n/a",IF(AG$3>(A3stdlife+$E136),('PTRM input'!$I$205*(1+rvanilla03)^0.5)-SUM($I136:AF136),('PTRM input'!$I$205*(1+rvanilla03)^0.5)/A3stdlife)) -> 0 | AH136: =IF(A3stdlife="n/a","n/a",IF(AH$3>(A3stdlife+$E136),('PTRM input'!$I$205*(1+rvanilla03)^0.5)-SUM($I136:AG136),('PTRM input'!$I$205*(1+rvanilla03)^0.5)/A3stdlife)) -> 0 | AI136: =IF(A3stdlife="n/a","n/a",IF(AI$3>(A3stdlife+$E136),('PTRM input'!$I$205*(1+rvanilla03)^0.5)-SUM($I136:AH136),('PTRM input'!$I$205*(1+rvanilla03)^0.5)/A3stdlife)) -> 0 | AJ136: =IF(A3stdlife="n/a","n/a",IF(AJ$3>(A3stdlife+$E136),('PTRM input'!$I$205*(1+rvanilla03)^0.5)-SUM($I136:AI136),('PTRM input'!$I$205*(1+rvanilla03)^0.5)/A3stdlife)) -> 0 | AK136: =IF(A3stdlife="n/a","n/a",IF(AK$3>(A3stdlife+$E136),('PTRM input'!$I$205*(1+rvanilla03)^0.5)-SUM($I136:AJ136),('PTRM input'!$I$205*(1+rvanilla03)^0.5)/A3stdlife)) -> 0 | AL136: =IF(A3stdlife="n/a","n/a",IF(AL$3>(A3stdlife+$E136),('PTRM input'!$I$205*(1+rvanilla03)^0.5)-SUM($I136:AK136),('PTRM input'!$I$205*(1+rvanilla03)^0.5)/A3stdlife)) -> 0 | AM136: =IF(A3stdlife="n/a","n/a",IF(AM$3>(A3stdlife+$E136),('PTRM input'!$I$205*(1+rvanilla03)^0.5)-SUM($I136:AL136),('PTRM input'!$I$205*(1+rvanilla03)^0.5)/A3stdlife)) -> 0 | AN136: =IF(A3stdlife="n/a","n/a",IF(AN$3>(A3stdlife+$E136),('PTRM input'!$I$205*(1+rvanilla03)^0.5)-SUM($I136:AM136),('PTRM input'!$I$205*(1+rvanilla03)^0.5)/A3stdlife)) -> 0 | AO136: =IF(A3stdlife="n/a","n/a",IF(AO$3>(A3stdlife+$E136),('PTRM input'!$I$205*(1+rvanilla03)^0.5)-SUM($I136:AN136),('PTRM input'!$I$205*(1+rvanilla03)^0.5)/A3stdlife)) -> 0 | AP136: =IF(A3stdlife="n/a","n/a",IF(AP$3>(A3stdlife+$E136),('PTRM input'!$I$205*(1+rvanilla03)^0.5)-SUM($I136:AO136),('PTRM input'!$I$205*(1+rvanilla03)^0.5)/A3stdlife)) -> 0 | AQ136: =IF(A3stdlife="n/a","n/a",IF(AQ$3>(A3stdlife+$E136),('PTRM input'!$I$205*(1+rvanilla03)^0.5)-SUM($I136:AP136),('PTRM input'!$I$205*(1+rvanilla03)^0.5)/A3stdlife)) -> 0 | AR136: =IF(A3stdlife="n/a","n/a",IF(AR$3>(A3stdlife+$E136),('PTRM input'!$I$205*(1+rvanilla03)^0.5)-SUM($I136:AQ136),('PTRM input'!$I$205*(1+rvanilla03)^0.5)/A3stdlife)) -> 0 | AS136: =IF(A3stdlife="n/a","n/a",IF(AS$3>(A3stdlife+$E136),('PTRM input'!$I$205*(1+rvanilla03)^0.5)-SUM($I136:AR136),('PTRM input'!$I$205*(1+rvanilla03)^0.5)/A3stdlife)) -> 0 | AT136: =IF(A3stdlife="n/a","n/a",IF(AT$3>(A3stdlife+$E136),('PTRM input'!$I$205*(1+rvanilla03)^0.5)-SUM($I136:AS136),('PTRM input'!$I$205*(1+rvanilla03)^0.5)/A3stdlife)) -> 0 | AU136: =IF(A3stdlife="n/a","n/a",IF(AU$3>(A3stdlife+$E136),('PTRM input'!$I$205*(1+rvanilla03)^0.5)-SUM($I136:AT136),('PTRM input'!$I$205*(1+rvanilla03)^0.5)/A3stdlife)) -> 0 | AV136: =IF(A3stdlife="n/a","n/a",IF(AV$3>(A3stdlife+$E136),('PTRM input'!$I$205*(1+rvanilla03)^0.5)-SUM($I136:AU136),('PTRM input'!$I$205*(1+rvanilla03)^0.5)/A3stdlife)) -> 0 | AW136: =IF(A3stdlife="n/a","n/a",IF(AW$3>(A3stdlife+$E136),('PTRM input'!$I$205*(1+rvanilla03)^0.5)-SUM($I136:AV136),('PTRM input'!$I$205*(1+rvanilla03)^0.5)/A3stdlife)) -> 0 | AX136: =IF(A3stdlife="n/a","n/a",IF(AX$3>(A3stdlife+$E136),('PTRM input'!$I$205*(1+rvanilla03)^0.5)-SUM($I136:AW136),('PTRM input'!$I$205*(1+rvanilla03)^0.5)/A3stdlife)) -> 0 | AY136: =IF(A3stdlife="n/a","n/a",IF(AY$3>(A3stdlife+$E136),('PTRM input'!$I$205*(1+rvanilla03)^0.5)-SUM($I136:AX136),('PTRM input'!$I$205*(1+rvanilla03)^0.5)/A3stdlife)) -> 0 | AZ136: =IF(A3stdlife="n/a","n/a",IF(AZ$3>(A3stdlife+$E136),('PTRM input'!$I$205*(1+rvanilla03)^0.5)-SUM($I136:AY136),('PTRM input'!$I$205*(1+rvanilla03)^0.5)/A3stdlife)) -> 0 | BA136: =IF(A3stdlife="n/a","n/a",IF(BA$3>(A3stdlife+$E136),('PTRM input'!$I$205*(1+rvanilla03)^0.5)-SUM($I136:AZ136),('PTRM input'!$I$205*(1+rvanilla03)^0.5)/A3stdlife)) -> 0 | BB136: =IF(A3stdlife="n/a","n/a",IF(BB$3>(A3stdlife+$E136),('PTRM input'!$I$205*(1+rvanilla03)^0.5)-SUM($I136:BA136),('PTRM input'!$I$205*(1+rvanilla03)^0.5)/A3stdlife)) -> 0 | BC136: =IF(A3stdlife="n/a","n/a",IF(BC$3>(A3stdlife+$E136),('PTRM input'!$I$205*(1+rvanilla03)^0.5)-SUM($I136:BB136),('PTRM input'!$I$205*(1+rvanilla03)^0.5)/A3stdlife)) -> 0 | BD136: =IF(A3stdlife="n/a","n/a",IF(BD$3>(A3stdlife+$E136),('PTRM input'!$I$205*(1+rvanilla03)^0.5)-SUM($I136:BC136),('PTRM input'!$I$205*(1+rvanilla03)^0.5)/A3stdlife)) -> 0 | BE136: =IF(A3stdlife="n/a","n/a",IF(BE$3>(A3stdlife+$E136),('PTRM input'!$I$205*(1+rvanilla03)^0.5)-SUM($I136:BD136),('PTRM input'!$I$205*(1+rvanilla03)^0.5)/A3stdlife)) -> 0 | BF136: =IF(A3stdlife="n/a","n/a",IF(BF$3>(A3stdlife+$E136),('PTRM input'!$I$205*(1+rvanilla03)^0.5)-SUM($I136:BE136),('PTRM input'!$I$205*(1+rvanilla03)^0.5)/A3stdlife)) -> 0 | BG136: =IF(A3stdlife="n/a","n/a",IF(BG$3>(A3stdlife+$E136),('PTRM input'!$I$205*(1+rvanilla03)^0.5)-SUM($I136:BF136),('PTRM input'!$I$205*(1+rvanilla03)^0.5)/A3stdlife)) -> 0 | BH136: =IF(A3stdlife="n/a","n/a",IF(BH$3>(A3stdlife+$E136),('PTRM input'!$I$205*(1+rvanilla03)^0.5)-SUM($I136:BG136),('PTRM input'!$I$205*(1+rvanilla03)^0.5)/A3stdlife)) -> 0 | BI136: =IF(A3stdlife="n/a","n/a",IF(BI$3>(A3stdlife+$E136),('PTRM input'!$I$205*(1+rvanilla03)^0.5)-SUM($I136:BH136),('PTRM input'!$I$205*(1+rvanilla03)^0.5)/A3stdlife)) -> 0
E137: 4 | K137: =IF(A3stdlife="n/a","n/a",IF(K$3>(A3stdlife+$E137),('PTRM input'!$J$205*(1+rvanilla04)^0.5)-SUM($J137:J137),('PTRM input'!$J$205*(1+rvanilla04)^0.5)/A3stdlife)) -> 0 | L137: =IF(A3stdlife="n/a","n/a",IF(L$3>(A3stdlife+$E137),('PTRM input'!$J$205*(1+rvanilla04)^0.5)-SUM($J137:K137),('PTRM input'!$J$205*(1+rvanilla04)^0.5)/A3stdlife)) -> 0 | M137: =IF(A3stdlife="n/a","n/a",IF(M$3>(A3stdlife+$E137),('PTRM input'!$J$205*(1+rvanilla04)^0.5)-SUM($J137:L137),('PTRM input'!$J$205*(1+rvanilla04)^0.5)/A3stdlife)) -> 0 | N137: =IF(A3stdlife="n/a","n/a",IF(N$3>(A3stdlife+$E137),('PTRM input'!$J$205*(1+rvanilla04)^0.5)-SUM($J137:M137),('PTRM input'!$J$205*(1+rvanilla04)^0.5)/A3stdlife)) -> 0 | O137: =IF(A3stdlife="n/a","n/a",IF(O$3>(A3stdlife+$E137),('PTRM input'!$J$205*(1+rvanilla04)^0.5)-SUM($J137:N137),('PTRM input'!$J$205*(1+rvanilla04)^0.5)/A3stdlife)) -> 0 | P137: =IF(A3stdlife="n/a","n/a",IF(P$3>(A3stdlife+$E137),('PTRM input'!$J$205*(1+rvanilla04)^0.5)-SUM($J137:O137),('PTRM input'!$J$205*(1+rvanilla04)^0.5)/A3stdlife)) -> 0 | Q137: =IF(A3stdlife="n/a","n/a",IF(Q$3>(A3stdlife+$E137),('PTRM input'!$J$205*(1+rvanilla04)^0.5)-SUM($J137:P137),('PTRM input'!$J$205*(1+rvanilla04)^0.5)/A3stdlife)) -> 0 | R137: =IF(A3stdlife="n/a","n/a",IF(R$3>(A3stdlife+$E137),('PTRM input'!$J$205*(1+rvanilla04)^0.5)-SUM($J137:Q137),('PTRM input'!$J$205*(1+rvanilla04)^0.5)/A3stdlife)) -> 0 | S137: =IF(A3stdlife="n/a","n/a",IF(S$3>(A3stdlife+$E137),('PTRM input'!$J$205*(1+rvanilla04)^0.5)-SUM($J137:R137),('PTRM input'!$J$205*(1+rvanilla04)^0.5)/A3stdlife)) -> 0 | T137: =IF(A3stdlife="n/a","n/a",IF(T$3>(A3stdlife+$E137),('PTRM input'!$J$205*(1+rvanilla04)^0.5)-SUM($J137:S137),('PTRM input'!$J$205*(1+rvanilla04)^0.5)/A3stdlife)) -> 0 | U137: =IF(A3stdlife="n/a","n/a",IF(U$3>(A3stdlife+$E137),('PTRM input'!$J$205*(1+rvanilla04)^0.5)-SUM($J137:T137),('PTRM input'!$J$205*(1+rvanilla04)^0.5)/A3stdlife)) -> 0 | V137: =IF(A3stdlife="n/a","n/a",IF(V$3>(A3stdlife+$E137),('PTRM input'!$J$205*(1+rvanilla04)^0.5)-SUM($J137:U137),('PTRM input'!$J$205*(1+rvanilla04)^0.5)/A3stdlife)) -> 0 | W137: =IF(A3stdlife="n/a","n/a",IF(W$3>(A3stdlife+$E137),('PTRM input'!$J$205*(1+rvanilla04)^0.5)-SUM($J137:V137),('PTRM input'!$J$205*(1+rvanilla04)^0.5)/A3stdlife)) -> 0 | X137: =IF(A3stdlife="n/a","n/a",IF(X$3>(A3stdlife+$E137),('PTRM input'!$J$205*(1+rvanilla04)^0.5)-SUM($J137:W137),('PTRM input'!$J$205*(1+rvanilla04)^0.5)/A3stdlife)) -> 0 | Y137: =IF(A3stdlife="n/a","n/a",IF(Y$3>(A3stdlife+$E137),('PTRM input'!$J$205*(1+rvanilla04)^0.5)-SUM($J137:X137),('PTRM input'!$J$205*(1+rvanilla04)^0.5)/A3stdlife)) -> 0 | Z137: =IF(A3stdlife="n/a","n/a",IF(Z$3>(A3stdlife+$E137),('PTRM input'!$J$205*(1+rvanilla04)^0.5)-SUM($J137:Y137),('PTRM input'!$J$205*(1+rvanilla04)^0.5)/A3stdlife)) -> 0 | AA137: =IF(A3stdlife="n/a","n/a",IF(AA$3>(A3stdlife+$E137),('PTRM input'!$J$205*(1+rvanilla04)^0.5)-SUM($J137:Z137),('PTRM input'!$J$205*(1+rvanilla04)^0.5)/A3stdlife)) -> 0 | AB137: =IF(A3stdlife="n/a","n/a",IF(AB$3>(A3stdlife+$E137),('PTRM input'!$J$205*(1+rvanilla04)^0.5)-SUM($J137:AA137),('PTRM input'!$J$205*(1+rvanilla04)^0.5)/A3stdlife)) -> 0 | AC137: =IF(A3stdlife="n/a","n/a",IF(AC$3>(A3stdlife+$E137),('PTRM input'!$J$205*(1+rvanilla04)^0.5)-SUM($J137:AB137),('PTRM input'!$J$205*(1+rvanilla04)^0.5)/A3stdlife)) -> 0 | AD137: =IF(A3stdlife="n/a","n/a",IF(AD$3>(A3stdlife+$E137),('PTRM input'!$J$205*(1+rvanilla04)^0.5)-SUM($J137:AC137),('PTRM input'!$J$205*(1+rvanilla04)^0.5)/A3stdlife)) -> 0 | AE137: =IF(A3stdlife="n/a","n/a",IF(AE$3>(A3stdlife+$E137),('PTRM input'!$J$205*(1+rvanilla04)^0.5)-SUM($J137:AD137),('PTRM input'!$J$205*(1+rvanilla04)^0.5)/A3stdlife)) -> 0 | AF137: =IF(A3stdlife="n/a","n/a",IF(AF$3>(A3stdlife+$E137),('PTRM input'!$J$205*(1+rvanilla04)^0.5)-SUM($J137:AE137),('PTRM input'!$J$205*(1+rvanilla04)^0.5)/A3stdlife)) -> 0 | AG137: =IF(A3stdlife="n/a","n/a",IF(AG$3>(A3stdlife+$E137),('PTRM input'!$J$205*(1+rvanilla04)^0.5)-SUM($J137:AF137),('PTRM input'!$J$205*(1+rvanilla04)^0.5)/A3stdlife)) -> 0 | AH137: =IF(A3stdlife="n/a","n/a",IF(AH$3>(A3stdlife+$E137),('PTRM input'!$J$205*(1+rvanilla04)^0.5)-SUM($J137:AG137),('PTRM input'!$J$205*(1+rvanilla04)^0.5)/A3stdlife)) -> 0 | AI137: =IF(A3stdlife="n/a","n/a",IF(AI$3>(A3stdlife+$E137),('PTRM input'!$J$205*(1+rvanilla04)^0.5)-SUM($J137:AH137),('PTRM input'!$J$205*(1+rvanilla04)^0.5)/A3stdlife)) -> 0 | AJ137: =IF(A3stdlife="n/a","n/a",IF(AJ$3>(A3stdlife+$E137),('PTRM input'!$J$205*(1+rvanilla04)^0.5)-SUM($J137:AI137),('PTRM input'!$J$205*(1+rvanilla04)^0.5)/A3stdlife)) -> 0 | AK137: =IF(A3stdlife="n/a","n/a",IF(AK$3>(A3stdlife+$E137),('PTRM input'!$J$205*(1+rvanilla04)^0.5)-SUM($J137:AJ137),('PTRM input'!$J$205*(1+rvanilla04)^0.5)/A3stdlife)) -> 0 | AL137: =IF(A3stdlife="n/a","n/a",IF(AL$3>(A3stdlife+$E137),('PTRM input'!$J$205*(1+rvanilla04)^0.5)-SUM($J137:AK137),('PTRM input'!$J$205*(1+rvanilla04)^0.5)/A3stdlife)) -> 0 | AM137: =IF(A3stdlife="n/a","n/a",IF(AM$3>(A3stdlife+$E137),('PTRM input'!$J$205*(1+rvanilla04)^0.5)-SUM($J137:AL137),('PTRM input'!$J$205*(1+rvanilla04)^0.5)/A3stdlife)) -> 0 | AN137: =IF(A3stdlife="n/a","n/a",IF(AN$3>(A3stdlife+$E137),('PTRM input'!$J$205*(1+rvanilla04)^0.5)-SUM($J137:AM137),('PTRM input'!$J$205*(1+rvanilla04)^0.5)/A3stdlife)) -> 0 | AO137: =IF(A3stdlife="n/a","n/a",IF(AO$3>(A3stdlife+$E137),('PTRM input'!$J$205*(1+rvanilla04)^0.5)-SUM($J137:AN137),('PTRM input'!$J$205*(1+rvanilla04)^0.5)/A3stdlife)) -> 0 | AP137: =IF(A3stdlife="n/a","n/a",IF(AP$3>(A3stdlife+$E137),('PTRM input'!$J$205*(1+rvanilla04)^0.5)-SUM($J137:AO137),('PTRM input'!$J$205*(1+rvanilla04)^0.5)/A3stdlife)) -> 0 | AQ137: =IF(A3stdlife="n/a","n/a",IF(AQ$3>(A3stdlife+$E137),('PTRM input'!$J$205*(1+rvanilla04)^0.5)-SUM($J137:AP137),('PTRM input'!$J$205*(1+rvanilla04)^0.5)/A3stdlife)) -> 0 | AR137: =IF(A3stdlife="n/a","n/a",IF(AR$3>(A3stdlife+$E137),('PTRM input'!$J$205*(1+rvanilla04)^0.5)-SUM($J137:AQ137),('PTRM input'!$J$205*(1+rvanilla04)^0.5)/A3stdlife)) -> 0 | AS137: =IF(A3stdlife="n/a","n/a",IF(AS$3>(A3stdlife+$E137),('PTRM input'!$J$205*(1+rvanilla04)^0.5)-SUM($J137:AR137),('PTRM input'!$J$205*(1+rvanilla04)^0.5)/A3stdlife)) -> 0 | AT137: =IF(A3stdlife="n/a","n/a",IF(AT$3>(A3stdlife+$E137),('PTRM input'!$J$205*(1+rvanilla04)^0.5)-SUM($J137:AS137),('PTRM input'!$J$205*(1+rvanilla04)^0.5)/A3stdlife)) -> 0 | AU137: =IF(A3stdlife="n/a","n/a",IF(AU$3>(A3stdlife+$E137),('PTRM input'!$J$205*(1+rvanilla04)^0.5)-SUM($J137:AT137),('PTRM input'!$J$205*(1+rvanilla04)^0.5)/A3stdlife)) -> 0 | AV137: =IF(A3stdlife="n/a","n/a",IF(AV$3>(A3stdlife+$E137),('PTRM input'!$J$205*(1+rvanilla04)^0.5)-SUM($J137:AU137),('PTRM input'!$J$205*(1+rvanilla04)^0.5)/A3stdlife)) -> 0 | AW137: =IF(A3stdlife="n/a","n/a",IF(AW$3>(A3stdlife+$E137),('PTRM input'!$J$205*(1+rvanilla04)^0.5)-SUM($J137:AV137),('PTRM input'!$J$205*(1+rvanilla04)^0.5)/A3stdlife)) -> 0 | AX137: =IF(A3stdlife="n/a","n/a",IF(AX$3>(A3stdlife+$E137),('PTRM input'!$J$205*(1+rvanilla04)^0.5)-SUM($J137:AW137),('PTRM input'!$J$205*(1+rvanilla04)^0.5)/A3stdlife)) -> 0 | AY137: =IF(A3stdlife="n/a","n/a",IF(AY$3>(A3stdlife+$E137),('PTRM input'!$J$205*(1+rvanilla04)^0.5)-SUM($J137:AX137),('PTRM input'!$J$205*(1+rvanilla04)^0.5)/A3stdlife)) -> 0 | AZ137: =IF(A3stdlife="n/a","n/a",IF(AZ$3>(A3stdlife+$E137),('PTRM input'!$J$205*(1+rvanilla04)^0.5)-SUM($J137:AY137),('PTRM input'!$J$205*(1+rvanilla04)^0.5)/A3stdlife)) -> 0 | BA137: =IF(A3stdlife="n/a","n/a",IF(BA$3>(A3stdlife+$E137),('PTRM input'!$J$205*(1+rvanilla04)^0.5)-SUM($J137:AZ137),('PTRM input'!$J$205*(1+rvanilla04)^0.5)/A3stdlife)) -> 0 | BB137: =IF(A3stdlife="n/a","n/a",IF(BB$3>(A3stdlife+$E137),('PTRM input'!$J$205*(1+rvanilla04)^0.5)-SUM($J137:BA137),('PTRM input'!$J$205*(1+rvanilla04)^0.5)/A3stdlife)) -> 0 | BC137: =IF(A3stdlife="n/a","n/a",IF(BC$3>(A3stdlife+$E137),('PTRM input'!$J$205*(1+rvanilla04)^0.5)-SUM($J137:BB137),('PTRM input'!$J$205*(1+rvanilla04)^0.5)/A3stdlife)) -> 0 | BD137: =IF(A3stdlife="n/a","n/a",IF(BD$3>(A3stdlife+$E137),('PTRM input'!$J$205*(1+rvanilla04)^0.5)-SUM($J137:BC137),('PTRM input'!$J$205*(1+rvanilla04)^0.5)/A3stdlife)) -> 0 | BE137: =IF(A3stdlife="n/a","n/a",IF(BE$3>(A3stdlife+$E137),('PTRM input'!$J$205*(1+rvanilla04)^0.5)-SUM($J137:BD137),('PTRM input'!$J$205*(1+rvanilla04)^0.5)/A3stdlife)) -> 0 | BF137: =IF(A3stdlife="n/a","n/a",IF(BF$3>(A3stdlife+$E137),('PTRM input'!$J$205*(1+rvanilla04)^0.5)-SUM($J137:BE137),('PTRM input'!$J$205*(1+rvanilla04)^0.5)/A3stdlife)) -> 0 | BG137: =IF(A3stdlife="n/a","n/a",IF(BG$3>(A3stdlife+$E137),('PTRM input'!$J$205*(1+rvanilla04)^0.5)-SUM($J137:BF137),('PTRM input'!$J$205*(1+rvanilla04)^0.5)/A3stdlife)) -> 0 | BH137: =IF(A3stdlife="n/a","n/a",IF(BH$3>(A3stdlife+$E137),('PTRM input'!$J$205*(1+rvanilla04)^0.5)-SUM($J137:BG137),('PTRM input'!$J$205*(1+rvanilla04)^0.5)/A3stdlife)) -> 0 | BI137: =IF(A3stdlife="n/a","n/a",IF(BI$3>(A3stdlife+$E137),('PTRM input'!$J$205*(1+rvanilla04)^0.5)-SUM($J137:BH137),('PTRM input'!$J$205*(1+rvanilla04)^0.5)/A3stdlife)) -> 0
